Workbook

Sheet 1. Omslag
A1: Testversion 170302
B5: Förenklad beräkning av energianvändning, klimatpåverkan och kostnader för ombyggnadsprojekt (BECEREN*)
B7: Byggnad | C7: Testbyggnad
B8: Adress | C8: Ringvägen 18
B9: Ort | C9: Ljusdal
B11: Datum
B12: Person | C12: MG
B28: *Basic Energy, CO2 and Cost Estimations for Renovation of Buildings (BECEREN) - impact on climate change from energy use and material production
F31: Mauritz Glaumann
A32: © EcoEffect | F32: University of Gävle/KTH, Sweden
A33: © M Glaumann | F33: email: mga@hig.se

Sheet 2. Intro
A1: INTRODUKTION
A2: Syftet med det här programmet är underlätta målformulering och utvärdering i tidiga skeden vad gäller energianavändning, klimatpåverkan och kostnader.
A4: I flik "3b Basdata" för man in data om den studerade byggnaden. Det är bara 5 värden (mörkblå celler) som man måste fylla för att kunna börja räkna. För resterande celler finns schablonvärden bl.a. kopplade till när huset byggdes (cell C6).
A5: Vill man ha en lite bättre beräkning och har riktigare data för det aktuella huset skriver man in dessa i de ljusblå rutorna. Inga värden i de vita rutorn över den horisontella linjen (rad 61) skall ändras.
A6: Val av förbättringsåtgärder och beräkningar utförs i flik "Pröva". I den dolda filen "13b Explore" finns mer detaljerade resultat.
A8: Flik "Pröva" är upplagd så att man skall börja med att åtgärda byggnadsskalet, därefter arbeta med energieffektiviserande åtgärder för att till sist komplettera med platsgenererade förnybar energi.
A9: Ekonomin illustreras i form av det årliga kassaflödet 50 år framöver. Vald energiprisutveckling och kalkylränta är helt avgörande för resultatet. Det gör också den beräknade livslängden för olika åtgärder som satts som schablonvärden ide dolda flikarna med teknisk beskrivning.
A10: Figur 1 visar energiförlusternas fördelning före och efter åtgärd. Den är bra vid val av åtgärd. Figur 2 visar hur energianvändning och energikostnader påverkas av förbättringsåtgärder på vänstra skalan. På högra skalan visas hur CO2 utsläppen påverkas.
A11: Figur 3 och 4 visar skillnaden i kassaflöde utan och med åtgärder, dels årligen och dels ackumulerat.
A12: Det finns en mängd dolda flikar med beräkningar eller data. Energiberäkningarna baseras på månadsmedelvärden för utetemperatur och solinstrålning och skall inte förväntas överenstämma med energisimuleringar per timme vilket kan bli aktuellt i ett senare skede.
B15: Schematisk skiss över programmets innehåll

Sheet 3. Gen info (hidden)
B2: Building Input WorkSheet
D3: Comment
B4: New or Refurbished | F4: CITY
B5: Building Type | F5: ='6. Energy'!L3 -> Malmö | H5: Residential
B6: Occupation Date: | F6: ='6. Energy'!L4 -> Kalmar | H6: Office
B7: Name of Building: | F7: ='6. Energy'!L5 -> Göteborg
F8: ='6. Energy'!L6 -> Jönköping
F9: ='6. Energy'!L7 -> Stockholm
F10: ='6. Energy'!L8 -> Stockholm_Arlanda
B11: Postcode: | F11: ='6. Energy'!L9 -> Gävle
B12: City (nearest in scroll list): | C12: ='3b Basdata'!C5 -> Ljusdal | F12: ='6. Energy'!L10 -> Ljusdal
B13: State: | F13: ='6. Energy'!L11 -> Östersund
B14: Building Owner: | F14: ='6. Energy'!L12 -> Luleå
B15: Architect: | F15: ='6. Energy'!L13 -> Kiruna
B16: Building Contact Person: | F16: ='6. Energy'!M14 -> 0
B17: Calculations done by: | F17: ='6. Energy'!M15 -> 0
B18: Usable Floor Area (UFA) in m2: | F18: ='6. Energy'!M16 -> 0
B19: Gross Floor Area (GFA) in m2: | F19: ='6. Energy'!M17 -> 0
B20: Net Floor Area (NFA) in m2: | F20: ='6. Energy'!M18 -> 0
B21: Heated Floor Area (HFA) in m2: | F21: ='6. Energy'!M19 -> 0
B22: No. of Storeys: | F22: ='6. Energy'!M20 -> 0
B23: Aticipated life time, years | F23: ='6. Energy'!M21 -> 0
B24: Designed Number of Users | F24: ='6. Energy'!M22 -> 0
B25: Average Daily Use Time in hours per person | F25: ='6. Energy'!M23 -> 0
B26: Est. Building Use in Personhours per year | F26: ='6. Energy'!M24 -> 0
B27: Indoor air temperature, average winter, oC | D27: =IF('3b Basdata'!C20>0,'3b Basdata'!C20,0) -> 21
B28: Air change rate, liter/m2,s | D28: =IF('3b Basdata'!C21>0,'3b Basdata'!C21,0) -> 0.35
B29: Building Description: (Orientation, Form, Structure, Façade, etc.)
B30: Building Services: (Heating, Cooling, Ventilation, Lighting, Lifts, Domestic Hot Water)
B32: Fill in - compulsary
B33: Fill in - volountary
B34: Calculated automatically

Sheet 3b Basdata
B1: BASDATA OCH SCHABLONVÄRDEN | J1: Övergångasmotstånd | M1: mi+mu
B2: Ändringar görs i blåa rutor. Vid listalternativ, mörkblå, kan bara listans alternativ användas. Alla mörkblå måste fyllas i. | J2: Vägg och tak mot det fria | M2: 0.25
C3: Fylls alltid i | J3: Golv- och takbjälklag | M3: 0.3
B4: Byggnad | C4: ='1. Omslag'!C7:F7 -> Testbyggnad
B5: Ort | C5: ='1. Omslag'!C9:F9 -> Ljusdal | I5: Ingen | J5: Vägg, tak, golv mot uppvärmd lokal | M5: 0.35
B6: Beteckning | C6: ='1. Omslag'!C8:F8 -> Ringvägen 18 | I6: Gävle
B7: Byggår | C7: 1961-75 | I7: Göteborg
B8: Byggnadstyp | C8: Bostad | I8: Jönköping | J8: U-värden (W/m2,K) inkluderande köldbryggor enligt schabloner föreslagna av Aton 2007.
B9: Uppvärmd yta, m2 Atemp | C9: 720 | E9: Pris, kr/kWh | I9: Kalmar | J9: Byggår | K9: Ytterväggar | M9: Vindsbjälklag | O9: Grund | P9: Fönster | Q9: Dörrar
B10: Antal våningar över mark | C10: 3.65 | E10: inkl avgifter men exkl moms | I10: Kiruna | K10: Utan åtgärd | L10: Tilläggsisol. | M10: Utan åtgärd | N10: Tilläggsisol.
B11: Antal våningar under mark | C11: 0.25 | I11: Ljusdal | J11: Småhus
B12: Ventilationssystem - S, F, FT, FTX | C12: Självdrag, S | D12: Andel | E12: Schablon | F12: Justerat | I12: Luleå | J12: -1920 | K12: 0.9 | L12: 0.4 | M12: 0.6 | N12: 0.25 | O12: 0.3 | P12: 2.9 | Q12: 3
B13: Energislag/Leverantör - värme | C13: District heating - Ljusdal | D13: 1 | E13: =VLOOKUP(C13,Energy_emissions,23) -> 0.72 | F13: 0.55 | I13: Malmö | J13: 1921-40 | K13: 0.85 | L13: 0.4 | M13: 0.5 | N13: 0.25 | O13: 0.3 | P13: 2.9 | Q13: 3
C14: District heating - Ljusdal | D14: =IF(D13>0,1-D13," ") -> 0 | E14: =IF(C14=0,0,VLOOKUP(C14,Energy_emissions,23)) -> 0.72 | F14: 0.55 | I14: Stockholm | J14: 1941-60 | K14: 0.6 | L14: 0.4 | M14: 0.45 | N14: 0.2 | O14: 0.3 | P14: 2.9 | Q14: 3
B15: Energileverantör -fastighetsel el | C15: Electricity Hydro power | E15: =VLOOKUP(C15,Energy_emissions,23) -> 0.89 | F15: 0.95 | I15: Östersund | J15: 1961-75 | K15: 0.4 | L15: 0.3 | M15: 0.3 | N15: 0.18 | O15: 0.3 | P15: 2.9 | Q15: 2.9
B16: Energileverantör - burkarel | C16: Electricity Hydro power | E16: =VLOOKUP(C16,Energy_emissions,23) -> 0.89 | J16: 1976-85 | K16: 0.25 | L16: 0.25 | M16: 0.18 | N16: 0.18 | O16: 0.16 | P16: 1.9 | Q16: 2
J17: 1986- | K17: 0.2 | L17: 0.2 | M17: 0.15 | N17: 0.15 | O17: 0.13 | P17: 1.9 | Q17: 1.5
C18: Schablonvärden | D18: Valfria justeringar | I18: Bostad | J18: Passiv std | K18: 0.1 | L18: 0.1 | M18: 0.1 | N18: 0.1 | O18: 0.1 | P18: 0.9 | Q18: 0.8
B19: Antal boende, st | C19: =IF(C5="Ingen",0,C9/50) -> 14.4 | D19: 15 | I19: Lokal | J19: Flerbostadshus | R19: Källarvägg mot mark
B20: Innetemperatur vintertid, oC | C20: =IF(C5="Ingen",0,21) -> 21 | D20: 20 | J20: -1920 | K20: 1 | L20: 0.4 | M20: 0.65 | N20: 0.25 | O20: 0.3 | P20: 2.9 | Q20: 3 | R20: 2.5
B21: Ventilation, liter/m2,sek | C21: =IF(C5="Ingen",0,IF(C12="Självdrag",0.3,0.35)) -> 0.35 | D21: 0.35 | J21: 1921-40 | K21: 1 | L21: 0.4 | M21: 0.6 | N21: 0.25 | O21: 0.3 | P21: 2.9 | Q21: 3 | R21: 2.5
B22: Luftläckage, liter/m2,sek | C22: 0.03 | J22: 1941-60 | K22: 0.7 | L22: 0.4 | M22: 0.5 | N22: 0.2 | O22: 0.3 | P22: 2.9 | Q22: 3 | R22: 2
B23: Internvärme (folk, apparater mm), W/m2 | C23: =C56 -> 3.372222222 | D23: =D56 -> 3.372222222 | E23: Se nedan | J23: 1961-75 | K23: 0.45 | L23: 0.3 | M23: 0.4 | N23: 0.18 | O23: 0.3 | P23: 2.9 | Q23: 2.5 | R23: 1.5
B24: Fönsterarea, m2 | C24: =IF(C5="Ingen",0,0.1*C9) -> 72 | D24: 87.9 | E24: Se nedan | J24: 1976-85 | K24: 0.3 | L24: 0.3 | M24: 0.18 | N24: 0.18 | O24: 0.16 | P24: 1.9 | Q24: 2 | R24: 0.6
B25: Dörrar (entré + balkong) m2 | C25: =IF(C5="Ingen",0,0.025*C9) -> 18 | D25: 18.8 | J25: 1986- | K25: 0.25 | L25: 0.25 | M25: 0.15 | N25: 0.15 | O25: 0.13 | P25: 1.9 | Q25: 1.5 | R25: 0.4
B26: Omkrets (utvändig), m | C26: =IF(C5="Ingen",0,2*(11.5+(C9/(C10+C11))/11.5)+8*0.25) -> 57.10702341 | D26: =17.1+11.45+17.1+11.45 -> 57.1 | J26: Passiv std | K26: 0.1 | L26: 0.1 | M26: 0.1 | N26: 0.1 | O26: 0.1 | P26: 0.9 | Q26: 0.8 | R26: 0.2
B27: Fasadarea (exkl fönster, dörrar), m2 | C27: =IF(C5="Ingen",0,IF(D26>0,D26,C26)*IF(D31>0,D31,C31)*C10)-IF(D24>0,D24,C24)-IF(D25>0,D25,C25) -> 464.3571 | D27: 330 | G27: Värmemotstånd | J27: Inget
B28: Vindsbjälklag | C28: =IF(C5="Ingen",0,C9/(C10+C11)) -> 184.6153846 | D28: 190 | G28: =IF(D32>0,1/D32,1/C32)-M$2 -> 1.972222222
B29: Bottenbjälklag | C29: =IF(C5="Ingen",0,C9/(C10+C11)) -> 184.6153846 | D29: 196 | G29: =IF(D33>0,1/D33,1/C33)-M$2 -> 2.607142857
B30: Källarvägar mot mark, m2 | C30: =IF(C5="Ingen",0,C26*2.4*C11) -> 34.26421405 | D30: 44.2 | G30: =IF(D34>0,1/D34,1/C34)-M$2 -> 1.416666667
B31: Våningshöjd (golv till golv),m | C31: =IF(C5="Ingen",0,2.8) -> 2.8 | D31: =2.49+0.25 -> 2.74 | G31: =IF(D35>0,1/D35,1/C35)-M$2 -> 1.416666667 | M31: Ingen
B32: U-värde - Yttervägg, W/m2,K | C32: =IF(C5="Ingen",0,VLOOKUP(C$7,J$20:N$26,2)) -> 0.45 | G32: =IF(D36>0,1/D36,1/C36)-M$2 -> 0.3382352941 | I32: ='6. Energy'!L30 -> Yes | J32: Tilläggsisolering yttervägg | M32: Tilläggsisolering
B33: U-värde - Vindsbjälklag, W/m2,K | C33: =IF(C5="Ingen",0,VLOOKUP(C$7,J$20:N$26,4)) -> 0.4 | D33: 0.35 | I33: Inget | J33: Tilläggsisolering vind | M33: Inget
B34: U-värde - Grund, W/m2,K | C34: =IF(C5="Ingen",0,VLOOKUP(C$7,J$20:R$26,6)) -> 0.3 | D34: 0.6 | I34: Självdrag, S | J34: Fönsterbyte till 3-glas | M34: Byte till 3-glas
B35: U-värde - Källarvägg mot mark, W/m2,K | C35: =IF(C5="Ingen",0,VLOOKUP(C$7,J$20:R$26,9)) -> 1.5 | D35: 0.6 | I35: Endast frånluft, F | J35: Fönsterbyte tillenergiglas | M35: Byte till energiglas
B36: U-värde - Fönster, W/m2,K | C36: =IF(C5="Ingen",0,VLOOKUP(C$7,J$20:R$26,7)) -> 2.9 | D36: 1.7 | I36: Från- och tilluft, FT
B37: U-värde - Dörrar, W/m2,K | C37: =IF(C5="Ingen",0,VLOOKUP(C$7,J$20:R$26,8)) -> 2.5 | D37: 1.8 | I37: Från- och tilluft med värmeväxling, FTX
B38: Köldbryggor, W/oC (default 10%) | C38: 0.1 | D38: 0.07 | L38: Fjärrvärme - Gävle
B39: Uppvärmd volym, m3 | C39: =C9*(IF(D31>0,D31,C31)-0.25) -> 1792.8 | D39: 1795 | I39: ='10. Energy em'!A5 -> Coal | L39: Fjärrvärme - Sollentuna
I40: ='10. Energy em'!A6 -> Distr. heating - 60% NG & 40% VP | L40: Fjärrvärme - Stockholm
B41: Fönster, detaljerat | C41: Areor inkl. båge och karm | D41: Egen fördelning, % | E41: Horisontavskärmning | I41: ='10. Energy em'!A7 -> District heating - Bollnäs | L41: Naturgas
B42: Norr | C42: =IF(D42>0,D42*IF(D24>0,D24,C$24),0.3*C$24) -> 20.6565 | D42: 0.235 | E42: 5 | G42: 0 | I42: ='10. Energy em'!A8 -> District heating - Gävle | L42: Olja
B43: Öster | C43: =IF(D43>0,D43*IF(D24>0,D24,C$24),0.1*C$24) -> 13.6245 | D43: 0.155 | E43: 5 | G43: 20 | I43: ='10. Energy em'!A9 -> District heating - Ljusdal | L43: Solfångare
B44: Söder | C44: =IF(D44>0,D44*IF(D24>0,D24,C$24),0.5*C$24) -> 38.676 | D44: 0.44 | E44: 5 | G44: 45 | I44: ='10. Energy em'!A10 -> District heating - Sollentuna | L44: Torv
B45: Väster | C45: =IF(D45>0,D45*IF(D24>0,D24,C$24),0.1*C$24) -> 14.943 | D45: 0.17 | E45: 5 | I45: ='10. Energy em'!A11 -> District heating - Stockholm | L45: Ved
B46: Summa | C46: =SUM(C42:C45) -> 87.9 | D46: =SUM(D42:D45) -> 1 | I46: ='10. Energy em'!A12 -> Electricity almost CO2 free
D47: OBS! Måste vara 100% | I47: ='10. Energy em'!A13 -> Electricity European mix | L47: El - Europeisk mix
B48: Andel glas av fönstret | C48: 0.8 | I48: ='10. Energy em'!A14 -> Electricity Hydro power | L48: El - Nordisk mix
B49: G-värde för fönster | C49: 0.78 | D49: 0.66 | I49: ='10. Energy em'!A16 -> Electricity Nordic mix | L49: El - Svensk mix
B50: Andel tillgodogjord solstrålning | C50: 0.5 | I50: ='10. Energy em'!A17 -> Electricity PV_muliti-Si_panel | L50: El - Europeisk mix
I51: ='10. Energy em'!A18 -> Electricity Swedish mix | L51: El - Solceller
B52: Internvärme | I52: ='10. Energy em'!A19 -> Electricity Wind_2 MW
B53: Värmetillskott apparater, W/m2 | C53: 2.4 | I53: Electricity Local | K53: Norr schablon = 30%
B54: Värmetillskott personer, W/m2 | C54: =IF(D19>0,D19,C19)*80*14/24/C9 -> 0.9722222222 | I54: ='10. Energy em'!A20 -> Natural gas, NG | K54: Öster schablon = 10%
B55: Värmetillskott annat, W/m2 | C55: 0 | I55: ='10. Energy em'!A21 -> Oil, light fuel | K55: Söder schablon = 50%
B56: Värmetillskott Totalt, W/m2 | C56: =SUM(C53:C55) -> 3.372222222 | D56: =IF(D53>0,D53,C53)+IF(D54>0,D54,C54)+IF(D55>0,D55,C55) -> 3.372222222 | I56: ='10. Energy em'!A22 -> Peat | K56: Väster schablon =10%
B57: Byggnadens termiska vikt | C57: Medel | D57: Tung | I57: ='10. Energy em'!A23 -> Solar_heat_flate_plate_collector
I58: ='10. Energy em'!A24 -> Wood (soft) logs, furnace 100 kW | K58: Tung
B59: El och vatten | I59: ='10. Energy em'!A25 -> Wood chips, furnace 1000 kW | K59: Medel
B60: Varmvatten, kWh/m2,år | C60: 25 | D60: 31.25 | K60: Lätt
B61: Fastighetsel, kWh/m2,år | C61: =IF(C8="Bostad",15,35) -> 15 | D61: 18.1 | K61: Tyngd:
B62: Brukarel, kWh/m2,år | C62: 30 | K62: =IF(D57=K58,D57,(IF(D57=K59,D57,(IF(D57=K60,D57,C57))))) -> Tung
B64: ANTECKNINGAR | C64: invändigt | D64: utvändigt
B65: Längd, m | C65: 17.1 | D65: 17.65 | E65: Utskjutande del
B66: Bredd, m | C66: 11.45 | D66: 12 | E66: 0.6 | F66: 7.8
B67: Omkrets inv | C67: =2*(C65+C66) -> 57.1 | D67: =2*(D65+D66) -> 59.3
B68: Takyta mot söder | C68: 6,4*12,1=77,4
B69: Byggnadsyta
B70: Översta planet Atemp
B71: Övriga plan Atemp
B72: Ytterväggstjocklek

Sheet 4. Dimension (hidden)
B2: Building Dimensions | D2: Fill in | G2: Autocalculation
I4: Basdatafliken går före | L4: m2 | N4: Ratios | R4: yes
C5: Number of floors | D5: Atemp m2 | E5: P, Perimeter m | F5: Height m | G5: Ext. walls towards heated area | H5: Window fraction | I5: Door fraction | J5: P/P0 , P0 = 0ptimal Perim. ratio | K5: Heated area, Atemp | L5: =IF('3b Basdata'!C9>0,'3b Basdata'!C9,(C6*D6+C7*D7+C8*D8+C9*D9)) -> 720 | M5: Volume/heated area | N5: =P5/L5 -> 2.493055556 | O5: Interior volume | P5: =IF('3b Basdata'!D39>0,'3b Basdata'!D39,IF('3b Basdata'!C39>0,'3b Basdata'!C39,IF(J43>0,J43,C6*D6*F6+C7*D7*F7+C8*D8*F8+C9*D9*F9+(C12*C12*TAN(C11*PI()/180)/2)*(E9/2-C12)))) -> 1795 | R5: no
B6: Floors under ground | J6: =IF(D6=0,0,E6/(4*SQRT(D6))) -> 0 | K6: Facade area | L6: =IF('3b Basdata'!D27>0,'3b Basdata'!D27,IF('3b Basdata'!C27>0,'3b Basdata'!C27,IF(C28>0,C28,IF(I28>0,I28,C7*E7*F7+C8*E8*F8+C9*E9*F9)))) -> 330 | M6: Facade/heated area | N6: =L6/L5 -> 0.4583333333 | O6: % ventilated | P6: 1
B7: Ground floor | J7: =IF(D7=0,0,E7/(4*SQRT(D7))) -> 0 | K7: Window area | L7: =IF('3b Basdata'!D24>0,'3b Basdata'!D24,IF('3b Basdata'!C24>0,'3b Basdata'!C24,IF(C26>0,C26,IF(I26>0,I26,C7*E7*F7*H7+C8*E8*F8*H8+C9*E9*F9*H9)))) -> 87.9 | M7: Windows/heated area | N7: =L7/L5 -> 0.1220833333 | O7: Ventilated vol. | P7: =P5*P6 -> 1795
B8: Intermediate floors | J8: =IF(D8=0,0,E8/(4*SQRT(D8))) -> 0 | K8: Door area | L8: =IF('3b Basdata'!D25>0,'3b Basdata'!D25,IF('3b Basdata'!C25>0,'3b Basdata'!C25,IF(C27>0,C27,IF(I27>0,I27,C7*E7*F7*I7+C8*E8*F8*I8+C9*E9*F9*I9)))) -> 18.8 | M8: Doors/heated area | N8: =L8/L5 -> 0.02611111111 | O8: Own calculation
B9: Top floor | J9: =IF(D9=0,0,E9/(4*SQRT(D9))) -> 0 | K9: Roof area | L9: =(IF(C19>0,C19,IF(E19>0,E19,IF(D9<D6,D6,D9))+E9*IF('5. Construct'!C114>0,('5. Construct'!C114*'5. Construct'!C99+'5. Construct'!C133*'5. Construct'!C118)/1000,0.3)))/COS(C11*PI()/180) -> 0 | M9: Roof area/heated area | N9: =L9/L5 -> 0 | O9: Envelop | P9: =L6+L9+L11 -> 520
B10: Sum/Average | C10: =SUM(C6:C9) -> 0 | D10: =(C6*D6+C7*D7+C8*D8+C9*D9)/SUM(C6:C9) ->  | E10: =(E6*C6+C7*E7+E8*C8+E9*C9)/C10 ->  | F10: =(F6*C6+C7*F7+C8*F8+F9*C9)/SUM(C6:C9) ->  | H10: =(C6*H6+C7*H7+C8*H8+C9*H9)/SUM(C6:C9) ->  | I10: =(C6*I6+C7*I7+C8*I8+C9*I9)/SUM(C6:C9) ->  | J10: =IF(D10=0,0,E10/(4*SQRT(D10))) ->  | K10: Attic area | L10: =IF('3b Basdata'!D28>0,'3b Basdata'!D28,IF('3b Basdata'!C28>0,'3b Basdata'!C28,IF('5. Construct'!C114>0,D9+E10*('5. Construct'!C114*'5. Construct'!C99+'5. Construct'!C133*'5. Construct'!C118)/1000+4*('5. Construct'!C114/1000)^2,IF(E9=0,0,E9*0.3+4*0.3^2)))) -> 190 | M10: Envelop/Atemp | N10: =(L6+L9+L11)/L5 -> 0.7222222222
B11: Roof pitch | K11: Ground area (foot print) | L11: =IF('3b Basdata'!D28>0,'3b Basdata'!D28,IF('3b Basdata'!C28>0,'3b Basdata'!C28,D7+IF('5. Construct'!C114>0,E7*('5. Construct'!C114*'5. Construct'!C99+'5. Construct'!C133*'5. Construct'!C118)/1000+4*('5. Construct'!C114/1000)^2,IF(E7=0,0,E7*0.3+4*0.3^2)))) -> 190 | M11: Ground area/heated area | N11: =D7/L5 -> 0
B12: With of the building | E12: More than 50% of windows towards south | H12: no | K12: Walls towards ground | L12: =IF('3b Basdata'!D30>0,'3b Basdata'!D30,IF('3b Basdata'!C30>=0,'3b Basdata'!C30,(C6*E6*F6))) -> 44.2
B14: Summary from detailed description below | L14: =SUM(L6:L12)-L9 -> 860.9 | O14: Peract/Peropt
E15: From calculations below | L15: Facade area | M15: =SUM(C6:C9)*IF(E11>0,E11,E10)*F10 ->  | O15: =IF(E11>0,E11,E10)/(4*SQRT(D10)) -> 
B16: Heated Floor Area | C16: ='3. Gen info'!C21 -> 0 | L16: Ext wall area | M16: =N6*L5*(1-N7) -> 289.7125
B17: Net Floor Area | C17: 0 | E17: =F43 -> 0 | G17: Fill in | L17: Window area | M17: =C10*E10*F10*H10 -> 
B18: Gross area towards ground | C18: 0 | D18: or | E18: =G35 -> 0 | G18: Fill in - Instaed of blue | L18: Roof area | M18: =N9*L5 -> 0
B19: Roof area | C19: 0 | E19: =H45 -> 0 | G19: Autocalculation | L19: Ground area | M19: =N11*L5 -> 0
B20: Building volume | C20: 0 | E20: =J43 -> 0
B21: Glass area/floor area | C21: 0 | E21: =(J60+J73+J86+J99)/C16 -> 
B22: Ext. Door area/floor area | C22: 0 | E22: =(L60+L73+L86+L99)/C16 -> 
B24: Exterior walls | C24: Input here | E24: Elevation 1 - S | F24: Elevation 2 - W | G24: Elevation 3 - N | H24: Elevation 4 - E | I24: Sum | J24: Fraction
B25: Solid walls | E25: =M60 -> 0 | F25: =M73 -> 0 | G25: =M86 -> 0 | H25: =M99 -> 0 | I25: =SUM(E25:H25) -> 0 | J25: =I25/$I$28 -> 
B26: Windows (including frames) | D26: or | E26: =H60 -> 0 | F26: =H73 -> 0 | G26: =H86 -> 0 | H26: =H99 -> 0 | I26: =SUM(E26:H26) -> 0 | J26: =I26/$I$28 -> 
B27: Exterior doors (including frames) | E27: =L60 -> 0 | F27: =L73 -> 0 | G27: =L86 -> 0 | H27: =L99 -> 0 | I27: =SUM(E27:H27) -> 0 | J27: =I27/$I$28 -> 
B28: Sum | E28: =SUM(E25:E27) -> 0 | F28: =SUM(F25:F27) -> 0 | G28: =SUM(G25:G27) -> 0 | H28: =SUM(H25:H27) -> 0 | I28: =SUM(I25:I27) -> 0 | J28: =I28/$I$28 -> 
B31: Horizontal dimensions
B33: Internal main measures, rectangular building | H33: Else | I33: Else | J33: Interior volume, m3 | K33: Perimeter, m
C34: Ceiling height, m | D34: Length, m to the South | E34: Width, m | F34: Net area, m2 Atemp | G34: Gross Area, m2 | H34: Measured net area, m2 | I34: Measured gross area, m3
B35: 0 | F35: =G35-2*(D35+C35)*'5. Construct'!$C$114/1000 -> 0 | G35: =E35*D35 -> 0 | J35: =IF(H35>0,H35,F35)*C35 -> 0 | K35: =(D35+E35)*2 -> 0
B36: 1 | F36: =G36-2*(D36+C36)*'5. Construct'!$C$114/1000 -> 0 | G36: =E36*D36 -> 0 | J36: =IF(H36>0,H36,F36)*C36 -> 0 | K36: =(D36+E36)*2 -> 0
B37: 2 | F37: =G37-2*(D37+C37)*'5. Construct'!$C$114/1000 -> 0 | G37: 0 | J37: =IF(H37>0,H37,F37)*C37/2 -> 0 | K37: =IF(I37>0,I37,G37)*D37 -> 0
B38: 3 | F38: =G38-2*(D38+C38)*'5. Construct'!$C$114/1000 -> 0 | G38: 0 | J38: =IF(H38>0,H38,F38)*C38 -> 0 | K38: 0
B39: 4 | F39: =G39-2*(D39+C39)*'5. Construct'!$C$114/1000 -> 0 | G39: 0 | J39: =IF(H39>0,H39,F39)*C39 -> 0 | K39: 0
B40: 5 | F40: =G40-2*(D40+C40)*'5. Construct'!$C$114/1000 -> 0 | G40: 0 | J40: =IF(H40>0,H40,F40)*C40 -> 0 | K40: 0
B41: 6 | F41: =G41-2*(D41+C41)*'5. Construct'!$C$114/1000 -> 0 | G41: 0 | J41: =IF(H41>0,H41,F41)*C41 -> 0 | K41: 0
B42: Top floor | F42: =G42-2*(D42+C42)*'5. Construct'!$C$114/1000 -> 0 | G42: 0 | J42: =IF(H42>0,H42,F42)*C42 -> 0 | K42: 0
E43: Tot | F43: =SUM(F35:F42) -> 0 | G43: =SUM(G35:G42) -> 0 | H43: =SUM(H35:H42) -> 0 | I43: =SUM(I35:I42) -> 0 | J43: =SUM(J35:J42) -> 0
D45: Roof pitch | E45: 32 | F45: Degree | G45: Roof area, m2 | H45: =IF(G42<G36,G36,G42)/COS(C11*PI()/180) -> 0 | I45: =(5.7*4+0.6*2)*13-5.7*4*1.2 -> 284.64
B48: Vertical dimensions
C50: External wall 1 - Elevation towards the South
B51: Floor | C51: Height above ground, m | D51: Height m | E51: Length m | F51: Facade area, m2 | G51: Facade area, m2 | H51: Windows (incl frames), m2 | I51: Glass fraction, % | J51: Glass area, m2 | K51: Glass area/ facade area, % | L51: External doors, m2 | M51: Facade area excl windows and doors, m2
B52: Ground floor | D52: =$C$35+C52+IF(C35=0,0,'5. Construct'!C$148/1000) -> 0 | E52: =E35+C52+'5. Construct'!C$148/1000 -> 0 | G52: =IF(F52=0,E52*D52,F52) -> 0 | J52: =H52*I52 -> 0 | K52: =IF(G52=0,0,J52/G52) -> 0 | M52: =G52-H52-L52 -> 0
B53: 1 | D53: =C36+IF(C36=0,0,'5. Construct'!C$148/1000) -> 0 | E53: =E36+'5. Construct'!C$148/1000 -> 0 | G53: 0 | J53: =H53*I53 -> 0 | K53: =IF(G53=0,0,J53/G53) -> 0 | M53: 0
B54: 2 | D54: =C37+IF(C37=0,0,'5. Construct'!C$148/1000) -> 0 | E54: =E37+'5. Construct'!C$148/1000 -> 0 | G54: 0 | J54: 0 | K54: 0 | M54: 0
B55: 3 | D55: =C38+IF(C38=0,0,'5. Construct'!C$148/1000) -> 0 | E55: =E38+'5. Construct'!C$148/1000 -> 0 | G55: 0 | J55: 0 | K55: 0 | M55: 0
B56: 4 | D56: =C39+IF(C39=0,0,'5. Construct'!C$148/1000) -> 0 | E56: =E39+'5. Construct'!C$148/1000 -> 0 | G56: 0 | J56: 0 | K56: 0 | M56: 0
B57: 5 | D57: =C40+IF(C40=0,0,'5. Construct'!C$148/1000) -> 0 | E57: =E40+'5. Construct'!C$148/1000 -> 0 | G57: 0 | J57: 0 | K57: 0 | M57: 0
B58: 6 | D58: =C41+IF(C41=0,0,'5. Construct'!C$148/1000) -> 0 | E58: =E41+'5. Construct'!C$148/1000 -> 0 | J58: 0 | K58: 0 | M58: 0
B59: Top floor | D59: =C42+IF(C42=0,0,'5. Construct'!C$148/1000) -> 0 | E59: =E42+'5. Construct'!$C$77/1000 -> 0 | J59: 0 | K59: 0 | M59: 0
B60: Sum | G60: =SUM(G52:G59) -> 0 | H60: =SUM(H52:H59) -> 0 | J60: =SUM(J52:J59) -> 0 | L60: =SUM(L52:L59) -> 0 | M60: =SUM(M52:M59) -> 0
C63: External wall 2 - Elevation towards the West
B64: Floor | C64: Height above ground, m | D64: Height m | E64: Length m | F64: Facade area, m2 | G64: Facade area, m2 | H64: Windows (incl frames), m2 | I64: Glass fraction, % | J64: Glass area, m2 | K64: Glass area/ facade area, % | L64: External doors, m2 | M64: Facade area excl windows and doors, m2
B65: Ground | D65: =$C35+IF(C35=0,0,'5. Construct'!C$148/1000) -> 0 | E65: =E35+C65+'5. Construct'!C$148/1000 -> 0 | G65: =IF(F65=0,E65*D65,F65) -> 0 | J65: =H65*I65 -> 0 | K65: =IF(G65=0,0,J65/G65) -> 0 | M65: =G65-H65-L65 -> 0
B66: 1 | D66: =$C36+IF(C36=0,0,'5. Construct'!C$148/1000) -> 0 | E66: =E36+'5. Construct'!C$148/1000 -> 0 | G66: =IF(F66=0,E66*D66,F66) -> 0 | J66: =H66*I66 -> 0 | K66: =IF(G66=0,0,J66/G66) -> 0 | M66: 0
B67: 2 | D67: =$C37+IF(C37=0,0,'5. Construct'!C$148/1000) -> 0 | E67: =E37+'5. Construct'!C$148/1000 -> 0 | G67: 0 | J67: 0 | K67: 0 | M67: 0
B68: 3 | D68: =$C38+IF(C38=0,0,'5. Construct'!C$148/1000) -> 0 | E68: =E38+'5. Construct'!C$148/1000 -> 0 | G68: 0 | J68: 0 | K68: 0 | M68: 0
B69: 4 | D69: =$C39+IF(C39=0,0,'5. Construct'!C$148/1000) -> 0 | E69: =E39+'5. Construct'!C$148/1000 -> 0 | G69: 0 | J69: 0 | K69: 0 | M69: 0
B70: 5 | D70: =$C40+IF(C40=0,0,'5. Construct'!C$148/1000) -> 0 | E70: =E40+'5. Construct'!C$148/1000 -> 0 | G70: 0 | J70: 0 | K70: 0 | M70: 0
B71: 6 | D71: =$C41+IF(C41=0,0,'5. Construct'!C$148/1000) -> 0 | E71: =E41+'5. Construct'!C$148/1000 -> 0 | J71: 0 | K71: 0 | M71: 0
B72: Top floor | D72: =$C42+IF(C42=0,0,'5. Construct'!C$148/1000) -> 0 | E72: =E42+'5. Construct'!$C$77/1000 -> 0 | J72: 0 | K72: 0 | M72: 0
B73: Sum | G73: =SUM(G65:G72) -> 0 | H73: =SUM(H65:H72) -> 0 | J73: =SUM(J65:J72) -> 0 | L73: =SUM(L65:L72) -> 0 | M73: =SUM(M65:M72) -> 0
C76: External wall 3 - Elevation towards the North
B77: Floor | C77: Height above ground, m | D77: Height m | E77: Length m | F77: Facade area, m2 | G77: Facade area, m2 | H77: Windows (incl frames), m2 | I77: Glass fraction, % | J77: Glass area, m2 | K77: Glass area/ facade area, % | L77: External doors, m2 | M77: Facade area excl windows and doors, m2
B78: Ground | D78: =$C$35+C78+IF(C35=0,0,'5. Construct'!C$148/1000) -> 0 | E78: =E35+'5. Construct'!C$148/1000 -> 0 | G78: =IF(F78=0,E78*D78,F78) -> 0 | J78: =H78*I78 -> 0 | K78: =IF(G78=0,0,J78/G78) -> 0 | M78: =G78-H78-L78 -> 0
B79: 1 | D79: =$C36+IF(C36=0,0,'5. Construct'!C$148/1000) -> 0 | E79: =E36+'5. Construct'!C$148/1000 -> 0 | G79: 0 | J79: =H79*I79 -> 0 | K79: =IF(G79=0,0,J79/G79) -> 0 | M79: 0
B80: 2 | D80: =$C37+IF(C37=0,0,'5. Construct'!C$148/1000) -> 0 | E80: =E37+'5. Construct'!C$148/1000 -> 0 | G80: 0 | J80: 0 | K80: 0 | M80: 0
B81: 3 | D81: =$C38+IF(C38=0,0,'5. Construct'!C$148/1000) -> 0 | E81: =E38+'5. Construct'!C$148/1000 -> 0 | G81: 0 | J81: 0 | K81: 0 | M81: 0
B82: 4 | D82: =$C39+IF(C39=0,0,'5. Construct'!C$148/1000) -> 0 | E82: =E39+'5. Construct'!C$148/1000 -> 0 | G82: 0 | J82: 0 | K82: 0 | M82: 0
B83: 5 | D83: =$C40+IF(C40=0,0,'5. Construct'!C$148/1000) -> 0 | E83: =E40+'5. Construct'!C$148/1000 -> 0 | G83: 0 | J83: 0 | K83: 0 | M83: 0
B84: 6 | D84: =$C41+IF(C41=0,0,'5. Construct'!C$148/1000) -> 0 | E84: =E41+'5. Construct'!C$148/1000 -> 0 | J84: 0 | K84: 0 | M84: 0
B85: 7 | D85: =$C42+IF(C42=0,0,'5. Construct'!C$148/1000) -> 0 | E85: =E42+'5. Construct'!$C$77/1000 -> 0 | J85: 0 | K85: =IF(G85=0,0,J85/G85) -> 0 | M85: 0
B86: Sum | G86: =SUM(G78:G85) -> 0 | H86: =SUM(H78:H85) -> 0 | I86: =SUM(I78:I85) -> 0 | L86: =SUM(L78:L85) -> 0 | M86: =SUM(M78:M85) -> 0
C89: External wall 4 - Elevation towards the East
B90: Floor | C90: Height above ground, m | D90: Height m | E90: Length m | F90: Facade area, m2 | G90: Facade area, m2 | H90: Windows (incl frames), m2 | I90: Glass fraction, % | J90: Glass area, m2 | K90: Glass area/ facade area, % | L90: External doors, m2 | M90: Facade area excl windows and doors, m2
B91: Ground | D91: =$C$35+C91+IF(C35=0,0,'5. Construct'!C$148/1000) -> 0 | E91: =E35+'5. Construct'!C$148/1000 -> 0 | G91: =IF(F91=0,E91*D91,F91) -> 0 | J91: =H91*I91 -> 0 | K91: =IF(G91=0,0,J91/G91) -> 0 | M91: =G91-H91-L91 -> 0
B92: 1 | D92: =$C36+IF(C36=0,0,'5. Construct'!C$148/1000) -> 0 | E92: =E36+C92+'5. Construct'!C$148/1000 -> 0 | G92: 0 | J92: =H92*I92 -> 0 | K92: =IF(G92=0,0,J92/G92) -> 0 | M92: 0
B93: 2 | D93: =$C37+IF(C37=0,0,'5. Construct'!C$148/1000) -> 0 | E93: =E37+C93+'5. Construct'!C$148/1000 -> 0 | G93: 0 | J93: 0 | K93: 0 | M93: 0
B94: 3 | D94: =$C38+IF(C38=0,0,'5. Construct'!C$148/1000) -> 0 | E94: =E38+C94+'5. Construct'!C$148/1000 -> 0 | G94: 0 | J94: 0 | K94: 0 | M94: 0
B95: 4 | D95: =$C39+IF(C39=0,0,'5. Construct'!C$148/1000) -> 0 | E95: =E39+C95+'5. Construct'!C$148/1000 -> 0 | G95: 0 | J95: 0 | K95: 0 | M95: 0
B96: 5 | D96: =$C40+IF(C40=0,0,'5. Construct'!C$148/1000) -> 0 | E96: =E40+C96+'5. Construct'!C$148/1000 -> 0 | G96: 0 | J96: 0 | K96: 0 | M96: 0
B97: 6 | D97: =$C41+IF(C41=0,0,'5. Construct'!C$148/1000) -> 0 | E97: =E41+C97+'5. Construct'!C$148/1000 -> 0 | G97: 0 | J97: 0 | K97: 0 | M97: 0
B98: 7 | D98: =$C42+IF(C42=0,0,'5. Construct'!C$148/1000) -> 0 | E98: =E42+C98+'5. Construct'!$C$77/1000 -> 0 | G98: 0 | J98: 0 | K98: 0 | M98: 0
B99: Sum | F99: =SUM(F91:F98) -> 0 | G99: =SUM(G91:G98) -> 0 | H99: =SUM(H91:H98) -> 0 | J99: =SUM(J91:J98) -> 0 | K99: =J99/G99 ->  | L99: =SUM(L91:L98) -> 0 | M99: =SUM(M91:M98) -> 0

Sheet 5. Construct (hidden)
A1: Construction Input WorkSheet
G3: Building life time, yr | H3: =IF('3b Basdata'!#REF!>0,'3b Basdata'!#REF!,'3b Basdata'!#REF!) ->  | I3: Window | J3: kg/m3 | K3: U-value
A4: Basement | I4: 1 Glas | J4: 2600 | K4: 2.9
A5: A | B5: Basement slab, | C5: 1 | D5: Area, m2: | E5: =C5*'4. Dimension'!L11 -> 190 | I5: 3 Glas | J5: =2600*3 -> 7800
A6: Layer | B6: Material | C6: Thickness, mm | D6: Fraction of Layer | E6: Weight, kg | F6: Heat-resist. m2 K/W | G6: CO2 kgequiv | H6: Diff. Life time, yr | I6: 4 Glas | J6: =2600*4 -> 10400 | P6: kg | Q6: kg CO2 equiv
B7: Aluminium | C7: 1 | D7: 1 | E7: =IF(C7>0,$E$5*(C7/1000)*D7*VLOOKUP(B7,Data,2,FALSE),0)*$H$3/IF(H7>0,H7,$H$3) ->  | F7: =IF(B7="Ground",2.5,IF(B7=0,0,(1/VLOOKUP(B7,'9. Mtrl data'!$A$6:$C$73,3,FALSE))*(C7/1000)*D7)) -> 5e-06 | G7: =IF(C7>0,E7*VLOOKUP(B7,Mtrl_emission,21)/1000,0) ->  | I7: AVAILABLE MATERIALS | P7: weight | Q7: climate
E8: =IF(C8>0,$E$5*(C8/1000)*D8*VLOOKUP(B8,Data,2,FALSE),0)*$H$3/IF(H8>0,H8,$H$3) ->  | F8: =IF(B8="Ground",2.5,IF(B8=0,0,(1/VLOOKUP(B8,'9. Mtrl data'!$A$6:$C$73,3,FALSE))*(C8/1000)*D8)) -> 0 | G8: =IF(C8>0,E8*VLOOKUP(B8,Mtrl_emission,21)/1000,0) -> 0 | I8: ='9. Mtrl data'!A6 -> Ground | O8: Basement slab | P8: =(E18+E34) ->  | Q8: =G18+G34 -> 
E9: =IF(C9>0,$E$5*(C9/1000)*D9*VLOOKUP(B9,Data,2,FALSE),0)*$H$3/IF(H9>0,H9,$H$3) ->  | F9: =IF(B9="Ground",2.5,IF(B9=0,0,(1/VLOOKUP(B9,'9. Mtrl data'!$A$6:$C$73,3,FALSE))*(C9/1000)*D9)) -> 0 | G9: =IF(C9>0,E9*VLOOKUP(B9,Mtrl_emission,21)/1000,0) -> 0 | I9: ='9. Mtrl data'!A7 -> Air | O9: Roof | P9: =E47+E58 ->  | Q9: =G47+G58 -> 0
F10: =IF(B10="Ground",2.5,IF(B10=0,0,(1/VLOOKUP(B10,'9. Mtrl data'!$A$6:$C$73,3,FALSE))*(C10/1000)*D10)) -> 0 | G10: =IF(C10>0,E10*VLOOKUP(B10,Mtrl_emission,21)/1000,0) -> 0 | I10: ='9. Mtrl data'!A8 -> Aluminium | J10: 2700 | O10: Attic slab | P10: =E77+E94 ->  | Q10: =G77+G94 -> 0
F11: =IF(B11="Ground",2.5,IF(B11=0,0,(1/VLOOKUP(B11,'9. Mtrl data'!$A$6:$C$73,3,FALSE))*(C11/1000)*D11)) -> 0 | G11: 0 | I11: ='9. Mtrl data'!A9 -> Brick, massive | O11: External wall | P11: =E114+E133 ->  | Q11: =G114+G133 -> 0
F12: =IF(B12="Ground",2.5,IF(B12=0,0,(1/VLOOKUP(B12,'9. Mtrl data'!$A$6:$C$73,3,FALSE))*(C12/1000)*D12)) -> 0 | G12: 0 | I12: ='9. Mtrl data'!A10 -> Concrete lightweight | O12: Floor structure | P12: =E148+E161 ->  | Q12: =G148+G161 -> 0
F13: =IF(B13="Ground",2.5,IF(B13=0,0,(1/VLOOKUP(B13,'9. Mtrl data'!$A$6:$C$73,3,FALSE))*(C13/1000)*D13)) -> 0 | G13: 0 | I13: ='9. Mtrl data'!A11 -> Concrete reinforced | J13: Övergångasmotstånd | M13: mi+mu | O13: Internal walls | P13: =E175+E188 ->  | Q13: =G175+G188 -> 0
F14: =IF(B14="Ground",2.5,IF(B14=0,0,(1/VLOOKUP(B14,'9. Mtrl data'!$A$6:$C$73,3,FALSE))*(C14/1000)*D14)) -> 0 | G14: 0 | I14: ='9. Mtrl data'!A12 -> Floor mat PVC (Tarkett Eminent T) | J14: Vägg och tak mot det fria | M14: 0.21 | O14: Windows | P14: =E199+E209 ->  | Q14: =G199+G209 -> 0
F15: =IF(B15="Ground",2.5,IF(B15=0,0,(1/VLOOKUP(B15,'9. Mtrl data'!$A$6:$C$73,3,FALSE))*(C15/1000)*D15)) -> 0 | G15: 0 | I15: ='9. Mtrl data'!A13 -> Glass | J15: Golv- och takbjälklag | M15: 0.17 | O15: Doors | P15: =E221+E232 ->  | Q15: =G221+G232 -> 0
F16: =IF(B16="Ground",2.5,IF(B16=0,0,(1/VLOOKUP(B16,'9. Mtrl data'!$A$6:$C$73,3,FALSE))*(C16/1000)*D16)) -> 0 | G16: 0 | I16: ='9. Mtrl data'!A14 -> Gravel | J16: Vägg, tak, golv mot uppvärmd lokal | M16: 0.35 | O16: Sum | P16: =SUM(P8:P15) ->  | Q16: =SUM(Q8:Q15) -> 
F17: =IF(B17="Ground",2.5,IF(B17=0,0,(1/VLOOKUP(B17,'9. Mtrl data'!$A$6:$C$73,3,FALSE))*(C17/1000)*D17)) -> 0 | G17: 0 | I17: ='9. Mtrl data'!A15 -> Gypsum, plaster board | O17: Sum per m2 HFA | P17: =P16/'4. Dimension'!$L5 ->  | Q17: =Q16/'4. Dimension'!$L5 -> 
A18: U-value | B18: =IF(SUM(F7:F17)=0,0,1/(SUM(F7:F17)+$M$15)) -> 5.882179936 | E18: =SUM(E7:E17) ->  | F18: Total | G18: =SUM(G7:G17) ->  | I18: ='9. Mtrl data'!A16 -> Insulation, cellulose fibre | J18: Luft, volumetrisk värmekapacitet | M18: 1212 | N18: J/m3,K
F19: CO2 kgequiv/m2HFA | G19: =G18/'3. Gen info'!$C$21 ->  | I19: ='9. Mtrl data'!A17 -> Insulation, Foamglas | J19: Luft, volumetrisk värmekapacitet | M19: =M18/3600 -> 0.3366666667 | N19: Wh/m3,K
I20: ='9. Mtrl data'!A18 -> Insulation, Glass wool | J20: 1
A21: B | B21: Basement walls towards ground | C21: 1 | D21: Area, m2: | E21: =C21*'4. Dimension'!L12 -> 44.2 | I21: ='9. Mtrl data'!A19 -> Insulation, Polystyrene, EPS | J21: 2
A22: Layer | B22: Material | C22: Thickness, mm | D22: Fraction of Layer | E22: Weight, kg | F22: Heat-resist. m2 K/W | G22: CO2 kgequiv | H22: Diff. Life time, yr | I22: ='9. Mtrl data'!A20 -> Insulation, Polyurethane PUR | J22: 3
E23: =IF(C23>0,$E$21*(C23/1000)*D23*VLOOKUP(B23,Data,2,FALSE),0)*$H$3/IF(H23>0,H23,$H$3) ->  | F23: =IF(B23="Ground",2.5,IF(B23=0,0,(1/VLOOKUP(B23,'9. Mtrl data'!$A$6:$C$73,3,FALSE))*(C23/1000)*D23)) -> 0 | G23: =IF(C23>0,E23*VLOOKUP(B23,Mtrl_emission,21)/1000,0) -> 0 | I23: ='9. Mtrl data'!A21 -> Insulation, Rockwool | J23: 4
F24: =IF(B24="Ground",2.5,IF(B24=0,0,(1/VLOOKUP(B24,'9. Mtrl data'!$A$6:$C$73,3,FALSE))*(C24/1000)*D24)) -> 0 | G24: 0 | I24: ='9. Mtrl data'!A22 -> Light clinker masonry | J24: 5
F25: =IF(B25="Ground",2.5,IF(B25=0,0,(1/VLOOKUP(B25,'9. Mtrl data'!$A$6:$C$73,3,FALSE))*(C25/1000)*D25)) -> 0 | G25: 0 | I25: ='9. Mtrl data'!A23 -> Plaster | J25: 6
F26: =IF(B26="Ground",2.5,IF(B26=0,0,(1/VLOOKUP(B26,'9. Mtrl data'!$A$6:$C$73,3,FALSE))*(C26/1000)*D26)) -> 0 | G26: 0 | I26: ='9. Mtrl data'!A24 -> Polyeten | J26: 7
F27: =IF(B27="Ground",2.5,IF(B27=0,0,(1/VLOOKUP(B27,'9. Mtrl data'!$A$6:$C$73,3,FALSE))*(C27/1000)*D27)) -> 0 | G27: 0 | I27: ='9. Mtrl data'!A25 -> Steel (EU-mix) | J27: 8
F28: =IF(B28="Ground",2.5,IF(B28=0,0,(1/VLOOKUP(B28,'9. Mtrl data'!$A$6:$C$73,3,FALSE))*(C28/1000)*D28)) -> 0 | G28: 0 | I28: ='9. Mtrl data'!A26 -> Wood | J28: 9
F29: =IF(B29="Ground",2.5,IF(B29=0,0,(1/VLOOKUP(B29,'9. Mtrl data'!$A$6:$C$73,3,FALSE))*(C29/1000)*D29)) -> 0 | G29: 0 | I29: ='9. Mtrl data'!A27 -> Wood fiber board | J29: 10
F30: =IF(B30="Ground",2.5,IF(B30=0,0,(1/VLOOKUP(B30,'9. Mtrl data'!$A$6:$C$73,3,FALSE))*(C30/1000)*D30)) -> 0 | G30: 0 | I30: ='9. Mtrl data'!A28 -> Wood particle board
F31: =IF(B31="Ground",2.5,IF(B31=0,0,(1/VLOOKUP(B31,'9. Mtrl data'!$A$6:$C$73,3,FALSE))*(C31/1000)*D31)) -> 0 | G31: 0 | I31: ='9. Mtrl data'!A29 -> Wood plywood
F32: =IF(B32="Ground",2.5,IF(B32=0,0,(1/VLOOKUP(B32,'9. Mtrl data'!$A$6:$C$73,3,FALSE))*(C32/1000)*D32)) -> 0 | G32: 0 | I32: ='9. Mtrl data'!A30 -> Zink
F33: =IF(B33="Ground",2.5,IF(B33=0,0,(1/VLOOKUP(B33,'9. Mtrl data'!$A$6:$C$73,3,FALSE))*(C33/1000)*D33)) -> 0 | G33: 0 | I33: ='9. Mtrl data'!A31 -> 0 | J33: ?
A34: U-value | B34: =IF(SUM(F23:F33)=0,0,1/(SUM(F23:F33)+$M$15)) -> 0 | E34: =SUM(E23:E33) ->  | F34: Total | G34: =SUM(G23:G33) -> 0 | J34: U-värdesberäkning vid skikt med olika material!
F35: CO2 equiv/m2HFA | G35: =G34/'3. Gen info'!$C$21 -> 
J36: =(SUM(F41:F46)*C39*E39+SUM(F52:F57)*C50*E50)/E39 -> 
A38: Roof
A39: A | B39: Fraction of attic slabs type A | C39: 1 | D39: Area, m2: | E39: =C39*'4. Dimension'!L9 -> 0
A40: Layer | B40: Material | C40: Thickness, mm | D40: Fraction of Layer | E40: Weight, kg | F40: Heat-resist. m2 K/W | G40: CO2 kgequiv | H40: Diff. Life time, yr
A41: 1 | E41: =IF(C41>0,$E$39*(C41/1000)*D41*VLOOKUP(B41,Data,2,FALSE),0)*$H$3/IF(H41>0,H41,$H$3) ->  | F41: =IF(B41="Ground",2.5,IF(B41=0,0,(1/VLOOKUP(B41,'9. Mtrl data'!$A$6:$C$73,3,FALSE))*(C41/1000)*D41)) -> 0 | G41: =IF(C41>0,E41*VLOOKUP(B41,Mtrl_emission,21)/1000,0) -> 0
A42: 2 | F42: =IF(B42="Ground",2.5,IF(B42=0,0,(1/VLOOKUP(B42,'9. Mtrl data'!$A$6:$C$73,3,FALSE))*(C42/1000)*D42)) -> 0 | G42: 0
A43: 3 | F43: =IF(B43="Ground",2.5,IF(B43=0,0,(1/VLOOKUP(B43,'9. Mtrl data'!$A$6:$C$73,3,FALSE))*(C43/1000)*D43)) -> 0 | G43: 0
A44: 4 | F44: =IF(B44="Ground",2.5,IF(B44=0,0,(1/VLOOKUP(B44,'9. Mtrl data'!$A$6:$C$73,3,FALSE))*(C44/1000)*D44)) -> 0 | G44: 0
A45: 5 | F45: =IF(B45="Ground",2.5,IF(B45=0,0,(1/VLOOKUP(B45,'9. Mtrl data'!$A$6:$C$73,3,FALSE))*(C45/1000)*D45)) -> 0 | G45: 0
A46: 6 | F46: =IF(B46="Ground",2.5,IF(B46=0,0,(1/VLOOKUP(B46,'9. Mtrl data'!$A$6:$C$73,3,FALSE))*(C46/1000)*D46)) -> 0 | G46: 0
A47: U-value | B47: =IF(SUM(F41:F46)=0,0,1/(SUM(F35:F46)+$M$15)) -> 0 | E47: =SUM(E41:E46) ->  | F47: Total | G47: =SUM(G41:G46) -> 0
F48: CO2 equiv/m2HFA | G48: =G47/'3. Gen info'!$C$21 -> 
A50: B | B50: Fraction of attic | C50: =IF(C30<0.0001,0,1-C30) -> 0 | D50: Area, m2: | E50: =C50*E39/C39 -> 0
A51: Layer | B51: Material | C51: Thickness, mm | D51: Fraction of Layer | E51: Weight, kg | F51: Heat-resist. m2 K/W | G51: CO2 kgequiv | H51: Diff. Life time, yr
A52: 1 | E52: =IF(C52>0,$E$50*(C52/1000)*D52*VLOOKUP(B52,Data,2,FALSE),0)*$H$3/IF(H52>0,H52,$H$3) ->  | F52: =IF(B52="Ground",2.5,IF(B52=0,0,(1/VLOOKUP(B52,'9. Mtrl data'!$A$6:$C$73,3,FALSE))*(C52/1000)*D52)) -> 0 | G52: =IF(C52>0,E52*VLOOKUP(B52,Mtrl_emission,21)/1000,0) -> 0
A53: 2 | F53: =IF(B53="Ground",2.5,IF(B53=0,0,(1/VLOOKUP(B53,'9. Mtrl data'!$A$6:$C$73,3,FALSE))*(C53/1000)*D53)) -> 0 | G53: 0
A54: 3 | F54: =IF(B54="Ground",2.5,IF(B54=0,0,(1/VLOOKUP(B54,'9. Mtrl data'!$A$6:$C$73,3,FALSE))*(C54/1000)*D54)) -> 0 | G54: 0
A55: 4 | F55: =IF(B55="Ground",2.5,IF(B55=0,0,(1/VLOOKUP(B55,'9. Mtrl data'!$A$6:$C$73,3,FALSE))*(C55/1000)*D55)) -> 0 | G55: 0
A56: 5 | F56: =IF(B56="Ground",2.5,IF(B56=0,0,(1/VLOOKUP(B56,'9. Mtrl data'!$A$6:$C$73,3,FALSE))*(C56/1000)*D56)) -> 0 | G56: 0
A57: 6 | F57: =IF(B57="Ground",2.5,IF(B57=0,0,(1/VLOOKUP(B57,'9. Mtrl data'!$A$6:$C$73,3,FALSE))*(C57/1000)*D57)) -> 0 | G57: 0
A58: U-value | B58: =IF(SUM(F52:F57)=0,0,1/(SUM(F46:F57)+$M$15)) -> 0 | E58: =SUM(E52:E57) ->  | F58: Total | G58: =SUM(G52:G57) -> 0
F59: CO2 equiv/m2HFA | G59: =G58/'3. Gen info'!$C$21 -> 
A62: Attic | B62: From ceiling top floor to attic. If no attic space use only roof.
A63: A | B63: Fraction of attic slabs type A | C63: 1 | D63: Area, m2: | E63: =C63*IF('4. Dimension'!L9>0,'4. Dimension'!L9,IF('4. Dimension'!C19>0,'4. Dimension'!C19,'4. Dimension'!E19)) -> 0
A64: Layer | B64: Material | C64: Thickness, mm | D64: Fraction of Layer | E64: Weight, kg | F64: Heat-resist. m2 K/W | G64: CO2 kgequiv | H64: Diff. Life time, yr
E65: =IF(C65>0,IF($F$63>0,$F$63,$E$63)*(C65/1000)*D65*VLOOKUP(B65,Data,2,FALSE),0)*$H$3/IF(H65>0,H65,$H$3) ->  | F65: =IF(B65="Ground",2.5,IF(B65=0,0,(1/VLOOKUP(B65,'9. Mtrl data'!$A$6:$C$73,3,FALSE))*(C65/1000)*D65)) -> 0 | G65: =IF(C65>0,E65*VLOOKUP(B65,Mtrl_emission,21)/1000,0) -> 0
F66: =IF(B66="Ground",2.5,IF(B66=0,0,(1/VLOOKUP(B66,'9. Mtrl data'!$A$6:$C$73,3,FALSE))*(C66/1000)*D66)) -> 0 | G66: 0
F67: =IF(B67="Ground",2.5,IF(B67=0,0,(1/VLOOKUP(B67,'9. Mtrl data'!$A$6:$C$73,3,FALSE))*(C67/1000)*D67)) -> 0 | G67: 0
F68: =IF(B68="Ground",2.5,IF(B68=0,0,(1/VLOOKUP(B68,'9. Mtrl data'!$A$6:$C$73,3,FALSE))*(C68/1000)*D68)) -> 0 | G68: 0
F69: =IF(B69="Ground",2.5,IF(B69=0,0,(1/VLOOKUP(B69,'9. Mtrl data'!$A$6:$C$73,3,FALSE))*(C69/1000)*D69)) -> 0 | G69: 0
F70: =IF(B70="Ground",2.5,IF(B70=0,0,(1/VLOOKUP(B70,'9. Mtrl data'!$A$6:$C$73,3,FALSE))*(C70/1000)*D70)) -> 0 | G70: 0
F71: =IF(B71="Ground",2.5,IF(B71=0,0,(1/VLOOKUP(B71,'9. Mtrl data'!$A$6:$C$73,3,FALSE))*(C71/1000)*D71)) -> 0 | G71: 0
F72: =IF(B72="Ground",2.5,IF(B72=0,0,(1/VLOOKUP(B72,'9. Mtrl data'!$A$6:$C$73,3,FALSE))*(C72/1000)*D72)) -> 0 | G72: 0
F73: =IF(B73="Ground",2.5,IF(B73=0,0,(1/VLOOKUP(B73,'9. Mtrl data'!$A$6:$C$73,3,FALSE))*(C73/1000)*D73)) -> 0 | G73: 0
F74: =IF(B74="Ground",2.5,IF(B74=0,0,(1/VLOOKUP(B74,'9. Mtrl data'!$A$6:$C$73,3,FALSE))*(C74/1000)*D74)) -> 0 | G74: 0
F75: =IF(B75="Ground",2.5,IF(B75=0,0,(1/VLOOKUP(B75,'9. Mtrl data'!$A$6:$C$73,3,FALSE))*(C75/1000)*D75)) -> 0 | G75: 0
F76: =IF(B76="Ground",2.5,IF(B76=0,0,(1/VLOOKUP(B76,'9. Mtrl data'!$A$6:$C$73,3,FALSE))*(C76/1000)*D76)) -> 0 | G76: 0
A77: U-value | B77: =IF(SUM(F65:F72)=0,0,1/(SUM(F65:F72)+$M$15)) -> 0 | C77: =SUM(C65:C76) -> 0 | D77: Tot Weight | E77: =SUM(E65:E76) ->  | F77: =SUM(F65:F76) -> 0 | G77: =SUM(G65:G76) -> 0
F78: CO2 equiv/m2HFA | G78: =G77/'3. Gen info'!$C$21 -> 
A80: B | B80: Fraction of attic | C80: =IF(C63<0.0001,0,1-C63) -> 0 | D80: Area, m2: | E80: =C80*E63/C63 -> 0
A81: Layer | B81: Material | C81: Thickness, mm | D81: Fraction of Layer | E81: Weight, kg | F81: Heat-resist. m2 K/W | G81: CO2 kgequiv | H81: Diff. Life time, yr
E82: =IF(C82>0,$E$80*(C82/1000)*D82*VLOOKUP(B82,Data,2,FALSE),0)*$H$3/IF(H82>0,H82,$H$3) ->  | F82: =IF(B82="Ground",2.5,IF(B82=0,0,(1/VLOOKUP(B82,'9. Mtrl data'!$A$6:$C$73,3,FALSE))*(C82/1000)*D82)) -> 0 | G82: =IF(C82>0,E82*VLOOKUP(B82,Mtrl_emission,21)/1000,0) -> 0
F83: =IF(B83="Ground",2.5,IF(B83=0,0,(1/VLOOKUP(B83,'9. Mtrl data'!$A$6:$C$73,3,FALSE))*(C83/1000)*D83)) -> 0 | G83: 0
F84: =IF(B84="Ground",2.5,IF(B84=0,0,(1/VLOOKUP(B84,'9. Mtrl data'!$A$6:$C$73,3,FALSE))*(C84/1000)*D84)) -> 0 | G84: 0
F85: =IF(B85="Ground",2.5,IF(B85=0,0,(1/VLOOKUP(B85,'9. Mtrl data'!$A$6:$C$73,3,FALSE))*(C85/1000)*D85)) -> 0 | G85: 0
F86: =IF(B86="Ground",2.5,IF(B86=0,0,(1/VLOOKUP(B86,'9. Mtrl data'!$A$6:$C$73,3,FALSE))*(C86/1000)*D86)) -> 0 | G86: 0
F87: =IF(B87="Ground",2.5,IF(B87=0,0,(1/VLOOKUP(B87,'9. Mtrl data'!$A$6:$C$73,3,FALSE))*(C87/1000)*D87)) -> 0 | G87: 0
F88: =IF(B88="Ground",2.5,IF(B88=0,0,(1/VLOOKUP(B88,'9. Mtrl data'!$A$6:$C$73,3,FALSE))*(C88/1000)*D88)) -> 0 | G88: 0
F89: =IF(B89="Ground",2.5,IF(B89=0,0,(1/VLOOKUP(B89,'9. Mtrl data'!$A$6:$C$73,3,FALSE))*(C89/1000)*D89)) -> 0 | G89: 0
F90: =IF(B90="Ground",2.5,IF(B90=0,0,(1/VLOOKUP(B90,'9. Mtrl data'!$A$6:$C$73,3,FALSE))*(C90/1000)*D90)) -> 0 | G90: 0
F91: =IF(B91="Ground",2.5,IF(B91=0,0,(1/VLOOKUP(B91,'9. Mtrl data'!$A$6:$C$73,3,FALSE))*(C91/1000)*D91)) -> 0 | G91: 0
F92: =IF(B92="Ground",2.5,IF(B92=0,0,(1/VLOOKUP(B92,'9. Mtrl data'!$A$6:$C$73,3,FALSE))*(C92/1000)*D92)) -> 0 | G92: =IF(C92>0,E92*VLOOKUP(B92,Mtrl_emission,21)/1000,0) -> 0
F93: =IF(B93="Ground",2.5,IF(B93=0,0,(1/VLOOKUP(B93,'9. Mtrl data'!$A$6:$C$73,3,FALSE))*(C93/1000)*D93)) -> 0 | G93: =IF(C93>0,E93*VLOOKUP(B93,Mtrl_emission,21)/1000,0) -> 0
A94: U-value | B94: =IF(SUM(F82:F88)=0,0,1/(SUM(F82:F88)+$M$14)) -> 0 | C94: =SUM(C82:C93) -> 0 | D94: Tot Weight | E94: =SUM(E82:E93) ->  | F94: =SUM(F82:F93) -> 0 | G94: =SUM(G82:G93) -> 0
F95: CO2 equiv/m2HFA | G95: =G94/'3. Gen info'!$C$21 -> 
A98: External wall
A99: A | B99: Fraction of external walls slabs type A | C99: 0 | D99: Area, m2: | E99: =C99*IF('4. Dimension'!L6>0,'4. Dimension'!L6-'4. Dimension'!L7-'4. Dimension'!L8,IF('4. Dimension'!C25>0,'4. Dimension'!C25,'4. Dimension'!I25)) -> 0
A100: Layer | B100: Material | C100: Thickness, mm | D100: Fraction of Layer | E100: Weight, kg | F100: Heat-resist. m2 K/W | G100: CO2 kgequiv | H100: Diff. Life time, yr
E101: =IF(C101>0,$E$99*(C101/1000)*D101*VLOOKUP(B101,Data,2,FALSE),0)*$H$3/IF(H101>0,H101,$H$3) ->  | F101: =IF(B101="Ground",2.5,IF(B101=0,0,(1/VLOOKUP(B101,'9. Mtrl data'!$A$6:$C$73,3,FALSE))*(C101/1000)*D101)) -> 0 | G101: =IF(C101>0,E101*VLOOKUP(B101,Mtrl_emission,21)/1000,0) -> 0
F102: =IF(B102="Ground",2.5,IF(B102=0,0,(1/VLOOKUP(B102,'9. Mtrl data'!$A$6:$C$73,3,FALSE))*(C102/1000)*D102)) -> 0 | G102: 0
F103: =IF(B103="Ground",2.5,IF(B103=0,0,(1/VLOOKUP(B103,'9. Mtrl data'!$A$6:$C$73,3,FALSE))*(C103/1000)*D103)) -> 0 | G103: 0
F104: =IF(B104="Ground",2.5,IF(B104=0,0,(1/VLOOKUP(B104,'9. Mtrl data'!$A$6:$C$73,3,FALSE))*(C104/1000)*D104)) -> 0 | G104: 0
F105: =IF(B105="Ground",2.5,IF(B105=0,0,(1/VLOOKUP(B105,'9. Mtrl data'!$A$6:$C$73,3,FALSE))*(C105/1000)*D105)) -> 0 | G105: 0
F106: =IF(B106="Ground",2.5,IF(B106=0,0,(1/VLOOKUP(B106,'9. Mtrl data'!$A$6:$C$73,3,FALSE))*(C106/1000)*D106)) -> 0 | G106: 0
F107: =IF(B107="Ground",2.5,IF(B107=0,0,(1/VLOOKUP(B107,'9. Mtrl data'!$A$6:$C$73,3,FALSE))*(C107/1000)*D107)) -> 0 | G107: 0
F108: =IF(B108="Ground",2.5,IF(B108=0,0,(1/VLOOKUP(B108,'9. Mtrl data'!$A$6:$C$73,3,FALSE))*(C108/1000)*D108)) -> 0 | G108: 0
F109: =IF(B109="Ground",2.5,IF(B109=0,0,(1/VLOOKUP(B109,'9. Mtrl data'!$A$6:$C$73,3,FALSE))*(C109/1000)*D109)) -> 0 | G109: 0
F110: =IF(B110="Ground",2.5,IF(B110=0,0,(1/VLOOKUP(B110,'9. Mtrl data'!$A$6:$C$73,3,FALSE))*(C110/1000)*D110)) -> 0 | G110: 0
F111: =IF(B111="Ground",2.5,IF(B111=0,0,(1/VLOOKUP(B111,'9. Mtrl data'!$A$6:$C$73,3,FALSE))*(C111/1000)*D111)) -> 0 | G111: 0
F112: =IF(B112="Ground",2.5,IF(B112=0,0,(1/VLOOKUP(B112,'9. Mtrl data'!$A$6:$C$73,3,FALSE))*(C112/1000)*D112)) -> 0 | G112: 0
F113: =IF(B113="Ground",2.5,IF(B113=0,0,(1/VLOOKUP(B113,'9. Mtrl data'!$A$6:$C$73,3,FALSE))*(C113/1000)*D113)) -> 0 | G113: 0
A114: U-value | B114: =IF(SUM(F101:F113)=0,0,1/(SUM(F101:F113)+$M$14)) -> 0 | C114: =SUM(C101:C113) -> 0 | D114: Totals | E114: =SUM(E101:E113) ->  | F114: =SUM(F101:F113) -> 0 | G114: =SUM(G101:G113) -> 0
F115: CO2 equiv/m2HFA | G115: =G114/'3. Gen info'!$C$21 -> 
A118: B | B118: Fraction of external walls | C118: =1-C99 -> 1 | D118: Area, m2: | E118: =C118*IF('4. Dimension'!L6>0,'4. Dimension'!L6-'4. Dimension'!L7-'4. Dimension'!L8,IF('4. Dimension'!C25>0,'4. Dimension'!C25,'4. Dimension'!I25)) -> 223.3
A119: Layer | B119: Material | C119: Thickness, mm | D119: Fraction of Layer | E119: Weight, kg | F119: Heat-resist. m2 K/W | G119: CO2 kgequiv | H119: Diff. Life time, yr
E120: =IF(C120>0,$E$118*(C120/1000)*D120*VLOOKUP(B120,Data,2,FALSE),0)*$H$3/IF(H120>0,H120,$H$3) ->  | F120: =IF(B120="Ground",2.5,IF(B120=0,0,(1/VLOOKUP(B120,'9. Mtrl data'!$A$6:$C$73,3,FALSE))*(C120/1000)*D120)) -> 0 | G120: =IF(C120>0,E120*VLOOKUP(B120,Mtrl_emission,21)/1000,0) -> 0
F121: =IF(B121="Ground",2.5,IF(B121=0,0,(1/VLOOKUP(B121,'9. Mtrl data'!$A$6:$C$73,3,FALSE))*(C121/1000)*D121)) -> 0 | G121: 0
F122: =IF(B122="Ground",2.5,IF(B122=0,0,(1/VLOOKUP(B122,'9. Mtrl data'!$A$6:$C$73,3,FALSE))*(C122/1000)*D122)) -> 0 | G122: 0
F123: =IF(B123="Ground",2.5,IF(B123=0,0,(1/VLOOKUP(B123,'9. Mtrl data'!$A$6:$C$73,3,FALSE))*(C123/1000)*D123)) -> 0 | G123: 0
F124: =IF(B124="Ground",2.5,IF(B124=0,0,(1/VLOOKUP(B124,'9. Mtrl data'!$A$6:$C$73,3,FALSE))*(C124/1000)*D124)) -> 0 | G124: 0
F125: =IF(B125="Ground",2.5,IF(B125=0,0,(1/VLOOKUP(B125,'9. Mtrl data'!$A$6:$C$73,3,FALSE))*(C125/1000)*D125)) -> 0 | G125: 0
F126: =IF(B126="Ground",2.5,IF(B126=0,0,(1/VLOOKUP(B126,'9. Mtrl data'!$A$6:$C$73,3,FALSE))*(C126/1000)*D126)) -> 0 | G126: 0
F127: =IF(B127="Ground",2.5,IF(B127=0,0,(1/VLOOKUP(B127,'9. Mtrl data'!$A$6:$C$73,3,FALSE))*(C127/1000)*D127)) -> 0 | G127: 0
E128: =IF(C128>0,$E$118*(C128/1000)*D128*VLOOKUP(B128,Data,2,FALSE),0)*$H$3/IF(H128>0,H128,$H$3) ->  | F128: =IF(B128="Ground",2.5,IF(B128=0,0,(1/VLOOKUP(B128,'9. Mtrl data'!$A$6:$C$73,3,FALSE))*(C128/1000)*D128)) -> 0 | G128: =IF(C128>0,E128*VLOOKUP(B128,Mtrl_emission,21)/1000,0) -> 0
E129: =IF(C129>0,$E$118*(C129/1000)*D129*VLOOKUP(B129,Data,2,FALSE),0)*$H$3/IF(H129>0,H129,$H$3) ->  | F129: =IF(B129="Ground",2.5,IF(B129=0,0,(1/VLOOKUP(B129,'9. Mtrl data'!$A$6:$C$73,3,FALSE))*(C129/1000)*D129)) -> 0 | G129: =IF(C129>0,E129*VLOOKUP(B129,Mtrl_emission,21)/1000,0) -> 0
E130: =IF(C130>0,$E$118*(C130/1000)*D130*VLOOKUP(B130,Data,2,FALSE),0)*$H$3/IF(H130>0,H130,$H$3) ->  | F130: =IF(B130="Ground",2.5,IF(B130=0,0,(1/VLOOKUP(B130,'9. Mtrl data'!$A$6:$C$73,3,FALSE))*(C130/1000)*D130)) -> 0 | G130: =IF(C130>0,E130*VLOOKUP(B130,Mtrl_emission,21)/1000,0) -> 0
E131: =IF(C131>0,$E$118*(C131/1000)*D131*VLOOKUP(B131,Data,2,FALSE),0)*$H$3/IF(H131>0,H131,$H$3) ->  | F131: =IF(B131="Ground",2.5,IF(B131=0,0,(1/VLOOKUP(B131,'9. Mtrl data'!$A$6:$C$73,3,FALSE))*(C131/1000)*D131)) -> 0 | G131: 0
E132: =IF(C132>0,$E$118*(C132/1000)*D132*VLOOKUP(B132,Data,2,FALSE),0)*$H$3/IF(H132>0,H132,$H$3) ->  | F132: =IF(B132="Ground",2.5,IF(B132=0,0,(1/VLOOKUP(B132,'9. Mtrl data'!$A$6:$C$73,3,FALSE))*(C132/1000)*D132)) -> 0 | G132: 0
A133: U-value | B133: =IF(SUM(F120:F132)=0,0,1/(SUM(F120:F132)+$M$14)) -> 0 | C133: =SUM(C120:C132) -> 0 | D133: Tot Weight | E133: =SUM(E120:E132) ->  | F133: =SUM(F120:F132) -> 0 | G133: =SUM(G120:G132) -> 0
F134: kgCO2 equiv/m2HFA | G134: =G133/'3. Gen info'!$C$21 -> 
A137: Floor structure
A138: A | B138: Fraction of slabs type A | C138: 1 | D138: Area, m2: | E138: =C138*IF('4. Dimension'!L5>0,'4. Dimension'!L5-'4. Dimension'!D6,'4. Dimension'!F43-'4. Dimension'!F35) -> 720
A139: Layer | B139: Material | C139: Thickness, mm | D139: Fraction of Layer | E139: Weight, kg | F139: Heat-resist. m2 K/W | G139: CO2 kgequiv | H139: Diff. Life time, yr
E140: =IF(C140>0,$E$138*(C140/1000)*D140*VLOOKUP(B140,Data,2,FALSE),0)*$H$3/IF(H140>0,H140,$H$3) ->  | F140: not relev. | G140: =IF(C140>0,E140*VLOOKUP(B140,Mtrl_emission,21)/1000,0) -> 0
F141: not relev. | G141: 0
F142: not relev. | G142: 0
F143: not relev. | G143: 0
F144: not relev. | G144: =IF(C144>0,E144*VLOOKUP(B144,Mtrl_emission,21)/1000,0) -> 0
F145: not relev. | G145: 0
F146: not relev. | G146: =IF(C146>0,E146*VLOOKUP(B146,Mtrl_emission,21)/1000,0) -> 0
F147: not relev.
C148: =SUM(C140:C147) -> 0 | D148: Tot Weight | E148: =SUM(E140:E147) ->  | F148: Total | G148: =SUM(G140:G147) -> 0
F149: CO2 equiv/m2HFA | G149: =G148/'3. Gen info'!$C$21 -> 
A151: B | B151: Fraction of slabs | C151: =1-C138 -> 0 | D151: Area, m2: | E151: =C151*E138/C138 -> 0
A152: Layer | B152: Material | C152: Thickness, mm | D152: Fraction of Layer | E152: Weight, kg | F152: Heat-resist. m2 K/W | G152: CO2 kgequiv | H152: Diff. Life time, yr
E153: =IF(C153>0,$E$151*(C153/1000)*D153*VLOOKUP(B153,Data,2,FALSE),0)*$H$3/IF(H153>0,H153,$H$3) ->  | F153: not relev. | G153: =IF(C153>0,E153*VLOOKUP(B153,Mtrl_emission,21)/1000,0) -> 0
F154: not relev. | G154: 0
F155: not relev. | G155: 0
F156: not relev. | G156: =IF(C156>0,E156*VLOOKUP(B156,Mtrl_emission,21)/1000,0) -> 0
F157: not relev. | G157: =IF(C157>0,E157*VLOOKUP(B157,Mtrl_emission,21)/1000,0) -> 0
F158: not relev. | G158: =IF(C158>0,E158*VLOOKUP(B158,Mtrl_emission,21)/1000,0) -> 0
F159: not relev. | G159: 0
F160: not relev. | G160: 0
C161: =SUM(C153:C160) -> 0 | D161: Tot Weight | E161: =SUM(E153:E160) ->  | F161: Total | G161: =SUM(G153:G160) -> 0
F162: CO2 equiv/m2HFA | G162: =G161/'3. Gen info'!$C$21 -> 
A164: Internal walls
A165: A | B165: Fraction of internal walls type A | D165: Total area | E165: ='3. Gen info'!C21*0.07*('4. Dimension'!F10-0.3) ->  | G165: Own value
A166: Layer | B166: Material | C166: Thickness, mm | D166: Fraction of Layer | E166: Weight, kg | F166: Heat-resist. m2 K/W | G166: CO2 kgequiv | H166: Diff. Life time, yr
E167: =IF(C167>0,$E$165*C$165*(C167/1000)*D167*VLOOKUP(B167,Data,2,FALSE),0)*$H$3/IF(H167>0,H167,$H$3) ->  | F167: not relev. | G167: =IF(C167>0,E167*VLOOKUP(B167,Mtrl_emission,21)/1000,0) -> 0
E168: =IF(C168>0,$E$165*(C168/1000)*D168*VLOOKUP(B168,Data,2,FALSE),0)*$H$3/IF(H168>0,H168,$H$3) ->  | F168: not relev. | G168: =IF(C168>0,E168*VLOOKUP(B168,Mtrl_emission,21)/1000,0) -> 0
F169: not relev. | G169: 0
F170: not relev. | G170: 0
F171: not relev. | G171: 0
F172: not relev. | G172: 0
F173: not relev. | G173: 0
F174: not relev. | G174: 0
C175: =SUM(C167:C174) -> 0 | D175: Tot Weight | E175: =SUM(E167:E174) ->  | F175: Total | G175: =SUM(G167:G174) -> 0
C176: Area, m2: | D176: =E165 ->  | F176: CO2 equiv/m2HFA | G176: =G175/'3. Gen info'!$C$21 -> 
A178: B | B178: Fraction of internal walls type B | C178: =1-C165 -> 1 | E178: =C178*IF(F165>0,F165,E165) -> 
A179: Layer | B179: Material | C179: Thickness, mm | D179: Fraction of Layer | E179: Weight, kg | F179: Heat-resist. m2 K/W | G179: CO2 kgequiv | H179: Diff. Life time, yr
E180: =IF(C180>0,$E$178*(C180/1000)*D180*VLOOKUP(B180,Data,2,FALSE),0)*$H$3/IF(H180>0,H180,$H$3) ->  | F180: not relev. | G180: =IF(C180>0,E180*VLOOKUP(B180,Mtrl_emission,21)/1000,0) -> 0
F181: not relev. | G181: 0
F182: not relev. | G182: 0
F183: not relev. | G183: =IF(C183>0,E183*VLOOKUP(B183,Mtrl_emission,21)/1000,0) -> 0
F184: not relev. | G184: =IF(C184>0,E184*VLOOKUP(B184,Mtrl_emission,21)/1000,0) -> 0
F185: not relev. | G185: 0
F186: not relev. | G186: 0
F187: not relev. | G187: 0
C188: =SUM(C180:C187) -> 0 | D188: Tot Weight | E188: =SUM(E180:E187) ->  | F188: Total | G188: =SUM(G180:G187) -> 0
C189: Area, m2: | D189: =E178 ->  | F189: CO2 equiv/m2HFA | G189: =G188/'3. Gen info'!$C$21 -> 
A191: Windows
A192: A | C192: 1 | D192: Area, m2 | E192: =C192*IF('4. Dimension'!L7>0,'4. Dimension'!L7,IF('4. Dimension'!C26>0,'4. Dimension'!C26,'4. Dimension'!I26)) -> 87.9 | G192: Own value
B193: Material | C193: Thickness, mm | D193: Fraction of aperture | E193: Weight, kg | F193: Heat-resist. m2 K/W | G193: CO2 kgequiv | H193: Diff. Life time, yr
E194: =IF(C194>0,IF($F$192>0,$F$192,$E$192)*(C194/1000)*D194*VLOOKUP(B194,Data,2,FALSE),0)*$H$3/IF(H194>0,H194,$H$3) ->  | F194: not relev. | G194: =IF(C194>0,E194*VLOOKUP(B194,Mtrl_emission,21)/1000,0) -> 0
E195: =IF(C195>0,IF($F$192>0,$F$192,$E$192)*(C195/1000)*D195*VLOOKUP(B195,Data,2,FALSE),0)*$H$3/IF(H195>0,H195,$H$3) ->  | F195: not relev. | G195: =IF(C195>0,E195*VLOOKUP(B195,Mtrl_emission,21)/1000,0) -> 0
E196: =IF(C196>0,IF($F$192>0,$F$192,$E$192)*(C196/1000)*D196*VLOOKUP(B196,Data,2,FALSE),0)*$H$3/IF(H196>0,H196,$H$3) ->  | F196: not relev. | G196: =IF(C196>0,E196*VLOOKUP(B196,Mtrl_emission,21)/1000,0) -> 0
E197: =IF(C197>0,IF($F$192>0,$F$192,$E$192)*(C197/1000)*D197*VLOOKUP(B197,Data,2,FALSE),0)*$H$3/IF(H197>0,H197,$H$3) ->  | F197: not relev. | G197: =IF(C197>0,E197*VLOOKUP(B197,Mtrl_emission,21)/1000,0) -> 0
E198: =IF(C198>0,IF($F$192>0,$F$192,$E$192)*(C198/1000)*D198*VLOOKUP(B198,Data,2,FALSE),0)*$H$3/IF(H198>0,H198,$H$3) ->  | F198: not relev. | G198: =IF(C198>0,E198*VLOOKUP(B198,Mtrl_emission,21)/1000,0) -> 0
A199: U-value | C199: =SUM(C194:C198) -> 0 | D199: Tot Weight | E199: =SUM(E194:E198) ->  | F199: Total | G199: =SUM(G194:G198) -> 0
F200: CO2 equiv/m2HFA | G200: =G199/'3. Gen info'!$C$21 -> 
A202: B | B202: Fraction of windows type B | C202: =1-C192 -> 0 | D202: Area, m2: | E202: =C202*E192/C192 -> 0
C203: Thickness, mm | D203: Fraction of aperture | E203: Weight, kg | F203: Heat-resist. m2 K/W | G203: CO2 kgequiv | H203: Diff. Life time, yr
E204: =IF(C204>0,$E$202*(C204/1000)*D204*VLOOKUP(B204,Data,2,FALSE),0)*$H$3/IF(H204>0,H204,$H$3) ->  | F204: not relev. | G204: =IF(C204>0,E204*VLOOKUP(B204,Mtrl_emission,21)/1000,0) -> 0
E205: =IF(C205>0,$E$202*(C205/1000)*D205*VLOOKUP(B205,Data,2,FALSE),0)*$H$3/IF(H205>0,H205,$H$3) ->  | F205: not relev. | G205: =IF(C205>0,E205*VLOOKUP(B205,Mtrl_emission,21)/1000,0) -> 0
E206: =IF(C206>0,$E$202*(C206/1000)*D206*VLOOKUP(B206,Data,2,FALSE),0)*$H$3/IF(H206>0,H206,$H$3) ->  | F206: not relev. | G206: =IF(C206>0,E206*VLOOKUP(B206,Mtrl_emission,21)/1000,0) -> 0
E207: =IF(C207>0,$E$202*(C207/1000)*D207*VLOOKUP(B207,Data,2,FALSE),0)*$H$3/IF(H207>0,H207,$H$3) ->  | F207: not relev. | G207: =IF(C207>0,E207*VLOOKUP(B207,Mtrl_emission,21)/1000,0) -> 0
E208: =IF(C208>0,$E$202*(C208/1000)*D208*VLOOKUP(B208,Data,2,FALSE),0)*$H$3/IF(H208>0,H208,$H$3) ->  | F208: not relev. | G208: =IF(C208>0,E208*VLOOKUP(B208,Mtrl_emission,21)/1000,0) -> 0
A209: U-value | C209: =SUM(C204:C208) -> 0 | D209: Tot Weight | E209: =SUM(E204:E208) ->  | F209: Total | G209: =SUM(G204:G208) -> 0
F210: CO2 kgequiv/m2HFA | G210: =G209/'3. Gen info'!$C$21 -> 
A213: External Doors
A214: A | B214: Fraction of type A | C214: 1 | D214: Area | E214: =C214*IF('4. Dimension'!L8>0,'4. Dimension'!L8,IF('4. Dimension'!C27>0,'4. Dimension'!C27,'4. Dimension'!I27)) -> 18.8 | G214: Own value
B215: Material | C215: Thickness, mm | D215: Fraction of aperture | E215: Weight, kg | F215: Heat-resist. m2 K/W | G215: CO2 kgequiv | H215: Diff. Life time, yr
E216: =IF(C216>0,IF($F$214>0,$F$214,$E$214)*(C216/1000)*D216*VLOOKUP(B216,Data,2,FALSE),0)*$H$3/IF(H216>0,H216,$H$3) ->  | F216: not relev. | G216: =IF(C216>0,E216*VLOOKUP(B216,Mtrl_emission,21)/1000,0) -> 0
E217: =IF(C217>0,IF($F$214>0,$F$214,$E$214)*(C217/1000)*D217*VLOOKUP(B217,Data,2,FALSE),0)*$H$3/IF(H217>0,H217,$H$3) ->  | F217: not relev. | G217: =IF(C217>0,E217*VLOOKUP(B217,Mtrl_emission,21)/1000,0) -> 0
E218: =IF(C218>0,IF($F$214>0,$F$214,$E$214)*(C218/1000)*D218*VLOOKUP(B218,Data,2,FALSE),0)*$H$3/IF(H218>0,H218,$H$3) ->  | F218: not relev. | G218: =IF(C218>0,E218*VLOOKUP(B218,Mtrl_emission,21)/1000,0) -> 0
E219: =IF(C219>0,IF($F$214>0,$F$214,$E$214)*(C219/1000)*D219*VLOOKUP(B219,Data,2,FALSE),0)*$H$3/IF(H219>0,H219,$H$3) ->  | F219: not relev. | G219: =IF(C219>0,E219*VLOOKUP(B219,Mtrl_emission,21)/1000,0) -> 0
... 14 more rows

Sheet 5b. Åtgärder (hidden)
A1: Construction Input WorkSheet
G3: Building life time, yr | H3: ='3. Gen info'!C23 -> 0 | K3: Window | L3: kg/m3 | M3: U-value
A4: Basement slab | K4: 1 Glas | L4: 2600 | M4: 2.9
A5: A | B5: Fraction of basement slab, type A | C5: 1 | D5: Area, m2: | E5: =C5*'4. Dimension'!L11 -> 190 | K5: 3 Glas | L5: =2600*3 -> 7800
A6: Layer | B6: Material | C6: Thickness, mm | D6: Fraction of Layer | E6: Weight, kg | F6: Heat-resist. m2 K/W | G6: CO2 kgequiv | H6: Diff. Life time, yr | I6: Material-kostnader, kr | J6: Arbets-tid, tim | K6: 4 Glas | L6: =2600*4 -> 10400 | R6: kg | S6: kg CO2 equiv
E7: =IF(C7>0,$E$5*(C7/1000)*D7*VLOOKUP(B7,Data,2,FALSE),0)*$H$3/IF(H7>0,H7,$H$3) ->  | F7: =IF(B7="Ground",2.5,IF(B7=0,0,(1/VLOOKUP(B7,'9. Mtrl data'!$A$6:$C$73,3,FALSE))*(C7/1000)*D7)) -> 0 | G7: =IF(C7>0,E7*VLOOKUP(B7,Mtrl_emission,21)/1000,0) -> 0 | K7: AVAILABLE MATERIALS | R7: weight | S7: climate
E8: =IF(C8>0,$E$5*(C8/1000)*D8*VLOOKUP(B8,Data,2,FALSE),0)*$H$3/IF(H8>0,H8,$H$3) ->  | F8: =IF(B8="Ground",2.5,IF(B8=0,0,(1/VLOOKUP(B8,'9. Mtrl data'!$A$6:$C$73,3,FALSE))*(C8/1000)*D8)) -> 0 | G8: 0 | K8: ='9. Mtrl data'!A6 -> Ground | Q8: Basement slab | R8: =(E18+E34) ->  | S8: =G18+G34 -> 0
E9: =IF(C9>0,$E$5*(C9/1000)*D9*VLOOKUP(B9,Data,2,FALSE),0)*$H$3/IF(H9>0,H9,$H$3) ->  | F9: =IF(B9="Ground",2.5,IF(B9=0,0,(1/VLOOKUP(B9,'9. Mtrl data'!$A$6:$C$73,3,FALSE))*(C9/1000)*D9)) -> 0 | G9: 0 | K9: ='9. Mtrl data'!A7 -> Air | Q9: Roof | R9: =E47+E58 ->  | S9: =G47+G58 -> 0
F10: =IF(B10="Ground",2.5,IF(B10=0,0,(1/VLOOKUP(B10,'9. Mtrl data'!$A$6:$C$73,3,FALSE))*(C10/1000)*D10)) -> 0 | G10: =IF(C10>0,E10*VLOOKUP(B10,Mtrl_emission,21)/1000,0) -> 0 | K10: ='9. Mtrl data'!A8 -> Aluminium | L10: 2700 | Q10: Attic slab | R10: =E77+E94 ->  | S10: =G77+G94 -> 
F11: =IF(B11="Ground",2.5,IF(B11=0,0,(1/VLOOKUP(B11,'9. Mtrl data'!$A$6:$C$73,3,FALSE))*(C11/1000)*D11)) -> 0 | G11: 0 | K11: ='9. Mtrl data'!A9 -> Brick, massive | Q11: External wall | R11: =E115+E134 ->  | S11: =G115+G134 -> 
F12: =IF(B12="Ground",2.5,IF(B12=0,0,(1/VLOOKUP(B12,'9. Mtrl data'!$A$6:$C$73,3,FALSE))*(C12/1000)*D12)) -> 0 | G12: 0 | K12: ='9. Mtrl data'!A10 -> Concrete lightweight | Q12: Floor structure | R12: =E149+E162 ->  | S12: =G149+G162 -> 
F13: =IF(B13="Ground",2.5,IF(B13=0,0,(1/VLOOKUP(B13,'9. Mtrl data'!$A$6:$C$73,3,FALSE))*(C13/1000)*D13)) -> 0 | G13: 0 | K13: ='9. Mtrl data'!A11 -> Concrete reinforced | L13: Övergångasmotstånd | O13: mi+mu | Q13: Internal walls | R13: =E176+E189 ->  | S13: =G176+G189 -> 
F14: =IF(B14="Ground",2.5,IF(B14=0,0,(1/VLOOKUP(B14,'9. Mtrl data'!$A$6:$C$73,3,FALSE))*(C14/1000)*D14)) -> 0 | G14: 0 | K14: ='9. Mtrl data'!A12 -> Floor mat PVC (Tarkett Eminent T) | L14: Vägg och tak mot det fria | O14: 0.25 | Q14: Windows | R14: =E200+E210 ->  | S14: =G200+G210 -> 
F15: =IF(B15="Ground",2.5,IF(B15=0,0,(1/VLOOKUP(B15,'9. Mtrl data'!$A$6:$C$73,3,FALSE))*(C15/1000)*D15)) -> 0 | G15: 0 | K15: ='9. Mtrl data'!A13 -> Glass | L15: Golv- och takbjälklag | O15: 0.3 | Q15: Doors | R15: =E222+E233 ->  | S15: =G222+G233 -> 0
F16: =IF(B16="Ground",2.5,IF(B16=0,0,(1/VLOOKUP(B16,'9. Mtrl data'!$A$6:$C$73,3,FALSE))*(C16/1000)*D16)) -> 0 | G16: 0 | K16: ='9. Mtrl data'!A14 -> Gravel | L16: Vägg, tak, golv mot uppvärmd lokal | O16: 0.35 | Q16: Sum | R16: =SUM(R8:R15) ->  | S16: =SUM(S8:S15) -> 
F17: =IF(B17="Ground",2.5,IF(B17=0,0,(1/VLOOKUP(B17,'9. Mtrl data'!$A$6:$C$73,3,FALSE))*(C17/1000)*D17)) -> 0 | G17: 0 | K17: ='9. Mtrl data'!A15 -> Gypsum, plaster board | Q17: Sum per m2 HFA | R17: =R16/'4. Dimension'!$L5 ->  | S17: =S16/'4. Dimension'!$L5 -> 
A18: U-value | B18: =IF(SUM(F7:F17)=0,0,1/(SUM(F7:F17)+$O$15)) -> 0 | E18: =SUM(E7:E17) ->  | F18: Total | G18: =SUM(G7:G17) -> 0 | K18: ='9. Mtrl data'!A16 -> Insulation, cellulose fibre | L18: Luft, volumetrisk värmekapacitet | O18: 1212 | P18: J/m3,K
F19: CO2 kgequiv/m2HFA | G19: =G18/'3. Gen info'!$C$21 ->  | K19: ='9. Mtrl data'!A17 -> Insulation, Foamglas | L19: Luft, volumetrisk värmekapacitet | O19: =O18/3600 -> 0.3366666667 | P19: Wh/m3,K
K20: ='9. Mtrl data'!A18 -> Insulation, Glass wool | L20: 1
A21: B | B21: Fraction of basement slab, type B | C21: =1-C5 -> 0 | D21: Area, m2: | E21: =C21*E5/C5 -> 0 | K21: ='9. Mtrl data'!A19 -> Insulation, Polystyrene, EPS | L21: 2
A22: Layer | B22: Material | C22: Thickness, mm | D22: Fraction of Layer | E22: Weight, kg | F22: Heat-resist. m2 K/W | G22: CO2 kgequiv | H22: Diff. Life time, yr | K22: ='9. Mtrl data'!A20 -> Insulation, Polyurethane PUR | L22: 3
E23: =IF(C23>0,$E$21*(C23/1000)*D23*VLOOKUP(B23,Data,2,FALSE),0)*$H$3/IF(H23>0,H23,$H$3) ->  | F23: =IF(B23="Ground",2.5,IF(B23=0,0,(1/VLOOKUP(B23,'9. Mtrl data'!$A$6:$C$73,3,FALSE))*(C23/1000)*D23)) -> 0 | G23: =IF(C23>0,E23*VLOOKUP(B23,Mtrl_emission,21)/1000,0) -> 0 | K23: ='9. Mtrl data'!A21 -> Insulation, Rockwool | L23: 4
F24: =IF(B24="Ground",2.5,IF(B24=0,0,(1/VLOOKUP(B24,'9. Mtrl data'!$A$6:$C$73,3,FALSE))*(C24/1000)*D24)) -> 0 | G24: 0 | K24: ='9. Mtrl data'!A22 -> Light clinker masonry | L24: 5
F25: =IF(B25="Ground",2.5,IF(B25=0,0,(1/VLOOKUP(B25,'9. Mtrl data'!$A$6:$C$73,3,FALSE))*(C25/1000)*D25)) -> 0 | G25: 0 | K25: ='9. Mtrl data'!A23 -> Plaster | L25: 6
F26: =IF(B26="Ground",2.5,IF(B26=0,0,(1/VLOOKUP(B26,'9. Mtrl data'!$A$6:$C$73,3,FALSE))*(C26/1000)*D26)) -> 0 | G26: 0 | K26: ='9. Mtrl data'!A24 -> Polyeten | L26: 7
F27: =IF(B27="Ground",2.5,IF(B27=0,0,(1/VLOOKUP(B27,'9. Mtrl data'!$A$6:$C$73,3,FALSE))*(C27/1000)*D27)) -> 0 | G27: 0 | K27: ='9. Mtrl data'!A25 -> Steel (EU-mix) | L27: 8
F28: =IF(B28="Ground",2.5,IF(B28=0,0,(1/VLOOKUP(B28,'9. Mtrl data'!$A$6:$C$73,3,FALSE))*(C28/1000)*D28)) -> 0 | G28: 0 | K28: ='9. Mtrl data'!A26 -> Wood | L28: 9
F29: =IF(B29="Ground",2.5,IF(B29=0,0,(1/VLOOKUP(B29,'9. Mtrl data'!$A$6:$C$73,3,FALSE))*(C29/1000)*D29)) -> 0 | G29: 0 | K29: ='9. Mtrl data'!A27 -> Wood fiber board | L29: 10
F30: =IF(B30="Ground",2.5,IF(B30=0,0,(1/VLOOKUP(B30,'9. Mtrl data'!$A$6:$C$73,3,FALSE))*(C30/1000)*D30)) -> 0 | G30: 0 | K30: ='9. Mtrl data'!A28 -> Wood particle board
F31: =IF(B31="Ground",2.5,IF(B31=0,0,(1/VLOOKUP(B31,'9. Mtrl data'!$A$6:$C$73,3,FALSE))*(C31/1000)*D31)) -> 0 | G31: 0 | K31: ='9. Mtrl data'!A29 -> Wood plywood
F32: =IF(B32="Ground",2.5,IF(B32=0,0,(1/VLOOKUP(B32,'9. Mtrl data'!$A$6:$C$73,3,FALSE))*(C32/1000)*D32)) -> 0 | G32: 0 | K32: ='9. Mtrl data'!A30 -> Zink
F33: =IF(B33="Ground",2.5,IF(B33=0,0,(1/VLOOKUP(B33,'9. Mtrl data'!$A$6:$C$73,3,FALSE))*(C33/1000)*D33)) -> 0 | G33: 0 | K33: ='9. Mtrl data'!A31 -> 0 | L33: ?
A34: U-value | B34: =IF(SUM(F23:F33)=0,0,1/(SUM(F23:F33)+$O$15)) -> 0 | E34: =SUM(E23:E33) ->  | F34: Total | G34: =SUM(G23:G33) -> 0 | L34: U-värdesberäkning vid skikt med olika material!
F35: CO2 equiv/m2HFA | G35: =G34/'3. Gen info'!$C$21 -> 
L36: =(SUM(F41:F46)*C39*E39+SUM(F52:F57)*C50*E50)/E39 -> 
A38: Roof
A39: A | B39: Fraction of attic slabs type A | C39: 1 | D39: Area, m2: | E39: =C39*'4. Dimension'!L9 -> 0
A40: Layer | B40: Material | C40: Thickness, mm | D40: Fraction of Layer | E40: Weight, kg | F40: Heat-resist. m2 K/W | G40: CO2 kgequiv | H40: Diff. Life time, yr
A41: 1 | E41: =IF(C41>0,$E$39*(C41/1000)*D41*VLOOKUP(B41,Data,2,FALSE),0)*$H$3/IF(H41>0,H41,$H$3) ->  | F41: =IF(B41="Ground",2.5,IF(B41=0,0,(1/VLOOKUP(B41,'9. Mtrl data'!$A$6:$C$73,3,FALSE))*(C41/1000)*D41)) -> 0 | G41: =IF(C41>0,E41*VLOOKUP(B41,Mtrl_emission,21)/1000,0) -> 0
A42: 2 | F42: =IF(B42="Ground",2.5,IF(B42=0,0,(1/VLOOKUP(B42,'9. Mtrl data'!$A$6:$C$73,3,FALSE))*(C42/1000)*D42)) -> 0 | G42: 0
A43: 3 | F43: =IF(B43="Ground",2.5,IF(B43=0,0,(1/VLOOKUP(B43,'9. Mtrl data'!$A$6:$C$73,3,FALSE))*(C43/1000)*D43)) -> 0 | G43: 0
A44: 4 | F44: =IF(B44="Ground",2.5,IF(B44=0,0,(1/VLOOKUP(B44,'9. Mtrl data'!$A$6:$C$73,3,FALSE))*(C44/1000)*D44)) -> 0 | G44: 0
A45: 5 | F45: =IF(B45="Ground",2.5,IF(B45=0,0,(1/VLOOKUP(B45,'9. Mtrl data'!$A$6:$C$73,3,FALSE))*(C45/1000)*D45)) -> 0 | G45: 0
A46: 6 | F46: =IF(B46="Ground",2.5,IF(B46=0,0,(1/VLOOKUP(B46,'9. Mtrl data'!$A$6:$C$73,3,FALSE))*(C46/1000)*D46)) -> 0 | G46: 0
A47: U-value | B47: =IF(SUM(F41:F46)=0,0,1/(SUM(F35:F46)+$O$15)) -> 0 | E47: =SUM(E41:E46) ->  | F47: Total | G47: =SUM(G41:G46) -> 0
F48: CO2 equiv/m2HFA | G48: =G47/'3. Gen info'!$C$21 -> 
A50: B | B50: Fraction of attic | C50: =IF(C30<0.0001,0,1-C30) -> 0 | D50: Area, m2: | E50: =C50*E39/C39 -> 0
A51: Layer | B51: Material | C51: Thickness, mm | D51: Fraction of Layer | E51: Weight, kg | F51: Heat-resist. m2 K/W | G51: CO2 kgequiv | H51: Diff. Life time, yr
A52: 1 | E52: =IF(C52>0,$E$50*(C52/1000)*D52*VLOOKUP(B52,Data,2,FALSE),0)*$H$3/IF(H52>0,H52,$H$3) ->  | F52: =IF(B52="Ground",2.5,IF(B52=0,0,(1/VLOOKUP(B52,'9. Mtrl data'!$A$6:$C$73,3,FALSE))*(C52/1000)*D52)) -> 0 | G52: =IF(C52>0,E52*VLOOKUP(B52,Mtrl_emission,21)/1000,0) -> 0
A53: 2 | F53: =IF(B53="Ground",2.5,IF(B53=0,0,(1/VLOOKUP(B53,'9. Mtrl data'!$A$6:$C$73,3,FALSE))*(C53/1000)*D53)) -> 0 | G53: 0
A54: 3 | F54: =IF(B54="Ground",2.5,IF(B54=0,0,(1/VLOOKUP(B54,'9. Mtrl data'!$A$6:$C$73,3,FALSE))*(C54/1000)*D54)) -> 0 | G54: 0
A55: 4 | F55: =IF(B55="Ground",2.5,IF(B55=0,0,(1/VLOOKUP(B55,'9. Mtrl data'!$A$6:$C$73,3,FALSE))*(C55/1000)*D55)) -> 0 | G55: 0
A56: 5 | F56: =IF(B56="Ground",2.5,IF(B56=0,0,(1/VLOOKUP(B56,'9. Mtrl data'!$A$6:$C$73,3,FALSE))*(C56/1000)*D56)) -> 0 | G56: 0
A57: 6 | F57: =IF(B57="Ground",2.5,IF(B57=0,0,(1/VLOOKUP(B57,'9. Mtrl data'!$A$6:$C$73,3,FALSE))*(C57/1000)*D57)) -> 0 | G57: 0
A58: U-value | B58: =IF(SUM(F52:F57)=0,0,1/(SUM(F46:F57)+$O$15)) -> 0 | E58: =SUM(E52:E57) ->  | F58: Total | G58: =SUM(G52:G57) -> 0
F59: CO2 equiv/m2HFA | G59: =G58/'3. Gen info'!$C$21 -> 
A62: Attic | B62: From ceiling top floor to attic. If no attic space use only roof.
A63: A | B63: Fraction of attic slabs type A | C63: 1 | D63: Area, m2: | E63: =C63*IF('4. Dimension'!L9>0,'4. Dimension'!L9,IF('4. Dimension'!C19>0,'4. Dimension'!C19,'4. Dimension'!E19)) -> 0
A64: Layer | B64: Material | C64: Thickness, mm | D64: Fraction of Layer | E64: Weight, kg | F64: Heat-resist. m2 K/W | G64: CO2 kgequiv | H64: Diff. Life time, yr
B65: Insulation, Glass wool | C65: 100 | D65: 1 | E65: =IF(C65>0,IF($F$63>0,$F$63,$E$63)*(C65/1000)*D65*VLOOKUP(B65,Data,2,FALSE),0)*$H$3/IF(H65>0,H65,$H$3) ->  | F65: =IF(B65="Ground",2.5,IF(B65=0,0,(1/VLOOKUP(B65,'9. Mtrl data'!$A$6:$C$73,3,FALSE))*(C65/1000)*D65)) -> 2.777777778 | G65: =IF(C65>0,E65*VLOOKUP(B65,Mtrl_emission,21)/1000,0) -> 
F66: =IF(B66="Ground",2.5,IF(B66=0,0,(1/VLOOKUP(B66,'9. Mtrl data'!$A$6:$C$73,3,FALSE))*(C66/1000)*D66)) -> 0 | G66: 0
F67: =IF(B67="Ground",2.5,IF(B67=0,0,(1/VLOOKUP(B67,'9. Mtrl data'!$A$6:$C$73,3,FALSE))*(C67/1000)*D67)) -> 0 | G67: 0
F68: =IF(B68="Ground",2.5,IF(B68=0,0,(1/VLOOKUP(B68,'9. Mtrl data'!$A$6:$C$73,3,FALSE))*(C68/1000)*D68)) -> 0 | G68: 0
F69: =IF(B69="Ground",2.5,IF(B69=0,0,(1/VLOOKUP(B69,'9. Mtrl data'!$A$6:$C$73,3,FALSE))*(C69/1000)*D69)) -> 0 | G69: 0
F70: =IF(B70="Ground",2.5,IF(B70=0,0,(1/VLOOKUP(B70,'9. Mtrl data'!$A$6:$C$73,3,FALSE))*(C70/1000)*D70)) -> 0 | G70: 0
F71: =IF(B71="Ground",2.5,IF(B71=0,0,(1/VLOOKUP(B71,'9. Mtrl data'!$A$6:$C$73,3,FALSE))*(C71/1000)*D71)) -> 0 | G71: 0
F72: =IF(B72="Ground",2.5,IF(B72=0,0,(1/VLOOKUP(B72,'9. Mtrl data'!$A$6:$C$73,3,FALSE))*(C72/1000)*D72)) -> 0 | G72: 0
F73: =IF(B73="Ground",2.5,IF(B73=0,0,(1/VLOOKUP(B73,'9. Mtrl data'!$A$6:$C$73,3,FALSE))*(C73/1000)*D73)) -> 0 | G73: 0
F74: =IF(B74="Ground",2.5,IF(B74=0,0,(1/VLOOKUP(B74,'9. Mtrl data'!$A$6:$C$73,3,FALSE))*(C74/1000)*D74)) -> 0 | G74: 0
F75: =IF(B75="Ground",2.5,IF(B75=0,0,(1/VLOOKUP(B75,'9. Mtrl data'!$A$6:$C$73,3,FALSE))*(C75/1000)*D75)) -> 0 | G75: 0
F76: =IF(B76="Ground",2.5,IF(B76=0,0,(1/VLOOKUP(B76,'9. Mtrl data'!$A$6:$C$73,3,FALSE))*(C76/1000)*D76)) -> 0 | G76: 0
A77: U-value | B77: =IF(SUM(F65:F72)=0,0,1/(SUM(F65:F72)+$O$15)) -> 0.3249097473 | C77: =SUM(C65:C76) -> 100 | D77: Tot Weight | E77: =SUM(E65:E76) ->  | F77: =SUM(F65:F76) -> 2.777777778 | G77: =SUM(G65:G76) -> 
F78: CO2 equiv/m2HFA | G78: =G77/'3. Gen info'!$C$21 -> 
A80: B | B80: Fraction of attic | C80: =IF(C63<0.0001,0,1-C63) -> 0 | D80: Area, m2: | E80: =C80*E63/C63 -> 0
A81: Layer | B81: Material | C81: Thickness, mm | D81: Fraction of Layer | E81: Weight, kg | F81: Heat-resist. m2 K/W | G81: CO2 kgequiv | H81: Diff. Life time, yr
B82: Insulation, Glass wool | C82: 200 | D82: 1 | E82: =IF(C82>0,$E$80*(C82/1000)*D82*VLOOKUP(B82,Data,2,FALSE),0)*$H$3/IF(H82>0,H82,$H$3) ->  | F82: =IF(B82="Ground",2.5,IF(B82=0,0,(1/VLOOKUP(B82,'9. Mtrl data'!$A$6:$C$73,3,FALSE))*(C82/1000)*D82)) -> 5.555555556 | G82: =IF(C82>0,E82*VLOOKUP(B82,Mtrl_emission,21)/1000,0) -> 
F83: =IF(B83="Ground",2.5,IF(B83=0,0,(1/VLOOKUP(B83,'9. Mtrl data'!$A$6:$C$73,3,FALSE))*(C83/1000)*D83)) -> 0 | G83: 0
F84: =IF(B84="Ground",2.5,IF(B84=0,0,(1/VLOOKUP(B84,'9. Mtrl data'!$A$6:$C$73,3,FALSE))*(C84/1000)*D84)) -> 0 | G84: 0
F85: =IF(B85="Ground",2.5,IF(B85=0,0,(1/VLOOKUP(B85,'9. Mtrl data'!$A$6:$C$73,3,FALSE))*(C85/1000)*D85)) -> 0 | G85: 0
F86: =IF(B86="Ground",2.5,IF(B86=0,0,(1/VLOOKUP(B86,'9. Mtrl data'!$A$6:$C$73,3,FALSE))*(C86/1000)*D86)) -> 0 | G86: 0
F87: =IF(B87="Ground",2.5,IF(B87=0,0,(1/VLOOKUP(B87,'9. Mtrl data'!$A$6:$C$73,3,FALSE))*(C87/1000)*D87)) -> 0 | G87: 0
F88: =IF(B88="Ground",2.5,IF(B88=0,0,(1/VLOOKUP(B88,'9. Mtrl data'!$A$6:$C$73,3,FALSE))*(C88/1000)*D88)) -> 0 | G88: 0
F89: =IF(B89="Ground",2.5,IF(B89=0,0,(1/VLOOKUP(B89,'9. Mtrl data'!$A$6:$C$73,3,FALSE))*(C89/1000)*D89)) -> 0 | G89: 0
F90: =IF(B90="Ground",2.5,IF(B90=0,0,(1/VLOOKUP(B90,'9. Mtrl data'!$A$6:$C$73,3,FALSE))*(C90/1000)*D90)) -> 0 | G90: 0
F91: =IF(B91="Ground",2.5,IF(B91=0,0,(1/VLOOKUP(B91,'9. Mtrl data'!$A$6:$C$73,3,FALSE))*(C91/1000)*D91)) -> 0 | G91: 0
F92: =IF(B92="Ground",2.5,IF(B92=0,0,(1/VLOOKUP(B92,'9. Mtrl data'!$A$6:$C$73,3,FALSE))*(C92/1000)*D92)) -> 0 | G92: =IF(C92>0,E92*VLOOKUP(B92,Mtrl_emission,21)/1000,0) -> 0
F93: =IF(B93="Ground",2.5,IF(B93=0,0,(1/VLOOKUP(B93,'9. Mtrl data'!$A$6:$C$73,3,FALSE))*(C93/1000)*D93)) -> 0 | G93: =IF(C93>0,E93*VLOOKUP(B93,Mtrl_emission,21)/1000,0) -> 0
A94: U-value | B94: =IF(SUM(F82:F88)=0,0,1/(SUM(F82:F88)+$O$14)) -> 0.1722488038 | C94: =SUM(C82:C93) -> 200 | D94: Tot Weight | E94: =SUM(E82:E93) ->  | F94: =SUM(F82:F93) -> 5.555555556 | G94: =SUM(G82:G93) -> 
F95: CO2 equiv/m2HFA | G95: =G94/'3. Gen info'!$C$21 -> 
A98: External wall
A99: 1. Tilläggsisolering trä | G99: OM(B101="Ground";2,5;OM(B101=0;0;(1/LETARAD(B101;'9. Mtrl data'!$A$6:$C$73;3;FALSKT))*(C101/1000)*D101))
A100: A | B100: Fraction of external walls slabs type A | C100: 1 | D100: Area, m2: | E100: =C100*IF('4. Dimension'!L6>0,'4. Dimension'!L6-'4. Dimension'!L7-'4. Dimension'!L8,IF('4. Dimension'!C25>0,'4. Dimension'!C25,'4. Dimension'!I25)) -> 223.3
A101: Moment | B101: Material | C101: Thickness, mm | D101: Fraction of Layer | E101: Weight, kg | F101: Heat-resist. m2 K/W | G101: CO2 kgequiv | H101: Diff. Life time, yr | I101: Material-kostnader, kr | J101: Arbets-tid, tim
B102: Hakställning | D102: 1.15 | E102: =IF(C102>0,$E$100*(C102/1000)*D102*VLOOKUP(B102,Data,2,FALSE),0)*$H$3/IF(H102>0,H102,$H$3) ->  | F102: =IF(C102=0,0,IF(B102="Ground",2.5,IF(B102=0,0,(1/VLOOKUP(B102,'9. Mtrl data'!$A$6:$C$73,3,FALSE))*(C102/1000)*D102))) -> 0 | G102: =IF(C102>0,E102*VLOOKUP(B102,Mtrl_emission,21)/1000,0) -> 0
B103: 22 panel med lockläkt rivs | D103: 1 | F103: =IF(C103=0,0,IF(B103="Ground",2.5,IF(B103=0,0,(1/VLOOKUP(B103,'9. Mtrl data'!$A$6:$C$73,3,FALSE))*(C103/1000)*D103))) -> 0 | G103: 0
B104: Pappspänning rivs | D104: 1 | F104: =IF(C104=0,0,IF(B104="Ground",2.5,IF(B104=0,0,(1/VLOOKUP(B104,'9. Mtrl data'!$A$6:$C$73,3,FALSE))*(C104/1000)*D104))) -> 0 | G104: 0
B105: Wood | C105: 22 | D105: 1 | F105: =IF(C105=0,0,IF(B105="Ground",2.5,IF(B105=0,0,(1/VLOOKUP(B105,'9. Mtrl data'!$A$6:$C$73,3,FALSE))*(C105/1000)*D105))) -> 0.1571428571
B106: Gypsum, plaster board | C106: 9 | D106: 1 | F106: =IF(C106=0,0,IF(B106="Ground",2.5,IF(B106=0,0,(1/VLOOKUP(B106,'9. Mtrl data'!$A$6:$C$73,3,FALSE))*(C106/1000)*D106))) -> 0.05625
B107: H-profil för 9 gipsskiva | D107: 1 | F107: =IF(C107=0,0,IF(B107="Ground",2.5,IF(B107=0,0,(1/VLOOKUP(B107,'9. Mtrl data'!$A$6:$C$73,3,FALSE))*(C107/1000)*D107))) -> 0 | G107: 0
B108: Insulation, Rockwool | C108: 70 | D108: 0.925 | F108: =IF(C108=0,0,IF(B108="Ground",2.5,IF(B108=0,0,(1/VLOOKUP(B108,'9. Mtrl data'!$A$6:$C$73,3,FALSE))*(C108/1000)*D108))) -> 1.505813953
B109: Wood | C109: 70 | D109: 0.075 | F109: =IF(C109=0,0,IF(B109="Ground",2.5,IF(B109=0,0,(1/VLOOKUP(B109,'9. Mtrl data'!$A$6:$C$73,3,FALSE))*(C109/1000)*D109))) -> 0.0375
B110: Wood | C110: 75 | D110: 1 | F110: =IF(C110=0,0,IF(B110="Ground",2.5,IF(B110=0,0,(1/VLOOKUP(B110,'9. Mtrl data'!$A$6:$C$73,3,FALSE))*(C110/1000)*D110))) -> 0.5357142857
B111: Wood | C111: 22 | D111: 0.075 | F111: =IF(C111=0,0,IF(B111="Ground",2.5,IF(B111=0,0,(1/VLOOKUP(B111,'9. Mtrl data'!$A$6:$C$73,3,FALSE))*(C111/1000)*D111))) -> 0.01178571429
B112: Gypsum, plaster board | C112: 13 | D112: 1 | F112: =IF(C112=0,0,IF(B112="Ground",2.5,IF(B112=0,0,(1/VLOOKUP(B112,'9. Mtrl data'!$A$6:$C$73,3,FALSE))*(C112/1000)*D112))) -> 0.08125
F113: =IF(C113=0,0,IF(B113="Ground",2.5,IF(B113=0,0,(1/VLOOKUP(B113,'9. Mtrl data'!$A$6:$C$73,3,FALSE))*(C113/1000)*D113))) -> 0 | G113: 0
F114: =IF(C114=0,0,IF(B114="Ground",2.5,IF(B114=0,0,(1/VLOOKUP(B114,'9. Mtrl data'!$A$6:$C$73,3,FALSE))*(C114/1000)*D114))) -> 0 | G114: 0
A115: U-value | B115: =IF(SUM(F102:F114)=0,0,1/(SUM(F102:F114)+$O$14)) -> 0.3794408605 | C115: =SUM(C102:C114) -> 281 | D115: Totals | E115: =SUM(E102:E114) ->  | F115: =SUM(F102:F114) -> 2.385456811 | G115: =SUM(G102:G114) -> 
F116: CO2 equiv/m2HFA | G116: =G115/'3. Gen info'!$C$21 -> 
A119: B | B119: Fraction of external walls | C119: =1-C100 -> 0 | D119: Area, m2: | E119: =C119*IF('4. Dimension'!L6>0,'4. Dimension'!L6-'4. Dimension'!L7-'4. Dimension'!L8,IF('4. Dimension'!C25>0,'4. Dimension'!C25,'4. Dimension'!I25)) -> 0
A120: Layer | B120: Material | C120: Thickness, mm | D120: Fraction of Layer | E120: Weight, kg | F120: Heat-resist. m2 K/W | G120: CO2 kgequiv | H120: Diff. Life time, yr
B121: Hakställning | D121: 1.15 | E121: =IF(C121>0,$E$119*(C121/1000)*D121*VLOOKUP(B121,Data,2,FALSE),0)*$H$3/IF(H121>0,H121,$H$3) ->  | F121: =IF(C121=0,0,IF(B121="Ground",2.5,IF(B121=0,0,(1/VLOOKUP(B121,'9. Mtrl data'!$A$6:$C$73,3,FALSE))*(C121/1000)*D121))) -> 0 | G121: =IF(C121>0,E121*VLOOKUP(B121,Mtrl_emission,21)/1000,0) -> 0
B122: Plaster | C122: 20 | D122: 1 | F122: =IF(C122=0,0,IF(B122="Ground",2.5,IF(B122=0,0,(1/VLOOKUP(B122,'9. Mtrl data'!$A$6:$C$73,3,FALSE))*(C122/1000)*D122))) -> 0.02777777778
B123: Insulation, Rockwool | C123: 120 | D123: 1 | F123: =IF(C123=0,0,IF(B123="Ground",2.5,IF(B123=0,0,(1/VLOOKUP(B123,'9. Mtrl data'!$A$6:$C$73,3,FALSE))*(C123/1000)*D123))) -> 2.790697674
B124: Fasadputs behålles | F124: =IF(C124=0,0,IF(B124="Ground",2.5,IF(B124=0,0,(1/VLOOKUP(B124,'9. Mtrl data'!$A$6:$C$73,3,FALSE))*(C124/1000)*D124))) -> 0 | G124: 0
B125: 250 lättbetongblock behålles | F125: =IF(C125=0,0,IF(B125="Ground",2.5,IF(B125=0,0,(1/VLOOKUP(B125,'9. Mtrl data'!$A$6:$C$73,3,FALSE))*(C125/1000)*D125))) -> 0 | G125: 0
B126: Brädriven släputs behålles | F126: =IF(C126=0,0,IF(B126="Ground",2.5,IF(B126=0,0,(1/VLOOKUP(B126,'9. Mtrl data'!$A$6:$C$73,3,FALSE))*(C126/1000)*D126))) -> 0 | G126: 0
F127: =IF(C127=0,0,IF(B127="Ground",2.5,IF(B127=0,0,(1/VLOOKUP(B127,'9. Mtrl data'!$A$6:$C$73,3,FALSE))*(C127/1000)*D127))) -> 0 | G127: 0
F128: =IF(C128=0,0,IF(B128="Ground",2.5,IF(B128=0,0,(1/VLOOKUP(B128,'9. Mtrl data'!$A$6:$C$73,3,FALSE))*(C128/1000)*D128))) -> 0 | G128: 0
E129: =IF(C129>0,$E$119*(C129/1000)*D129*VLOOKUP(B129,Data,2,FALSE),0)*$H$3/IF(H129>0,H129,$H$3) ->  | F129: =IF(C129=0,0,IF(B129="Ground",2.5,IF(B129=0,0,(1/VLOOKUP(B129,'9. Mtrl data'!$A$6:$C$73,3,FALSE))*(C129/1000)*D129))) -> 0 | G129: =IF(C129>0,E129*VLOOKUP(B129,Mtrl_emission,21)/1000,0) -> 0
E130: =IF(C130>0,$E$119*(C130/1000)*D130*VLOOKUP(B130,Data,2,FALSE),0)*$H$3/IF(H130>0,H130,$H$3) ->  | F130: =IF(C130=0,0,IF(B130="Ground",2.5,IF(B130=0,0,(1/VLOOKUP(B130,'9. Mtrl data'!$A$6:$C$73,3,FALSE))*(C130/1000)*D130))) -> 0 | G130: =IF(C130>0,E130*VLOOKUP(B130,Mtrl_emission,21)/1000,0) -> 0
E131: =IF(C131>0,$E$119*(C131/1000)*D131*VLOOKUP(B131,Data,2,FALSE),0)*$H$3/IF(H131>0,H131,$H$3) ->  | F131: =IF(C131=0,0,IF(B131="Ground",2.5,IF(B131=0,0,(1/VLOOKUP(B131,'9. Mtrl data'!$A$6:$C$73,3,FALSE))*(C131/1000)*D131))) -> 0 | G131: =IF(C131>0,E131*VLOOKUP(B131,Mtrl_emission,21)/1000,0) -> 0
E132: =IF(C132>0,$E$119*(C132/1000)*D132*VLOOKUP(B132,Data,2,FALSE),0)*$H$3/IF(H132>0,H132,$H$3) ->  | F132: =IF(C132=0,0,IF(B132="Ground",2.5,IF(B132=0,0,(1/VLOOKUP(B132,'9. Mtrl data'!$A$6:$C$73,3,FALSE))*(C132/1000)*D132))) -> 0 | G132: 0
E133: =IF(C133>0,$E$119*(C133/1000)*D133*VLOOKUP(B133,Data,2,FALSE),0)*$H$3/IF(H133>0,H133,$H$3) ->  | F133: =IF(C133=0,0,IF(B133="Ground",2.5,IF(B133=0,0,(1/VLOOKUP(B133,'9. Mtrl data'!$A$6:$C$73,3,FALSE))*(C133/1000)*D133))) -> 0 | G133: 0
A134: U-value | B134: =IF(SUM(F121:F133)=0,0,1/(SUM(F121:F133)+$O$14)) -> 0.3258947368 | C134: =SUM(C121:C133) -> 140 | D134: Tot Weight | E134: =SUM(E121:E133) ->  | F134: =SUM(F121:F133) -> 2.818475452 | G134: =SUM(G121:G133) -> 
F135: CO2 equiv/m2HFA | G135: =G134/'3. Gen info'!$C$21 -> 
A138: Floor structure
A139: A | B139: Fraction of slabs type A | C139: 1 | D139: Area, m2: | E139: =C139*IF('4. Dimension'!L5>0,'4. Dimension'!L5-'4. Dimension'!D6,'4. Dimension'!F43-'4. Dimension'!F35) -> 720
A140: Layer | B140: Material | C140: Thickness, mm | D140: Fraction of Layer | E140: Weight, kg | F140: Heat-resist. m2 K/W | G140: CO2 kgequiv | H140: Diff. Life time, yr
B141: Wood | C141: 15 | D141: 1 | E141: =IF(C141>0,$E$139*(C141/1000)*D141*VLOOKUP(B141,Data,2,FALSE),0)*$H$3/IF(H141>0,H141,$H$3) ->  | F141: not relev. | G141: =IF(C141>0,E141*VLOOKUP(B141,Mtrl_emission,21)/1000,0) -> 
B142: Wood | C142: 200 | D142: 0.1 | F142: not relev.
B143: Insulation, cellulose fibre | C143: 150 | D143: 0.9 | F143: not relev.
F144: not relev. | G144: 0
F145: not relev. | G145: =IF(C145>0,E145*VLOOKUP(B145,Mtrl_emission,21)/1000,0) -> 0
F146: not relev. | G146: 0
F147: not relev. | G147: =IF(C147>0,E147*VLOOKUP(B147,Mtrl_emission,21)/1000,0) -> 0
F148: not relev.
C149: =SUM(C141:C148) -> 365 | D149: Tot Weight | E149: =SUM(E141:E148) ->  | F149: Total | G149: =SUM(G141:G148) -> 
F150: CO2 equiv/m2HFA | G150: =G149/'3. Gen info'!$C$21 -> 
A152: B | B152: Fraction of slabs | C152: =1-C139 -> 0 | D152: Area, m2: | E152: =C152*E139/C139 -> 0
A153: Layer | B153: Material | C153: Thickness, mm | D153: Fraction of Layer | E153: Weight, kg | F153: Heat-resist. m2 K/W | G153: CO2 kgequiv | H153: Diff. Life time, yr
E154: =IF(C154>0,$E$152*(C154/1000)*D154*VLOOKUP(B154,Data,2,FALSE),0)*$H$3/IF(H154>0,H154,$H$3) ->  | F154: not relev. | G154: =IF(C154>0,E154*VLOOKUP(B154,Mtrl_emission,21)/1000,0) -> 0
F155: not relev. | G155: 0
F156: not relev. | G156: 0
F157: not relev. | G157: =IF(C157>0,E157*VLOOKUP(B157,Mtrl_emission,21)/1000,0) -> 0
F158: not relev. | G158: =IF(C158>0,E158*VLOOKUP(B158,Mtrl_emission,21)/1000,0) -> 0
F159: not relev. | G159: =IF(C159>0,E159*VLOOKUP(B159,Mtrl_emission,21)/1000,0) -> 0
F160: not relev. | G160: 0
F161: not relev. | G161: 0
C162: =SUM(C154:C161) -> 0 | D162: Tot Weight | E162: =SUM(E154:E161) ->  | F162: Total | G162: =SUM(G154:G161) -> 0
F163: CO2 equiv/m2HFA | G163: =G162/'3. Gen info'!$C$21 -> 
A165: Internal walls
A166: A | B166: Fraction of internal walls type A | C166: 0.43 | D166: Total area | E166: ='3. Gen info'!C21*0.07*('4. Dimension'!F10-0.3) ->  | G166: Own value
A167: Layer | B167: Material | C167: Thickness, mm | D167: Fraction of Layer | E167: Weight, kg | F167: Heat-resist. m2 K/W | G167: CO2 kgequiv | H167: Diff. Life time, yr
B168: Wood | C168: 15 | D168: 1 | E168: =IF(C168>0,$E$166*C$166*(C168/1000)*D168*VLOOKUP(B168,Data,2,FALSE),0)*$H$3/IF(H168>0,H168,$H$3) ->  | F168: not relev. | G168: =IF(C168>0,E168*VLOOKUP(B168,Mtrl_emission,21)/1000,0) -> 
B169: Wood | C169: 100 | D169: 0.1 | E169: =IF(C169>0,$E$166*(C169/1000)*D169*VLOOKUP(B169,Data,2,FALSE),0)*$H$3/IF(H169>0,H169,$H$3) ->  | F169: not relev. | G169: =IF(C169>0,E169*VLOOKUP(B169,Mtrl_emission,21)/1000,0) -> 
B170: Wood | C170: 15 | D170: 1 | F170: not relev.
F171: not relev. | G171: 0
F172: not relev. | G172: 0
F173: not relev. | G173: 0
F174: not relev. | G174: 0
F175: not relev. | G175: 0
C176: =SUM(C168:C175) -> 130 | D176: Tot Weight | E176: =SUM(E168:E175) ->  | F176: Total | G176: =SUM(G168:G175) -> 
C177: Area, m2: | D177: =E166 ->  | F177: CO2 equiv/m2HFA | G177: =G176/'3. Gen info'!$C$21 -> 
A179: B | B179: Fraction of internal walls type B | C179: =1-C166 -> 0.57 | E179: =C179*IF(F166>0,F166,E166) -> 
A180: Layer | B180: Material | C180: Thickness, mm | D180: Fraction of Layer | E180: Weight, kg | F180: Heat-resist. m2 K/W | G180: CO2 kgequiv | H180: Diff. Life time, yr
E181: =IF(C181>0,$E$179*(C181/1000)*D181*VLOOKUP(B181,Data,2,FALSE),0)*$H$3/IF(H181>0,H181,$H$3) ->  | F181: not relev. | G181: =IF(C181>0,E181*VLOOKUP(B181,Mtrl_emission,21)/1000,0) -> 0
F182: not relev. | G182: 0
F183: not relev. | G183: 0
F184: not relev. | G184: =IF(C184>0,E184*VLOOKUP(B184,Mtrl_emission,21)/1000,0) -> 0
F185: not relev. | G185: =IF(C185>0,E185*VLOOKUP(B185,Mtrl_emission,21)/1000,0) -> 0
F186: not relev. | G186: 0
F187: not relev. | G187: 0
F188: not relev. | G188: 0
C189: =SUM(C181:C188) -> 0 | D189: Tot Weight | E189: =SUM(E181:E188) ->  | F189: Total | G189: =SUM(G181:G188) -> 0
C190: Area, m2: | D190: =E179 ->  | F190: CO2 equiv/m2HFA | G190: =G189/'3. Gen info'!$C$21 -> 
A192: Windows
A193: A | C193: 1 | D193: Area, m2 | E193: =C193*IF('4. Dimension'!L7>0,'4. Dimension'!L7,IF('4. Dimension'!C26>0,'4. Dimension'!C26,'4. Dimension'!I26)) -> 87.9 | G193: Own value
B194: Material | C194: Thickness, mm | D194: Fraction of aperture | E194: Weight, kg | F194: Heat-resist. m2 K/W | G194: CO2 kgequiv | H194: Diff. Life time, yr
C195: 70 | D195: 0.2 | E195: =IF(C195>0,IF($F$193>0,$F$193,$E$193)*(C195/1000)*D195*VLOOKUP(B195,Data,2,FALSE),0)*$H$3/IF(H195>0,H195,$H$3) ->  | F195: not relev. | G195: =IF(C195>0,E195*VLOOKUP(B195,Mtrl_emission,21)/1000,0) -> 
C196: 8 | D196: 0.8 | E196: =IF(C196>0,IF($F$193>0,$F$193,$E$193)*(C196/1000)*D196*VLOOKUP(B196,Data,2,FALSE),0)*$H$3/IF(H196>0,H196,$H$3) ->  | F196: not relev. | G196: =IF(C196>0,E196*VLOOKUP(B196,Mtrl_emission,21)/1000,0) -> 
E197: =IF(C197>0,IF($F$193>0,$F$193,$E$193)*(C197/1000)*D197*VLOOKUP(B197,Data,2,FALSE),0)*$H$3/IF(H197>0,H197,$H$3) ->  | F197: not relev. | G197: =IF(C197>0,E197*VLOOKUP(B197,Mtrl_emission,21)/1000,0) -> 0
E198: =IF(C198>0,IF($F$193>0,$F$193,$E$193)*(C198/1000)*D198*VLOOKUP(B198,Data,2,FALSE),0)*$H$3/IF(H198>0,H198,$H$3) ->  | F198: not relev. | G198: =IF(C198>0,E198*VLOOKUP(B198,Mtrl_emission,21)/1000,0) -> 0
E199: =IF(C199>0,IF($F$193>0,$F$193,$E$193)*(C199/1000)*D199*VLOOKUP(B199,Data,2,FALSE),0)*$H$3/IF(H199>0,H199,$H$3) ->  | F199: not relev. | G199: =IF(C199>0,E199*VLOOKUP(B199,Mtrl_emission,21)/1000,0) -> 0
A200: U-value | B200: 2.5 | C200: =SUM(C195:C199) -> 78 | D200: Tot Weight | E200: =SUM(E195:E199) ->  | F200: Total | G200: =SUM(G195:G199) -> 
F201: CO2 equiv/m2HFA | G201: =G200/'3. Gen info'!$C$21 -> 
A203: B | B203: Fraction of windows type B | C203: =1-C193 -> 0 | D203: Area, m2: | E203: =C203*E193/C193 -> 0
C204: Thickness, mm | D204: Fraction of aperture | E204: Weight, kg | F204: Heat-resist. m2 K/W | G204: CO2 kgequiv | H204: Diff. Life time, yr
E205: =IF(C205>0,$E$203*(C205/1000)*D205*VLOOKUP(B205,Data,2,FALSE),0)*$H$3/IF(H205>0,H205,$H$3) ->  | F205: not relev. | G205: =IF(C205>0,E205*VLOOKUP(B205,Mtrl_emission,21)/1000,0) -> 0
E206: =IF(C206>0,$E$203*(C206/1000)*D206*VLOOKUP(B206,Data,2,FALSE),0)*$H$3/IF(H206>0,H206,$H$3) ->  | F206: not relev. | G206: =IF(C206>0,E206*VLOOKUP(B206,Mtrl_emission,21)/1000,0) -> 0
E207: =IF(C207>0,$E$203*(C207/1000)*D207*VLOOKUP(B207,Data,2,FALSE),0)*$H$3/IF(H207>0,H207,$H$3) ->  | F207: not relev. | G207: =IF(C207>0,E207*VLOOKUP(B207,Mtrl_emission,21)/1000,0) -> 0
E208: =IF(C208>0,$E$203*(C208/1000)*D208*VLOOKUP(B208,Data,2,FALSE),0)*$H$3/IF(H208>0,H208,$H$3) ->  | F208: not relev. | G208: =IF(C208>0,E208*VLOOKUP(B208,Mtrl_emission,21)/1000,0) -> 0
E209: =IF(C209>0,$E$203*(C209/1000)*D209*VLOOKUP(B209,Data,2,FALSE),0)*$H$3/IF(H209>0,H209,$H$3) ->  | F209: not relev. | G209: =IF(C209>0,E209*VLOOKUP(B209,Mtrl_emission,21)/1000,0) -> 0
A210: U-value | C210: =SUM(C205:C209) -> 0 | D210: Tot Weight | E210: =SUM(E205:E209) ->  | F210: Total | G210: =SUM(G205:G209) -> 0
F211: CO2 kgequiv/m2HFA | G211: =G210/'3. Gen info'!$C$21 -> 
A214: External Doors
A215: A | B215: Fraction of type A | C215: 1 | D215: Area | E215: =C215*IF('4. Dimension'!L8>0,'4. Dimension'!L8,IF('4. Dimension'!C27>0,'4. Dimension'!C27,'4. Dimension'!I27)) -> 18.8 | G215: Own value
B216: Material | C216: Thickness, mm | D216: Fraction of aperture | E216: Weight, kg | F216: Heat-resist. m2 K/W | G216: CO2 kgequiv | H216: Diff. Life time, yr
E217: =IF(C217>0,IF($F$215>0,$F$215,$E$215)*(C217/1000)*D217*VLOOKUP(B217,Data,2,FALSE),0)*$H$3/IF(H217>0,H217,$H$3) ->  | F217: not relev. | G217: =IF(C217>0,E217*VLOOKUP(B217,Mtrl_emission,21)/1000,0) -> 0
E218: =IF(C218>0,IF($F$215>0,$F$215,$E$215)*(C218/1000)*D218*VLOOKUP(B218,Data,2,FALSE),0)*$H$3/IF(H218>0,H218,$H$3) ->  | F218: not relev. | G218: =IF(C218>0,E218*VLOOKUP(B218,Mtrl_emission,21)/1000,0) -> 0
E219: =IF(C219>0,IF($F$215>0,$F$215,$E$215)*(C219/1000)*D219*VLOOKUP(B219,Data,2,FALSE),0)*$H$3/IF(H219>0,H219,$H$3) ->  | F219: not relev. | G219: =IF(C219>0,E219*VLOOKUP(B219,Mtrl_emission,21)/1000,0) -> 0
... 15 more rows

Sheet 6. Energy (hidden)
B1: Estimated Energy Need | M1: Average
L2: City | M2: temperature ** | O2: DVUT | P2: Energy source | Q2: Electricity source
B3: City (from Sheet Gen info) | C3: =IF('3b Basdata'!C5<>"Ingen",'3b Basdata'!C5,'3. Gen info'!C12) -> Ljusdal | L3: Malmö | M3: =Klimatdata!P6 -> 7.8 | O3: -10.8 | P3: ='10. Energy em'!A5 -> Coal | Q3: ='10. Energy em'!A27 -> Mariehamn
B4: Heated Floor Area (HFA), m2 | C4: ='4. Dimension'!L5 -> 720 | L4: Kalmar | M4: =Klimatdata!P17 -> 6.75 | O4: -13.8 | P4: ='10. Energy em'!A6 -> Distr. heating - 60% NG & 40% VP | Q4: ='10. Energy em'!A28 -> 0
B5: Ventilated volume, m3 | C5: =IF('3b Basdata'!D39>0,'3b Basdata'!D39,'3b Basdata'!C39) -> 1795 | L5: Göteborg | M5: =Klimatdata!P28 -> 7.675 | O5: -13.9 | P5: ='10. Energy em'!A7 -> District heating - Bollnäs | Q5: ='10. Energy em'!A29 -> 0
B6: Air Change, l/s,m2 | C6: =IF('3b Basdata'!D21>0,'3b Basdata'!D21,IF('3b Basdata'!C21>0,'3b Basdata'!C21,'3. Gen info'!C28)) -> 0.35 | L6: Jönköping | M6: =Klimatdata!P39 -> 6.333333333 | O6: -17.2 | P6: ='10. Energy em'!A8 -> District heating - Gävle | Q6: ='10. Energy em'!A30 -> 0
B7: Vent. heat exchange efficiency, η% | C7: 0 | L7: Stockholm | M7: =Klimatdata!P50 -> 6.116666667 | O7: -16.2 | P7: ='10. Energy em'!A9 -> District heating - Ljusdal | Q7: ='10. Energy em'!A31 -> 1
B8: Indoor temperature, winter | C8: =IF('3b Basdata'!D20>0,'3b Basdata'!D20,'3b Basdata'!C20) -> 20 | L8: Stockholm_Arlanda | M8: =Klimatdata!P117 -> 0 | O8: -18 | P8: ='10. Energy em'!A10 -> District heating - Sollentuna | Q8: ='10. Energy em'!A32 -> 0
L9: Gävle | M9: =Klimatdata!P61 -> 5.175 | O9: -20 | P9: ='10. Energy em'!A11 -> District heating - Stockholm
L10: Ljusdal | M10: =Klimatdata!P72 -> 3.216666667 | O10: -22 | P10: ='10. Energy em'!A12 -> Electricity almost CO2 free
B11: ENERGY DEMAND & EXTERNAL SUPPLY | D11: Estimation, kWh/yr | E11: Real/ simulated, kWh/yr | F11: Specific kWh/m2,yr | G11: Energy source | H11: Fraction | I11: kg equiv CO2/yr | L11: Östersund | M11: =Klimatdata!P83 -> 2.608333333 | O11: -24.4 | P11: ='10. Energy em'!A13 -> Electricity European mix
B12: Transmission losses during heating period | D12: ='Energibalans 1'!S21 -> 63554.2613 | F12: =IF(E12>0,E12/C$4,D12/C$4) -> 88.26980736 | G12: ='3b Basdata'!C13 -> District heating - Ljusdal | H12: ='3b Basdata'!D13 -> 1 | I12: =IF(E12>0,E12,D12)*IF('3b Basdata'!D13>0,'3b Basdata'!D13,H12)*VLOOKUP(G12,Energy_emissions,21)/1000 -> 1143.976703 | L12: Luleå | M12: =Klimatdata!P94 -> 1.316666667 | O12: -27.3 | P12: ='10. Energy em'!A14 -> Electricity Hydro power
G13: ='3b Basdata'!C14 -> District heating - Ljusdal | H13: =1-H12 -> 0 | I13: =IF(E12>0,E12,D12)*IF('3b Basdata'!D13>0,'3b Basdata'!D14,H13)*IF(G13=0,0,VLOOKUP(G13,Energy_emissions,21)/1000) -> 0 | L13: Kiruna | M13: =Klimatdata!P105 -> -1.691666667 | O13: -29.9 | P13: ='10. Energy em'!A16 -> Electricity Nordic mix
B14: Ventilation losses during heating period | D14: ='Energibalans 1'!S27 -> 46800.5141 | F14: =IF(E14>0,E14/C$4,D14/C$4) -> 65.00071402 | G14: =G12 -> District heating - Ljusdal | H14: =H12 -> 1 | I14: =IF(E14>0,E14,D14)*IF('3b Basdata'!D13>0,'3b Basdata'!D13,H14)*VLOOKUP(G14,Energy_emissions,21)/1000 -> 842.4092537 | P14: ='10. Energy em'!A17 -> Electricity PV_muliti-Si_panel
G15: =G13 -> District heating - Ljusdal | H15: =H13 -> 0 | I15: =IF(E14>0,E14,D14)*IF('3b Basdata'!D13>0,'3b Basdata'!D14,H15)*IF(G15=0,0,VLOOKUP(G15,Energy_emissions,21)/1000) -> 0 | P15: ='10. Energy em'!A18 -> Electricity Swedish mix
B16: Transmission and ventilation losses | D16: =IF(E12>0,E12,D12)+IF(E14>0,E14,D14) -> 110354.7754 | F16: =D16/C4 -> 153.2705214 | I16: =SUM(I12:I15) -> 1986.385957 | P16: ='10. Energy em'!A19 -> Electricity Wind_2 MW
B17: Internal heat losses during heating period | D17: =-'Energibalans 1'!S39 -> -17449.52032 | F17: =IF(E17>0,E17/C$4,D17/C$4) -> -24.23544488 | I17: =D17*IF('3b Basdata'!D13>0,'3b Basdata'!D13,H12)*VLOOKUP(G12,Energy_emissions,21)/1000 -> -314.0913657 | P17: ='10. Energy em'!A20 -> Natural gas, NG
B18: Solar heat through windows losses during heating period | D18: =-'Energibalans 1'!S50 -> -11426.56035 | F18: =IF(E18>0,E18/C$4,D18/C$4) -> -15.87022271 | I18: =D18*IF('3b Basdata'!D13>0,'3b Basdata'!D13,H12)*VLOOKUP(G12,Energy_emissions,21)/1000 -> -205.6780864 | P18: ='10. Energy em'!A21 -> Oil, light fuel
B19: Space heating demand | D19: =D16+IF(E17>0,E17,D17)+IF(E18<>0,E18,D18) -> 81478.69473 | F19: =F16+F17+F18 -> 113.1648538 | P19: ='10. Energy em'!A22 -> Peat
B20: Hot water energy use | D20: =IF('3b Basdata'!C8="Lokal",0.2,IF('3b Basdata'!C8="Bostad",1,1))*0.354*24*365*C4*1.16*25/3600 -> 17986.032 | E20: ='3b Basdata'!D60*C4 -> 22500 | F20: =IF(E20=0,D20/C$4,E20/C$4) -> 31.25 | G20: =G12 -> District heating - Ljusdal | H20: =H12 -> 1 | I20: =IF(E20>0,E20,D20)*IF('3b Basdata'!D13>0,'3b Basdata'!D13,H20)*VLOOKUP(G20,Energy_emissions,21)/1000 -> 405 | P20: ='10. Energy em'!A23 -> Solar_heat_flate_plate_collector
G21: =G13 -> District heating - Ljusdal | H21: =H13 -> 0 | I21: =IF(E20>0,E20,D20)*IF('3b Basdata'!D13>0,'3b Basdata'!D14,H21)*IF(G21=0,0,VLOOKUP(G21,Energy_emissions,21)/1000) -> 0 | P21: ='10. Energy em'!A24 -> Wood (soft) logs, furnace 100 kW
B22: Total heat demand | D22: =D19+IF(E20>0,E20,D20) -> 103978.6947 | F22: =D22/C4 -> 144.4148538 | P22: ='10. Energy em'!A25 -> Wood chips, furnace 1000 kW
B23: Cooling | P23: ='10. Energy em'!A26 -> 0
B24: Building electricity | D24: =C4*IF('3. Gen info'!C5="office",35,IF('3b Basdata'!C12='3b Basdata'!I34,12,IF('3b Basdata'!C12='3b Basdata'!I35,15,IF('3b Basdata'!C12='3b Basdata'!I36,18,IF('3b Basdata'!C12='3b Basdata'!I37,20,15)))))-D31*0.25-D36*0.25 -> 8640 | E24: ='3b Basdata'!D61*C4 -> 13032 | F24: =IF(E24>0,E24/C$4,D24/C$4) -> 18.1 | G24: ='3b Basdata'!C15 -> Electricity Hydro power | H24: 1 | I24: =IF(E24>0,E24,D24)*H24*3.6/(1000*1000)*(VLOOKUP(G24,Electricity_emission,20)) -> 67.58872067 | P24: ='10. Energy em'!A27 -> Mariehamn
B25: User electricity | D25: =C4*30 -> 21600 | E25: ='3b Basdata'!D62*C4 -> 0 | F25: =IF(E25=0,D25/C$4,E25/C$4) -> 30 | G25: ='3b Basdata'!C16 -> Electricity Hydro power | H25: 1 | I25: =IF(E25>0,E25,D25)*H25*3.6/(1000*1000)*(VLOOKUP(G25,Electricity_emission,20)) -> 112.0255039
B26: Total electrcity demand | D26: =IF(E24>0,E24,D24)+IF(E25>0,E25,D25) -> 34632 | F26: =SUM(F24:F25) -> 48.1 | I26: =SUM(I24:I25) -> 179.6142245
B27: Initial Total energy demand | D27: =D19+IF(E23>0,E23,D23)+IF(E20>0,E20,D20)+IF(E24>0,E24,D24)+IF(E25>9,E25,D25) -> 138610.6947 | F27: =D27/C4 -> 192.5148538 | I27: =I16+SUM(I17:I25) -> 2051.23073 | P27: ∑(U*A)*ΔT*h | Q27: c*ρ=1,21/3,6 W/m3,K
B28: ENERGY SAVING EQUIPMENT | D28: kWh/yr | F28: kWh/m2,yr | I28: kgCO2e/yr
B29: Low energy demand lighting and whitewares | D29: =-C29*D25 -> 0 | F29: =IF(E29>0,E29/C$4,D29/C$4) -> 0 | G29: =G25 -> Electricity Hydro power | I29: =IF(E29>0,E29,D29)*(VLOOKUP(G29,Electricity_emission,21))/1000 -> 0 | L29: Östersund | M29: 2.9 | O29: ACR*V*c*ρ*(1-η)*ΔT*h
B30: Building automatisation | D30: =IF(C30="basic",-0.05*D24,IF(C30="advanced",-0.1*(D24+D14+D31),0)) -> 0 | F30: =IF(E30>0,E30/C$4,D30/C$4) -> 0 | G30: =G24 -> Electricity Hydro power | I30: =IF(E30>0,E30,D30)*(VLOOKUP(G30,Electricity_emission,21))/1000 -> 0 | L30: Yes | N30: Trans-mission | O30: 0
B31: Ventilation heat recovery | C31: No | D31: =IF(C31="yes",IF(C7>0,C7,0.75)*IF(E14>0,-E14,-D14),0) -> 0 | F31: =IF(E31>0,E31/C$4,D31/C$4) -> 0 | G31: =G14 -> District heating - Ljusdal | I31: =IF(E31>0,E31,D31)*(VLOOKUP(G31,Energy_emissions,21))/1000 -> 0 | L31: No | N31: Ventilation | O31: 0.1 | P31: 0
B32: Waste water heat exchange | D32: =-D20*IF(C32="basic",0.1,IF(C32="advanced",0.25,0)) -> 0 | F32: =IF(E32>0,E32/C$4,D32/C$4) -> 0 | G32: =G20 -> District heating - Ljusdal | I32: =IF(F20=0,0,F32/F20*(I20+I21)) -> 0 | L32: Basic | N32: 0 | O32: 0.2 | P32: 0.05
B33: Total savings | D33: =SUM(D29:D32) -> 0 | E33: =SUM(E29:E32) -> 0 | F33: =SUM(F29:F32) -> 0 | I33: =SUM(I29:I32) -> 0 | L33: Advanced | N33: 0.75 | O33: yes | P33: 0.1
B34: Total energy demand | D34: =D27+IF(E29>0,E29,D29)+IF(E30>0,E30,D30)+IF(E31>0,E31,D31)+IF(E32>0,E32,D32) -> 138610.6947 | F34: =F27+F33 -> 192.5148538 | I34: =I27+I33 -> 2051.23073 | L34: No | O34: no | Q34: CO2 kgeq/user,yr
B35: LOCAL ENERGY RECOVERY & SUPPLY | D35: kWh/yr | E35: Real/ simulated, kWh/yr | F35: kWh/m2,yr | I35: kgCO2e/yr | L35: Yes - existing building | P35: CO2 kgeq/m2,yr
B36: Ext.heat pump (air, ground, water) | C36: no | D36: =IF(C36="yes",-(IF(E12>0,E12,D12)+IF(E14>0,E14,D14)+IF(E20>0,E20,D20)+IF(E31<0,E31,D31)+IF(E32<0,E32,D32))*2/3,0) -> 0 | F36: =IF(E36>0,E36/C$4,D36/C$4) -> 0 | G36: =G12 -> District heating - Ljusdal | H36: Local electricity prod. | I36: =IF(E36>0,E36,D36)*(VLOOKUP(G36,Energy_emissions,21))/1000 -> 0 | L36: Yes - new building | O36: CO2 kgeq/yr
B37: ='10. Energy em'!A23 -> Solar_heat_flate_plate_collector | D37: =IF(C37*450>0.5*IF(E20>0,E20,D20),-0.5*IF(E20>0,E20,D20),-C37*450) -> 0 | F37: =IF(E37<0,E37/C$4,D37/C$4) -> 0 | G37: =G20 -> District heating - Ljusdal | I37: =IF(E37>0,E37,D37)*(VLOOKUP(G37,Energy_emissions,21)-'10. Energy em'!U23)/1000 -> 0
B38: ='10. Energy em'!A17 -> Electricity PV_muliti-Si_panel | D38: =-C38*110 -> 0 | F38: =IF(E38<0,E38/C$4,D38/C$4) -> 0 | G38: =G24 -> Electricity Hydro power | I38: =IF(E38>0,E38,D38)*(VLOOKUP(G38,Electricity_emission,21)-'10. Energy em'!U17)/1000 -> 0 | L38: kWh/yr | M38: kWh/yr,m2 | N38: kWh/user,yr
B39: ='10. Energy em'!A19 -> Electricity Wind_2 MW | D39: =-(C39/2)*(C39/2)*PI()*200 -> 0 | F39: =IF(E39<0,E39/C$4,D39/C$4) -> 0 | I39: =IF(E39>0,E39,D39)*(VLOOKUP(G38,Electricity_emission,21)-'10. Energy em'!U19)/1000 -> 0
B40: Sum local energy | D40: =SUM(D36:D39) -> 0 | E40: =SUM(E36:E39) -> 0 | F40: =SUM(F36:F39) -> 0 | I40: =SUM(I36:I39) -> 0 | L40: +10
B41: Total use | D41: =D34+IF(E36>0,E36,D36)+IF(E37>0,E37,D37)+IF(E38>0,E38,D38)+IF(E39>0,E39,D39) -> 138610.6947 | F41: =F34+F40 -> 192.5148538 | H41: =(F38+F39)*C4 -> 0 | I41: =I34+I40 -> 2051.23073
B42: Whereof heat | D42: =D41-D43 -> 103978.6947 | E42: =SUM(E12:E21)+E32+E31+E36 -> 22500 | F42: =D42/C4 -> 144.4148538 | G42: =F42/F$41 -> 0.7501491493 | I42: =SUM(I12:I21)+I31+I32+I36 -> 3858.002462
B43: Whereof electricity | D43: =IF(E24>0,E24,D24)+IF(E25>9,E25,D25)+IF(E29>0,E29,D29)+IF(E30>0,E30,D30)+IF(E38>0,E38,D38)+IF(E39>0,E39,D39) -> 34632 | E43: =E24+E25+SUM(E37:E39) -> 13032 | F43: =D43/C4 -> 48.1 | G43: =F43/F$41 -> 0.2498508507 | I43: =SUM(I24:I25)+I29+I36+I37+I30+I38+I39 -> 179.6142245
B44: Without user electricity | D44: =D41-IF(E25>0,E25,D25) -> 117010.6947 | E44: =SUM(E14:E25)+E33+E40 -> 35532 | F44: =F41-F25 -> 162.5148538 | I44: =I41-I25 -> 1939.205226 | J44: =C47/C$54 -> 0.1378965597 | K44: =J44*F$12 -> 12.17210276
J45: 0.03109708132 | K45: =J45*F$12 -> 2.744933377
C46: Heat loss factor, W/K U*A*k | D46: Effect at dim temp winter, W/m2 | E46: Envelop area, m2 | G46: Mean U-value, W/m2,K | J46: 0.1278315102 | K46: 11.28366278 | M46: Årlig solinstrålning (kWh/m2): IPH
B47: Ground floor towards ground | C47: =E47*G47*0.61 -> 71.736 | D47: =C47*($C$8-VLOOKUP($C$3,Temperaturer,4))/$C$4 -> 3.70636 | E47: =IF('3b Basdata'!D29>0,'3b Basdata'!D29,IF('3b Basdata'!C29>0,'3b Basdata'!C29,'4. Dimension'!L11)) -> 196 | G47: =IF('3b Basdata'!D34>0,'3b Basdata'!D34,IF('3b Basdata'!C34>0,'3b Basdata'!C34,'5. Construct'!B18)*'5. Construct'!C$5) -> 0.6 | J47: 0.2854583349 | K47: 25.19735223 | M47: Ort | N47: Norr | O47: Öster | P47: Söder | Q47: Väster
B48: Walls towards ground | C48: =E48*G48*0.61 -> 16.1772 | D48: 0.835822 | E48: =IF('3b Basdata'!D30>0,'3b Basdata'!D30,'3b Basdata'!C30) -> 44.2 | G48: =IF('3b Basdata'!D35>0,'3b Basdata'!D35,IF('3b Basdata'!C35>0,'3b Basdata'!C35,'5. Construct'!B34)*'5. Construct'!C$5) -> 0.6 | J48: 0.2872460538 | K48: 25.35515383 | M48: Stockholm | N48: 140 | O48: 285 | P48: 510 | Q48: 287
B49: Attic | C49: =E49*G49 -> 66.5 | D49: =C49*($C$8-VLOOKUP($C$3,Temperaturer,4))/$C$4 -> 3.435833333 | E49: =IF('3b Basdata'!D28>0,'3b Basdata'!D28,'3b Basdata'!C28) -> 190 | G49: =IF('3b Basdata'!D33>0,'3b Basdata'!D33,IF('3b Basdata'!C33,'3b Basdata'!C33,('5. Construct'!B77*'5. Construct'!C63+'5. Construct'!B94*'5. Construct'!C80))) -> 0.35 | J49: 0.06504989935 | K49: 5.741942084
B50: External wall towards outdoor | C50: =E50*G50 -> 148.5 | D50: 7.6725 | E50: =IF('3b Basdata'!D27>0,'3b Basdata'!D27,'3b Basdata'!C28) -> 330 | G50: =IF('3b Basdata'!D32>0,'3b Basdata'!D32,IF('3b Basdata'!C32>0,'3b Basdata'!C32,('5. Construct'!B114*'5. Construct'!C99+'5. Construct'!B133*'5. Construct'!C118))) -> 0.45 | J50: 0.06542056075 | K50: 5.774660295
B51: Windows | C51: =E51*G51 -> 149.43 | D51: =C51*($C$8-VLOOKUP($C$3,Temperaturer,4))/$C$4 -> 7.72055 | E51: =IF('3b Basdata'!D24>0,'3b Basdata'!D24,'3b Basdata'!C24) -> 87.9 | G51: =IF('3b Basdata'!D36>0,'3b Basdata'!D36,IF('3b Basdata'!C36>0,'3b Basdata'!C36,('5. Construct'!B199*'5. Construct'!C192+'5. Construct'!B209*'5. Construct'!C202))) -> 1.7 | J51: 1 | K51: 88.26980736
B52: External Doors | C52: =E52*G52 -> 33.84 | D52: =C52*($C$8-VLOOKUP($C$3,Temperaturer,4))/$C$4 -> 1.7484 | E52: =IF('3b Basdata'!D25>0,'3b Basdata'!D25,'3b Basdata'!C25) -> 18.8 | G52: =IF('3b Basdata'!D37>0,'3b Basdata'!D37,IF('3b Basdata'!C37>0,'3b Basdata'!C37,('5. Construct'!B221*'5. Construct'!C214+'5. Construct'!B232*'5. Construct'!C225))) -> 1.8
B53: Thermal bridges | C53: =IF('3b Basdata'!D38>0,'3b Basdata'!D38,'3b Basdata'!C38)*SUM(C47:C52) -> 34.032824 | D53: =C53*($C$8-VLOOKUP($C$3,Temperaturer,4))/$C$4 -> 1.758362573
B54: Transmission - totalt | C54: =SUM(C47:C53) -> 520.216024 | D54: 26.87782791 | E54: =SUM(E47:E52) -> 866.9 | F54: Average | G54: =C54/E54 -> 0.6000876964
B55: Ventilation | C55: =0.34*3.6*C6*C4*IF(C31="yes",IF(C7>0,1-C7,1-0.75),1) -> 308.448 | D55: =C6*(('3. Gen info'!C27-0.5*H56)-VLOOKUP(C3,Temperaturer,4))*0.34*3.6 -> 7.36848
B56: Tot | C56: =SUM(C54:C55) -> 828.664024 | D56: =D55+D54 -> 34.24630791 | E56: Internal gains* corresponds to | I56: oC
B57: Specific heat loss factor (per m2 Atemp) | C57: =C56/C4 -> 1.150922256 | E57: * waste heat from appliances and people and solar insolation
F58: Ventilationskompensation

Sheet 7. Material (hidden)
A1: Basic calculations to estimate external impact from a building in a life cycle perspective | S1: Övergödning | T1: 30 | U1: 500 | V1: 1500 | W1: =HLOOKUP(#REF!,$T$1:$V$2,2,FALSE) ->  | X1: 0.1364618429
A2: Estimated matrerial use | S2: Humantoxicitet | T2: 0 | U2: 10 | V2: 20 | W2: =HLOOKUP(#REF!,$T$1:$V$2,2,FALSE) -> 
B3: Choosen matrerials | C3: Ext. Walls | D3: Attix | E3: Besement | F3: Slabs | G3: Int. Walls | H3: Total | I3: From sheet 9 Mtrl data | J3: Waste at construction | K3: Bought amount | L3: Spec. matr. use | M3: kgCO2 equiva-lents | N3: Voume | O3: Weight fraction | P3: CO2 fraction
I4: kg | J4: % | K4: kg | L4: kg/m2 | M4: kg eqv CO2 | N4: m3 | O4: % | P4: % | AL4: Material | AM4: Weight kg/10 | AN4: kg CO2e
A5: 1 | B5: ='9. Mtrl data'!A7 -> Air | H5: =SUM(C5:G5) -> 0 | I5: ='9. Mtrl data'!D7 -> 0 | K5: =IF(H5>0,H5*(J5+1),I5*(J5+1)) -> 0 | L5: =K5/'3. Gen info'!$C$21 ->  | M5: =IF(H5>0,H5,K5)*IF(B5=0,0,VLOOKUP(B5,Mtrl_emission,21)/1000) -> 0 | N5: =IF(E5=0,0,K5/E5) -> 0 | O5: =K5/K$41 ->  | P5: =M5/M$41 ->  | AL5: =B6 -> Aluminium | AM5: =K6/10 ->  | AN5: =M6 -> 
A6: 2 | B6: ='9. Mtrl data'!A8 -> Aluminium | H6: =SUM(C6:G6) -> 0 | I6: ='9. Mtrl data'!D8 ->  | K6: =IF(H6>0,H6*(J6+1),I6*(J6+1)) ->  | L6: =K6/'3. Gen info'!$C$21 ->  | M6: =IF(H6>0,H6,K6)*IF(B6=0,0,VLOOKUP(B6,Mtrl_emission,21)/1000) ->  | N6: 0 | O6: =K6/K$41 ->  | P6: =M6/M$41 ->  | AL6: Brick, massive | AM6: 0 | AN6: 0
A7: 3 | B7: ='9. Mtrl data'!A9 -> Brick, massive | H7: 0 | I7: ='9. Mtrl data'!D9 -> 0 | K7: 0 | L7: =K7/'3. Gen info'!$C$21 ->  | M7: 0 | N7: 0 | AL7: Concrete lightweight | AM7: 0 | AN7: 0
A8: 4 | B8: ='9. Mtrl data'!A10 -> Concrete lightweight | H8: 0 | I8: ='9. Mtrl data'!D10 -> 0 | J8: 0.005 | K8: 0 | L8: =K8/'3. Gen info'!$C$21 ->  | M8: 0 | N8: 0 | AL8: Concrete reinforced | AM8: 0 | AN8: 0
A9: 5 | B9: ='9. Mtrl data'!A11 -> Concrete reinforced | H9: 0 | I9: ='9. Mtrl data'!D11 -> 0 | J9: 0.09 | K9: 0 | L9: =K9/'3. Gen info'!$C$21 ->  | M9: 0 | N9: 0 | AL9: Floor mat PVC (Tarkett Eminent T) | AM9: 0 | AN9: 0
A10: 6 | B10: ='9. Mtrl data'!A12 -> Floor mat PVC (Tarkett Eminent T) | H10: 0 | I10: ='9. Mtrl data'!D12 -> 0 | J10: 0.05 | K10: 0 | L10: =K10/'3. Gen info'!$C$21 ->  | M10: 0 | N10: 0 | AL10: Glass | AM10: 0 | AN10: 0
A11: 7 | B11: ='9. Mtrl data'!A13 -> Glass | H11: 0 | I11: ='9. Mtrl data'!D13 -> 0 | K11: 0 | L11: =K11/'3. Gen info'!$C$21 ->  | M11: 0 | N11: 0 | AL11: Gravel | AM11: 0 | AN11: 0
A12: 8 | B12: ='9. Mtrl data'!A14 -> Gravel | H12: 0 | I12: ='9. Mtrl data'!D14 -> 0 | J12: 0.04 | K12: 0 | L12: =K12/'3. Gen info'!$C$21 ->  | M12: 0 | N12: 0 | AL12: Gypsum, plaster board | AM12: 0 | AN12: 0
A13: 9 | B13: ='9. Mtrl data'!A15 -> Gypsum, plaster board | H13: 0 | I13: ='9. Mtrl data'!D15 -> 0 | K13: 0 | L13: =K13/'3. Gen info'!$C$21 ->  | M13: 0 | N13: 0 | AL13: Insulation, Foamglas | AM13: 0 | AN13: 0
A14: 10 | B14: ='9. Mtrl data'!A17 -> Insulation, Foamglas | H14: 0 | I14: ='9. Mtrl data'!D17 -> 0 | J14: 0.12 | K14: 0 | L14: =K14/'3. Gen info'!$C$21 ->  | M14: 0 | N14: 0 | AL14: Insulation, Glass wool | AM14: 0 | AN14: 0
A15: 11 | B15: ='9. Mtrl data'!A18 -> Insulation, Glass wool | H15: 0 | I15: ='9. Mtrl data'!D18 -> 0 | J15: 0.05 | K15: 0 | L15: =K15/'3. Gen info'!$C$21 ->  | M15: 0 | N15: 0 | AL15: Insulation, Polystyrene, EPS | AM15: 0 | AN15: 0
A16: 12 | B16: ='9. Mtrl data'!A19 -> Insulation, Polystyrene, EPS | H16: 0 | I16: ='9. Mtrl data'!D19 -> 0 | J16: 0.12 | K16: 0 | L16: =K16/'3. Gen info'!$C$21 ->  | M16: 0 | N16: 0 | AL16: Insulation, Polyurethane PUR | AM16: 0 | AN16: 0
A17: 13 | B17: ='9. Mtrl data'!A20 -> Insulation, Polyurethane PUR | H17: 0 | I17: ='9. Mtrl data'!D20 -> 0 | J17: 0.13 | K17: 0 | L17: =K17/'3. Gen info'!$C$21 ->  | M17: 0 | N17: 0 | AL17: Insulation, Rockwool | AM17: 0 | AN17: 0
A18: 14 | B18: ='9. Mtrl data'!A21 -> Insulation, Rockwool | H18: 0 | I18: ='9. Mtrl data'!D21 -> 0 | K18: 0 | L18: =K18/'3. Gen info'!$C$21 ->  | M18: 0 | N18: 0 | AL18: Light clinker masonry | AM18: 0 | AN18: 0
A19: 15 | B19: ='9. Mtrl data'!A22 -> Light clinker masonry | H19: 0 | I19: ='9. Mtrl data'!D22 -> 0 | J19: 0.04 | K19: 0 | L19: =K19/'3. Gen info'!$C$21 ->  | M19: 0 | N19: 0 | AL19: Plaster | AM19: 0 | AN19: 0
A20: 16 | B20: ='9. Mtrl data'!A23 -> Plaster | H20: 0 | I20: ='9. Mtrl data'!D23 -> 0 | J20: 0.05 | K20: 0 | L20: =K20/'3. Gen info'!$C$21 ->  | M20: 0 | N20: 0 | AL20: Polyeten | AM20: 0 | AN20: 0
A21: 17 | B21: ='9. Mtrl data'!A24 -> Polyeten | H21: 0 | I21: ='9. Mtrl data'!D24 -> 0 | J21: 0.1 | K21: 0 | L21: =K21/'3. Gen info'!$C$21 ->  | M21: 0 | N21: 0 | AL21: Steel (EU-mix) | AM21: 0 | AN21: 0
A22: 18 | B22: ='9. Mtrl data'!A25 -> Steel (EU-mix) | H22: 0 | I22: ='9. Mtrl data'!D25 -> 0 | K22: 0 | L22: =K22/'3. Gen info'!$C$21 ->  | M22: 0 | N22: 0 | Z22: =I22*Y22/1000000 -> 0
A23: 19 | B23: ='9. Mtrl data'!A26 -> Wood | H23: 0 | I23: ='9. Mtrl data'!D26 -> 0 | K23: 0 | L23: =K23/'3. Gen info'!$C$21 ->  | M23: 0 | N23: 0 | Z23: 0
A24: 20 | B24: ='9. Mtrl data'!A27 -> Wood fiber board | H24: 0 | I24: ='9. Mtrl data'!D27 -> 0 | K24: 0 | L24: =K24/'3. Gen info'!$C$21 ->  | M24: 0 | N24: 0 | Z24: 0
A25: 21 | B25: ='9. Mtrl data'!A28 -> Wood particle board | H25: 0 | I25: ='9. Mtrl data'!D28 -> 0 | K25: 0 | L25: =K25/'3. Gen info'!$C$21 ->  | M25: 0 | N25: 0 | Y25: 750 | Z25: 0
A26: 22 | B26: ='9. Mtrl data'!A29 -> Wood plywood | H26: 0 | I26: ='9. Mtrl data'!D29 -> 0 | K26: 0 | L26: =K26/'3. Gen info'!$C$21 ->  | M26: 0 | N26: 0 | Y26: 750 | Z26: 0
A27: 23 | B27: ='9. Mtrl data'!A30 -> Zink | H27: 0 | I27: ='9. Mtrl data'!D30 -> 0 | K27: 0 | L27: =K27/'3. Gen info'!$C$21 ->  | M27: 0 | N27: 0 | Y27: 1400 | Z27: 0
B28: ='9. Mtrl data'!A31 -> 0 | H28: 0 | I28: ='9. Mtrl data'!D31 ->  | L28: =K28/'3. Gen info'!$C$21 ->  | N28: 0
B29: ='9. Mtrl data'!A32 -> xxx | H29: 0 | I29: ='9. Mtrl data'!D32 -> 0 | K29: 0 | L29: =K29/'3. Gen info'!$C$21 ->  | M29: 0 | N29: 0 | Z29: 0
B30: ='9. Mtrl data'!A33 -> 0 | H30: 0 | I30: ='9. Mtrl data'!D33 ->  | L30: =K30/'3. Gen info'!$C$21 ->  | N30: 0
B31: ='9. Mtrl data'!A34 -> 0 | H31: 0 | I31: ='9. Mtrl data'!D34 ->  | L31: =K31/'3. Gen info'!$C$21 ->  | N31: 0
B32: ='9. Mtrl data'!A35 -> 0 | H32: 0 | I32: ='9. Mtrl data'!D35 ->  | L32: =K32/'3. Gen info'!$C$21 ->  | N32: 0 | Y32: 2300
B33: ='9. Mtrl data'!A36 -> 0 | H33: 0 | I33: ='9. Mtrl data'!D37 ->  | L33: =K33/'3. Gen info'!$C$21 ->  | N33: 0
B34: ='9. Mtrl data'!A37 -> 0 | H34: 0 | I34: ='9. Mtrl data'!D42 ->  | L34: =K34/'3. Gen info'!$C$21 ->  | N34: 0
B35: ='9. Mtrl data'!A38 -> 0 | H35: 0 | I35: ='9. Mtrl data'!D43 ->  | L35: =K35/'3. Gen info'!$C$21 ->  | N35: 0
B36: Without additional insulation | H36: 0 | I36: ='9. Mtrl data'!D44 ->  | L36: =K36/'3. Gen info'!$C$21 ->  | M36: =SUM(M5:M35) ->  | N36: 0
H37: 0 | I37: ='9. Mtrl data'!D45 ->  | L37: =K37/'3. Gen info'!$C$21 ->  | N37: 0 | Y37: 750
B38: Addition attic/roof (fr sheet 13 line 14) | H38: 0 | I38: ='9. Mtrl data'!D46 ->  | L38: =K38/'3. Gen info'!$C$21 ->  | M38: =IF('13. Explore'!F22>0,'13. Explore'!F22/1000*'4. Dimension'!L10*'11. Mtrl em'!V16/1000,0) -> 0 | N38: 0
B39: Addition externa walls (-"-) | H39: 0 | I39: ='9. Mtrl data'!D47 ->  | L39: =K39/'3. Gen info'!$C$21 ->  | M39: =IF('13. Explore'!H22>0,'13. Explore'!H22/1000*'4. Dimension'!L6*('13. Explore'!C22/'13. Explore'!C18)*'11. Mtrl em'!V16/1000,0) -> 0 | N39: 0
B40: Addition basement (-"-) | H40: 0 | I40: ='9. Mtrl data'!D48 ->  | L40: =K40/'3. Gen info'!$C$21 ->  | M40: =IF('13. Explore'!D22>0,'13. Explore'!D22/1000*'4. Dimension'!L11*'11. Mtrl em'!V16/1000,0) -> 0 | N40: 0
B41: Total | H41: =SUM(H5:H40) -> 0 | I41: =SUM(I5:I40) ->  | J41: =AVERAGE(J5:J40) -> 0.07227272727 | K41: =SUM(K5:K40) ->  | L41: =SUM(L5:L40) ->  | M41: =M36+SUM(M38:M40) ->  | N41: =SUM(N5:N40) -> 0 | AA41: =#REF!*Z41/1000000 -> 
B42: Specific - per m2 | I42: =I41/'3. Gen info'!$C$21 ->  | K42: =K41/'3. Gen info'!$C$21 ->  | M42: =M41/'3. Gen info'!$C$21 -> 
Z43: =SUM(AA9:AA41) -> 
B44: Comment

Sheet 8. Result (hidden)
B2: Summary of specific yearly use and impact
B4: Anticipated building life time | C4: ='3. Gen info'!C23 -> 0
C6: Per m2 | G6: Per user
B7: YEARLY ENERGY FOR OPERATION | C7: kWh/m2,yr | D7: % | E7: kg equiv CO2/m2,yr | F7: % | G7: kWh/pers,yr | H7: kg equiv CO2/pers,yr
B8: Building Electricity | C8: ='6. Energy'!F24 -> 18.1 | D8: =C8/$C$25 -> 0.07780912833 | E8: ='6. Energy'!I24/'3. Gen info'!C21 ->  | F8: =E8/E$25 ->  | G8: =(IF('6. Energy'!E24>0,'6. Energy'!E24,'6. Energy'!D24)+'6. Energy'!D30)/'3. Gen info'!C24 ->  | H8: ='6. Energy'!I24/'3. Gen info'!C24 -> 
B9: User Electricity | C9: ='6. Energy'!F25 -> 30 | D9: =C9/$C$25 -> 0.1289654061 | E9: ='6. Energy'!I25/'3. Gen info'!C21 ->  | F9: =E9/E$25 ->  | G9: =(IF('6. Energy'!E25>0,'6. Energy'!E25,'6. Energy'!D25)+'6. Energy'!D32)/'3. Gen info'!C24 ->  | H9: ='6. Energy'!I25/'3. Gen info'!C24 -> 
B10: Space cooling electricity | C10: 0 | D10: 0 | E10: 0 | F10: =E10/E$25 ->  | G10: 0 | H10: 0
B11: Total electricity demand | C11: =SUM(C8:C10) -> 48.1 | D11: =C11/$C$25 -> 0.2067745344 | E11: =SUM(E8:E10) ->  | F11: =E11/E$25 ->  | G11: =SUM(G8:G10) ->  | H11: =SUM(H8:H10) -> 
B12: Electricity saving measures | C12: ='6. Energy'!F29+'6. Energy'!F30 -> 0 | D12: =C12/$C$25 -> 0 | E12: =('6. Energy'!I29+'6. Energy'!I30)/'3. Gen info'!C21 ->  | F12: =E12/E$25 ->  | G12: =('6. Energy'!D29+'6. Energy'!D30) -> 0 | H12: =G12/'3. Gen info'!C24 -> 
B13: Local electricity production | C13: ='6. Energy'!H41/'3. Gen info'!C21 ->  | D13: =C13/$C$25 ->  | E13: =('6. Energy'!I38+'6. Energy'!I39)/'3. Gen info'!C21 ->  | F13: =E13/E$25 ->  | G13: ='6. Energy'!D40/'3. Gen info'!C24 ->  | H13: =('6. Energy'!I38+'6. Energy'!I39)/'3. Gen info'!C24 -> 
B14: External bought electricity | C14: =SUM(C11:C13) ->  | D14: =D11+D13 ->  | E14: =SUM(E11:E13) ->  | G14: =G11+G13 ->  | H14: =H11+H13 -> 
B15: Total electricity without user electricity | C15: =C14-C9 ->  | D15: =D14-D9 ->  | E15: =E14-E9 ->  | G15: =G14-G9 ->  | H15: =H14-H9 -> 
B16: Space heating | C16: ='6. Energy'!F12 -> 88.26980736 | D16: =C16/$C$25 -> 0.379458385 | E16: =('6. Energy'!I12+'6. Energy'!I13)/'3. Gen info'!C21 ->  | G16: =IF('6. Energy'!E12>0,'6. Energy'!E12,'6. Energy'!D12)/'3. Gen info'!C24 ->  | H16: =('6. Energy'!I12+'6. Energy'!I13)/'3. Gen info'!C24 -> 
B17: Ventilation | C17: ='6. Energy'!F14 -> 65.00071402 | D17: 0.2794281159 | E17: =('6. Energy'!I14+'6. Energy'!I15)/'3. Gen info'!C21 ->  | G17: =IF('6. Energy'!E14>0,'6. Energy'!E14,'6. Energy'!D14)/'3. Gen info'!C24 ->  | H17: ='6. Energy'!I14/'3. Gen info'!C24 -> 
B18: Hot water | C18: ='6. Energy'!F20 -> 31.25 | D18: 0.1343389647 | E18: =('6. Energy'!I20+'6. Energy'!I21)/'3. Gen info'!C21 ->  | G18: =IF('6. Energy'!E20>0,'6. Energy'!E20,'6. Energy'!D20)/'3. Gen info'!C24 ->  | H18: =('6. Energy'!I20+'6. Energy'!I21)/'3. Gen info'!C24 -> 
B19: Total heating demand | C19: =SUM(C16:C18) -> 184.5205214 | D19: 0.7932254656 | E19: =SUM(E16:E18) ->  | G19: =SUM(G16:G18) ->  | H19: =SUM(H16:H18) -> 
B20: Heat recovery | C20: ='6. Energy'!F32+'6. Energy'!F31 -> 0 | D20: 0 | E20: =('6. Energy'!I32+'6. Energy'!I31)/'3. Gen info'!C21 ->  | G20: =(IF('6. Energy'!E31>0,'6. Energy'!E31,'6. Energy'!D31)+IF('6. Energy'!F32>0,'6. Energy'!F32,'6. Energy'!D32))/'3. Gen info'!C24 ->  | H20: =('6. Energy'!I31+'6. Energy'!I32)/'3. Gen info'!C24 -> 
B21: Heat pump | C21: ='6. Energy'!F36 -> 0 | D21: 0 | E21: =('6. Energy'!I36)/'3. Gen info'!C21 ->  | G21: =(+IF('6. Energy'!E36>0,'6. Energy'!E36,'6. Energy'!D36))/'3. Gen info'!C24 ->  | H21: =('6. Energy'!I36)/'3. Gen info'!C24 -> 
B22: Local heat production | C22: ='6. Energy'!F37 -> 0 | D22: 0 | E22: ='6. Energy'!I37/'3. Gen info'!C21 ->  | G22: =IF('6. Energy'!E37>0,'6. Energy'!E37,'6. Energy'!D37)/'3. Gen info'!C24 ->  | H22: ='6. Energy'!I37/'3. Gen info'!C24 -> 
B23: Total bought energy for heating | C23: =SUM(C19:C22) -> 184.5205214 | D23: 0.7932254656 | E23: =SUM(E19:E22) ->  | G23: =SUM(G19:G22) ->  | H23: =SUM(H19:H22) -> 
B25: Total energy demand | C25: =C11+C19 -> 232.6205214 | D25: =C25/$C$25 -> 1 | E25: =E11+E19 ->  | F25: =E25/E$25 ->  | G25: =G11+G19 ->  | H25: =H11+H19 ->  | J25: Demand and recover
B26: Total bought energy | C26: =C14+C23 ->  | D26: =C26/$C$25 ->  | E26: =E14+E23 ->  | F26: =E26/E$25 ->  | G26: =G14+G23 ->  | H26: =H14+H23 -> 
B27: Total bought energy use without user electricity | C27: =C26-C9 ->  | D27: =D25-D9 -> 0.8710345939 | E27: =E25-E9 ->  | F27: =E27/E$25 ->  | G27: =G26-G9 ->  | H27: =H26-H9 -> 
B30: MATERIALS (exclusive waste) | C30: kg/m2 | D30: % | E30: kg equiv CO2/m2,yr | F30: % | G30: kg/pers,yr | H30: kg equiv CO2/pers,yr
B31: Exterior walls including windows and doors | C31: ='9. Mtrl data'!KC165/'3. Gen info'!C21 ->  | D31: =C31/$C$37 ->  | E31: =('5. Construct'!G114+'5. Construct'!G199+'5. Construct'!G221+'5. Construct'!G133+'5. Construct'!G209+'5. Construct'!G221+'5. Construct'!G232)/('3. Gen info'!C21*'3. Gen info'!C23) ->  | F31: =E31/E$37 ->  | G31: ='9. Mtrl data'!KC165/'3. Gen info'!C24 ->  | H31: =('5. Construct'!G114+'5. Construct'!G199+'5. Construct'!G221+'5. Construct'!G133+'5. Construct'!J194+'5. Construct'!G221+'5. Construct'!J215)/('3. Gen info'!C24*'3. Gen info'!C23) -> 
B32: Attic | C32: ='9. Mtrl data'!KD165/'3. Gen info'!C21 ->  | D32: =C32/$C$37 ->  | E32: =('5. Construct'!G77+'5. Construct'!G94)/('3. Gen info'!C21*'3. Gen info'!C23) ->  | F32: =E32/E$37 ->  | G32: ='9. Mtrl data'!KD165/'3. Gen info'!C24 ->  | H32: =('5. Construct'!G77+'5. Construct'!G94)/('3. Gen info'!C24*'3. Gen info'!C23) -> 
B33: Basement | C33: ='9. Mtrl data'!KE165/'3. Gen info'!C21 ->  | D33: =C33/$C$37 ->  | E33: =('5. Construct'!G18+'5. Construct'!G34)/('3. Gen info'!C21*'3. Gen info'!C23) ->  | G33: ='9. Mtrl data'!KE165/'3. Gen info'!C24 ->  | H33: =('5. Construct'!G18+'5. Construct'!G34)/('3. Gen info'!C24*'3. Gen info'!C23) -> 
B34: Slabs | C34: ='9. Mtrl data'!KF165/'3. Gen info'!C21 ->  | D34: =C34/$C$37 ->  | E34: =('5. Construct'!G148+'5. Construct'!G161)/('3. Gen info'!C21*'3. Gen info'!C23) ->  | G34: ='9. Mtrl data'!KF165/'3. Gen info'!C24 ->  | H34: =('5. Construct'!G148+'5. Construct'!G161)/('3. Gen info'!C24*'3. Gen info'!C23) -> 
B35: Internal walls | C35: ='9. Mtrl data'!KG165/'3. Gen info'!C21 ->  | D35: =C35/$C$37 ->  | E35: =('5. Construct'!G175+'5. Construct'!G188)/('3. Gen info'!C21*'3. Gen info'!C23) ->  | G35: ='9. Mtrl data'!KG165/'3. Gen info'!C24 ->  | H35: =('5. Construct'!G175+'5. Construct'!G188)/('3. Gen info'!C24*'3. Gen info'!C23) -> 
B37: Total material use/impact | C37: =SUM(C31:C35) ->  | D37: =C37/$C$37 ->  | E37: =SUM(E31:E35) ->  | G37: =SUM(G31:G35) ->  | H37: =SUM(H31:H35) -> 

Sheet 9. Mtrl data (hidden)
A3: INPUT OF NEW MATERIALS - DENSITY, HEAT CONDUCTION IN PRACTICE - Materials from sheet 11. Mtrl em
E4: 7 | F4: 8 | G4: 9 | H4: 10 | I4: 11 | J4: 12 | K4: 13 | L4: 14 | M4: 15 | N4: 16 | O4: 17 | P4: 18 | Q4: 19 | R4: 20 | S4: 21 | T4: 22 | U4: 23 | V4: 24 | W4: 25 | X4: 26 | Y4: 27 | Z4: 28 | AA4: 29 | AB4: 30 | AC4: 31 | AD4: 32 | AE4: 33 | AF4: 34 | AG4: 35 | AH4: 36 | AI4: 37 | AJ4: 38 | AK4: 39 | AL4: 40 | AM4: 41 | AN4: 42 | AO4: 43 | AP4: 44 | AQ4: 45 | AR4: 46 | AS4: 47 | AT4: 48 | AU4: 49 | AV4: 50 | AW4: 51 | AX4: 52 | AY4: 53 | AZ4: 54 | BA4: 55 | BB4: 56 | BC4: 57 | BD4: 58 | BE4: 59 | BF4: 60 | BG4: 61 | BH4: 62 | BI4: 63 | BJ4: 64 | BK4: 65 | BL4: 66 | BM4: 67 | BN4: 68 | BO4: 69 | BP4: 70 | BQ4: 71 | BR4: 72 | BS4: 73 | BT4: 74 | BU4: 75 | BV4: 76 | BW4: 77 | BX4: 78 | BY4: 79 | BZ4: 80 | CA4: 81 | CB4: 82 | CC4: 83 | CD4: 84 | CE4: 85 | CF4: 86 | CG4: 87 | CH4: 88 | CI4: 89 | CJ4: 90 | CK4: 91 | CL4: 92 | CM4: 93 | CN4: 94 | CO4: 95 | CP4: 96 | CQ4: 97 | CR4: 98 | CS4: 99 | CT4: 100 | CU4: 101 | CV4: 102 | CW4: 103 | CX4: 104 | CY4: 105 | CZ4: 106 | DA4: 107 | DB4: 108 | DC4: 109 | DD4: 110 | DE4: 111 | DF4: 112 | DG4: 113 | DH4: 114 | DI4: 115 | DJ4: 116 | DK4: 117 | DL4: 118 | DM4: 119 | DN4: 120 | DO4: 121 | DP4: 122 | DQ4: 123 | DR4: 124 | DS4: 125 | DT4: 126 | DU4: 127 | DV4: 128 | DW4: 129 | DX4: 130 | DY4: 131 | DZ4: 132 | EA4: 133 | EB4: 134 | EC4: 135 | ED4: 136 | EE4: 137 | EF4: 138 | EG4: 139 | EH4: 140 | EI4: 141 | EJ4: 142 | EK4: 143 | EL4: 144 | EM4: 145 | EN4: 146 | EO4: 147 | EP4: 148 | EQ4: 149 | ER4: 150 | ES4: 151 | ET4: 152 | EU4: 153 | EV4: 154 | EW4: 155 | EX4: 156 | EY4: 157 | EZ4: 158 | FA4: 159 | FB4: 160 | FC4: 161 | FD4: 162 | FE4: 163 | FF4: 164 | FG4: 165 | FH4: 166 | FI4: 167 | FJ4: 168 | FK4: 169 | FL4: 170 | FM4: 171 | FN4: 172 | FO4: 173 | FP4: 174 | FQ4: 175 | FR4: 176 | FS4: 177 | FT4: 178 | FU4: 179 | FV4: 180 | FW4: 181 | FX4: 182 | FY4: 183 | FZ4: 184 | GA4: 185 | GB4: 186 | GC4: 187 | GD4: 188 | GE4: 189 | GF4: 190 | GG4: 191 | GH4: 192 | GI4: 193 | GJ4: 194 | GK4: 195 | GL4: 196 | GM4: 197 | GN4: 198 | GO4: 199 | GP4: 200 | GQ4: 201 | GR4: 202 | GS4: 203 | GT4: 204 | GU4: 205 | GV4: 206 | GW4: 207 | GX4: 208 | GY4: 209 | GZ4: 210 | HA4: 211 | HB4: 212 | HC4: 213 | HD4: 214 | HE4: 215 | HF4: 216 | HG4: 217 | HH4: 218 | HI4: 219 | HJ4: 220 | HK4: 221 | HL4: 222 | HM4: 223 | HN4: 224 | HO4: 225 | HP4: 226 | HQ4: 227 | HR4: 228 | HS4: 229 | HT4: 230 | HU4: 231 | HV4: 232 | HW4: 233 | HX4: 234 | HY4: 235 | HZ4: 236 | IA4: 237 | IB4: 238 | IC4: 239 | ID4: 240 | IE4: 241 | IF4: 242 | IG4: 243 | IH4: 244 | II4: 245 | IJ4: 246 | IK4: 247 | IL4: 248 | IM4: 249 | IN4: 250 | IO4: 251 | IP4: 252 | IQ4: 253 | IR4: 254 | IS4: 255 | IT4: 256 | IU4: 257 | IV4: 258 | IW4: 259 | IX4: 260 | IY4: 261 | IZ4: 262 | JA4: 263 | JB4: 264 | JC4: 265 | JD4: 266 | JE4: 267 | JF4: 268 | JG4: 269 | JH4: 270 | JI4: 271 | JJ4: 272 | JK4: 273 | JL4: 274 | JM4: 275 | JN4: 276 | JO4: 277 | JP4: 278 | JQ4: 279 | JR4: 280 | JS4: 281 | JT4: 282 | JU4: 283 | JV4: 284 | JW4: 285 | JX4: 286 | JY4: 287 | JZ4: 288 | KA4: 289 | KB4: 290
A5: Tunga mineraliska material | B5: Density, kg/m3 | C5: Heat conduction, W/m,K | D5: Weight sum,kg | E5: Weight | H5: går ner i konstruktionsbladet rad för rad med början på rad 7 - färgade rutor kan ge värden | KC5: Ext walls +wondows+doors | KD5: Attic | KE5: Basement | KF5: Slabs | KG5: Internal walls | KH5: Tot | KI5: Spill | KJ5: Inklusive spill
A6: Ground | C6: 1.4 | E6: Basement A | H6: hänsyn till delens livslängd i förhållande till byggnadens livslängd kommer med från flik 5 | U6: Basement B | AM6: Roof A | AY6: Roof B | BK6: Attic A | CB6: Attic B | CU6: External wall A | DN6: Externa wall B | EH6: Floor structure A | EU6: Floor structure B | FI6: Internal walls A | FV6: Internal walls B | GJ6: Windows A | GT6: Windows B | HF6: Doors A | HQ6: Doors B
A7: ='11. Mtrl em'!A5 -> Air | B7: ='11. Mtrl em'!B5 -> 0 | C7: ='11. Mtrl em'!C5 -> 0.08 | D7: =SUM(E7:KB7) -> 0 | E7: =IF(ISNA(VLOOKUP($A7,'5. Construct'!$B$7:$E$7,4,FALSE))=TRUE,0,VLOOKUP($A7,'5. Construct'!$B$7:$E$7,4,FALSE)) -> 0 | F7: =IF(ISNA(VLOOKUP($A7,'5. Construct'!$B$8:$E$8,4,FALSE))=TRUE,0,VLOOKUP($A7,'5. Construct'!$B$8:$E$8,4,FALSE)) -> 0 | G7: =IF(ISNA(VLOOKUP($A7,'5. Construct'!$B$9:$E$9,4,FALSE))=TRUE,0,VLOOKUP($A7,'5. Construct'!$B$9:$E$9,4,FALSE)) -> 0 | H7: =IF(ISNA(VLOOKUP($A7,'5. Construct'!$B$10:$E$10,4,FALSE))=TRUE,0,VLOOKUP($A7,'5. Construct'!$B$10:$E$10,4,FALSE)) -> 0 | I7: =IF(ISNA(VLOOKUP($A7,'5. Construct'!$B$11:$E$11,4,FALSE))=TRUE,0,VLOOKUP($A7,'5. Construct'!$B$11:$E$11,4,FALSE)) -> 0 | J7: =IF(ISNA(VLOOKUP($A7,'5. Construct'!$B$12:$E$12,4,FALSE))=TRUE,0,VLOOKUP($A7,'5. Construct'!$B$12:$E$12,4,FALSE)) -> 0 | K7: =IF(ISNA(VLOOKUP($A7,'5. Construct'!$B$13:$E$13,4,FALSE))=TRUE,0,VLOOKUP($A7,'5. Construct'!$B$13:$E$13,4,FALSE)) -> 0 | L7: =IF(ISNA(VLOOKUP($A7,'5. Construct'!$B$14:$E$14,4,FALSE))=TRUE,0,VLOOKUP($A7,'5. Construct'!$B$14:$E$14,4,FALSE)) -> 0 | M7: =IF(ISNA(VLOOKUP($A7,'5. Construct'!$B$15:$E$15,4,FALSE))=TRUE,0,VLOOKUP($A7,'5. Construct'!$B$15:$E$15,4,FALSE)) -> 0 | N7: =IF(ISNA(VLOOKUP($A7,'5. Construct'!$B$16:$E$16,4,FALSE))=TRUE,0,VLOOKUP($A7,'5. Construct'!$B$16:$E$16,4,FALSE)) -> 0 | O7: =IF(ISNA(VLOOKUP($A7,'5. Construct'!$B$17:$E$17,4,FALSE))=TRUE,0,VLOOKUP($A7,'5. Construct'!$B$17:$E$17,4,FALSE)) -> 0 | P7: =IF(ISNA(VLOOKUP($A7,'5. Construct'!$B$18:$E$18,4,FALSE))=TRUE,0,VLOOKUP($A7,'5. Construct'!$B$18:$E$18,4,FALSE)) -> 0 | Q7: =IF(ISNA(VLOOKUP($A7,'5. Construct'!$B$19:$E$19,4,FALSE))=TRUE,0,VLOOKUP($A7,'5. Construct'!$B$19:$E$19,4,FALSE)) -> 0 | R7: =IF(ISNA(VLOOKUP($A7,'5. Construct'!$B$20:$E$20,4,FALSE))=TRUE,0,VLOOKUP($A7,'5. Construct'!$B$20:$E$20,4,FALSE)) -> 0 | S7: =IF(ISNA(VLOOKUP($A7,'5. Construct'!$B$21:$E$21,4,FALSE))=TRUE,0,VLOOKUP($A7,'5. Construct'!$B$21:$E$21,4,FALSE)) -> 0 | T7: =IF(ISNA(VLOOKUP($A7,'5. Construct'!$B$22:$E$22,4,FALSE))=TRUE,0,VLOOKUP($A7,'5. Construct'!$B$22:$E$22,4,FALSE)) -> 0 | U7: =IF(ISNA(VLOOKUP($A7,'5. Construct'!$B$23:$E$23,4,FALSE))=TRUE,0,VLOOKUP($A7,'5. Construct'!$B$23:$E$23,4,FALSE)) -> 0 | V7: =IF(ISNA(VLOOKUP($A7,'5. Construct'!$B$24:$E$24,4,FALSE))=TRUE,0,VLOOKUP($A7,'5. Construct'!$B$24:$E$24,4,FALSE)) -> 0 | W7: =IF(ISNA(VLOOKUP($A7,'5. Construct'!$B$25:$E$25,4,FALSE))=TRUE,0,VLOOKUP($A7,'5. Construct'!$B$25:$E$25,4,FALSE)) -> 0 | X7: =IF(ISNA(VLOOKUP($A7,'5. Construct'!$B$26:$E$26,4,FALSE))=TRUE,0,VLOOKUP($A7,'5. Construct'!$B$26:$E$26,4,FALSE)) -> 0 | Y7: =IF(ISNA(VLOOKUP($A7,'5. Construct'!$B$27:$E$27,4,FALSE))=TRUE,0,VLOOKUP($A7,'5. Construct'!$B$27:$E$27,4,FALSE)) -> 0 | Z7: =IF(ISNA(VLOOKUP($A7,'5. Construct'!$B$28:$E$28,4,FALSE))=TRUE,0,VLOOKUP($A7,'5. Construct'!$B$28:$E$28,4,FALSE)) -> 0 | AA7: =IF(ISNA(VLOOKUP($A7,'5. Construct'!$B$29:$E$29,4,FALSE))=TRUE,0,VLOOKUP($A7,'5. Construct'!$B$29:$E$29,4,FALSE)) -> 0 | AB7: =IF(ISNA(VLOOKUP($A7,'5. Construct'!$B$30:$E$30,4,FALSE))=TRUE,0,VLOOKUP($A7,'5. Construct'!$B$30:$E$30,4,FALSE)) -> 0 | AC7: =IF(ISNA(VLOOKUP($A7,'5. Construct'!$B$31:$E$31,4,FALSE))=TRUE,0,VLOOKUP($A7,'5. Construct'!$B$31:$E$31,4,FALSE)) -> 0 | AD7: =IF(ISNA(VLOOKUP($A7,'5. Construct'!$B$32:$E$32,4,FALSE))=TRUE,0,VLOOKUP($A7,'5. Construct'!$B$32:$E$32,4,FALSE)) -> 0 | AE7: =IF(ISNA(VLOOKUP($A7,'5. Construct'!$B$33:$E$33,4,FALSE))=TRUE,0,VLOOKUP($A7,'5. Construct'!$B$33:$E$33,4,FALSE)) -> 0 | AF7: =IF(ISNA(VLOOKUP($A7,'5. Construct'!$B$34:$E$34,4,FALSE))=TRUE,0,VLOOKUP($A7,'5. Construct'!$B$34:$E$34,4,FALSE)) -> 0 | AG7: =IF(ISNA(VLOOKUP($A7,'5. Construct'!$B$35:$E$35,4,FALSE))=TRUE,0,VLOOKUP($A7,'5. Construct'!$B$35:$E$35,4,FALSE)) -> 0 | AH7: =IF(ISNA(VLOOKUP($A7,'5. Construct'!$B$36:$E$36,4,FALSE))=TRUE,0,VLOOKUP($A7,'5. Construct'!$B$36:$E$36,4,FALSE)) -> 0 | AI7: =IF(ISNA(VLOOKUP($A7,'5. Construct'!$B$37:$E$37,4,FALSE))=TRUE,0,VLOOKUP($A7,'5. Construct'!$B$37:$E$37,4,FALSE)) -> 0 | AJ7: =IF(ISNA(VLOOKUP($A7,'5. Construct'!$B$38:$E$38,4,FALSE))=TRUE,0,VLOOKUP($A7,'5. Construct'!$B$38:$E$38,4,FALSE)) -> 0 | AK7: =IF(ISNA(VLOOKUP($A7,'5. Construct'!$B$39:$E$39,4,FALSE))=TRUE,0,VLOOKUP($A7,'5. Construct'!$B$39:$E$39,4,FALSE)) -> 0 | AL7: =IF(ISNA(VLOOKUP($A7,'5. Construct'!$B$40:$E$40,4,FALSE))=TRUE,0,VLOOKUP($A7,'5. Construct'!$B$40:$E$40,4,FALSE)) -> 0 | AM7: =IF(ISNA(VLOOKUP($A7,'5. Construct'!$B$41:$E$41,4,FALSE))=TRUE,0,VLOOKUP($A7,'5. Construct'!$B$41:$E$41,4,FALSE)) -> 0 | AN7: =IF(ISNA(VLOOKUP($A7,'5. Construct'!$B$42:$E$42,4,FALSE))=TRUE,0,VLOOKUP($A7,'5. Construct'!$B$42:$E$42,4,FALSE)) -> 0 | AO7: =IF(ISNA(VLOOKUP($A7,'5. Construct'!$B$43:$E$43,4,FALSE))=TRUE,0,VLOOKUP($A7,'5. Construct'!$B$43:$E$43,4,FALSE)) -> 0 | AP7: =IF(ISNA(VLOOKUP($A7,'5. Construct'!$B$44:$E$44,4,FALSE))=TRUE,0,VLOOKUP($A7,'5. Construct'!$B$44:$E$44,4,FALSE)) -> 0 | AQ7: =IF(ISNA(VLOOKUP($A7,'5. Construct'!$B$45:$E$45,4,FALSE))=TRUE,0,VLOOKUP($A7,'5. Construct'!$B$45:$E$45,4,FALSE)) -> 0 | AR7: =IF(ISNA(VLOOKUP($A7,'5. Construct'!$B$46:$E$46,4,FALSE))=TRUE,0,VLOOKUP($A7,'5. Construct'!$B$46:$E$46,4,FALSE)) -> 0 | AS7: =IF(ISNA(VLOOKUP($A7,'5. Construct'!$B$47:$E$47,4,FALSE))=TRUE,0,VLOOKUP($A7,'5. Construct'!$B$47:$E$47,4,FALSE)) -> 0 | AT7: =IF(ISNA(VLOOKUP($A7,'5. Construct'!$B$48:$E$48,4,FALSE))=TRUE,0,VLOOKUP($A7,'5. Construct'!$B$48:$E$48,4,FALSE)) -> 0 | AU7: =IF(ISNA(VLOOKUP($A7,'5. Construct'!$B$49:$E$49,4,FALSE))=TRUE,0,VLOOKUP($A7,'5. Construct'!$B$49:$E$49,4,FALSE)) -> 0 | AV7: =IF(ISNA(VLOOKUP($A7,'5. Construct'!$B$50:$E$50,4,FALSE))=TRUE,0,VLOOKUP($A7,'5. Construct'!$B$50:$E$50,4,FALSE)) -> 0 | AW7: =IF(ISNA(VLOOKUP($A7,'5. Construct'!$B$51:$E$51,4,FALSE))=TRUE,0,VLOOKUP($A7,'5. Construct'!$B$51:$E$51,4,FALSE)) -> 0 | AX7: =IF(ISNA(VLOOKUP($A7,'5. Construct'!$B$52:$E$52,4,FALSE))=TRUE,0,VLOOKUP($A7,'5. Construct'!$B$52:$E$52,4,FALSE)) -> 0 | AY7: =IF(ISNA(VLOOKUP($A7,'5. Construct'!$B$53:$E$53,4,FALSE))=TRUE,0,VLOOKUP($A7,'5. Construct'!$B$53:$E$53,4,FALSE)) -> 0 | AZ7: =IF(ISNA(VLOOKUP($A7,'5. Construct'!$B$54:$E$54,4,FALSE))=TRUE,0,VLOOKUP($A7,'5. Construct'!$B$54:$E$54,4,FALSE)) -> 0 | BA7: =IF(ISNA(VLOOKUP($A7,'5. Construct'!$B$55:$E$55,4,FALSE))=TRUE,0,VLOOKUP($A7,'5. Construct'!$B$55:$E$55,4,FALSE)) -> 0 | BB7: =IF(ISNA(VLOOKUP($A7,'5. Construct'!$B$56:$E$56,4,FALSE))=TRUE,0,VLOOKUP($A7,'5. Construct'!$B$56:$E$56,4,FALSE)) -> 0 | BC7: =IF(ISNA(VLOOKUP($A7,'5. Construct'!$B$57:$E$57,4,FALSE))=TRUE,0,VLOOKUP($A7,'5. Construct'!$B$57:$E$57,4,FALSE)) -> 0 | BD7: =IF(ISNA(VLOOKUP($A7,'5. Construct'!$B$58:$E$58,4,FALSE))=TRUE,0,VLOOKUP($A7,'5. Construct'!$B$58:$E$58,4,FALSE)) -> 0 | BE7: =IF(ISNA(VLOOKUP($A7,'5. Construct'!$B$59:$E$59,4,FALSE))=TRUE,0,VLOOKUP($A7,'5. Construct'!$B$59:$E$59,4,FALSE)) -> 0 | BF7: =IF(ISNA(VLOOKUP($A7,'5. Construct'!$B$60:$E$60,4,FALSE))=TRUE,0,VLOOKUP($A7,'5. Construct'!$B$60:$E$60,4,FALSE)) -> 0 | BG7: =IF(ISNA(VLOOKUP($A7,'5. Construct'!$B$61:$E$61,4,FALSE))=TRUE,0,VLOOKUP($A7,'5. Construct'!$B$61:$E$61,4,FALSE)) -> 0 | BH7: =IF(ISNA(VLOOKUP($A7,'5. Construct'!$B$62:$E$62,4,FALSE))=TRUE,0,VLOOKUP($A7,'5. Construct'!$B$62:$E$62,4,FALSE)) -> 0 | BI7: =IF(ISNA(VLOOKUP($A7,'5. Construct'!$B$63:$E$63,4,FALSE))=TRUE,0,VLOOKUP($A7,'5. Construct'!$B$63:$E$63,4,FALSE)) -> 0 | BJ7: =IF(ISNA(VLOOKUP($A7,'5. Construct'!$B$64:$E$64,4,FALSE))=TRUE,0,VLOOKUP($A7,'5. Construct'!$B$64:$E$64,4,FALSE)) -> 0 | BK7: =IF(ISNA(VLOOKUP($A7,'5. Construct'!$B$65:$E$65,4,FALSE))=TRUE,0,VLOOKUP($A7,'5. Construct'!$B$65:$E$65,4,FALSE)) -> 0 | BL7: =IF(ISNA(VLOOKUP($A7,'5. Construct'!$B$66:$E$66,4,FALSE))=TRUE,0,VLOOKUP($A7,'5. Construct'!$B$66:$E$66,4,FALSE)) -> 0 | BM7: =IF(ISNA(VLOOKUP($A7,'5. Construct'!$B$67:$E$67,4,FALSE))=TRUE,0,VLOOKUP($A7,'5. Construct'!$B$67:$E$67,4,FALSE)) -> 0 | BN7: =IF(ISNA(VLOOKUP($A7,'5. Construct'!$B$68:$E$68,4,FALSE))=TRUE,0,VLOOKUP($A7,'5. Construct'!$B$68:$E$68,4,FALSE)) -> 0 | BO7: =IF(ISNA(VLOOKUP($A7,'5. Construct'!$B$69:$E$69,4,FALSE))=TRUE,0,VLOOKUP($A7,'5. Construct'!$B$69:$E$69,4,FALSE)) -> 0 | BP7: =IF(ISNA(VLOOKUP($A7,'5. Construct'!$B$70:$E$70,4,FALSE))=TRUE,0,VLOOKUP($A7,'5. Construct'!$B$70:$E$70,4,FALSE)) -> 0 | BQ7: =IF(ISNA(VLOOKUP($A7,'5. Construct'!$B$71:$E$71,4,FALSE))=TRUE,0,VLOOKUP($A7,'5. Construct'!$B$71:$E$71,4,FALSE)) -> 0 | BR7: =IF(ISNA(VLOOKUP($A7,'5. Construct'!$B$72:$E$72,4,FALSE))=TRUE,0,VLOOKUP($A7,'5. Construct'!$B$72:$E$72,4,FALSE)) -> 0 | BS7: =IF(ISNA(VLOOKUP($A7,'5. Construct'!$B$73:$E$73,4,FALSE))=TRUE,0,VLOOKUP($A7,'5. Construct'!$B$73:$E$73,4,FALSE)) -> 0 | BT7: =IF(ISNA(VLOOKUP($A7,'5. Construct'!$B$74:$E$74,4,FALSE))=TRUE,0,VLOOKUP($A7,'5. Construct'!$B$74:$E$74,4,FALSE)) -> 0 | BU7: =IF(ISNA(VLOOKUP($A7,'5. Construct'!$B$75:$E$75,4,FALSE))=TRUE,0,VLOOKUP($A7,'5. Construct'!$B$75:$E$75,4,FALSE)) -> 0 | BV7: =IF(ISNA(VLOOKUP($A7,'5. Construct'!$B$76:$E$76,4,FALSE))=TRUE,0,VLOOKUP($A7,'5. Construct'!$B$76:$E$76,4,FALSE)) -> 0 | BW7: =IF(ISNA(VLOOKUP($A7,'5. Construct'!$B$77:$E$77,4,FALSE))=TRUE,0,VLOOKUP($A7,'5. Construct'!$B$77:$E$77,4,FALSE)) -> 0 | BX7: =IF(ISNA(VLOOKUP($A7,'5. Construct'!$B$78:$E$78,4,FALSE))=TRUE,0,VLOOKUP($A7,'5. Construct'!$B$78:$E$78,4,FALSE)) -> 0 | BY7: =IF(ISNA(VLOOKUP($A7,'5. Construct'!$B$79:$E$79,4,FALSE))=TRUE,0,VLOOKUP($A7,'5. Construct'!$B$79:$E$79,4,FALSE)) -> 0 | BZ7: =IF(ISNA(VLOOKUP($A7,'5. Construct'!$B$80:$D$80,4,FALSE))=TRUE,0,VLOOKUP($A7,'5. Construct'!$B$80:$D$80,4,FALSE)) -> 0 | CA7: =IF(ISNA(VLOOKUP($A7,'5. Construct'!$B$81:$E$81,4,FALSE))=TRUE,0,VLOOKUP($A7,'5. Construct'!$B$81:$E$81,4,FALSE)) -> 0 | CB7: =IF(ISNA(VLOOKUP($A7,'5. Construct'!$B$82:$E$82,4,FALSE))=TRUE,0,VLOOKUP($A7,'5. Construct'!$B$82:$E$82,4,FALSE)) -> 0 | CC7: =IF(ISNA(VLOOKUP($A7,'5. Construct'!$B$83:$E$83,4,FALSE))=TRUE,0,VLOOKUP($A7,'5. Construct'!$B$83:$E$83,4,FALSE)) -> 0 | CD7: =IF(ISNA(VLOOKUP($A7,'5. Construct'!$B$84:$E$84,4,FALSE))=TRUE,0,VLOOKUP($A7,'5. Construct'!$B$84:$E$84,4,FALSE)) -> 0 | CE7: =IF(ISNA(VLOOKUP($A7,'5. Construct'!$B$85:$E$85,4,FALSE))=TRUE,0,VLOOKUP($A7,'5. Construct'!$B$85:$E$85,4,FALSE)) -> 0 | CF7: =IF(ISNA(VLOOKUP($A7,'5. Construct'!$B$86:$E$86,4,FALSE))=TRUE,0,VLOOKUP($A7,'5. Construct'!$B$86:$E$86,4,FALSE)) -> 0 | CG7: =IF(ISNA(VLOOKUP($A7,'5. Construct'!$B$87:$E$87,4,FALSE))=TRUE,0,VLOOKUP($A7,'5. Construct'!$B$87:$E$87,4,FALSE)) -> 0 | CH7: =IF(ISNA(VLOOKUP($A7,'5. Construct'!$B$88:$E$88,4,FALSE))=TRUE,0,VLOOKUP($A7,'5. Construct'!$B$88:$E$88,4,FALSE)) -> 0 | CI7: =IF(ISNA(VLOOKUP($A7,'5. Construct'!$B$89:$E$89,4,FALSE))=TRUE,0,VLOOKUP($A7,'5. Construct'!$B$89:$E$89,4,FALSE)) -> 0 | CJ7: =IF(ISNA(VLOOKUP($A7,'5. Construct'!$B$90:$E$90,4,FALSE))=TRUE,0,VLOOKUP($A7,'5. Construct'!$B$90:$E$90,4,FALSE)) -> 0 | CK7: =IF(ISNA(VLOOKUP($A7,'5. Construct'!$B$91:$E$91,4,FALSE))=TRUE,0,VLOOKUP($A7,'5. Construct'!$B$91:$E$91,4,FALSE)) -> 0 | CL7: =IF(ISNA(VLOOKUP($A7,'5. Construct'!$B$92:$E$92,4,FALSE))=TRUE,0,VLOOKUP($A7,'5. Construct'!$B$92:$E$92,4,FALSE)) -> 0 | CM7: =IF(ISNA(VLOOKUP($A7,'5. Construct'!$B$93:$E$93,4,FALSE))=TRUE,0,VLOOKUP($A7,'5. Construct'!$B$93:$E$93,4,FALSE)) -> 0 | CN7: =IF(ISNA(VLOOKUP($A7,'5. Construct'!$B$94:$E$94,4,FALSE))=TRUE,0,VLOOKUP($A7,'5. Construct'!$B$94:$E$94,4,FALSE)) -> 0 | CO7: =IF(ISNA(VLOOKUP($A7,'5. Construct'!$B$95:$E$95,4,FALSE))=TRUE,0,VLOOKUP($A7,'5. Construct'!$B$95:$E$95,4,FALSE)) -> 0 | CP7: =IF(ISNA(VLOOKUP($A7,'5. Construct'!$B$96:$E$96,4,FALSE))=TRUE,0,VLOOKUP($A7,'5. Construct'!$B$96:$E$96,4,FALSE)) -> 0 | CQ7: =IF(ISNA(VLOOKUP($A7,'5. Construct'!$B$97:$E$97,4,FALSE))=TRUE,0,VLOOKUP($A7,'5. Construct'!$B$97:$E$97,4,FALSE)) -> 0 | CR7: =IF(ISNA(VLOOKUP($A7,'5. Construct'!$B$98:$E$98,4,FALSE))=TRUE,0,VLOOKUP($A7,'5. Construct'!$B$98:$E$98,4,FALSE)) -> 0 | CS7: =IF(ISNA(VLOOKUP($A7,'5. Construct'!$B$99:$C$99,4,FALSE))=TRUE,0,VLOOKUP($A7,'5. Construct'!$B$99:$C$99,4,FALSE)) -> 0 | CT7: =IF(ISNA(VLOOKUP($A7,'5. Construct'!$B$100:$E$100,4,FALSE))=TRUE,0,VLOOKUP($A7,'5. Construct'!$B$100:$E$100,4,FALSE)) -> 0 | CU7: =IF(ISNA(VLOOKUP($A7,'5. Construct'!$B$101:$E$101,4,FALSE))=TRUE,0,VLOOKUP($A7,'5. Construct'!$B$101:$E$101,4,FALSE)) -> 0 | CV7: =IF(ISNA(VLOOKUP($A7,'5. Construct'!$B$102:$E$102,4,FALSE))=TRUE,0,VLOOKUP($A7,'5. Construct'!$B$102:$E$102,4,FALSE)) -> 0 | CW7: =IF(ISNA(VLOOKUP($A7,'5. Construct'!$B$103:$E$103,4,FALSE))=TRUE,0,VLOOKUP($A7,'5. Construct'!$B$103:$E$103,4,FALSE)) -> 0 | CX7: =IF(ISNA(VLOOKUP($A7,'5. Construct'!$B$104:$E$104,4,FALSE))=TRUE,0,VLOOKUP($A7,'5. Construct'!$B$104:$E$104,4,FALSE)) -> 0 | CY7: =IF(ISNA(VLOOKUP($A7,'5. Construct'!$B$105:$E$105,4,FALSE))=TRUE,0,VLOOKUP($A7,'5. Construct'!$B$105:$E$105,4,FALSE)) -> 0 | CZ7: =IF(ISNA(VLOOKUP($A7,'5. Construct'!$B$106:$E$106,4,FALSE))=TRUE,0,VLOOKUP($A7,'5. Construct'!$B$106:$E$106,4,FALSE)) -> 0 | DA7: =IF(ISNA(VLOOKUP($A7,'5. Construct'!$B$107:$E$107,4,FALSE))=TRUE,0,VLOOKUP($A7,'5. Construct'!$B$107:$E$107,4,FALSE)) -> 0 | DB7: =IF(ISNA(VLOOKUP($A7,'5. Construct'!$B$108:$E$108,4,FALSE))=TRUE,0,VLOOKUP($A7,'5. Construct'!$B$108:$E$108,4,FALSE)) -> 0 | DC7: =IF(ISNA(VLOOKUP($A7,'5. Construct'!$B$109:$E$109,4,FALSE))=TRUE,0,VLOOKUP($A7,'5. Construct'!$B$109:$E$109,4,FALSE)) -> 0 | DD7: =IF(ISNA(VLOOKUP($A7,'5. Construct'!$B$110:$E$110,4,FALSE))=TRUE,0,VLOOKUP($A7,'5. Construct'!$B$110:$E$110,4,FALSE)) -> 0 | DE7: =IF(ISNA(VLOOKUP($A7,'5. Construct'!$B$111:$E$111,4,FALSE))=TRUE,0,VLOOKUP($A7,'5. Construct'!$B$111:$E$111,4,FALSE)) -> 0 | DF7: =IF(ISNA(VLOOKUP($A7,'5. Construct'!$B$112:$E$112,4,FALSE))=TRUE,0,VLOOKUP($A7,'5. Construct'!$B$112:$E$112,4,FALSE)) -> 0 | DG7: =IF(ISNA(VLOOKUP($A7,'5. Construct'!$B$113:$E$113,4,FALSE))=TRUE,0,VLOOKUP($A7,'5. Construct'!$B$113:$E$113,4,FALSE)) -> 0 | DH7: =IF(ISNA(VLOOKUP($A7,'5. Construct'!$B$114:$E$114,4,FALSE))=TRUE,0,VLOOKUP($A7,'5. Construct'!$B$114:$E$114,4,FALSE)) -> 0 | DI7: =IF(ISNA(VLOOKUP($A7,'5. Construct'!$B$115:$E$115,4,FALSE))=TRUE,0,VLOOKUP($A7,'5. Construct'!$B$115:$E$115,4,FALSE)) -> 0 | DJ7: =IF(ISNA(VLOOKUP($A7,'5. Construct'!$B$116:$E$116,4,FALSE))=TRUE,0,VLOOKUP($A7,'5. Construct'!$B$116:$E$116,4,FALSE)) -> 0 | DK7: =IF(ISNA(VLOOKUP($A7,'5. Construct'!$B$117:$E$117,4,FALSE))=TRUE,0,VLOOKUP($A7,'5. Construct'!$B$117:$E$117,4,FALSE)) -> 0 | DL7: =IF(ISNA(VLOOKUP($A7,'5. Construct'!$B$118:$D$118,4,FALSE))=TRUE,0,VLOOKUP($A7,'5. Construct'!$B$118:$D$118,4,FALSE)) -> 0 | DM7: =IF(ISNA(VLOOKUP($A7,'5. Construct'!$B$119:$E$119,4,FALSE))=TRUE,0,VLOOKUP($A7,'5. Construct'!$B$119:$E$119,4,FALSE)) -> 0 | DN7: =IF(ISNA(VLOOKUP($A7,'5. Construct'!$B$120:$E$120,4,FALSE))=TRUE,0,VLOOKUP($A7,'5. Construct'!$B$120:$E$120,4,FALSE)) -> 0 | DO7: =IF(ISNA(VLOOKUP($A7,'5. Construct'!$B$121:$E$121,4,FALSE))=TRUE,0,VLOOKUP($A7,'5. Construct'!$B$121:$E$121,4,FALSE)) -> 0 | DP7: =IF(ISNA(VLOOKUP($A7,'5. Construct'!$B$122:$E$122,4,FALSE))=TRUE,0,VLOOKUP($A7,'5. Construct'!$B$122:$E$122,4,FALSE)) -> 0 | DQ7: =IF(ISNA(VLOOKUP($A7,'5. Construct'!$B$123:$E$123,4,FALSE))=TRUE,0,VLOOKUP($A7,'5. Construct'!$B$123:$E$123,4,FALSE)) -> 0 | DR7: =IF(ISNA(VLOOKUP($A7,'5. Construct'!$B$124:$E$124,4,FALSE))=TRUE,0,VLOOKUP($A7,'5. Construct'!$B$124:$E$124,4,FALSE)) -> 0 | DS7: =IF(ISNA(VLOOKUP($A7,'5. Construct'!$B$125:$E$125,4,FALSE))=TRUE,0,VLOOKUP($A7,'5. Construct'!$B$125:$E$125,4,FALSE)) -> 0 | DT7: =IF(ISNA(VLOOKUP($A7,'5. Construct'!$B$126:$E$126,4,FALSE))=TRUE,0,VLOOKUP($A7,'5. Construct'!$B$126:$E$126,4,FALSE)) -> 0 | DU7: =IF(ISNA(VLOOKUP($A7,'5. Construct'!$B$127:$E$127,4,FALSE))=TRUE,0,VLOOKUP($A7,'5. Construct'!$B$127:$E$127,4,FALSE)) -> 0 | DV7: =IF(ISNA(VLOOKUP($A7,'5. Construct'!$B$128:$E$128,4,FALSE))=TRUE,0,VLOOKUP($A7,'5. Construct'!$B$128:$E$128,4,FALSE)) -> 0 | DW7: =IF(ISNA(VLOOKUP($A7,'5. Construct'!$B$129:$E$129,4,FALSE))=TRUE,0,VLOOKUP($A7,'5. Construct'!$B$129:$E$129,4,FALSE)) -> 0 | DX7: =IF(ISNA(VLOOKUP($A7,'5. Construct'!$B$130:$E$130,4,FALSE))=TRUE,0,VLOOKUP($A7,'5. Construct'!$B$130:$E$130,4,FALSE)) -> 0 | DY7: =IF(ISNA(VLOOKUP($A7,'5. Construct'!$B$131:$E$131,4,FALSE))=TRUE,0,VLOOKUP($A7,'5. Construct'!$B$131:$E$131,4,FALSE)) -> 0 | DZ7: =IF(ISNA(VLOOKUP($A7,'5. Construct'!$B$132:$E$132,4,FALSE))=TRUE,0,VLOOKUP($A7,'5. Construct'!$B$132:$E$132,4,FALSE)) -> 0 | EA7: =IF(ISNA(VLOOKUP($A7,'5. Construct'!$B$133:$E$133,4,FALSE))=TRUE,0,VLOOKUP($A7,'5. Construct'!$B$133:$E$133,4,FALSE)) -> 0 | EB7: =IF(ISNA(VLOOKUP($A7,'5. Construct'!$B$134:$E$134,4,FALSE))=TRUE,0,VLOOKUP($A7,'5. Construct'!$B$134:$E$134,4,FALSE)) -> 0 | EC7: =IF(ISNA(VLOOKUP($A7,'5. Construct'!$B$135:$E$135,4,FALSE))=TRUE,0,VLOOKUP($A7,'5. Construct'!$B$135:$E$135,4,FALSE)) -> 0 | ED7: =IF(ISNA(VLOOKUP($A7,'5. Construct'!$B$136:$E$136,4,FALSE))=TRUE,0,VLOOKUP($A7,'5. Construct'!$B$136:$E$136,4,FALSE)) -> 0 | EE7: =IF(ISNA(VLOOKUP($A7,'5. Construct'!$B$137:$E$137,4,FALSE))=TRUE,0,VLOOKUP($A7,'5. Construct'!$B$137:$E$137,4,FALSE)) -> 0 | EF7: =IF(ISNA(VLOOKUP($A7,'5. Construct'!$B$138:$C$138,4,FALSE))=TRUE,0,VLOOKUP($A7,'5. Construct'!$B$138:$C$138,4,FALSE)) -> 0 | EG7: =IF(ISNA(VLOOKUP($A7,'5. Construct'!$B$139:$E$139,4,FALSE))=TRUE,0,VLOOKUP($A7,'5. Construct'!$B$139:$E$139,4,FALSE)) -> 0 | EH7: =IF(ISNA(VLOOKUP($A7,'5. Construct'!$B$140:$E$140,4,FALSE))=TRUE,0,VLOOKUP($A7,'5. Construct'!$B$140:$E$140,4,FALSE)) -> 0 | EI7: =IF(ISNA(VLOOKUP($A7,'5. Construct'!$B$141:$E$141,4,FALSE))=TRUE,0,VLOOKUP($A7,'5. Construct'!$B$141:$E$141,4,FALSE)) -> 0 | EJ7: =IF(ISNA(VLOOKUP($A7,'5. Construct'!$B$142:$E$142,4,FALSE))=TRUE,0,VLOOKUP($A7,'5. Construct'!$B$142:$E$142,4,FALSE)) -> 0 | EK7: =IF(ISNA(VLOOKUP($A7,'5. Construct'!$B$143:$E$143,4,FALSE))=TRUE,0,VLOOKUP($A7,'5. Construct'!$B$143:$E$143,4,FALSE)) -> 0 | EL7: =IF(ISNA(VLOOKUP($A7,'5. Construct'!$B$144:$E$144,4,FALSE))=TRUE,0,VLOOKUP($A7,'5. Construct'!$B$144:$E$144,4,FALSE)) -> 0 | EM7: =IF(ISNA(VLOOKUP($A7,'5. Construct'!$B$145:$E$145,4,FALSE))=TRUE,0,VLOOKUP($A7,'5. Construct'!$B$145:$E$145,4,FALSE)) -> 0 | EN7: =IF(ISNA(VLOOKUP($A7,'5. Construct'!$B$145:$E$145,4,FALSE))=TRUE,0,VLOOKUP($A7,'5. Construct'!$B$145:$E$145,4,FALSE)) -> 0 | EO7: =IF(ISNA(VLOOKUP($A7,'5. Construct'!$B$147:$E$147,4,FALSE))=TRUE,0,VLOOKUP($A7,'5. Construct'!$B$147:$E$147,4,FALSE)) -> 0 | EP7: =IF(ISNA(VLOOKUP($A7,'5. Construct'!$B$148:$E$148,4,FALSE))=TRUE,0,VLOOKUP($A7,'5. Construct'!$B$148:$E$148,4,FALSE)) -> 0 | EQ7: =IF(ISNA(VLOOKUP($A7,'5. Construct'!$B$149:$E$149,4,FALSE))=TRUE,0,VLOOKUP($A7,'5. Construct'!$B$149:$E$149,4,FALSE)) -> 0 | ER7: =IF(ISNA(VLOOKUP($A7,'5. Construct'!$B$150:$E$150,4,FALSE))=TRUE,0,VLOOKUP($A7,'5. Construct'!$B$150:$E$150,4,FALSE)) -> 0 | ES7: =IF(ISNA(VLOOKUP($A7,'5. Construct'!$B$151:$D$151,4,FALSE))=TRUE,0,VLOOKUP($A7,'5. Construct'!$B$151:$D$151,4,FALSE)) -> 0 | ET7: =IF(ISNA(VLOOKUP($A7,'5. Construct'!$B$152:$E$152,4,FALSE))=TRUE,0,VLOOKUP($A7,'5. Construct'!$B$152:$E$152,4,FALSE)) -> 0 | EU7: =IF(ISNA(VLOOKUP($A7,'5. Construct'!$B$153:$E$153,4,FALSE))=TRUE,0,VLOOKUP($A7,'5. Construct'!$B$153:$E$153,4,FALSE)) -> 0 | EV7: =IF(ISNA(VLOOKUP($A7,'5. Construct'!$B$154:$E$154,4,FALSE))=TRUE,0,VLOOKUP($A7,'5. Construct'!$B$154:$E$154,4,FALSE)) -> 0 | EW7: =IF(ISNA(VLOOKUP($A7,'5. Construct'!$B$155:$E$155,4,FALSE))=TRUE,0,VLOOKUP($A7,'5. Construct'!$B$155:$E$155,4,FALSE)) -> 0 | EX7: =IF(ISNA(VLOOKUP($A7,'5. Construct'!$B$156:$E$156,4,FALSE))=TRUE,0,VLOOKUP($A7,'5. Construct'!$B$156:$E$156,4,FALSE)) -> 0 | EY7: =IF(ISNA(VLOOKUP($A7,'5. Construct'!$B$157:$E$157,4,FALSE))=TRUE,0,VLOOKUP($A7,'5. Construct'!$B$157:$E$157,4,FALSE)) -> 0 | EZ7: =IF(ISNA(VLOOKUP($A7,'5. Construct'!$B$158:$E$158,4,FALSE))=TRUE,0,VLOOKUP($A7,'5. Construct'!$B$158:$E$158,4,FALSE)) -> 0 | FA7: =IF(ISNA(VLOOKUP($A7,'5. Construct'!$B$159:$E$159,4,FALSE))=TRUE,0,VLOOKUP($A7,'5. Construct'!$B$159:$E$159,4,FALSE)) -> 0 | FB7: =IF(ISNA(VLOOKUP($A7,'5. Construct'!$B$160:$E$160,4,FALSE))=TRUE,0,VLOOKUP($A7,'5. Construct'!$B$160:$E$160,4,FALSE)) -> 0 | FC7: =IF(ISNA(VLOOKUP($A7,'5. Construct'!$B$161:$E$161,4,FALSE))=TRUE,0,VLOOKUP($A7,'5. Construct'!$B$161:$E$161,4,FALSE)) -> 0 | FD7: =IF(ISNA(VLOOKUP($A7,'5. Construct'!$B$162:$E$162,4,FALSE))=TRUE,0,VLOOKUP($A7,'5. Construct'!$B$162:$E$162,4,FALSE)) -> 0 | FE7: =IF(ISNA(VLOOKUP($A7,'5. Construct'!$B$163:$E$163,4,FALSE))=TRUE,0,VLOOKUP($A7,'5. Construct'!$B$163:$E$163,4,FALSE)) -> 0 | FF7: =IF(ISNA(VLOOKUP($A7,'5. Construct'!$B$164:$E$164,4,FALSE))=TRUE,0,VLOOKUP($A7,'5. Construct'!$B$164:$E$164,4,FALSE)) -> 0 | FG7: =IF(ISNA(VLOOKUP($A7,'5. Construct'!$B$165:$D$165,4,FALSE))=TRUE,0,VLOOKUP($A7,'5. Construct'!$B$165:$D$165,4,FALSE)) -> 0 | FH7: =IF(ISNA(VLOOKUP($A7,'5. Construct'!$B$166:$E$166,4,FALSE))=TRUE,0,VLOOKUP($A7,'5. Construct'!$B$166:$E$166,4,FALSE)) -> 0 | FI7: =IF(ISNA(VLOOKUP($A7,'5. Construct'!$B$167:$E$167,4,FALSE))=TRUE,0,VLOOKUP($A7,'5. Construct'!$B$167:$E$167,4,FALSE)) -> 0 | FJ7: =IF(ISNA(VLOOKUP($A7,'5. Construct'!$B$168:$E$168,4,FALSE))=TRUE,0,VLOOKUP($A7,'5. Construct'!$B$168:$E$168,4,FALSE)) -> 0 | FK7: =IF(ISNA(VLOOKUP($A7,'5. Construct'!$B$169:$E$169,4,FALSE))=TRUE,0,VLOOKUP($A7,'5. Construct'!$B$169:$E$169,4,FALSE)) -> 0 | FL7: =IF(ISNA(VLOOKUP($A7,'5. Construct'!$B$170:$E$170,4,FALSE))=TRUE,0,VLOOKUP($A7,'5. Construct'!$B$170:$E$170,4,FALSE)) -> 0 | FM7: =IF(ISNA(VLOOKUP($A7,'5. Construct'!$B$171:$E$171,4,FALSE))=TRUE,0,VLOOKUP($A7,'5. Construct'!$B$171:$E$171,4,FALSE)) -> 0 | FN7: =IF(ISNA(VLOOKUP($A7,'5. Construct'!$B$172:$E$172,4,FALSE))=TRUE,0,VLOOKUP($A7,'5. Construct'!$B$172:$E$172,4,FALSE)) -> 0 | FO7: =IF(ISNA(VLOOKUP($A7,'5. Construct'!$B$173:$E$173,4,FALSE))=TRUE,0,VLOOKUP($A7,'5. Construct'!$B$173:$E$173,4,FALSE)) -> 0 | FP7: =IF(ISNA(VLOOKUP($A7,'5. Construct'!$B$174:$E$174,4,FALSE))=TRUE,0,VLOOKUP($A7,'5. Construct'!$B$174:$E$174,4,FALSE)) -> 0 | FQ7: =IF(ISNA(VLOOKUP($A7,'5. Construct'!$B$175:$E$175,4,FALSE))=TRUE,0,VLOOKUP($A7,'5. Construct'!$B$175:$E$175,4,FALSE)) -> 0 | FR7: =IF(ISNA(VLOOKUP($A7,'5. Construct'!$B$176:$E$176,4,FALSE))=TRUE,0,VLOOKUP($A7,'5. Construct'!$B$176:$E$176,4,FALSE)) -> 0 | FS7: =IF(ISNA(VLOOKUP($A7,'5. Construct'!$B$177:$E$177,4,FALSE))=TRUE,0,VLOOKUP($A7,'5. Construct'!$B$177:$E$177,4,FALSE)) -> 0 | FT7: =IF(ISNA(VLOOKUP($A7,'5. Construct'!$B$178:$E$178,4,FALSE))=TRUE,0,VLOOKUP($A7,'5. Construct'!$B$178:$E$178,4,FALSE)) -> 0 | FU7: =IF(ISNA(VLOOKUP($A7,'5. Construct'!$B$179:$E$179,4,FALSE))=TRUE,0,VLOOKUP($A7,'5. Construct'!$B$179:$E$179,4,FALSE)) -> 0 | FV7: =IF(ISNA(VLOOKUP($A7,'5. Construct'!$B$180:$E$180,4,FALSE))=TRUE,0,VLOOKUP($A7,'5. Construct'!$B$180:$E$180,4,FALSE)) -> 0 | FW7: =IF(ISNA(VLOOKUP($A7,'5. Construct'!$B$181:$E$181,4,FALSE))=TRUE,0,VLOOKUP($A7,'5. Construct'!$B$181:$E$181,4,FALSE)) -> 0 | FX7: =IF(ISNA(VLOOKUP($A7,'5. Construct'!$B$182:$E$182,4,FALSE))=TRUE,0,VLOOKUP($A7,'5. Construct'!$B$182:$E$182,4,FALSE)) -> 0 | FY7: =IF(ISNA(VLOOKUP($A7,'5. Construct'!$B$183:$E$183,4,FALSE))=TRUE,0,VLOOKUP($A7,'5. Construct'!$B$183:$E$183,4,FALSE)) -> 0 | FZ7: =IF(ISNA(VLOOKUP($A7,'5. Construct'!$B$184:$E$184,4,FALSE))=TRUE,0,VLOOKUP($A7,'5. Construct'!$B$184:$E$184,4,FALSE)) -> 0 | GA7: =IF(ISNA(VLOOKUP($A7,'5. Construct'!$B$185:$E$185,4,FALSE))=TRUE,0,VLOOKUP($A7,'5. Construct'!$B$185:$E$185,4,FALSE)) -> 0 | GB7: =IF(ISNA(VLOOKUP($A7,'5. Construct'!$B$186:$E$186,4,FALSE))=TRUE,0,VLOOKUP($A7,'5. Construct'!$B$186:$E$186,4,FALSE)) -> 0 | GC7: =IF(ISNA(VLOOKUP($A7,'5. Construct'!$B$187:$E$187,4,FALSE))=TRUE,0,VLOOKUP($A7,'5. Construct'!$B$187:$E$187,4,FALSE)) -> 0 | GD7: =IF(ISNA(VLOOKUP($A7,'5. Construct'!$B$188:$E$188,4,FALSE))=TRUE,0,VLOOKUP($A7,'5. Construct'!$B$188:$E$188,4,FALSE)) -> 0 | GE7: =IF(ISNA(VLOOKUP($A7,'5. Construct'!$B$189:$E$189,4,FALSE))=TRUE,0,VLOOKUP($A7,'5. Construct'!$B$189:$E$189,4,FALSE)) -> 0 | GF7: =IF(ISNA(VLOOKUP($A7,'5. Construct'!$B$190:$E$190,4,FALSE))=TRUE,0,VLOOKUP($A7,'5. Construct'!$B$190:$E$190,4,FALSE)) -> 0 | GG7: =IF(ISNA(VLOOKUP($A7,'5. Construct'!$B$191:$E$191,4,FALSE))=TRUE,0,VLOOKUP($A7,'5. Construct'!$B$191:$E$191,4,FALSE)) -> 0 | GH7: =IF(ISNA(VLOOKUP($A7,'5. Construct'!$B$192:$D$192,4,FALSE))=TRUE,0,VLOOKUP($A7,'5. Construct'!$B$192:$D$192,4,FALSE)) -> 0 | GI7: =IF(ISNA(VLOOKUP($A7,'5. Construct'!$B$193:$E$193,4,FALSE))=TRUE,0,VLOOKUP($A7,'5. Construct'!$B$193:$E$193,4,FALSE)) -> 0 | GJ7: =IF(ISNA(VLOOKUP($A7,'5. Construct'!$B$194:$E$194,4,FALSE))=TRUE,0,VLOOKUP($A7,'5. Construct'!$B$194:$E$194,4,FALSE)) -> 0 | GK7: =IF(ISNA(VLOOKUP($A7,'5. Construct'!$B$195:$E$195,4,FALSE))=TRUE,0,VLOOKUP($A7,'5. Construct'!$B$195:$E$195,4,FALSE)) -> 0 | GL7: =IF(ISNA(VLOOKUP($A7,'5. Construct'!$B$196:$E$196,4,FALSE))=TRUE,0,VLOOKUP($A7,'5. Construct'!$B$196:$E$196,4,FALSE)) -> 0 | GM7: =IF(ISNA(VLOOKUP($A7,'5. Construct'!$B$197:$E$197,4,FALSE))=TRUE,0,VLOOKUP($A7,'5. Construct'!$B$197:$E$197,4,FALSE)) -> 0 | GN7: =IF(ISNA(VLOOKUP($A7,'5. Construct'!$B$198:$E$198,4,FALSE))=TRUE,0,VLOOKUP($A7,'5. Construct'!$B$198:$E$198,4,FALSE)) -> 0 | GO7: =IF(ISNA(VLOOKUP($A7,'5. Construct'!$B$199:$E$199,4,FALSE))=TRUE,0,VLOOKUP($A7,'5. Construct'!$B$199:$E$199,4,FALSE)) -> 0 | GP7: =IF(ISNA(VLOOKUP($A7,'5. Construct'!$B$200:$E$200,4,FALSE))=TRUE,0,VLOOKUP($A7,'5. Construct'!$B$200:$E$200,4,FALSE)) -> 0 | GQ7: =IF(ISNA(VLOOKUP($A7,'5. Construct'!$B$201:$E$201,4,FALSE))=TRUE,0,VLOOKUP($A7,'5. Construct'!$B$201:$E$201,4,FALSE)) -> 0 | GR7: =IF(ISNA(VLOOKUP($A7,'5. Construct'!$B$202:$E$202,4,FALSE))=TRUE,0,VLOOKUP($A7,'5. Construct'!$B$202:$E$202,4,FALSE)) -> 0 | GS7: =IF(ISNA(VLOOKUP($A7,'5. Construct'!$B$203:$E$203,4,FALSE))=TRUE,0,VLOOKUP($A7,'5. Construct'!$B$203:$E$203,4,FALSE)) -> 0 | GT7: =IF(ISNA(VLOOKUP($A7,'5. Construct'!$B$204:$E$204,4,FALSE))=TRUE,0,VLOOKUP($A7,'5. Construct'!$B$204:$E$204,4,FALSE)) -> 0 | GU7: =IF(ISNA(VLOOKUP($A7,'5. Construct'!$B$205:$E$205,4,FALSE))=TRUE,0,VLOOKUP($A7,'5. Construct'!$B$205:$E$205,4,FALSE)) -> 0 | GV7: =IF(ISNA(VLOOKUP($A7,'5. Construct'!$B$206:$E$206,4,FALSE))=TRUE,0,VLOOKUP($A7,'5. Construct'!$B$206:$E$206,4,FALSE)) -> 0 | GW7: =IF(ISNA(VLOOKUP($A7,'5. Construct'!$B$207:$E$207,4,FALSE))=TRUE,0,VLOOKUP($A7,'5. Construct'!$B$207:$E$207,4,FALSE)) -> 0 | GX7: =IF(ISNA(VLOOKUP($A7,'5. Construct'!$B$208:$E$208,4,FALSE))=TRUE,0,VLOOKUP($A7,'5. Construct'!$B$208:$E$208,4,FALSE)) -> 0 | GY7: =IF(ISNA(VLOOKUP($A7,'5. Construct'!$B$209:$E$209,4,FALSE))=TRUE,0,VLOOKUP($A7,'5. Construct'!$B$209:$E$209,4,FALSE)) -> 0 | GZ7: =IF(ISNA(VLOOKUP($A7,'5. Construct'!$B$210:$E$210,4,FALSE))=TRUE,0,VLOOKUP($A7,'5. Construct'!$B$210:$E$210,4,FALSE)) -> 0 | HA7: =IF(ISNA(VLOOKUP($A7,'5. Construct'!$B$211:$E$211,4,FALSE))=TRUE,0,VLOOKUP($A7,'5. Construct'!$B$211:$E$211,4,FALSE)) -> 0 | HB7: =IF(ISNA(VLOOKUP($A7,'5. Construct'!$B$212:$E$212,4,FALSE))=TRUE,0,VLOOKUP($A7,'5. Construct'!$B$212:$E$212,4,FALSE)) -> 0 | HC7: =IF(ISNA(VLOOKUP($A7,'5. Construct'!$B$213:$E$213,4,FALSE))=TRUE,0,VLOOKUP($A7,'5. Construct'!$B$213:$E$213,4,FALSE)) -> 0 | HD7: =IF(ISNA(VLOOKUP($A7,'5. Construct'!$B$214:$E$214,4,FALSE))=TRUE,0,VLOOKUP($A7,'5. Construct'!$B$214:$E$214,4,FALSE)) -> 0 | HE7: =IF(ISNA(VLOOKUP($A7,'5. Construct'!$B$215:$E$215,4,FALSE))=TRUE,0,VLOOKUP($A7,'5. Construct'!$B$215:$E$215,4,FALSE)) -> 0 | HF7: =IF(ISNA(VLOOKUP($A7,'5. Construct'!$B$216:$E$216,4,FALSE))=TRUE,0,VLOOKUP($A7,'5. Construct'!$B$216:$E$216,4,FALSE)) -> 0 | HG7: =IF(ISNA(VLOOKUP($A7,'5. Construct'!$B$217:$E$217,4,FALSE))=TRUE,0,VLOOKUP($A7,'5. Construct'!$B$217:$E$217,4,FALSE)) -> 0 | HH7: =IF(ISNA(VLOOKUP($A7,'5. Construct'!$B$218:$E$218,4,FALSE))=TRUE,0,VLOOKUP($A7,'5. Construct'!$B$218:$E$218,4,FALSE)) -> 0 | HI7: =IF(ISNA(VLOOKUP($A7,'5. Construct'!$B$219:$E$219,4,FALSE))=TRUE,0,VLOOKUP($A7,'5. Construct'!$B$219:$E$219,4,FALSE)) -> 0 | HJ7: =IF(ISNA(VLOOKUP($A7,'5. Construct'!$B$220:$E$220,4,FALSE))=TRUE,0,VLOOKUP($A7,'5. Construct'!$B$220:$E$220,4,FALSE)) -> 0 | HK7: =IF(ISNA(VLOOKUP($A7,'5. Construct'!$B$221:$E$221,4,FALSE))=TRUE,0,VLOOKUP($A7,'5. Construct'!$B$221:$E$221,4,FALSE)) -> 0 | HL7: =IF(ISNA(VLOOKUP($A7,'5. Construct'!$B$222:$E$222,4,FALSE))=TRUE,0,VLOOKUP($A7,'5. Construct'!$B$222:$E$222,4,FALSE)) -> 0 | HM7: =IF(ISNA(VLOOKUP($A7,'5. Construct'!$B$223:$E$223,4,FALSE))=TRUE,0,VLOOKUP($A7,'5. Construct'!$B$223:$E$223,4,FALSE)) -> 0 | HN7: =IF(ISNA(VLOOKUP($A7,'5. Construct'!$B$224:$E$224,4,FALSE))=TRUE,0,VLOOKUP($A7,'5. Construct'!$B$224:$E$224,4,FALSE)) -> 0 | HO7: =IF(ISNA(VLOOKUP($A7,'5. Construct'!$B$225:$E$225,4,FALSE))=TRUE,0,VLOOKUP($A7,'5. Construct'!$B$225:$E$225,4,FALSE)) -> 0 | HP7: =IF(ISNA(VLOOKUP($A7,'5. Construct'!$B$226:$E$226,4,FALSE))=TRUE,0,VLOOKUP($A7,'5. Construct'!$B$226:$E$226,4,FALSE)) -> 0 | HQ7: =IF(ISNA(VLOOKUP($A7,'5. Construct'!$B$227:$E$227,4,FALSE))=TRUE,0,VLOOKUP($A7,'5. Construct'!$B$227:$E$227,4,FALSE)) -> 0 | HR7: =IF(ISNA(VLOOKUP($A7,'5. Construct'!$B$228:$E$228,4,FALSE))=TRUE,0,VLOOKUP($A7,'5. Construct'!$B$228:$E$228,4,FALSE)) -> 0 | HS7: =IF(ISNA(VLOOKUP($A7,'5. Construct'!$B$229:$E$229,4,FALSE))=TRUE,0,VLOOKUP($A7,'5. Construct'!$B$229:$E$229,4,FALSE)) -> 0 | HT7: =IF(ISNA(VLOOKUP($A7,'5. Construct'!$B$230:$E$230,4,FALSE))=TRUE,0,VLOOKUP($A7,'5. Construct'!$B$230:$E$230,4,FALSE)) -> 0 | HU7: =IF(ISNA(VLOOKUP($A7,'5. Construct'!$B$231:$E$231,4,FALSE))=TRUE,0,VLOOKUP($A7,'5. Construct'!$B$231:$E$231,4,FALSE)) -> 0 | HV7: =IF(ISNA(VLOOKUP($A7,'5. Construct'!$B$232:$E$232,4,FALSE))=TRUE,0,VLOOKUP($A7,'5. Construct'!$B$232:$E$232,4,FALSE)) -> 0 | HW7: =IF(ISNA(VLOOKUP($A7,'5. Construct'!$B$233:$E$233,4,FALSE))=TRUE,0,VLOOKUP($A7,'5. Construct'!$B$233:$E$233,4,FALSE)) -> 0 | HX7: =IF(ISNA(VLOOKUP($A7,'5. Construct'!$B$234:$E$234,4,FALSE))=TRUE,0,VLOOKUP($A7,'5. Construct'!$B$234:$E$234,4,FALSE)) -> 0 | HY7: =IF(ISNA(VLOOKUP($A7,'5. Construct'!$B$235:$E$235,4,FALSE))=TRUE,0,VLOOKUP($A7,'5. Construct'!$B$235:$E$235,4,FALSE)) -> 0 | HZ7: =IF(ISNA(VLOOKUP($A7,'5. Construct'!$B$236:$E$236,4,FALSE))=TRUE,0,VLOOKUP($A7,'5. Construct'!$B$236:$E$236,4,FALSE)) -> 0 | IA7: =IF(ISNA(VLOOKUP($A7,'5. Construct'!$B$237:$E$237,4,FALSE))=TRUE,0,VLOOKUP($A7,'5. Construct'!$B$237:$E$237,4,FALSE)) -> 0 | IB7: =IF(ISNA(VLOOKUP($A7,'5. Construct'!$B$238:$E$238,4,FALSE))=TRUE,0,VLOOKUP($A7,'5. Construct'!$B$238:$E$238,4,FALSE)) -> 0 | IC7: =IF(ISNA(VLOOKUP($A7,'5. Construct'!$B$239:$E$239,4,FALSE))=TRUE,0,VLOOKUP($A7,'5. Construct'!$B$239:$E$239,4,FALSE)) -> 0 | ID7: =IF(ISNA(VLOOKUP($A7,'5. Construct'!$B$240:$E$240,4,FALSE))=TRUE,0,VLOOKUP($A7,'5. Construct'!$B$240:$E$240,4,FALSE)) -> 0 | IE7: =IF(ISNA(VLOOKUP($A7,'5. Construct'!$B$241:$E$241,4,FALSE))=TRUE,0,VLOOKUP($A7,'5. Construct'!$B$241:$E$241,4,FALSE)) -> 0 | IF7: =IF(ISNA(VLOOKUP($A7,'5. Construct'!$B$242:$E$242,4,FALSE))=TRUE,0,VLOOKUP($A7,'5. Construct'!$B$242:$E$242,4,FALSE)) -> 0 | IG7: =IF(ISNA(VLOOKUP($A7,'5. Construct'!$B$243:$E$243,4,FALSE))=TRUE,0,VLOOKUP($A7,'5. Construct'!$B$243:$E$243,4,FALSE)) -> 0 | IH7: =IF(ISNA(VLOOKUP($A7,'5. Construct'!$B$244:$E$244,4,FALSE))=TRUE,0,VLOOKUP($A7,'5. Construct'!$B$244:$E$244,4,FALSE)) -> 0 | II7: =IF(ISNA(VLOOKUP($A7,'5. Construct'!$B$245:$E$245,4,FALSE))=TRUE,0,VLOOKUP($A7,'5. Construct'!$B$245:$E$245,4,FALSE)) -> 0 | IJ7: =IF(ISNA(VLOOKUP($A7,'5. Construct'!$B$246:$E$246,4,FALSE))=TRUE,0,VLOOKUP($A7,'5. Construct'!$B$246:$E$246,4,FALSE)) -> 0 | IK7: =IF(ISNA(VLOOKUP($A7,'5. Construct'!$B$247:$E$247,4,FALSE))=TRUE,0,VLOOKUP($A7,'5. Construct'!$B$247:$E$247,4,FALSE)) -> 0 | IL7: =IF(ISNA(VLOOKUP($A7,'5. Construct'!$B$248:$E$248,4,FALSE))=TRUE,0,VLOOKUP($A7,'5. Construct'!$B$248:$E$248,4,FALSE)) -> 0 | IM7: =IF(ISNA(VLOOKUP($A7,'5. Construct'!$B$249:$E$249,4,FALSE))=TRUE,0,VLOOKUP($A7,'5. Construct'!$B$249:$E$249,4,FALSE)) -> 0 | IN7: =IF(ISNA(VLOOKUP($A7,'5. Construct'!$B$250:$E$250,4,FALSE))=TRUE,0,VLOOKUP($A7,'5. Construct'!$B$250:$E$250,4,FALSE)) -> 0 | IO7: =IF(ISNA(VLOOKUP($A7,'5. Construct'!$B$251:$E$251,4,FALSE))=TRUE,0,VLOOKUP($A7,'5. Construct'!$B$251:$E$251,4,FALSE)) -> 0 | IP7: =IF(ISNA(VLOOKUP($A7,'5. Construct'!$B$252:$E$252,4,FALSE))=TRUE,0,VLOOKUP($A7,'5. Construct'!$B$252:$E$252,4,FALSE)) -> 0 | IQ7: =IF(ISNA(VLOOKUP($A7,'5. Construct'!$B$253:$E$253,4,FALSE))=TRUE,0,VLOOKUP($A7,'5. Construct'!$B$253:$E$253,4,FALSE)) -> 0 | IR7: =IF(ISNA(VLOOKUP($A7,'5. Construct'!$B$254:$E$254,4,FALSE))=TRUE,0,VLOOKUP($A7,'5. Construct'!$B$254:$E$254,4,FALSE)) -> 0 | IS7: =IF(ISNA(VLOOKUP($A7,'5. Construct'!$B$255:$E$255,4,FALSE))=TRUE,0,VLOOKUP($A7,'5. Construct'!$B$255:$E$255,4,FALSE)) -> 0 | IT7: =IF(ISNA(VLOOKUP($A7,'5. Construct'!$B$256:$E$256,4,FALSE))=TRUE,0,VLOOKUP($A7,'5. Construct'!$B$256:$E$256,4,FALSE)) -> 0 | IU7: =IF(ISNA(VLOOKUP($A7,'5. Construct'!$B$257:$E$257,4,FALSE))=TRUE,0,VLOOKUP($A7,'5. Construct'!$B$257:$E$257,4,FALSE)) -> 0 | IV7: =IF(ISNA(VLOOKUP($A7,'5. Construct'!$B$258:$E$258,4,FALSE))=TRUE,0,VLOOKUP($A7,'5. Construct'!$B$258:$E$258,4,FALSE)) -> 0 | IW7: =IF(ISNA(VLOOKUP($A7,'5. Construct'!$B$259:$E$259,4,FALSE))=TRUE,0,VLOOKUP($A7,'5. Construct'!$B$259:$E$259,4,FALSE)) -> 0 | IX7: =IF(ISNA(VLOOKUP($A7,'5. Construct'!$B$260:$E$260,4,FALSE))=TRUE,0,VLOOKUP($A7,'5. Construct'!$B$260:$E$260,4,FALSE)) -> 0 | IY7: =IF(ISNA(VLOOKUP($A7,'5. Construct'!$B$261:$E$261,4,FALSE))=TRUE,0,VLOOKUP($A7,'5. Construct'!$B$261:$E$261,4,FALSE)) -> 0 | IZ7: =IF(ISNA(VLOOKUP($A7,'5. Construct'!$B$262:$E$262,4,FALSE))=TRUE,0,VLOOKUP($A7,'5. Construct'!$B$262:$E$262,4,FALSE)) -> 0 | JA7: =IF(ISNA(VLOOKUP($A7,'5. Construct'!$B$263:$E$263,4,FALSE))=TRUE,0,VLOOKUP($A7,'5. Construct'!$B$263:$E$263,4,FALSE)) -> 0 | JB7: =IF(ISNA(VLOOKUP($A7,'5. Construct'!$B$264:$E$264,4,FALSE))=TRUE,0,VLOOKUP($A7,'5. Construct'!$B$264:$E$264,4,FALSE)) -> 0 | JC7: =IF(ISNA(VLOOKUP($A7,'5. Construct'!$B$265:$E$265,4,FALSE))=TRUE,0,VLOOKUP($A7,'5. Construct'!$B$265:$E$265,4,FALSE)) -> 0 | JD7: =IF(ISNA(VLOOKUP($A7,'5. Construct'!$B$266:$E$266,4,FALSE))=TRUE,0,VLOOKUP($A7,'5. Construct'!$B$266:$E$266,4,FALSE)) -> 0 | JE7: =IF(ISNA(VLOOKUP($A7,'5. Construct'!$B$267:$E$267,4,FALSE))=TRUE,0,VLOOKUP($A7,'5. Construct'!$B$267:$E$267,4,FALSE)) -> 0 | JF7: =IF(ISNA(VLOOKUP($A7,'5. Construct'!$B$268:$E$268,4,FALSE))=TRUE,0,VLOOKUP($A7,'5. Construct'!$B$268:$E$268,4,FALSE)) -> 0 | JG7: =IF(ISNA(VLOOKUP($A7,'5. Construct'!$B$269:$E$269,4,FALSE))=TRUE,0,VLOOKUP($A7,'5. Construct'!$B$269:$E$269,4,FALSE)) -> 0 | JH7: =IF(ISNA(VLOOKUP($A7,'5. Construct'!$B$270:$E$270,4,FALSE))=TRUE,0,VLOOKUP($A7,'5. Construct'!$B$270:$E$270,4,FALSE)) -> 0 | JI7: =IF(ISNA(VLOOKUP($A7,'5. Construct'!$B$271:$E$271,4,FALSE))=TRUE,0,VLOOKUP($A7,'5. Construct'!$B$271:$E$271,4,FALSE)) -> 0 | JJ7: =IF(ISNA(VLOOKUP($A7,'5. Construct'!$B$272:$E$272,4,FALSE))=TRUE,0,VLOOKUP($A7,'5. Construct'!$B$272:$E$272,4,FALSE)) -> 0 | JK7: =IF(ISNA(VLOOKUP($A7,'5. Construct'!$B$273:$E$273,4,FALSE))=TRUE,0,VLOOKUP($A7,'5. Construct'!$B$273:$E$273,4,FALSE)) -> 0 | JL7: =IF(ISNA(VLOOKUP($A7,'5. Construct'!$B$274:$E$274,4,FALSE))=TRUE,0,VLOOKUP($A7,'5. Construct'!$B$274:$E$274,4,FALSE)) -> 0 | JM7: =IF(ISNA(VLOOKUP($A7,'5. Construct'!$B$275:$E$275,4,FALSE))=TRUE,0,VLOOKUP($A7,'5. Construct'!$B$275:$E$275,4,FALSE)) -> 0 | JN7: =IF(ISNA(VLOOKUP($A7,'5. Construct'!$B$276:$E$276,4,FALSE))=TRUE,0,VLOOKUP($A7,'5. Construct'!$B$276:$E$276,4,FALSE)) -> 0 | JO7: =IF(ISNA(VLOOKUP($A7,'5. Construct'!$B$277:$E$277,4,FALSE))=TRUE,0,VLOOKUP($A7,'5. Construct'!$B$277:$E$277,4,FALSE)) -> 0 | JP7: =IF(ISNA(VLOOKUP($A7,'5. Construct'!$B$278:$E$278,4,FALSE))=TRUE,0,VLOOKUP($A7,'5. Construct'!$B$278:$E$278,4,FALSE)) -> 0 | JQ7: =IF(ISNA(VLOOKUP($A7,'5. Construct'!$B$279:$E$279,4,FALSE))=TRUE,0,VLOOKUP($A7,'5. Construct'!$B$279:$E$279,4,FALSE)) -> 0 | JR7: =IF(ISNA(VLOOKUP($A7,'5. Construct'!$B$280:$E$280,4,FALSE))=TRUE,0,VLOOKUP($A7,'5. Construct'!$B$280:$E$280,4,FALSE)) -> 0 | JS7: =IF(ISNA(VLOOKUP($A7,'5. Construct'!$B$281:$E$281,4,FALSE))=TRUE,0,VLOOKUP($A7,'5. Construct'!$B$281:$E$281,4,FALSE)) -> 0 | JT7: =IF(ISNA(VLOOKUP($A7,'5. Construct'!$B$282:$E$282,4,FALSE))=TRUE,0,VLOOKUP($A7,'5. Construct'!$B$282:$E$282,4,FALSE)) -> 0 | JU7: =IF(ISNA(VLOOKUP($A7,'5. Construct'!$B$283:$E$283,4,FALSE))=TRUE,0,VLOOKUP($A7,'5. Construct'!$B$283:$E$283,4,FALSE)) -> 0 | JV7: =IF(ISNA(VLOOKUP($A7,'5. Construct'!$B$284:$E$284,4,FALSE))=TRUE,0,VLOOKUP($A7,'5. Construct'!$B$284:$E$284,4,FALSE)) -> 0 | JW7: =IF(ISNA(VLOOKUP($A7,'5. Construct'!$B$285:$E$285,4,FALSE))=TRUE,0,VLOOKUP($A7,'5. Construct'!$B$285:$E$285,4,FALSE)) -> 0 | JX7: =IF(ISNA(VLOOKUP($A7,'5. Construct'!$B$286:$E$286,4,FALSE))=TRUE,0,VLOOKUP($A7,'5. Construct'!$B$286:$E$286,4,FALSE)) -> 0 | JY7: =IF(ISNA(VLOOKUP($A7,'5. Construct'!$B$287:$E$287,4,FALSE))=TRUE,0,VLOOKUP($A7,'5. Construct'!$B$287:$E$287,4,FALSE)) -> 0 | JZ7: =IF(ISNA(VLOOKUP($A7,'5. Construct'!$B$288:$E$288,4,FALSE))=TRUE,0,VLOOKUP($A7,'5. Construct'!$B$288:$E$288,4,FALSE)) -> 0 | KA7: =IF(ISNA(VLOOKUP($A7,'5. Construct'!$B$289:$E$289,4,FALSE))=TRUE,0,VLOOKUP($A7,'5. Construct'!$B$289:$E$289,4,FALSE)) -> 0 | KB7: =IF(ISNA(VLOOKUP($A7,'5. Construct'!$B$290:$E$290,4,FALSE))=TRUE,0,VLOOKUP($A7,'5. Construct'!$B$290:$E$290,4,FALSE)) -> 0 | KC7: =SUM(CU7:DZ7)+SUM(GJ7:GX7)+SUM(HF7:HU7) -> 0 | KD7: =SUM(BK7:CM7) -> 0 | KE7: =SUM(E7:AE7) -> 0 | KF7: =SUM(EH7:FB7) -> 0 | KG7: =SUM(FI7:GC7) -> 0 | KH7: =SUM(E7:KB7) -> 0 | KI7: ='7. Material'!J5 -> 0 | KJ7: =KH7*(1+KI7) -> 0
A8: ='11. Mtrl em'!A6 -> Aluminium | B8: ='11. Mtrl em'!B6 -> 2700 | C8: ='11. Mtrl em'!C6 -> 200 | E8: =IF(ISNA(VLOOKUP($A8,'5. Construct'!$B$7:$E$7,4,FALSE))=TRUE,0,VLOOKUP($A8,'5. Construct'!$B$7:$E$7,4,FALSE)) ->  | F8: =IF(ISNA(VLOOKUP($A8,'5. Construct'!$B$8:$E$8,4,FALSE))=TRUE,0,VLOOKUP($A8,'5. Construct'!$B$8:$E$8,4,FALSE)) -> 0 | G8: =IF(ISNA(VLOOKUP($A8,'5. Construct'!$B$9:$E$9,4,FALSE))=TRUE,0,VLOOKUP($A8,'5. Construct'!$B$9:$E$9,4,FALSE)) -> 0 | H8: =IF(ISNA(VLOOKUP($A8,'5. Construct'!$B$10:$E$10,4,FALSE))=TRUE,0,VLOOKUP($A8,'5. Construct'!$B$10:$E$10,4,FALSE)) -> 0 | I8: =IF(ISNA(VLOOKUP($A8,'5. Construct'!$B$11:$E$11,4,FALSE))=TRUE,0,VLOOKUP($A8,'5. Construct'!$B$11:$E$11,4,FALSE)) -> 0 | J8: =IF(ISNA(VLOOKUP($A8,'5. Construct'!$B$12:$E$12,4,FALSE))=TRUE,0,VLOOKUP($A8,'5. Construct'!$B$12:$E$12,4,FALSE)) -> 0 | K8: =IF(ISNA(VLOOKUP($A8,'5. Construct'!$B$13:$E$13,4,FALSE))=TRUE,0,VLOOKUP($A8,'5. Construct'!$B$13:$E$13,4,FALSE)) -> 0 | L8: =IF(ISNA(VLOOKUP($A8,'5. Construct'!$B$14:$E$14,4,FALSE))=TRUE,0,VLOOKUP($A8,'5. Construct'!$B$14:$E$14,4,FALSE)) -> 0 | M8: =IF(ISNA(VLOOKUP($A8,'5. Construct'!$B$15:$E$15,4,FALSE))=TRUE,0,VLOOKUP($A8,'5. Construct'!$B$15:$E$15,4,FALSE)) -> 0 | N8: =IF(ISNA(VLOOKUP($A8,'5. Construct'!$B$16:$E$16,4,FALSE))=TRUE,0,VLOOKUP($A8,'5. Construct'!$B$16:$E$16,4,FALSE)) -> 0 | O8: =IF(ISNA(VLOOKUP($A8,'5. Construct'!$B$17:$E$17,4,FALSE))=TRUE,0,VLOOKUP($A8,'5. Construct'!$B$17:$E$17,4,FALSE)) -> 0 | P8: =IF(ISNA(VLOOKUP($A8,'5. Construct'!$B$18:$E$18,4,FALSE))=TRUE,0,VLOOKUP($A8,'5. Construct'!$B$18:$E$18,4,FALSE)) -> 0 | Q8: =IF(ISNA(VLOOKUP($A8,'5. Construct'!$B$19:$E$19,4,FALSE))=TRUE,0,VLOOKUP($A8,'5. Construct'!$B$19:$E$19,4,FALSE)) -> 0 | R8: =IF(ISNA(VLOOKUP($A8,'5. Construct'!$B$20:$E$20,4,FALSE))=TRUE,0,VLOOKUP($A8,'5. Construct'!$B$20:$E$20,4,FALSE)) -> 0 | S8: =IF(ISNA(VLOOKUP($A8,'5. Construct'!$B$21:$E$21,4,FALSE))=TRUE,0,VLOOKUP($A8,'5. Construct'!$B$21:$E$21,4,FALSE)) -> 0 | T8: =IF(ISNA(VLOOKUP($A8,'5. Construct'!$B$22:$E$22,4,FALSE))=TRUE,0,VLOOKUP($A8,'5. Construct'!$B$22:$E$22,4,FALSE)) -> 0 | U8: =IF(ISNA(VLOOKUP($A8,'5. Construct'!$B$23:$E$23,4,FALSE))=TRUE,0,VLOOKUP($A8,'5. Construct'!$B$23:$E$23,4,FALSE)) -> 0 | V8: =IF(ISNA(VLOOKUP($A8,'5. Construct'!$B$24:$E$24,4,FALSE))=TRUE,0,VLOOKUP($A8,'5. Construct'!$B$24:$E$24,4,FALSE)) -> 0 | W8: =IF(ISNA(VLOOKUP($A8,'5. Construct'!$B$25:$E$25,4,FALSE))=TRUE,0,VLOOKUP($A8,'5. Construct'!$B$25:$E$25,4,FALSE)) -> 0 | X8: =IF(ISNA(VLOOKUP($A8,'5. Construct'!$B$26:$E$26,4,FALSE))=TRUE,0,VLOOKUP($A8,'5. Construct'!$B$26:$E$26,4,FALSE)) -> 0 | Y8: =IF(ISNA(VLOOKUP($A8,'5. Construct'!$B$27:$E$27,4,FALSE))=TRUE,0,VLOOKUP($A8,'5. Construct'!$B$27:$E$27,4,FALSE)) -> 0 | Z8: =IF(ISNA(VLOOKUP($A8,'5. Construct'!$B$28:$E$28,4,FALSE))=TRUE,0,VLOOKUP($A8,'5. Construct'!$B$28:$E$28,4,FALSE)) -> 0 | AA8: =IF(ISNA(VLOOKUP($A8,'5. Construct'!$B$29:$E$29,4,FALSE))=TRUE,0,VLOOKUP($A8,'5. Construct'!$B$29:$E$29,4,FALSE)) -> 0 | AB8: =IF(ISNA(VLOOKUP($A8,'5. Construct'!$B$30:$E$30,4,FALSE))=TRUE,0,VLOOKUP($A8,'5. Construct'!$B$30:$E$30,4,FALSE)) -> 0 | AC8: =IF(ISNA(VLOOKUP($A8,'5. Construct'!$B$31:$E$31,4,FALSE))=TRUE,0,VLOOKUP($A8,'5. Construct'!$B$31:$E$31,4,FALSE)) -> 0 | AD8: =IF(ISNA(VLOOKUP($A8,'5. Construct'!$B$32:$E$32,4,FALSE))=TRUE,0,VLOOKUP($A8,'5. Construct'!$B$32:$E$32,4,FALSE)) -> 0 | AE8: =IF(ISNA(VLOOKUP($A8,'5. Construct'!$B$33:$E$33,4,FALSE))=TRUE,0,VLOOKUP($A8,'5. Construct'!$B$33:$E$33,4,FALSE)) -> 0 | AF8: =IF(ISNA(VLOOKUP($A8,'5. Construct'!$B$34:$E$34,4,FALSE))=TRUE,0,VLOOKUP($A8,'5. Construct'!$B$34:$E$34,4,FALSE)) -> 0 | AG8: =IF(ISNA(VLOOKUP($A8,'5. Construct'!$B$35:$E$35,4,FALSE))=TRUE,0,VLOOKUP($A8,'5. Construct'!$B$35:$E$35,4,FALSE)) -> 0 | AH8: =IF(ISNA(VLOOKUP($A8,'5. Construct'!$B$36:$E$36,4,FALSE))=TRUE,0,VLOOKUP($A8,'5. Construct'!$B$36:$E$36,4,FALSE)) -> 0 | AI8: =IF(ISNA(VLOOKUP($A8,'5. Construct'!$B$37:$E$37,4,FALSE))=TRUE,0,VLOOKUP($A8,'5. Construct'!$B$37:$E$37,4,FALSE)) -> 0 | AJ8: =IF(ISNA(VLOOKUP($A8,'5. Construct'!$B$38:$E$38,4,FALSE))=TRUE,0,VLOOKUP($A8,'5. Construct'!$B$38:$E$38,4,FALSE)) -> 0 | AK8: =IF(ISNA(VLOOKUP($A8,'5. Construct'!$B$39:$E$39,4,FALSE))=TRUE,0,VLOOKUP($A8,'5. Construct'!$B$39:$E$39,4,FALSE)) -> 0 | AL8: =IF(ISNA(VLOOKUP($A8,'5. Construct'!$B$40:$E$40,4,FALSE))=TRUE,0,VLOOKUP($A8,'5. Construct'!$B$40:$E$40,4,FALSE)) -> 0 | AM8: =IF(ISNA(VLOOKUP($A8,'5. Construct'!$B$41:$E$41,4,FALSE))=TRUE,0,VLOOKUP($A8,'5. Construct'!$B$41:$E$41,4,FALSE)) -> 0 | AN8: =IF(ISNA(VLOOKUP($A8,'5. Construct'!$B$42:$E$42,4,FALSE))=TRUE,0,VLOOKUP($A8,'5. Construct'!$B$42:$E$42,4,FALSE)) -> 0 | AO8: =IF(ISNA(VLOOKUP($A8,'5. Construct'!$B$43:$E$43,4,FALSE))=TRUE,0,VLOOKUP($A8,'5. Construct'!$B$43:$E$43,4,FALSE)) -> 0 | AP8: =IF(ISNA(VLOOKUP($A8,'5. Construct'!$B$44:$E$44,4,FALSE))=TRUE,0,VLOOKUP($A8,'5. Construct'!$B$44:$E$44,4,FALSE)) -> 0 | AQ8: =IF(ISNA(VLOOKUP($A8,'5. Construct'!$B$45:$E$45,4,FALSE))=TRUE,0,VLOOKUP($A8,'5. Construct'!$B$45:$E$45,4,FALSE)) -> 0 | AR8: =IF(ISNA(VLOOKUP($A8,'5. Construct'!$B$46:$E$46,4,FALSE))=TRUE,0,VLOOKUP($A8,'5. Construct'!$B$46:$E$46,4,FALSE)) -> 0 | AS8: =IF(ISNA(VLOOKUP($A8,'5. Construct'!$B$47:$E$47,4,FALSE))=TRUE,0,VLOOKUP($A8,'5. Construct'!$B$47:$E$47,4,FALSE)) -> 0 | AT8: =IF(ISNA(VLOOKUP($A8,'5. Construct'!$B$48:$E$48,4,FALSE))=TRUE,0,VLOOKUP($A8,'5. Construct'!$B$48:$E$48,4,FALSE)) -> 0 | AU8: =IF(ISNA(VLOOKUP($A8,'5. Construct'!$B$49:$E$49,4,FALSE))=TRUE,0,VLOOKUP($A8,'5. Construct'!$B$49:$E$49,4,FALSE)) -> 0 | AV8: =IF(ISNA(VLOOKUP($A8,'5. Construct'!$B$50:$E$50,4,FALSE))=TRUE,0,VLOOKUP($A8,'5. Construct'!$B$50:$E$50,4,FALSE)) -> 0 | AW8: =IF(ISNA(VLOOKUP($A8,'5. Construct'!$B$51:$E$51,4,FALSE))=TRUE,0,VLOOKUP($A8,'5. Construct'!$B$51:$E$51,4,FALSE)) -> 0 | AX8: =IF(ISNA(VLOOKUP($A8,'5. Construct'!$B$52:$E$52,4,FALSE))=TRUE,0,VLOOKUP($A8,'5. Construct'!$B$52:$E$52,4,FALSE)) -> 0 | AY8: =IF(ISNA(VLOOKUP($A8,'5. Construct'!$B$53:$E$53,4,FALSE))=TRUE,0,VLOOKUP($A8,'5. Construct'!$B$53:$E$53,4,FALSE)) -> 0 | AZ8: =IF(ISNA(VLOOKUP($A8,'5. Construct'!$B$54:$E$54,4,FALSE))=TRUE,0,VLOOKUP($A8,'5. Construct'!$B$54:$E$54,4,FALSE)) -> 0 | BA8: =IF(ISNA(VLOOKUP($A8,'5. Construct'!$B$55:$E$55,4,FALSE))=TRUE,0,VLOOKUP($A8,'5. Construct'!$B$55:$E$55,4,FALSE)) -> 0 | BB8: =IF(ISNA(VLOOKUP($A8,'5. Construct'!$B$56:$E$56,4,FALSE))=TRUE,0,VLOOKUP($A8,'5. Construct'!$B$56:$E$56,4,FALSE)) -> 0 | BC8: =IF(ISNA(VLOOKUP($A8,'5. Construct'!$B$57:$E$57,4,FALSE))=TRUE,0,VLOOKUP($A8,'5. Construct'!$B$57:$E$57,4,FALSE)) -> 0 | BD8: =IF(ISNA(VLOOKUP($A8,'5. Construct'!$B$58:$E$58,4,FALSE))=TRUE,0,VLOOKUP($A8,'5. Construct'!$B$58:$E$58,4,FALSE)) -> 0 | BE8: =IF(ISNA(VLOOKUP($A8,'5. Construct'!$B$59:$E$59,4,FALSE))=TRUE,0,VLOOKUP($A8,'5. Construct'!$B$59:$E$59,4,FALSE)) -> 0 | BF8: =IF(ISNA(VLOOKUP($A8,'5. Construct'!$B$60:$E$60,4,FALSE))=TRUE,0,VLOOKUP($A8,'5. Construct'!$B$60:$E$60,4,FALSE)) -> 0 | BG8: =IF(ISNA(VLOOKUP($A8,'5. Construct'!$B$61:$E$61,4,FALSE))=TRUE,0,VLOOKUP($A8,'5. Construct'!$B$61:$E$61,4,FALSE)) -> 0 | BH8: =IF(ISNA(VLOOKUP($A8,'5. Construct'!$B$62:$E$62,4,FALSE))=TRUE,0,VLOOKUP($A8,'5. Construct'!$B$62:$E$62,4,FALSE)) -> 0 | BI8: =IF(ISNA(VLOOKUP($A8,'5. Construct'!$B$63:$E$63,4,FALSE))=TRUE,0,VLOOKUP($A8,'5. Construct'!$B$63:$E$63,4,FALSE)) -> 0 | BJ8: =IF(ISNA(VLOOKUP($A8,'5. Construct'!$B$64:$E$64,4,FALSE))=TRUE,0,VLOOKUP($A8,'5. Construct'!$B$64:$E$64,4,FALSE)) -> 0 | BK8: =IF(ISNA(VLOOKUP($A8,'5. Construct'!$B$65:$E$65,4,FALSE))=TRUE,0,VLOOKUP($A8,'5. Construct'!$B$65:$E$65,4,FALSE)) -> 0 | BL8: =IF(ISNA(VLOOKUP($A8,'5. Construct'!$B$66:$E$66,4,FALSE))=TRUE,0,VLOOKUP($A8,'5. Construct'!$B$66:$E$66,4,FALSE)) -> 0 | BM8: =IF(ISNA(VLOOKUP($A8,'5. Construct'!$B$67:$E$67,4,FALSE))=TRUE,0,VLOOKUP($A8,'5. Construct'!$B$67:$E$67,4,FALSE)) -> 0 | BN8: =IF(ISNA(VLOOKUP($A8,'5. Construct'!$B$68:$E$68,4,FALSE))=TRUE,0,VLOOKUP($A8,'5. Construct'!$B$68:$E$68,4,FALSE)) -> 0 | BO8: =IF(ISNA(VLOOKUP($A8,'5. Construct'!$B$69:$E$69,4,FALSE))=TRUE,0,VLOOKUP($A8,'5. Construct'!$B$69:$E$69,4,FALSE)) -> 0 | BP8: =IF(ISNA(VLOOKUP($A8,'5. Construct'!$B$70:$E$70,4,FALSE))=TRUE,0,VLOOKUP($A8,'5. Construct'!$B$70:$E$70,4,FALSE)) -> 0 | BQ8: =IF(ISNA(VLOOKUP($A8,'5. Construct'!$B$71:$E$71,4,FALSE))=TRUE,0,VLOOKUP($A8,'5. Construct'!$B$71:$E$71,4,FALSE)) -> 0 | BR8: =IF(ISNA(VLOOKUP($A8,'5. Construct'!$B$72:$E$72,4,FALSE))=TRUE,0,VLOOKUP($A8,'5. Construct'!$B$72:$E$72,4,FALSE)) -> 0 | BS8: =IF(ISNA(VLOOKUP($A8,'5. Construct'!$B$73:$E$73,4,FALSE))=TRUE,0,VLOOKUP($A8,'5. Construct'!$B$73:$E$73,4,FALSE)) -> 0 | BT8: =IF(ISNA(VLOOKUP($A8,'5. Construct'!$B$74:$E$74,4,FALSE))=TRUE,0,VLOOKUP($A8,'5. Construct'!$B$74:$E$74,4,FALSE)) -> 0 | BU8: =IF(ISNA(VLOOKUP($A8,'5. Construct'!$B$75:$E$75,4,FALSE))=TRUE,0,VLOOKUP($A8,'5. Construct'!$B$75:$E$75,4,FALSE)) -> 0 | BV8: =IF(ISNA(VLOOKUP($A8,'5. Construct'!$B$76:$E$76,4,FALSE))=TRUE,0,VLOOKUP($A8,'5. Construct'!$B$76:$E$76,4,FALSE)) -> 0 | BW8: =IF(ISNA(VLOOKUP($A8,'5. Construct'!$B$77:$E$77,4,FALSE))=TRUE,0,VLOOKUP($A8,'5. Construct'!$B$77:$E$77,4,FALSE)) -> 0 | BX8: =IF(ISNA(VLOOKUP($A8,'5. Construct'!$B$78:$E$78,4,FALSE))=TRUE,0,VLOOKUP($A8,'5. Construct'!$B$78:$E$78,4,FALSE)) -> 0 | BY8: =IF(ISNA(VLOOKUP($A8,'5. Construct'!$B$79:$E$79,4,FALSE))=TRUE,0,VLOOKUP($A8,'5. Construct'!$B$79:$E$79,4,FALSE)) -> 0 | BZ8: =IF(ISNA(VLOOKUP($A8,'5. Construct'!$B$80:$D$80,4,FALSE))=TRUE,0,VLOOKUP($A8,'5. Construct'!$B$80:$D$80,4,FALSE)) -> 0 | CA8: =IF(ISNA(VLOOKUP($A8,'5. Construct'!$B$81:$E$81,4,FALSE))=TRUE,0,VLOOKUP($A8,'5. Construct'!$B$81:$E$81,4,FALSE)) -> 0 | CB8: =IF(ISNA(VLOOKUP($A8,'5. Construct'!$B$82:$E$82,4,FALSE))=TRUE,0,VLOOKUP($A8,'5. Construct'!$B$82:$E$82,4,FALSE)) -> 0 | CC8: =IF(ISNA(VLOOKUP($A8,'5. Construct'!$B$83:$E$83,4,FALSE))=TRUE,0,VLOOKUP($A8,'5. Construct'!$B$83:$E$83,4,FALSE)) -> 0 | CD8: =IF(ISNA(VLOOKUP($A8,'5. Construct'!$B$84:$E$84,4,FALSE))=TRUE,0,VLOOKUP($A8,'5. Construct'!$B$84:$E$84,4,FALSE)) -> 0 | CE8: =IF(ISNA(VLOOKUP($A8,'5. Construct'!$B$85:$E$85,4,FALSE))=TRUE,0,VLOOKUP($A8,'5. Construct'!$B$85:$E$85,4,FALSE)) -> 0 | CF8: =IF(ISNA(VLOOKUP($A8,'5. Construct'!$B$86:$E$86,4,FALSE))=TRUE,0,VLOOKUP($A8,'5. Construct'!$B$86:$E$86,4,FALSE)) -> 0 | CG8: =IF(ISNA(VLOOKUP($A8,'5. Construct'!$B$87:$E$87,4,FALSE))=TRUE,0,VLOOKUP($A8,'5. Construct'!$B$87:$E$87,4,FALSE)) -> 0 | CH8: =IF(ISNA(VLOOKUP($A8,'5. Construct'!$B$88:$E$88,4,FALSE))=TRUE,0,VLOOKUP($A8,'5. Construct'!$B$88:$E$88,4,FALSE)) -> 0 | CI8: =IF(ISNA(VLOOKUP($A8,'5. Construct'!$B$89:$E$89,4,FALSE))=TRUE,0,VLOOKUP($A8,'5. Construct'!$B$89:$E$89,4,FALSE)) -> 0 | CJ8: =IF(ISNA(VLOOKUP($A8,'5. Construct'!$B$90:$E$90,4,FALSE))=TRUE,0,VLOOKUP($A8,'5. Construct'!$B$90:$E$90,4,FALSE)) -> 0 | CK8: =IF(ISNA(VLOOKUP($A8,'5. Construct'!$B$91:$E$91,4,FALSE))=TRUE,0,VLOOKUP($A8,'5. Construct'!$B$91:$E$91,4,FALSE)) -> 0 | CL8: =IF(ISNA(VLOOKUP($A8,'5. Construct'!$B$92:$E$92,4,FALSE))=TRUE,0,VLOOKUP($A8,'5. Construct'!$B$92:$E$92,4,FALSE)) -> 0 | CM8: =IF(ISNA(VLOOKUP($A8,'5. Construct'!$B$93:$E$93,4,FALSE))=TRUE,0,VLOOKUP($A8,'5. Construct'!$B$93:$E$93,4,FALSE)) -> 0 | CN8: =IF(ISNA(VLOOKUP($A8,'5. Construct'!$B$94:$E$94,4,FALSE))=TRUE,0,VLOOKUP($A8,'5. Construct'!$B$94:$E$94,4,FALSE)) -> 0 | CO8: =IF(ISNA(VLOOKUP($A8,'5. Construct'!$B$95:$E$95,4,FALSE))=TRUE,0,VLOOKUP($A8,'5. Construct'!$B$95:$E$95,4,FALSE)) -> 0 | CP8: =IF(ISNA(VLOOKUP($A8,'5. Construct'!$B$96:$E$96,4,FALSE))=TRUE,0,VLOOKUP($A8,'5. Construct'!$B$96:$E$96,4,FALSE)) -> 0 | CQ8: =IF(ISNA(VLOOKUP($A8,'5. Construct'!$B$97:$E$97,4,FALSE))=TRUE,0,VLOOKUP($A8,'5. Construct'!$B$97:$E$97,4,FALSE)) -> 0 | CR8: =IF(ISNA(VLOOKUP($A8,'5. Construct'!$B$98:$E$98,4,FALSE))=TRUE,0,VLOOKUP($A8,'5. Construct'!$B$98:$E$98,4,FALSE)) -> 0 | CS8: =IF(ISNA(VLOOKUP($A8,'5. Construct'!$B$99:$C$99,4,FALSE))=TRUE,0,VLOOKUP($A8,'5. Construct'!$B$99:$C$99,4,FALSE)) -> 0 | CT8: =IF(ISNA(VLOOKUP($A8,'5. Construct'!$B$100:$E$100,4,FALSE))=TRUE,0,VLOOKUP($A8,'5. Construct'!$B$100:$E$100,4,FALSE)) -> 0 | CU8: =IF(ISNA(VLOOKUP($A8,'5. Construct'!$B$101:$E$101,4,FALSE))=TRUE,0,VLOOKUP($A8,'5. Construct'!$B$101:$E$101,4,FALSE)) -> 0 | CV8: =IF(ISNA(VLOOKUP($A8,'5. Construct'!$B$102:$E$102,4,FALSE))=TRUE,0,VLOOKUP($A8,'5. Construct'!$B$102:$E$102,4,FALSE)) -> 0 | CW8: =IF(ISNA(VLOOKUP($A8,'5. Construct'!$B$103:$E$103,4,FALSE))=TRUE,0,VLOOKUP($A8,'5. Construct'!$B$103:$E$103,4,FALSE)) -> 0 | CX8: =IF(ISNA(VLOOKUP($A8,'5. Construct'!$B$104:$E$104,4,FALSE))=TRUE,0,VLOOKUP($A8,'5. Construct'!$B$104:$E$104,4,FALSE)) -> 0 | CY8: =IF(ISNA(VLOOKUP($A8,'5. Construct'!$B$105:$E$105,4,FALSE))=TRUE,0,VLOOKUP($A8,'5. Construct'!$B$105:$E$105,4,FALSE)) -> 0 | CZ8: =IF(ISNA(VLOOKUP($A8,'5. Construct'!$B$106:$E$106,4,FALSE))=TRUE,0,VLOOKUP($A8,'5. Construct'!$B$106:$E$106,4,FALSE)) -> 0 | DA8: =IF(ISNA(VLOOKUP($A8,'5. Construct'!$B$107:$E$107,4,FALSE))=TRUE,0,VLOOKUP($A8,'5. Construct'!$B$107:$E$107,4,FALSE)) -> 0 | DB8: =IF(ISNA(VLOOKUP($A8,'5. Construct'!$B$108:$E$108,4,FALSE))=TRUE,0,VLOOKUP($A8,'5. Construct'!$B$108:$E$108,4,FALSE)) -> 0 | DC8: =IF(ISNA(VLOOKUP($A8,'5. Construct'!$B$109:$E$109,4,FALSE))=TRUE,0,VLOOKUP($A8,'5. Construct'!$B$109:$E$109,4,FALSE)) -> 0 | DD8: =IF(ISNA(VLOOKUP($A8,'5. Construct'!$B$110:$E$110,4,FALSE))=TRUE,0,VLOOKUP($A8,'5. Construct'!$B$110:$E$110,4,FALSE)) -> 0 | DE8: =IF(ISNA(VLOOKUP($A8,'5. Construct'!$B$111:$E$111,4,FALSE))=TRUE,0,VLOOKUP($A8,'5. Construct'!$B$111:$E$111,4,FALSE)) -> 0 | DF8: =IF(ISNA(VLOOKUP($A8,'5. Construct'!$B$112:$E$112,4,FALSE))=TRUE,0,VLOOKUP($A8,'5. Construct'!$B$112:$E$112,4,FALSE)) -> 0 | DG8: =IF(ISNA(VLOOKUP($A8,'5. Construct'!$B$113:$E$113,4,FALSE))=TRUE,0,VLOOKUP($A8,'5. Construct'!$B$113:$E$113,4,FALSE)) -> 0 | DH8: =IF(ISNA(VLOOKUP($A8,'5. Construct'!$B$114:$E$114,4,FALSE))=TRUE,0,VLOOKUP($A8,'5. Construct'!$B$114:$E$114,4,FALSE)) -> 0 | DI8: =IF(ISNA(VLOOKUP($A8,'5. Construct'!$B$115:$E$115,4,FALSE))=TRUE,0,VLOOKUP($A8,'5. Construct'!$B$115:$E$115,4,FALSE)) -> 0 | DJ8: =IF(ISNA(VLOOKUP($A8,'5. Construct'!$B$116:$E$116,4,FALSE))=TRUE,0,VLOOKUP($A8,'5. Construct'!$B$116:$E$116,4,FALSE)) -> 0 | DK8: =IF(ISNA(VLOOKUP($A8,'5. Construct'!$B$117:$E$117,4,FALSE))=TRUE,0,VLOOKUP($A8,'5. Construct'!$B$117:$E$117,4,FALSE)) -> 0 | DL8: =IF(ISNA(VLOOKUP($A8,'5. Construct'!$B$118:$D$118,4,FALSE))=TRUE,0,VLOOKUP($A8,'5. Construct'!$B$118:$D$118,4,FALSE)) -> 0 | DM8: =IF(ISNA(VLOOKUP($A8,'5. Construct'!$B$119:$E$119,4,FALSE))=TRUE,0,VLOOKUP($A8,'5. Construct'!$B$119:$E$119,4,FALSE)) -> 0 | DN8: =IF(ISNA(VLOOKUP($A8,'5. Construct'!$B$120:$E$120,4,FALSE))=TRUE,0,VLOOKUP($A8,'5. Construct'!$B$120:$E$120,4,FALSE)) -> 0 | DO8: =IF(ISNA(VLOOKUP($A8,'5. Construct'!$B$121:$E$121,4,FALSE))=TRUE,0,VLOOKUP($A8,'5. Construct'!$B$121:$E$121,4,FALSE)) -> 0 | DP8: =IF(ISNA(VLOOKUP($A8,'5. Construct'!$B$122:$E$122,4,FALSE))=TRUE,0,VLOOKUP($A8,'5. Construct'!$B$122:$E$122,4,FALSE)) -> 0 | DQ8: =IF(ISNA(VLOOKUP($A8,'5. Construct'!$B$123:$E$123,4,FALSE))=TRUE,0,VLOOKUP($A8,'5. Construct'!$B$123:$E$123,4,FALSE)) -> 0 | DR8: =IF(ISNA(VLOOKUP($A8,'5. Construct'!$B$124:$E$124,4,FALSE))=TRUE,0,VLOOKUP($A8,'5. Construct'!$B$124:$E$124,4,FALSE)) -> 0 | DS8: =IF(ISNA(VLOOKUP($A8,'5. Construct'!$B$125:$E$125,4,FALSE))=TRUE,0,VLOOKUP($A8,'5. Construct'!$B$125:$E$125,4,FALSE)) -> 0 | DT8: =IF(ISNA(VLOOKUP($A8,'5. Construct'!$B$126:$E$126,4,FALSE))=TRUE,0,VLOOKUP($A8,'5. Construct'!$B$126:$E$126,4,FALSE)) -> 0 | DU8: =IF(ISNA(VLOOKUP($A8,'5. Construct'!$B$127:$E$127,4,FALSE))=TRUE,0,VLOOKUP($A8,'5. Construct'!$B$127:$E$127,4,FALSE)) -> 0 | DV8: =IF(ISNA(VLOOKUP($A8,'5. Construct'!$B$128:$E$128,4,FALSE))=TRUE,0,VLOOKUP($A8,'5. Construct'!$B$128:$E$128,4,FALSE)) -> 0 | DW8: =IF(ISNA(VLOOKUP($A8,'5. Construct'!$B$129:$E$129,4,FALSE))=TRUE,0,VLOOKUP($A8,'5. Construct'!$B$129:$E$129,4,FALSE)) -> 0 | DX8: =IF(ISNA(VLOOKUP($A8,'5. Construct'!$B$130:$E$130,4,FALSE))=TRUE,0,VLOOKUP($A8,'5. Construct'!$B$130:$E$130,4,FALSE)) -> 0 | DY8: =IF(ISNA(VLOOKUP($A8,'5. Construct'!$B$131:$E$131,4,FALSE))=TRUE,0,VLOOKUP($A8,'5. Construct'!$B$131:$E$131,4,FALSE)) -> 0 | DZ8: =IF(ISNA(VLOOKUP($A8,'5. Construct'!$B$132:$E$132,4,FALSE))=TRUE,0,VLOOKUP($A8,'5. Construct'!$B$132:$E$132,4,FALSE)) -> 0 | EA8: =IF(ISNA(VLOOKUP($A8,'5. Construct'!$B$133:$E$133,4,FALSE))=TRUE,0,VLOOKUP($A8,'5. Construct'!$B$133:$E$133,4,FALSE)) -> 0 | EB8: =IF(ISNA(VLOOKUP($A8,'5. Construct'!$B$134:$E$134,4,FALSE))=TRUE,0,VLOOKUP($A8,'5. Construct'!$B$134:$E$134,4,FALSE)) -> 0 | EC8: =IF(ISNA(VLOOKUP($A8,'5. Construct'!$B$135:$E$135,4,FALSE))=TRUE,0,VLOOKUP($A8,'5. Construct'!$B$135:$E$135,4,FALSE)) -> 0 | ED8: =IF(ISNA(VLOOKUP($A8,'5. Construct'!$B$136:$E$136,4,FALSE))=TRUE,0,VLOOKUP($A8,'5. Construct'!$B$136:$E$136,4,FALSE)) -> 0 | EE8: =IF(ISNA(VLOOKUP($A8,'5. Construct'!$B$137:$E$137,4,FALSE))=TRUE,0,VLOOKUP($A8,'5. Construct'!$B$137:$E$137,4,FALSE)) -> 0 | EF8: =IF(ISNA(VLOOKUP($A8,'5. Construct'!$B$138:$C$138,4,FALSE))=TRUE,0,VLOOKUP($A8,'5. Construct'!$B$138:$C$138,4,FALSE)) -> 0 | EG8: =IF(ISNA(VLOOKUP($A8,'5. Construct'!$B$139:$E$139,4,FALSE))=TRUE,0,VLOOKUP($A8,'5. Construct'!$B$139:$E$139,4,FALSE)) -> 0 | EH8: =IF(ISNA(VLOOKUP($A8,'5. Construct'!$B$140:$E$140,4,FALSE))=TRUE,0,VLOOKUP($A8,'5. Construct'!$B$140:$E$140,4,FALSE)) -> 0 | EI8: =IF(ISNA(VLOOKUP($A8,'5. Construct'!$B$141:$E$141,4,FALSE))=TRUE,0,VLOOKUP($A8,'5. Construct'!$B$141:$E$141,4,FALSE)) -> 0 | EJ8: =IF(ISNA(VLOOKUP($A8,'5. Construct'!$B$142:$E$142,4,FALSE))=TRUE,0,VLOOKUP($A8,'5. Construct'!$B$142:$E$142,4,FALSE)) -> 0 | EK8: =IF(ISNA(VLOOKUP($A8,'5. Construct'!$B$143:$E$143,4,FALSE))=TRUE,0,VLOOKUP($A8,'5. Construct'!$B$143:$E$143,4,FALSE)) -> 0 | EL8: =IF(ISNA(VLOOKUP($A8,'5. Construct'!$B$144:$E$144,4,FALSE))=TRUE,0,VLOOKUP($A8,'5. Construct'!$B$144:$E$144,4,FALSE)) -> 0 | EM8: =IF(ISNA(VLOOKUP($A8,'5. Construct'!$B$145:$E$145,4,FALSE))=TRUE,0,VLOOKUP($A8,'5. Construct'!$B$145:$E$145,4,FALSE)) -> 0 | EN8: =IF(ISNA(VLOOKUP($A8,'5. Construct'!$B$145:$E$145,4,FALSE))=TRUE,0,VLOOKUP($A8,'5. Construct'!$B$145:$E$145,4,FALSE)) -> 0 | EO8: =IF(ISNA(VLOOKUP($A8,'5. Construct'!$B$147:$E$147,4,FALSE))=TRUE,0,VLOOKUP($A8,'5. Construct'!$B$147:$E$147,4,FALSE)) -> 0 | EP8: =IF(ISNA(VLOOKUP($A8,'5. Construct'!$B$148:$E$148,4,FALSE))=TRUE,0,VLOOKUP($A8,'5. Construct'!$B$148:$E$148,4,FALSE)) -> 0 | EQ8: =IF(ISNA(VLOOKUP($A8,'5. Construct'!$B$149:$E$149,4,FALSE))=TRUE,0,VLOOKUP($A8,'5. Construct'!$B$149:$E$149,4,FALSE)) -> 0 | ER8: =IF(ISNA(VLOOKUP($A8,'5. Construct'!$B$150:$E$150,4,FALSE))=TRUE,0,VLOOKUP($A8,'5. Construct'!$B$150:$E$150,4,FALSE)) -> 0 | ES8: =IF(ISNA(VLOOKUP($A8,'5. Construct'!$B$151:$D$151,4,FALSE))=TRUE,0,VLOOKUP($A8,'5. Construct'!$B$151:$D$151,4,FALSE)) -> 0 | ET8: =IF(ISNA(VLOOKUP($A8,'5. Construct'!$B$152:$E$152,4,FALSE))=TRUE,0,VLOOKUP($A8,'5. Construct'!$B$152:$E$152,4,FALSE)) -> 0 | EU8: =IF(ISNA(VLOOKUP($A8,'5. Construct'!$B$153:$E$153,4,FALSE))=TRUE,0,VLOOKUP($A8,'5. Construct'!$B$153:$E$153,4,FALSE)) -> 0 | EV8: =IF(ISNA(VLOOKUP($A8,'5. Construct'!$B$154:$E$154,4,FALSE))=TRUE,0,VLOOKUP($A8,'5. Construct'!$B$154:$E$154,4,FALSE)) -> 0 | EW8: =IF(ISNA(VLOOKUP($A8,'5. Construct'!$B$155:$E$155,4,FALSE))=TRUE,0,VLOOKUP($A8,'5. Construct'!$B$155:$E$155,4,FALSE)) -> 0 | EX8: =IF(ISNA(VLOOKUP($A8,'5. Construct'!$B$156:$E$156,4,FALSE))=TRUE,0,VLOOKUP($A8,'5. Construct'!$B$156:$E$156,4,FALSE)) -> 0 | EY8: =IF(ISNA(VLOOKUP($A8,'5. Construct'!$B$157:$E$157,4,FALSE))=TRUE,0,VLOOKUP($A8,'5. Construct'!$B$157:$E$157,4,FALSE)) -> 0 | EZ8: =IF(ISNA(VLOOKUP($A8,'5. Construct'!$B$158:$E$158,4,FALSE))=TRUE,0,VLOOKUP($A8,'5. Construct'!$B$158:$E$158,4,FALSE)) -> 0 | FA8: =IF(ISNA(VLOOKUP($A8,'5. Construct'!$B$159:$E$159,4,FALSE))=TRUE,0,VLOOKUP($A8,'5. Construct'!$B$159:$E$159,4,FALSE)) -> 0 | FB8: =IF(ISNA(VLOOKUP($A8,'5. Construct'!$B$160:$E$160,4,FALSE))=TRUE,0,VLOOKUP($A8,'5. Construct'!$B$160:$E$160,4,FALSE)) -> 0 | FC8: =IF(ISNA(VLOOKUP($A8,'5. Construct'!$B$161:$E$161,4,FALSE))=TRUE,0,VLOOKUP($A8,'5. Construct'!$B$161:$E$161,4,FALSE)) -> 0 | FD8: =IF(ISNA(VLOOKUP($A8,'5. Construct'!$B$162:$E$162,4,FALSE))=TRUE,0,VLOOKUP($A8,'5. Construct'!$B$162:$E$162,4,FALSE)) -> 0 | FE8: =IF(ISNA(VLOOKUP($A8,'5. Construct'!$B$163:$E$163,4,FALSE))=TRUE,0,VLOOKUP($A8,'5. Construct'!$B$163:$E$163,4,FALSE)) -> 0 | FF8: =IF(ISNA(VLOOKUP($A8,'5. Construct'!$B$164:$E$164,4,FALSE))=TRUE,0,VLOOKUP($A8,'5. Construct'!$B$164:$E$164,4,FALSE)) -> 0 | FG8: =IF(ISNA(VLOOKUP($A8,'5. Construct'!$B$165:$D$165,4,FALSE))=TRUE,0,VLOOKUP($A8,'5. Construct'!$B$165:$D$165,4,FALSE)) -> 0 | FH8: =IF(ISNA(VLOOKUP($A8,'5. Construct'!$B$166:$E$166,4,FALSE))=TRUE,0,VLOOKUP($A8,'5. Construct'!$B$166:$E$166,4,FALSE)) -> 0 | FI8: =IF(ISNA(VLOOKUP($A8,'5. Construct'!$B$167:$E$167,4,FALSE))=TRUE,0,VLOOKUP($A8,'5. Construct'!$B$167:$E$167,4,FALSE)) -> 0 | FJ8: =IF(ISNA(VLOOKUP($A8,'5. Construct'!$B$168:$E$168,4,FALSE))=TRUE,0,VLOOKUP($A8,'5. Construct'!$B$168:$E$168,4,FALSE)) -> 0 | FK8: =IF(ISNA(VLOOKUP($A8,'5. Construct'!$B$169:$E$169,4,FALSE))=TRUE,0,VLOOKUP($A8,'5. Construct'!$B$169:$E$169,4,FALSE)) -> 0 | FL8: =IF(ISNA(VLOOKUP($A8,'5. Construct'!$B$170:$E$170,4,FALSE))=TRUE,0,VLOOKUP($A8,'5. Construct'!$B$170:$E$170,4,FALSE)) -> 0 | FM8: =IF(ISNA(VLOOKUP($A8,'5. Construct'!$B$171:$E$171,4,FALSE))=TRUE,0,VLOOKUP($A8,'5. Construct'!$B$171:$E$171,4,FALSE)) -> 0 | FN8: =IF(ISNA(VLOOKUP($A8,'5. Construct'!$B$172:$E$172,4,FALSE))=TRUE,0,VLOOKUP($A8,'5. Construct'!$B$172:$E$172,4,FALSE)) -> 0 | FO8: =IF(ISNA(VLOOKUP($A8,'5. Construct'!$B$173:$E$173,4,FALSE))=TRUE,0,VLOOKUP($A8,'5. Construct'!$B$173:$E$173,4,FALSE)) -> 0 | FP8: =IF(ISNA(VLOOKUP($A8,'5. Construct'!$B$174:$E$174,4,FALSE))=TRUE,0,VLOOKUP($A8,'5. Construct'!$B$174:$E$174,4,FALSE)) -> 0 | FQ8: =IF(ISNA(VLOOKUP($A8,'5. Construct'!$B$175:$E$175,4,FALSE))=TRUE,0,VLOOKUP($A8,'5. Construct'!$B$175:$E$175,4,FALSE)) -> 0 | FR8: =IF(ISNA(VLOOKUP($A8,'5. Construct'!$B$176:$E$176,4,FALSE))=TRUE,0,VLOOKUP($A8,'5. Construct'!$B$176:$E$176,4,FALSE)) -> 0 | FS8: =IF(ISNA(VLOOKUP($A8,'5. Construct'!$B$177:$E$177,4,FALSE))=TRUE,0,VLOOKUP($A8,'5. Construct'!$B$177:$E$177,4,FALSE)) -> 0 | FT8: =IF(ISNA(VLOOKUP($A8,'5. Construct'!$B$178:$E$178,4,FALSE))=TRUE,0,VLOOKUP($A8,'5. Construct'!$B$178:$E$178,4,FALSE)) -> 0 | FU8: =IF(ISNA(VLOOKUP($A8,'5. Construct'!$B$179:$E$179,4,FALSE))=TRUE,0,VLOOKUP($A8,'5. Construct'!$B$179:$E$179,4,FALSE)) -> 0 | FV8: =IF(ISNA(VLOOKUP($A8,'5. Construct'!$B$180:$E$180,4,FALSE))=TRUE,0,VLOOKUP($A8,'5. Construct'!$B$180:$E$180,4,FALSE)) -> 0 | FW8: =IF(ISNA(VLOOKUP($A8,'5. Construct'!$B$181:$E$181,4,FALSE))=TRUE,0,VLOOKUP($A8,'5. Construct'!$B$181:$E$181,4,FALSE)) -> 0 | FX8: =IF(ISNA(VLOOKUP($A8,'5. Construct'!$B$182:$E$182,4,FALSE))=TRUE,0,VLOOKUP($A8,'5. Construct'!$B$182:$E$182,4,FALSE)) -> 0 | FY8: =IF(ISNA(VLOOKUP($A8,'5. Construct'!$B$183:$E$183,4,FALSE))=TRUE,0,VLOOKUP($A8,'5. Construct'!$B$183:$E$183,4,FALSE)) -> 0 | FZ8: =IF(ISNA(VLOOKUP($A8,'5. Construct'!$B$184:$E$184,4,FALSE))=TRUE,0,VLOOKUP($A8,'5. Construct'!$B$184:$E$184,4,FALSE)) -> 0 | GA8: =IF(ISNA(VLOOKUP($A8,'5. Construct'!$B$185:$E$185,4,FALSE))=TRUE,0,VLOOKUP($A8,'5. Construct'!$B$185:$E$185,4,FALSE)) -> 0 | GB8: =IF(ISNA(VLOOKUP($A8,'5. Construct'!$B$186:$E$186,4,FALSE))=TRUE,0,VLOOKUP($A8,'5. Construct'!$B$186:$E$186,4,FALSE)) -> 0 | GC8: =IF(ISNA(VLOOKUP($A8,'5. Construct'!$B$187:$E$187,4,FALSE))=TRUE,0,VLOOKUP($A8,'5. Construct'!$B$187:$E$187,4,FALSE)) -> 0 | GD8: =IF(ISNA(VLOOKUP($A8,'5. Construct'!$B$188:$E$188,4,FALSE))=TRUE,0,VLOOKUP($A8,'5. Construct'!$B$188:$E$188,4,FALSE)) -> 0 | GE8: =IF(ISNA(VLOOKUP($A8,'5. Construct'!$B$189:$E$189,4,FALSE))=TRUE,0,VLOOKUP($A8,'5. Construct'!$B$189:$E$189,4,FALSE)) -> 0 | GF8: =IF(ISNA(VLOOKUP($A8,'5. Construct'!$B$190:$E$190,4,FALSE))=TRUE,0,VLOOKUP($A8,'5. Construct'!$B$190:$E$190,4,FALSE)) -> 0 | GG8: =IF(ISNA(VLOOKUP($A8,'5. Construct'!$B$191:$E$191,4,FALSE))=TRUE,0,VLOOKUP($A8,'5. Construct'!$B$191:$E$191,4,FALSE)) -> 0 | GH8: =IF(ISNA(VLOOKUP($A8,'5. Construct'!$B$192:$D$192,4,FALSE))=TRUE,0,VLOOKUP($A8,'5. Construct'!$B$192:$D$192,4,FALSE)) -> 0 | GI8: =IF(ISNA(VLOOKUP($A8,'5. Construct'!$B$193:$E$193,4,FALSE))=TRUE,0,VLOOKUP($A8,'5. Construct'!$B$193:$E$193,4,FALSE)) -> 0 | GJ8: =IF(ISNA(VLOOKUP($A8,'5. Construct'!$B$194:$E$194,4,FALSE))=TRUE,0,VLOOKUP($A8,'5. Construct'!$B$194:$E$194,4,FALSE)) -> 0 | GK8: =IF(ISNA(VLOOKUP($A8,'5. Construct'!$B$195:$E$195,4,FALSE))=TRUE,0,VLOOKUP($A8,'5. Construct'!$B$195:$E$195,4,FALSE)) -> 0 | GL8: =IF(ISNA(VLOOKUP($A8,'5. Construct'!$B$196:$E$196,4,FALSE))=TRUE,0,VLOOKUP($A8,'5. Construct'!$B$196:$E$196,4,FALSE)) -> 0 | GM8: =IF(ISNA(VLOOKUP($A8,'5. Construct'!$B$197:$E$197,4,FALSE))=TRUE,0,VLOOKUP($A8,'5. Construct'!$B$197:$E$197,4,FALSE)) -> 0 | GN8: =IF(ISNA(VLOOKUP($A8,'5. Construct'!$B$198:$E$198,4,FALSE))=TRUE,0,VLOOKUP($A8,'5. Construct'!$B$198:$E$198,4,FALSE)) -> 0 | GO8: =IF(ISNA(VLOOKUP($A8,'5. Construct'!$B$199:$E$199,4,FALSE))=TRUE,0,VLOOKUP($A8,'5. Construct'!$B$199:$E$199,4,FALSE)) -> 0 | GP8: =IF(ISNA(VLOOKUP($A8,'5. Construct'!$B$200:$E$200,4,FALSE))=TRUE,0,VLOOKUP($A8,'5. Construct'!$B$200:$E$200,4,FALSE)) -> 0 | GQ8: =IF(ISNA(VLOOKUP($A8,'5. Construct'!$B$201:$E$201,4,FALSE))=TRUE,0,VLOOKUP($A8,'5. Construct'!$B$201:$E$201,4,FALSE)) -> 0 | GR8: =IF(ISNA(VLOOKUP($A8,'5. Construct'!$B$202:$E$202,4,FALSE))=TRUE,0,VLOOKUP($A8,'5. Construct'!$B$202:$E$202,4,FALSE)) -> 0 | GS8: =IF(ISNA(VLOOKUP($A8,'5. Construct'!$B$203:$E$203,4,FALSE))=TRUE,0,VLOOKUP($A8,'5. Construct'!$B$203:$E$203,4,FALSE)) -> 0 | GT8: =IF(ISNA(VLOOKUP($A8,'5. Construct'!$B$204:$E$204,4,FALSE))=TRUE,0,VLOOKUP($A8,'5. Construct'!$B$204:$E$204,4,FALSE)) -> 0 | GU8: =IF(ISNA(VLOOKUP($A8,'5. Construct'!$B$205:$E$205,4,FALSE))=TRUE,0,VLOOKUP($A8,'5. Construct'!$B$205:$E$205,4,FALSE)) -> 0 | GV8: =IF(ISNA(VLOOKUP($A8,'5. Construct'!$B$206:$E$206,4,FALSE))=TRUE,0,VLOOKUP($A8,'5. Construct'!$B$206:$E$206,4,FALSE)) -> 0 | GW8: =IF(ISNA(VLOOKUP($A8,'5. Construct'!$B$207:$E$207,4,FALSE))=TRUE,0,VLOOKUP($A8,'5. Construct'!$B$207:$E$207,4,FALSE)) -> 0 | GX8: =IF(ISNA(VLOOKUP($A8,'5. Construct'!$B$208:$E$208,4,FALSE))=TRUE,0,VLOOKUP($A8,'5. Construct'!$B$208:$E$208,4,FALSE)) -> 0 | GY8: =IF(ISNA(VLOOKUP($A8,'5. Construct'!$B$209:$E$209,4,FALSE))=TRUE,0,VLOOKUP($A8,'5. Construct'!$B$209:$E$209,4,FALSE)) -> 0 | GZ8: =IF(ISNA(VLOOKUP($A8,'5. Construct'!$B$210:$E$210,4,FALSE))=TRUE,0,VLOOKUP($A8,'5. Construct'!$B$210:$E$210,4,FALSE)) -> 0 | HA8: =IF(ISNA(VLOOKUP($A8,'5. Construct'!$B$211:$E$211,4,FALSE))=TRUE,0,VLOOKUP($A8,'5. Construct'!$B$211:$E$211,4,FALSE)) -> 0 | HB8: =IF(ISNA(VLOOKUP($A8,'5. Construct'!$B$212:$E$212,4,FALSE))=TRUE,0,VLOOKUP($A8,'5. Construct'!$B$212:$E$212,4,FALSE)) -> 0 | HC8: =IF(ISNA(VLOOKUP($A8,'5. Construct'!$B$213:$E$213,4,FALSE))=TRUE,0,VLOOKUP($A8,'5. Construct'!$B$213:$E$213,4,FALSE)) -> 0 | HD8: =IF(ISNA(VLOOKUP($A8,'5. Construct'!$B$214:$E$214,4,FALSE))=TRUE,0,VLOOKUP($A8,'5. Construct'!$B$214:$E$214,4,FALSE)) -> 0 | HE8: =IF(ISNA(VLOOKUP($A8,'5. Construct'!$B$215:$E$215,4,FALSE))=TRUE,0,VLOOKUP($A8,'5. Construct'!$B$215:$E$215,4,FALSE)) -> 0 | HF8: =IF(ISNA(VLOOKUP($A8,'5. Construct'!$B$216:$E$216,4,FALSE))=TRUE,0,VLOOKUP($A8,'5. Construct'!$B$216:$E$216,4,FALSE)) -> 0 | HG8: =IF(ISNA(VLOOKUP($A8,'5. Construct'!$B$217:$E$217,4,FALSE))=TRUE,0,VLOOKUP($A8,'5. Construct'!$B$217:$E$217,4,FALSE)) -> 0 | HH8: =IF(ISNA(VLOOKUP($A8,'5. Construct'!$B$218:$E$218,4,FALSE))=TRUE,0,VLOOKUP($A8,'5. Construct'!$B$218:$E$218,4,FALSE)) -> 0 | HI8: =IF(ISNA(VLOOKUP($A8,'5. Construct'!$B$219:$E$219,4,FALSE))=TRUE,0,VLOOKUP($A8,'5. Construct'!$B$219:$E$219,4,FALSE)) -> 0 | HJ8: =IF(ISNA(VLOOKUP($A8,'5. Construct'!$B$220:$E$220,4,FALSE))=TRUE,0,VLOOKUP($A8,'5. Construct'!$B$220:$E$220,4,FALSE)) -> 0 | HK8: =IF(ISNA(VLOOKUP($A8,'5. Construct'!$B$221:$E$221,4,FALSE))=TRUE,0,VLOOKUP($A8,'5. Construct'!$B$221:$E$221,4,FALSE)) -> 0 | HL8: =IF(ISNA(VLOOKUP($A8,'5. Construct'!$B$222:$E$222,4,FALSE))=TRUE,0,VLOOKUP($A8,'5. Construct'!$B$222:$E$222,4,FALSE)) -> 0 | HM8: =IF(ISNA(VLOOKUP($A8,'5. Construct'!$B$223:$E$223,4,FALSE))=TRUE,0,VLOOKUP($A8,'5. Construct'!$B$223:$E$223,4,FALSE)) -> 0 | HN8: =IF(ISNA(VLOOKUP($A8,'5. Construct'!$B$224:$E$224,4,FALSE))=TRUE,0,VLOOKUP($A8,'5. Construct'!$B$224:$E$224,4,FALSE)) -> 0 | HO8: =IF(ISNA(VLOOKUP($A8,'5. Construct'!$B$225:$E$225,4,FALSE))=TRUE,0,VLOOKUP($A8,'5. Construct'!$B$225:$E$225,4,FALSE)) -> 0 | HP8: =IF(ISNA(VLOOKUP($A8,'5. Construct'!$B$226:$E$226,4,FALSE))=TRUE,0,VLOOKUP($A8,'5. Construct'!$B$226:$E$226,4,FALSE)) -> 0 | HQ8: =IF(ISNA(VLOOKUP($A8,'5. Construct'!$B$227:$E$227,4,FALSE))=TRUE,0,VLOOKUP($A8,'5. Construct'!$B$227:$E$227,4,FALSE)) -> 0 | HR8: =IF(ISNA(VLOOKUP($A8,'5. Construct'!$B$228:$E$228,4,FALSE))=TRUE,0,VLOOKUP($A8,'5. Construct'!$B$228:$E$228,4,FALSE)) -> 0 | HS8: =IF(ISNA(VLOOKUP($A8,'5. Construct'!$B$229:$E$229,4,FALSE))=TRUE,0,VLOOKUP($A8,'5. Construct'!$B$229:$E$229,4,FALSE)) -> 0 | HT8: =IF(ISNA(VLOOKUP($A8,'5. Construct'!$B$230:$E$230,4,FALSE))=TRUE,0,VLOOKUP($A8,'5. Construct'!$B$230:$E$230,4,FALSE)) -> 0 | HU8: =IF(ISNA(VLOOKUP($A8,'5. Construct'!$B$231:$E$231,4,FALSE))=TRUE,0,VLOOKUP($A8,'5. Construct'!$B$231:$E$231,4,FALSE)) -> 0 | HV8: =IF(ISNA(VLOOKUP($A8,'5. Construct'!$B$232:$E$232,4,FALSE))=TRUE,0,VLOOKUP($A8,'5. Construct'!$B$232:$E$232,4,FALSE)) -> 0 | HW8: =IF(ISNA(VLOOKUP($A8,'5. Construct'!$B$233:$E$233,4,FALSE))=TRUE,0,VLOOKUP($A8,'5. Construct'!$B$233:$E$233,4,FALSE)) -> 0 | HX8: =IF(ISNA(VLOOKUP($A8,'5. Construct'!$B$234:$E$234,4,FALSE))=TRUE,0,VLOOKUP($A8,'5. Construct'!$B$234:$E$234,4,FALSE)) -> 0 | HY8: =IF(ISNA(VLOOKUP($A8,'5. Construct'!$B$235:$E$235,4,FALSE))=TRUE,0,VLOOKUP($A8,'5. Construct'!$B$235:$E$235,4,FALSE)) -> 0 | HZ8: =IF(ISNA(VLOOKUP($A8,'5. Construct'!$B$236:$E$236,4,FALSE))=TRUE,0,VLOOKUP($A8,'5. Construct'!$B$236:$E$236,4,FALSE)) -> 0 | IA8: =IF(ISNA(VLOOKUP($A8,'5. Construct'!$B$237:$E$237,4,FALSE))=TRUE,0,VLOOKUP($A8,'5. Construct'!$B$237:$E$237,4,FALSE)) -> 0 | IB8: =IF(ISNA(VLOOKUP($A8,'5. Construct'!$B$238:$E$238,4,FALSE))=TRUE,0,VLOOKUP($A8,'5. Construct'!$B$238:$E$238,4,FALSE)) -> 0 | IC8: =IF(ISNA(VLOOKUP($A8,'5. Construct'!$B$239:$E$239,4,FALSE))=TRUE,0,VLOOKUP($A8,'5. Construct'!$B$239:$E$239,4,FALSE)) -> 0 | ID8: =IF(ISNA(VLOOKUP($A8,'5. Construct'!$B$240:$E$240,4,FALSE))=TRUE,0,VLOOKUP($A8,'5. Construct'!$B$240:$E$240,4,FALSE)) -> 0 | IE8: =IF(ISNA(VLOOKUP($A8,'5. Construct'!$B$241:$E$241,4,FALSE))=TRUE,0,VLOOKUP($A8,'5. Construct'!$B$241:$E$241,4,FALSE)) -> 0 | IF8: =IF(ISNA(VLOOKUP($A8,'5. Construct'!$B$242:$E$242,4,FALSE))=TRUE,0,VLOOKUP($A8,'5. Construct'!$B$242:$E$242,4,FALSE)) -> 0 | IG8: =IF(ISNA(VLOOKUP($A8,'5. Construct'!$B$243:$E$243,4,FALSE))=TRUE,0,VLOOKUP($A8,'5. Construct'!$B$243:$E$243,4,FALSE)) -> 0 | IH8: =IF(ISNA(VLOOKUP($A8,'5. Construct'!$B$244:$E$244,4,FALSE))=TRUE,0,VLOOKUP($A8,'5. Construct'!$B$244:$E$244,4,FALSE)) -> 0 | II8: =IF(ISNA(VLOOKUP($A8,'5. Construct'!$B$245:$E$245,4,FALSE))=TRUE,0,VLOOKUP($A8,'5. Construct'!$B$245:$E$245,4,FALSE)) -> 0 | IJ8: =IF(ISNA(VLOOKUP($A8,'5. Construct'!$B$246:$E$246,4,FALSE))=TRUE,0,VLOOKUP($A8,'5. Construct'!$B$246:$E$246,4,FALSE)) -> 0 | IK8: =IF(ISNA(VLOOKUP($A8,'5. Construct'!$B$247:$E$247,4,FALSE))=TRUE,0,VLOOKUP($A8,'5. Construct'!$B$247:$E$247,4,FALSE)) -> 0 | IL8: =IF(ISNA(VLOOKUP($A8,'5. Construct'!$B$248:$E$248,4,FALSE))=TRUE,0,VLOOKUP($A8,'5. Construct'!$B$248:$E$248,4,FALSE)) -> 0 | IM8: =IF(ISNA(VLOOKUP($A8,'5. Construct'!$B$249:$E$249,4,FALSE))=TRUE,0,VLOOKUP($A8,'5. Construct'!$B$249:$E$249,4,FALSE)) -> 0 | IN8: =IF(ISNA(VLOOKUP($A8,'5. Construct'!$B$250:$E$250,4,FALSE))=TRUE,0,VLOOKUP($A8,'5. Construct'!$B$250:$E$250,4,FALSE)) -> 0 | IO8: =IF(ISNA(VLOOKUP($A8,'5. Construct'!$B$251:$E$251,4,FALSE))=TRUE,0,VLOOKUP($A8,'5. Construct'!$B$251:$E$251,4,FALSE)) -> 0 | IP8: =IF(ISNA(VLOOKUP($A8,'5. Construct'!$B$252:$E$252,4,FALSE))=TRUE,0,VLOOKUP($A8,'5. Construct'!$B$252:$E$252,4,FALSE)) -> 0 | IQ8: =IF(ISNA(VLOOKUP($A8,'5. Construct'!$B$253:$E$253,4,FALSE))=TRUE,0,VLOOKUP($A8,'5. Construct'!$B$253:$E$253,4,FALSE)) -> 0 | IR8: =IF(ISNA(VLOOKUP($A8,'5. Construct'!$B$254:$E$254,4,FALSE))=TRUE,0,VLOOKUP($A8,'5. Construct'!$B$254:$E$254,4,FALSE)) -> 0 | IS8: =IF(ISNA(VLOOKUP($A8,'5. Construct'!$B$255:$E$255,4,FALSE))=TRUE,0,VLOOKUP($A8,'5. Construct'!$B$255:$E$255,4,FALSE)) -> 0 | IT8: =IF(ISNA(VLOOKUP($A8,'5. Construct'!$B$256:$E$256,4,FALSE))=TRUE,0,VLOOKUP($A8,'5. Construct'!$B$256:$E$256,4,FALSE)) -> 0 | IU8: =IF(ISNA(VLOOKUP($A8,'5. Construct'!$B$257:$E$257,4,FALSE))=TRUE,0,VLOOKUP($A8,'5. Construct'!$B$257:$E$257,4,FALSE)) -> 0 | IV8: =IF(ISNA(VLOOKUP($A8,'5. Construct'!$B$258:$E$258,4,FALSE))=TRUE,0,VLOOKUP($A8,'5. Construct'!$B$258:$E$258,4,FALSE)) -> 0 | IW8: =IF(ISNA(VLOOKUP($A8,'5. Construct'!$B$259:$E$259,4,FALSE))=TRUE,0,VLOOKUP($A8,'5. Construct'!$B$259:$E$259,4,FALSE)) -> 0 | IX8: =IF(ISNA(VLOOKUP($A8,'5. Construct'!$B$260:$E$260,4,FALSE))=TRUE,0,VLOOKUP($A8,'5. Construct'!$B$260:$E$260,4,FALSE)) -> 0 | IY8: =IF(ISNA(VLOOKUP($A8,'5. Construct'!$B$261:$E$261,4,FALSE))=TRUE,0,VLOOKUP($A8,'5. Construct'!$B$261:$E$261,4,FALSE)) -> 0 | IZ8: =IF(ISNA(VLOOKUP($A8,'5. Construct'!$B$262:$E$262,4,FALSE))=TRUE,0,VLOOKUP($A8,'5. Construct'!$B$262:$E$262,4,FALSE)) -> 0 | JA8: =IF(ISNA(VLOOKUP($A8,'5. Construct'!$B$263:$E$263,4,FALSE))=TRUE,0,VLOOKUP($A8,'5. Construct'!$B$263:$E$263,4,FALSE)) -> 0 | JB8: =IF(ISNA(VLOOKUP($A8,'5. Construct'!$B$264:$E$264,4,FALSE))=TRUE,0,VLOOKUP($A8,'5. Construct'!$B$264:$E$264,4,FALSE)) -> 0 | JC8: =IF(ISNA(VLOOKUP($A8,'5. Construct'!$B$265:$E$265,4,FALSE))=TRUE,0,VLOOKUP($A8,'5. Construct'!$B$265:$E$265,4,FALSE)) -> 0 | JD8: =IF(ISNA(VLOOKUP($A8,'5. Construct'!$B$266:$E$266,4,FALSE))=TRUE,0,VLOOKUP($A8,'5. Construct'!$B$266:$E$266,4,FALSE)) -> 0 | JE8: =IF(ISNA(VLOOKUP($A8,'5. Construct'!$B$267:$E$267,4,FALSE))=TRUE,0,VLOOKUP($A8,'5. Construct'!$B$267:$E$267,4,FALSE)) -> 0 | JF8: =IF(ISNA(VLOOKUP($A8,'5. Construct'!$B$268:$E$268,4,FALSE))=TRUE,0,VLOOKUP($A8,'5. Construct'!$B$268:$E$268,4,FALSE)) -> 0 | JG8: =IF(ISNA(VLOOKUP($A8,'5. Construct'!$B$269:$E$269,4,FALSE))=TRUE,0,VLOOKUP($A8,'5. Construct'!$B$269:$E$269,4,FALSE)) -> 0 | JH8: =IF(ISNA(VLOOKUP($A8,'5. Construct'!$B$270:$E$270,4,FALSE))=TRUE,0,VLOOKUP($A8,'5. Construct'!$B$270:$E$270,4,FALSE)) -> 0 | JI8: =IF(ISNA(VLOOKUP($A8,'5. Construct'!$B$271:$E$271,4,FALSE))=TRUE,0,VLOOKUP($A8,'5. Construct'!$B$271:$E$271,4,FALSE)) -> 0 | JJ8: =IF(ISNA(VLOOKUP($A8,'5. Construct'!$B$272:$E$272,4,FALSE))=TRUE,0,VLOOKUP($A8,'5. Construct'!$B$272:$E$272,4,FALSE)) -> 0 | JK8: =IF(ISNA(VLOOKUP($A8,'5. Construct'!$B$273:$E$273,4,FALSE))=TRUE,0,VLOOKUP($A8,'5. Construct'!$B$273:$E$273,4,FALSE)) -> 0 | JL8: =IF(ISNA(VLOOKUP($A8,'5. Construct'!$B$274:$E$274,4,FALSE))=TRUE,0,VLOOKUP($A8,'5. Construct'!$B$274:$E$274,4,FALSE)) -> 0 | JM8: =IF(ISNA(VLOOKUP($A8,'5. Construct'!$B$275:$E$275,4,FALSE))=TRUE,0,VLOOKUP($A8,'5. Construct'!$B$275:$E$275,4,FALSE)) -> 0 | JN8: =IF(ISNA(VLOOKUP($A8,'5. Construct'!$B$276:$E$276,4,FALSE))=TRUE,0,VLOOKUP($A8,'5. Construct'!$B$276:$E$276,4,FALSE)) -> 0 | JO8: =IF(ISNA(VLOOKUP($A8,'5. Construct'!$B$277:$E$277,4,FALSE))=TRUE,0,VLOOKUP($A8,'5. Construct'!$B$277:$E$277,4,FALSE)) -> 0 | JP8: =IF(ISNA(VLOOKUP($A8,'5. Construct'!$B$278:$E$278,4,FALSE))=TRUE,0,VLOOKUP($A8,'5. Construct'!$B$278:$E$278,4,FALSE)) -> 0 | JQ8: =IF(ISNA(VLOOKUP($A8,'5. Construct'!$B$279:$E$279,4,FALSE))=TRUE,0,VLOOKUP($A8,'5. Construct'!$B$279:$E$279,4,FALSE)) -> 0 | JR8: =IF(ISNA(VLOOKUP($A8,'5. Construct'!$B$280:$E$280,4,FALSE))=TRUE,0,VLOOKUP($A8,'5. Construct'!$B$280:$E$280,4,FALSE)) -> 0 | JS8: =IF(ISNA(VLOOKUP($A8,'5. Construct'!$B$281:$E$281,4,FALSE))=TRUE,0,VLOOKUP($A8,'5. Construct'!$B$281:$E$281,4,FALSE)) -> 0 | JT8: =IF(ISNA(VLOOKUP($A8,'5. Construct'!$B$282:$E$282,4,FALSE))=TRUE,0,VLOOKUP($A8,'5. Construct'!$B$282:$E$282,4,FALSE)) -> 0 | JU8: =IF(ISNA(VLOOKUP($A8,'5. Construct'!$B$283:$E$283,4,FALSE))=TRUE,0,VLOOKUP($A8,'5. Construct'!$B$283:$E$283,4,FALSE)) -> 0 | JV8: =IF(ISNA(VLOOKUP($A8,'5. Construct'!$B$284:$E$284,4,FALSE))=TRUE,0,VLOOKUP($A8,'5. Construct'!$B$284:$E$284,4,FALSE)) -> 0 | JW8: =IF(ISNA(VLOOKUP($A8,'5. Construct'!$B$285:$E$285,4,FALSE))=TRUE,0,VLOOKUP($A8,'5. Construct'!$B$285:$E$285,4,FALSE)) -> 0 | JX8: =IF(ISNA(VLOOKUP($A8,'5. Construct'!$B$286:$E$286,4,FALSE))=TRUE,0,VLOOKUP($A8,'5. Construct'!$B$286:$E$286,4,FALSE)) -> 0 | JY8: =IF(ISNA(VLOOKUP($A8,'5. Construct'!$B$287:$E$287,4,FALSE))=TRUE,0,VLOOKUP($A8,'5. Construct'!$B$287:$E$287,4,FALSE)) -> 0 | JZ8: =IF(ISNA(VLOOKUP($A8,'5. Construct'!$B$288:$E$288,4,FALSE))=TRUE,0,VLOOKUP($A8,'5. Construct'!$B$288:$E$288,4,FALSE)) -> 0 | KA8: =IF(ISNA(VLOOKUP($A8,'5. Construct'!$B$289:$E$289,4,FALSE))=TRUE,0,VLOOKUP($A8,'5. Construct'!$B$289:$E$289,4,FALSE)) -> 0 | KB8: =IF(ISNA(VLOOKUP($A8,'5. Construct'!$B$290:$E$290,4,FALSE))=TRUE,0,VLOOKUP($A8,'5. Construct'!$B$290:$E$290,4,FALSE)) -> 0 | KC8: 0 | KD8: 0 | KF8: 0 | KG8: 0 | KI8: ='7. Material'!J6 -> 0 | KJ8: =KH8*(1+KI8) -> 
A9: ='11. Mtrl em'!A7 -> Brick, massive | B9: ='11. Mtrl em'!B7 -> 1700 | C9: ='11. Mtrl em'!C7 -> 0.81 | D9: 0 | E9: =IF(ISNA(VLOOKUP($A9,'5. Construct'!$B$7:$E$7,4,FALSE))=TRUE,0,VLOOKUP($A9,'5. Construct'!$B$7:$E$7,4,FALSE)) -> 0 | F9: =IF(ISNA(VLOOKUP($A9,'5. Construct'!$B$8:$E$8,4,FALSE))=TRUE,0,VLOOKUP($A9,'5. Construct'!$B$8:$E$8,4,FALSE)) -> 0 | G9: =IF(ISNA(VLOOKUP($A9,'5. Construct'!$B$9:$E$9,4,FALSE))=TRUE,0,VLOOKUP($A9,'5. Construct'!$B$9:$E$9,4,FALSE)) -> 0 | H9: =IF(ISNA(VLOOKUP($A9,'5. Construct'!$B$10:$E$10,4,FALSE))=TRUE,0,VLOOKUP($A9,'5. Construct'!$B$10:$E$10,4,FALSE)) -> 0 | I9: =IF(ISNA(VLOOKUP($A9,'5. Construct'!$B$11:$E$11,4,FALSE))=TRUE,0,VLOOKUP($A9,'5. Construct'!$B$11:$E$11,4,FALSE)) -> 0 | J9: =IF(ISNA(VLOOKUP($A9,'5. Construct'!$B$12:$E$12,4,FALSE))=TRUE,0,VLOOKUP($A9,'5. Construct'!$B$12:$E$12,4,FALSE)) -> 0 | K9: =IF(ISNA(VLOOKUP($A9,'5. Construct'!$B$13:$E$13,4,FALSE))=TRUE,0,VLOOKUP($A9,'5. Construct'!$B$13:$E$13,4,FALSE)) -> 0 | L9: =IF(ISNA(VLOOKUP($A9,'5. Construct'!$B$14:$E$14,4,FALSE))=TRUE,0,VLOOKUP($A9,'5. Construct'!$B$14:$E$14,4,FALSE)) -> 0 | M9: =IF(ISNA(VLOOKUP($A9,'5. Construct'!$B$15:$E$15,4,FALSE))=TRUE,0,VLOOKUP($A9,'5. Construct'!$B$15:$E$15,4,FALSE)) -> 0 | N9: =IF(ISNA(VLOOKUP($A9,'5. Construct'!$B$16:$E$16,4,FALSE))=TRUE,0,VLOOKUP($A9,'5. Construct'!$B$16:$E$16,4,FALSE)) -> 0 | O9: =IF(ISNA(VLOOKUP($A9,'5. Construct'!$B$17:$E$17,4,FALSE))=TRUE,0,VLOOKUP($A9,'5. Construct'!$B$17:$E$17,4,FALSE)) -> 0 | P9: =IF(ISNA(VLOOKUP($A9,'5. Construct'!$B$18:$E$18,4,FALSE))=TRUE,0,VLOOKUP($A9,'5. Construct'!$B$18:$E$18,4,FALSE)) -> 0 | Q9: =IF(ISNA(VLOOKUP($A9,'5. Construct'!$B$19:$E$19,4,FALSE))=TRUE,0,VLOOKUP($A9,'5. Construct'!$B$19:$E$19,4,FALSE)) -> 0 | R9: =IF(ISNA(VLOOKUP($A9,'5. Construct'!$B$20:$E$20,4,FALSE))=TRUE,0,VLOOKUP($A9,'5. Construct'!$B$20:$E$20,4,FALSE)) -> 0 | S9: =IF(ISNA(VLOOKUP($A9,'5. Construct'!$B$21:$E$21,4,FALSE))=TRUE,0,VLOOKUP($A9,'5. Construct'!$B$21:$E$21,4,FALSE)) -> 0 | T9: =IF(ISNA(VLOOKUP($A9,'5. Construct'!$B$22:$E$22,4,FALSE))=TRUE,0,VLOOKUP($A9,'5. Construct'!$B$22:$E$22,4,FALSE)) -> 0 | U9: =IF(ISNA(VLOOKUP($A9,'5. Construct'!$B$23:$E$23,4,FALSE))=TRUE,0,VLOOKUP($A9,'5. Construct'!$B$23:$E$23,4,FALSE)) -> 0 | V9: =IF(ISNA(VLOOKUP($A9,'5. Construct'!$B$24:$E$24,4,FALSE))=TRUE,0,VLOOKUP($A9,'5. Construct'!$B$24:$E$24,4,FALSE)) -> 0 | W9: =IF(ISNA(VLOOKUP($A9,'5. Construct'!$B$25:$E$25,4,FALSE))=TRUE,0,VLOOKUP($A9,'5. Construct'!$B$25:$E$25,4,FALSE)) -> 0 | X9: =IF(ISNA(VLOOKUP($A9,'5. Construct'!$B$26:$E$26,4,FALSE))=TRUE,0,VLOOKUP($A9,'5. Construct'!$B$26:$E$26,4,FALSE)) -> 0 | Y9: =IF(ISNA(VLOOKUP($A9,'5. Construct'!$B$27:$E$27,4,FALSE))=TRUE,0,VLOOKUP($A9,'5. Construct'!$B$27:$E$27,4,FALSE)) -> 0 | Z9: =IF(ISNA(VLOOKUP($A9,'5. Construct'!$B$28:$E$28,4,FALSE))=TRUE,0,VLOOKUP($A9,'5. Construct'!$B$28:$E$28,4,FALSE)) -> 0 | AA9: =IF(ISNA(VLOOKUP($A9,'5. Construct'!$B$29:$E$29,4,FALSE))=TRUE,0,VLOOKUP($A9,'5. Construct'!$B$29:$E$29,4,FALSE)) -> 0 | AB9: =IF(ISNA(VLOOKUP($A9,'5. Construct'!$B$30:$E$30,4,FALSE))=TRUE,0,VLOOKUP($A9,'5. Construct'!$B$30:$E$30,4,FALSE)) -> 0 | AC9: =IF(ISNA(VLOOKUP($A9,'5. Construct'!$B$31:$E$31,4,FALSE))=TRUE,0,VLOOKUP($A9,'5. Construct'!$B$31:$E$31,4,FALSE)) -> 0 | AD9: =IF(ISNA(VLOOKUP($A9,'5. Construct'!$B$32:$E$32,4,FALSE))=TRUE,0,VLOOKUP($A9,'5. Construct'!$B$32:$E$32,4,FALSE)) -> 0 | AE9: =IF(ISNA(VLOOKUP($A9,'5. Construct'!$B$33:$E$33,4,FALSE))=TRUE,0,VLOOKUP($A9,'5. Construct'!$B$33:$E$33,4,FALSE)) -> 0 | AF9: =IF(ISNA(VLOOKUP($A9,'5. Construct'!$B$34:$E$34,4,FALSE))=TRUE,0,VLOOKUP($A9,'5. Construct'!$B$34:$E$34,4,FALSE)) -> 0 | AG9: =IF(ISNA(VLOOKUP($A9,'5. Construct'!$B$35:$E$35,4,FALSE))=TRUE,0,VLOOKUP($A9,'5. Construct'!$B$35:$E$35,4,FALSE)) -> 0 | AH9: =IF(ISNA(VLOOKUP($A9,'5. Construct'!$B$36:$E$36,4,FALSE))=TRUE,0,VLOOKUP($A9,'5. Construct'!$B$36:$E$36,4,FALSE)) -> 0 | AI9: =IF(ISNA(VLOOKUP($A9,'5. Construct'!$B$37:$E$37,4,FALSE))=TRUE,0,VLOOKUP($A9,'5. Construct'!$B$37:$E$37,4,FALSE)) -> 0 | AJ9: =IF(ISNA(VLOOKUP($A9,'5. Construct'!$B$38:$E$38,4,FALSE))=TRUE,0,VLOOKUP($A9,'5. Construct'!$B$38:$E$38,4,FALSE)) -> 0 | AK9: =IF(ISNA(VLOOKUP($A9,'5. Construct'!$B$39:$E$39,4,FALSE))=TRUE,0,VLOOKUP($A9,'5. Construct'!$B$39:$E$39,4,FALSE)) -> 0 | AL9: =IF(ISNA(VLOOKUP($A9,'5. Construct'!$B$40:$E$40,4,FALSE))=TRUE,0,VLOOKUP($A9,'5. Construct'!$B$40:$E$40,4,FALSE)) -> 0 | AM9: =IF(ISNA(VLOOKUP($A9,'5. Construct'!$B$41:$E$41,4,FALSE))=TRUE,0,VLOOKUP($A9,'5. Construct'!$B$41:$E$41,4,FALSE)) -> 0 | AN9: =IF(ISNA(VLOOKUP($A9,'5. Construct'!$B$42:$E$42,4,FALSE))=TRUE,0,VLOOKUP($A9,'5. Construct'!$B$42:$E$42,4,FALSE)) -> 0 | AO9: =IF(ISNA(VLOOKUP($A9,'5. Construct'!$B$43:$E$43,4,FALSE))=TRUE,0,VLOOKUP($A9,'5. Construct'!$B$43:$E$43,4,FALSE)) -> 0 | AP9: =IF(ISNA(VLOOKUP($A9,'5. Construct'!$B$44:$E$44,4,FALSE))=TRUE,0,VLOOKUP($A9,'5. Construct'!$B$44:$E$44,4,FALSE)) -> 0 | AQ9: =IF(ISNA(VLOOKUP($A9,'5. Construct'!$B$45:$E$45,4,FALSE))=TRUE,0,VLOOKUP($A9,'5. Construct'!$B$45:$E$45,4,FALSE)) -> 0 | AR9: =IF(ISNA(VLOOKUP($A9,'5. Construct'!$B$46:$E$46,4,FALSE))=TRUE,0,VLOOKUP($A9,'5. Construct'!$B$46:$E$46,4,FALSE)) -> 0 | AS9: =IF(ISNA(VLOOKUP($A9,'5. Construct'!$B$47:$E$47,4,FALSE))=TRUE,0,VLOOKUP($A9,'5. Construct'!$B$47:$E$47,4,FALSE)) -> 0 | AT9: =IF(ISNA(VLOOKUP($A9,'5. Construct'!$B$48:$E$48,4,FALSE))=TRUE,0,VLOOKUP($A9,'5. Construct'!$B$48:$E$48,4,FALSE)) -> 0 | AU9: =IF(ISNA(VLOOKUP($A9,'5. Construct'!$B$49:$E$49,4,FALSE))=TRUE,0,VLOOKUP($A9,'5. Construct'!$B$49:$E$49,4,FALSE)) -> 0 | AV9: =IF(ISNA(VLOOKUP($A9,'5. Construct'!$B$50:$E$50,4,FALSE))=TRUE,0,VLOOKUP($A9,'5. Construct'!$B$50:$E$50,4,FALSE)) -> 0 | AW9: =IF(ISNA(VLOOKUP($A9,'5. Construct'!$B$51:$E$51,4,FALSE))=TRUE,0,VLOOKUP($A9,'5. Construct'!$B$51:$E$51,4,FALSE)) -> 0 | AX9: =IF(ISNA(VLOOKUP($A9,'5. Construct'!$B$52:$E$52,4,FALSE))=TRUE,0,VLOOKUP($A9,'5. Construct'!$B$52:$E$52,4,FALSE)) -> 0 | AY9: =IF(ISNA(VLOOKUP($A9,'5. Construct'!$B$53:$E$53,4,FALSE))=TRUE,0,VLOOKUP($A9,'5. Construct'!$B$53:$E$53,4,FALSE)) -> 0 | AZ9: =IF(ISNA(VLOOKUP($A9,'5. Construct'!$B$54:$E$54,4,FALSE))=TRUE,0,VLOOKUP($A9,'5. Construct'!$B$54:$E$54,4,FALSE)) -> 0 | BA9: =IF(ISNA(VLOOKUP($A9,'5. Construct'!$B$55:$E$55,4,FALSE))=TRUE,0,VLOOKUP($A9,'5. Construct'!$B$55:$E$55,4,FALSE)) -> 0 | BB9: =IF(ISNA(VLOOKUP($A9,'5. Construct'!$B$56:$E$56,4,FALSE))=TRUE,0,VLOOKUP($A9,'5. Construct'!$B$56:$E$56,4,FALSE)) -> 0 | BC9: =IF(ISNA(VLOOKUP($A9,'5. Construct'!$B$57:$E$57,4,FALSE))=TRUE,0,VLOOKUP($A9,'5. Construct'!$B$57:$E$57,4,FALSE)) -> 0 | BD9: =IF(ISNA(VLOOKUP($A9,'5. Construct'!$B$58:$E$58,4,FALSE))=TRUE,0,VLOOKUP($A9,'5. Construct'!$B$58:$E$58,4,FALSE)) -> 0 | BE9: =IF(ISNA(VLOOKUP($A9,'5. Construct'!$B$59:$E$59,4,FALSE))=TRUE,0,VLOOKUP($A9,'5. Construct'!$B$59:$E$59,4,FALSE)) -> 0 | BF9: =IF(ISNA(VLOOKUP($A9,'5. Construct'!$B$60:$E$60,4,FALSE))=TRUE,0,VLOOKUP($A9,'5. Construct'!$B$60:$E$60,4,FALSE)) -> 0 | BG9: =IF(ISNA(VLOOKUP($A9,'5. Construct'!$B$61:$E$61,4,FALSE))=TRUE,0,VLOOKUP($A9,'5. Construct'!$B$61:$E$61,4,FALSE)) -> 0 | BH9: =IF(ISNA(VLOOKUP($A9,'5. Construct'!$B$62:$E$62,4,FALSE))=TRUE,0,VLOOKUP($A9,'5. Construct'!$B$62:$E$62,4,FALSE)) -> 0 | BI9: =IF(ISNA(VLOOKUP($A9,'5. Construct'!$B$63:$E$63,4,FALSE))=TRUE,0,VLOOKUP($A9,'5. Construct'!$B$63:$E$63,4,FALSE)) -> 0 | BJ9: =IF(ISNA(VLOOKUP($A9,'5. Construct'!$B$64:$E$64,4,FALSE))=TRUE,0,VLOOKUP($A9,'5. Construct'!$B$64:$E$64,4,FALSE)) -> 0 | BK9: =IF(ISNA(VLOOKUP($A9,'5. Construct'!$B$65:$E$65,4,FALSE))=TRUE,0,VLOOKUP($A9,'5. Construct'!$B$65:$E$65,4,FALSE)) -> 0 | BL9: =IF(ISNA(VLOOKUP($A9,'5. Construct'!$B$66:$E$66,4,FALSE))=TRUE,0,VLOOKUP($A9,'5. Construct'!$B$66:$E$66,4,FALSE)) -> 0 | BM9: =IF(ISNA(VLOOKUP($A9,'5. Construct'!$B$67:$E$67,4,FALSE))=TRUE,0,VLOOKUP($A9,'5. Construct'!$B$67:$E$67,4,FALSE)) -> 0 | BN9: =IF(ISNA(VLOOKUP($A9,'5. Construct'!$B$68:$E$68,4,FALSE))=TRUE,0,VLOOKUP($A9,'5. Construct'!$B$68:$E$68,4,FALSE)) -> 0 | BO9: =IF(ISNA(VLOOKUP($A9,'5. Construct'!$B$69:$E$69,4,FALSE))=TRUE,0,VLOOKUP($A9,'5. Construct'!$B$69:$E$69,4,FALSE)) -> 0 | BP9: =IF(ISNA(VLOOKUP($A9,'5. Construct'!$B$70:$E$70,4,FALSE))=TRUE,0,VLOOKUP($A9,'5. Construct'!$B$70:$E$70,4,FALSE)) -> 0 | BQ9: =IF(ISNA(VLOOKUP($A9,'5. Construct'!$B$71:$E$71,4,FALSE))=TRUE,0,VLOOKUP($A9,'5. Construct'!$B$71:$E$71,4,FALSE)) -> 0 | BR9: =IF(ISNA(VLOOKUP($A9,'5. Construct'!$B$72:$E$72,4,FALSE))=TRUE,0,VLOOKUP($A9,'5. Construct'!$B$72:$E$72,4,FALSE)) -> 0 | BS9: =IF(ISNA(VLOOKUP($A9,'5. Construct'!$B$73:$E$73,4,FALSE))=TRUE,0,VLOOKUP($A9,'5. Construct'!$B$73:$E$73,4,FALSE)) -> 0 | BT9: =IF(ISNA(VLOOKUP($A9,'5. Construct'!$B$74:$E$74,4,FALSE))=TRUE,0,VLOOKUP($A9,'5. Construct'!$B$74:$E$74,4,FALSE)) -> 0 | BU9: =IF(ISNA(VLOOKUP($A9,'5. Construct'!$B$75:$E$75,4,FALSE))=TRUE,0,VLOOKUP($A9,'5. Construct'!$B$75:$E$75,4,FALSE)) -> 0 | BV9: =IF(ISNA(VLOOKUP($A9,'5. Construct'!$B$76:$E$76,4,FALSE))=TRUE,0,VLOOKUP($A9,'5. Construct'!$B$76:$E$76,4,FALSE)) -> 0 | BW9: =IF(ISNA(VLOOKUP($A9,'5. Construct'!$B$77:$E$77,4,FALSE))=TRUE,0,VLOOKUP($A9,'5. Construct'!$B$77:$E$77,4,FALSE)) -> 0 | BX9: =IF(ISNA(VLOOKUP($A9,'5. Construct'!$B$78:$E$78,4,FALSE))=TRUE,0,VLOOKUP($A9,'5. Construct'!$B$78:$E$78,4,FALSE)) -> 0 | BY9: =IF(ISNA(VLOOKUP($A9,'5. Construct'!$B$79:$E$79,4,FALSE))=TRUE,0,VLOOKUP($A9,'5. Construct'!$B$79:$E$79,4,FALSE)) -> 0 | BZ9: =IF(ISNA(VLOOKUP($A9,'5. Construct'!$B$80:$D$80,4,FALSE))=TRUE,0,VLOOKUP($A9,'5. Construct'!$B$80:$D$80,4,FALSE)) -> 0 | CA9: =IF(ISNA(VLOOKUP($A9,'5. Construct'!$B$81:$E$81,4,FALSE))=TRUE,0,VLOOKUP($A9,'5. Construct'!$B$81:$E$81,4,FALSE)) -> 0 | CB9: =IF(ISNA(VLOOKUP($A9,'5. Construct'!$B$82:$E$82,4,FALSE))=TRUE,0,VLOOKUP($A9,'5. Construct'!$B$82:$E$82,4,FALSE)) -> 0 | CC9: =IF(ISNA(VLOOKUP($A9,'5. Construct'!$B$83:$E$83,4,FALSE))=TRUE,0,VLOOKUP($A9,'5. Construct'!$B$83:$E$83,4,FALSE)) -> 0 | CD9: =IF(ISNA(VLOOKUP($A9,'5. Construct'!$B$84:$E$84,4,FALSE))=TRUE,0,VLOOKUP($A9,'5. Construct'!$B$84:$E$84,4,FALSE)) -> 0 | CE9: =IF(ISNA(VLOOKUP($A9,'5. Construct'!$B$85:$E$85,4,FALSE))=TRUE,0,VLOOKUP($A9,'5. Construct'!$B$85:$E$85,4,FALSE)) -> 0 | CF9: =IF(ISNA(VLOOKUP($A9,'5. Construct'!$B$86:$E$86,4,FALSE))=TRUE,0,VLOOKUP($A9,'5. Construct'!$B$86:$E$86,4,FALSE)) -> 0 | CG9: =IF(ISNA(VLOOKUP($A9,'5. Construct'!$B$87:$E$87,4,FALSE))=TRUE,0,VLOOKUP($A9,'5. Construct'!$B$87:$E$87,4,FALSE)) -> 0 | CH9: =IF(ISNA(VLOOKUP($A9,'5. Construct'!$B$88:$E$88,4,FALSE))=TRUE,0,VLOOKUP($A9,'5. Construct'!$B$88:$E$88,4,FALSE)) -> 0 | CI9: =IF(ISNA(VLOOKUP($A9,'5. Construct'!$B$89:$E$89,4,FALSE))=TRUE,0,VLOOKUP($A9,'5. Construct'!$B$89:$E$89,4,FALSE)) -> 0 | CJ9: =IF(ISNA(VLOOKUP($A9,'5. Construct'!$B$90:$E$90,4,FALSE))=TRUE,0,VLOOKUP($A9,'5. Construct'!$B$90:$E$90,4,FALSE)) -> 0 | CK9: =IF(ISNA(VLOOKUP($A9,'5. Construct'!$B$91:$E$91,4,FALSE))=TRUE,0,VLOOKUP($A9,'5. Construct'!$B$91:$E$91,4,FALSE)) -> 0 | CL9: =IF(ISNA(VLOOKUP($A9,'5. Construct'!$B$92:$E$92,4,FALSE))=TRUE,0,VLOOKUP($A9,'5. Construct'!$B$92:$E$92,4,FALSE)) -> 0 | CM9: =IF(ISNA(VLOOKUP($A9,'5. Construct'!$B$93:$E$93,4,FALSE))=TRUE,0,VLOOKUP($A9,'5. Construct'!$B$93:$E$93,4,FALSE)) -> 0 | CN9: =IF(ISNA(VLOOKUP($A9,'5. Construct'!$B$94:$E$94,4,FALSE))=TRUE,0,VLOOKUP($A9,'5. Construct'!$B$94:$E$94,4,FALSE)) -> 0 | CO9: =IF(ISNA(VLOOKUP($A9,'5. Construct'!$B$95:$E$95,4,FALSE))=TRUE,0,VLOOKUP($A9,'5. Construct'!$B$95:$E$95,4,FALSE)) -> 0 | CP9: =IF(ISNA(VLOOKUP($A9,'5. Construct'!$B$96:$E$96,4,FALSE))=TRUE,0,VLOOKUP($A9,'5. Construct'!$B$96:$E$96,4,FALSE)) -> 0 | CQ9: =IF(ISNA(VLOOKUP($A9,'5. Construct'!$B$97:$E$97,4,FALSE))=TRUE,0,VLOOKUP($A9,'5. Construct'!$B$97:$E$97,4,FALSE)) -> 0 | CR9: =IF(ISNA(VLOOKUP($A9,'5. Construct'!$B$98:$E$98,4,FALSE))=TRUE,0,VLOOKUP($A9,'5. Construct'!$B$98:$E$98,4,FALSE)) -> 0 | CS9: =IF(ISNA(VLOOKUP($A9,'5. Construct'!$B$99:$C$99,4,FALSE))=TRUE,0,VLOOKUP($A9,'5. Construct'!$B$99:$C$99,4,FALSE)) -> 0 | CT9: =IF(ISNA(VLOOKUP($A9,'5. Construct'!$B$100:$E$100,4,FALSE))=TRUE,0,VLOOKUP($A9,'5. Construct'!$B$100:$E$100,4,FALSE)) -> 0 | CU9: =IF(ISNA(VLOOKUP($A9,'5. Construct'!$B$101:$E$101,4,FALSE))=TRUE,0,VLOOKUP($A9,'5. Construct'!$B$101:$E$101,4,FALSE)) -> 0 | CV9: =IF(ISNA(VLOOKUP($A9,'5. Construct'!$B$102:$E$102,4,FALSE))=TRUE,0,VLOOKUP($A9,'5. Construct'!$B$102:$E$102,4,FALSE)) -> 0 | CW9: =IF(ISNA(VLOOKUP($A9,'5. Construct'!$B$103:$E$103,4,FALSE))=TRUE,0,VLOOKUP($A9,'5. Construct'!$B$103:$E$103,4,FALSE)) -> 0 | CX9: =IF(ISNA(VLOOKUP($A9,'5. Construct'!$B$104:$E$104,4,FALSE))=TRUE,0,VLOOKUP($A9,'5. Construct'!$B$104:$E$104,4,FALSE)) -> 0 | CY9: =IF(ISNA(VLOOKUP($A9,'5. Construct'!$B$105:$E$105,4,FALSE))=TRUE,0,VLOOKUP($A9,'5. Construct'!$B$105:$E$105,4,FALSE)) -> 0 | CZ9: =IF(ISNA(VLOOKUP($A9,'5. Construct'!$B$106:$E$106,4,FALSE))=TRUE,0,VLOOKUP($A9,'5. Construct'!$B$106:$E$106,4,FALSE)) -> 0 | DA9: =IF(ISNA(VLOOKUP($A9,'5. Construct'!$B$107:$E$107,4,FALSE))=TRUE,0,VLOOKUP($A9,'5. Construct'!$B$107:$E$107,4,FALSE)) -> 0 | DB9: =IF(ISNA(VLOOKUP($A9,'5. Construct'!$B$108:$E$108,4,FALSE))=TRUE,0,VLOOKUP($A9,'5. Construct'!$B$108:$E$108,4,FALSE)) -> 0 | DC9: =IF(ISNA(VLOOKUP($A9,'5. Construct'!$B$109:$E$109,4,FALSE))=TRUE,0,VLOOKUP($A9,'5. Construct'!$B$109:$E$109,4,FALSE)) -> 0 | DD9: =IF(ISNA(VLOOKUP($A9,'5. Construct'!$B$110:$E$110,4,FALSE))=TRUE,0,VLOOKUP($A9,'5. Construct'!$B$110:$E$110,4,FALSE)) -> 0 | DE9: =IF(ISNA(VLOOKUP($A9,'5. Construct'!$B$111:$E$111,4,FALSE))=TRUE,0,VLOOKUP($A9,'5. Construct'!$B$111:$E$111,4,FALSE)) -> 0 | DF9: =IF(ISNA(VLOOKUP($A9,'5. Construct'!$B$112:$E$112,4,FALSE))=TRUE,0,VLOOKUP($A9,'5. Construct'!$B$112:$E$112,4,FALSE)) -> 0 | DG9: =IF(ISNA(VLOOKUP($A9,'5. Construct'!$B$113:$E$113,4,FALSE))=TRUE,0,VLOOKUP($A9,'5. Construct'!$B$113:$E$113,4,FALSE)) -> 0 | DH9: =IF(ISNA(VLOOKUP($A9,'5. Construct'!$B$114:$E$114,4,FALSE))=TRUE,0,VLOOKUP($A9,'5. Construct'!$B$114:$E$114,4,FALSE)) -> 0 | DI9: =IF(ISNA(VLOOKUP($A9,'5. Construct'!$B$115:$E$115,4,FALSE))=TRUE,0,VLOOKUP($A9,'5. Construct'!$B$115:$E$115,4,FALSE)) -> 0 | DJ9: =IF(ISNA(VLOOKUP($A9,'5. Construct'!$B$116:$E$116,4,FALSE))=TRUE,0,VLOOKUP($A9,'5. Construct'!$B$116:$E$116,4,FALSE)) -> 0 | DK9: =IF(ISNA(VLOOKUP($A9,'5. Construct'!$B$117:$E$117,4,FALSE))=TRUE,0,VLOOKUP($A9,'5. Construct'!$B$117:$E$117,4,FALSE)) -> 0 | DL9: =IF(ISNA(VLOOKUP($A9,'5. Construct'!$B$118:$D$118,4,FALSE))=TRUE,0,VLOOKUP($A9,'5. Construct'!$B$118:$D$118,4,FALSE)) -> 0 | DM9: =IF(ISNA(VLOOKUP($A9,'5. Construct'!$B$119:$E$119,4,FALSE))=TRUE,0,VLOOKUP($A9,'5. Construct'!$B$119:$E$119,4,FALSE)) -> 0 | DN9: =IF(ISNA(VLOOKUP($A9,'5. Construct'!$B$120:$E$120,4,FALSE))=TRUE,0,VLOOKUP($A9,'5. Construct'!$B$120:$E$120,4,FALSE)) -> 0 | DO9: =IF(ISNA(VLOOKUP($A9,'5. Construct'!$B$121:$E$121,4,FALSE))=TRUE,0,VLOOKUP($A9,'5. Construct'!$B$121:$E$121,4,FALSE)) -> 0 | DP9: =IF(ISNA(VLOOKUP($A9,'5. Construct'!$B$122:$E$122,4,FALSE))=TRUE,0,VLOOKUP($A9,'5. Construct'!$B$122:$E$122,4,FALSE)) -> 0 | DQ9: =IF(ISNA(VLOOKUP($A9,'5. Construct'!$B$123:$E$123,4,FALSE))=TRUE,0,VLOOKUP($A9,'5. Construct'!$B$123:$E$123,4,FALSE)) -> 0 | DR9: =IF(ISNA(VLOOKUP($A9,'5. Construct'!$B$124:$E$124,4,FALSE))=TRUE,0,VLOOKUP($A9,'5. Construct'!$B$124:$E$124,4,FALSE)) -> 0 | DS9: =IF(ISNA(VLOOKUP($A9,'5. Construct'!$B$125:$E$125,4,FALSE))=TRUE,0,VLOOKUP($A9,'5. Construct'!$B$125:$E$125,4,FALSE)) -> 0 | DT9: =IF(ISNA(VLOOKUP($A9,'5. Construct'!$B$126:$E$126,4,FALSE))=TRUE,0,VLOOKUP($A9,'5. Construct'!$B$126:$E$126,4,FALSE)) -> 0 | DU9: =IF(ISNA(VLOOKUP($A9,'5. Construct'!$B$127:$E$127,4,FALSE))=TRUE,0,VLOOKUP($A9,'5. Construct'!$B$127:$E$127,4,FALSE)) -> 0 | DV9: =IF(ISNA(VLOOKUP($A9,'5. Construct'!$B$128:$E$128,4,FALSE))=TRUE,0,VLOOKUP($A9,'5. Construct'!$B$128:$E$128,4,FALSE)) -> 0 | DW9: =IF(ISNA(VLOOKUP($A9,'5. Construct'!$B$129:$E$129,4,FALSE))=TRUE,0,VLOOKUP($A9,'5. Construct'!$B$129:$E$129,4,FALSE)) -> 0 | DX9: =IF(ISNA(VLOOKUP($A9,'5. Construct'!$B$130:$E$130,4,FALSE))=TRUE,0,VLOOKUP($A9,'5. Construct'!$B$130:$E$130,4,FALSE)) -> 0 | DY9: =IF(ISNA(VLOOKUP($A9,'5. Construct'!$B$131:$E$131,4,FALSE))=TRUE,0,VLOOKUP($A9,'5. Construct'!$B$131:$E$131,4,FALSE)) -> 0 | DZ9: =IF(ISNA(VLOOKUP($A9,'5. Construct'!$B$132:$E$132,4,FALSE))=TRUE,0,VLOOKUP($A9,'5. Construct'!$B$132:$E$132,4,FALSE)) -> 0 | EA9: =IF(ISNA(VLOOKUP($A9,'5. Construct'!$B$133:$E$133,4,FALSE))=TRUE,0,VLOOKUP($A9,'5. Construct'!$B$133:$E$133,4,FALSE)) -> 0 | EB9: =IF(ISNA(VLOOKUP($A9,'5. Construct'!$B$134:$E$134,4,FALSE))=TRUE,0,VLOOKUP($A9,'5. Construct'!$B$134:$E$134,4,FALSE)) -> 0 | EC9: =IF(ISNA(VLOOKUP($A9,'5. Construct'!$B$135:$E$135,4,FALSE))=TRUE,0,VLOOKUP($A9,'5. Construct'!$B$135:$E$135,4,FALSE)) -> 0 | ED9: =IF(ISNA(VLOOKUP($A9,'5. Construct'!$B$136:$E$136,4,FALSE))=TRUE,0,VLOOKUP($A9,'5. Construct'!$B$136:$E$136,4,FALSE)) -> 0 | EE9: =IF(ISNA(VLOOKUP($A9,'5. Construct'!$B$137:$E$137,4,FALSE))=TRUE,0,VLOOKUP($A9,'5. Construct'!$B$137:$E$137,4,FALSE)) -> 0 | EF9: =IF(ISNA(VLOOKUP($A9,'5. Construct'!$B$138:$C$138,4,FALSE))=TRUE,0,VLOOKUP($A9,'5. Construct'!$B$138:$C$138,4,FALSE)) -> 0 | EG9: =IF(ISNA(VLOOKUP($A9,'5. Construct'!$B$139:$E$139,4,FALSE))=TRUE,0,VLOOKUP($A9,'5. Construct'!$B$139:$E$139,4,FALSE)) -> 0 | EH9: =IF(ISNA(VLOOKUP($A9,'5. Construct'!$B$140:$E$140,4,FALSE))=TRUE,0,VLOOKUP($A9,'5. Construct'!$B$140:$E$140,4,FALSE)) -> 0 | EI9: =IF(ISNA(VLOOKUP($A9,'5. Construct'!$B$141:$E$141,4,FALSE))=TRUE,0,VLOOKUP($A9,'5. Construct'!$B$141:$E$141,4,FALSE)) -> 0 | EJ9: =IF(ISNA(VLOOKUP($A9,'5. Construct'!$B$142:$E$142,4,FALSE))=TRUE,0,VLOOKUP($A9,'5. Construct'!$B$142:$E$142,4,FALSE)) -> 0 | EK9: =IF(ISNA(VLOOKUP($A9,'5. Construct'!$B$143:$E$143,4,FALSE))=TRUE,0,VLOOKUP($A9,'5. Construct'!$B$143:$E$143,4,FALSE)) -> 0 | EL9: =IF(ISNA(VLOOKUP($A9,'5. Construct'!$B$144:$E$144,4,FALSE))=TRUE,0,VLOOKUP($A9,'5. Construct'!$B$144:$E$144,4,FALSE)) -> 0 | EM9: =IF(ISNA(VLOOKUP($A9,'5. Construct'!$B$145:$E$145,4,FALSE))=TRUE,0,VLOOKUP($A9,'5. Construct'!$B$145:$E$145,4,FALSE)) -> 0 | EN9: =IF(ISNA(VLOOKUP($A9,'5. Construct'!$B$145:$E$145,4,FALSE))=TRUE,0,VLOOKUP($A9,'5. Construct'!$B$145:$E$145,4,FALSE)) -> 0 | EO9: =IF(ISNA(VLOOKUP($A9,'5. Construct'!$B$147:$E$147,4,FALSE))=TRUE,0,VLOOKUP($A9,'5. Construct'!$B$147:$E$147,4,FALSE)) -> 0 | EP9: =IF(ISNA(VLOOKUP($A9,'5. Construct'!$B$148:$E$148,4,FALSE))=TRUE,0,VLOOKUP($A9,'5. Construct'!$B$148:$E$148,4,FALSE)) -> 0 | EQ9: =IF(ISNA(VLOOKUP($A9,'5. Construct'!$B$149:$E$149,4,FALSE))=TRUE,0,VLOOKUP($A9,'5. Construct'!$B$149:$E$149,4,FALSE)) -> 0 | ER9: =IF(ISNA(VLOOKUP($A9,'5. Construct'!$B$150:$E$150,4,FALSE))=TRUE,0,VLOOKUP($A9,'5. Construct'!$B$150:$E$150,4,FALSE)) -> 0 | ES9: =IF(ISNA(VLOOKUP($A9,'5. Construct'!$B$151:$D$151,4,FALSE))=TRUE,0,VLOOKUP($A9,'5. Construct'!$B$151:$D$151,4,FALSE)) -> 0 | ET9: =IF(ISNA(VLOOKUP($A9,'5. Construct'!$B$152:$E$152,4,FALSE))=TRUE,0,VLOOKUP($A9,'5. Construct'!$B$152:$E$152,4,FALSE)) -> 0 | EU9: =IF(ISNA(VLOOKUP($A9,'5. Construct'!$B$153:$E$153,4,FALSE))=TRUE,0,VLOOKUP($A9,'5. Construct'!$B$153:$E$153,4,FALSE)) -> 0 | EV9: =IF(ISNA(VLOOKUP($A9,'5. Construct'!$B$154:$E$154,4,FALSE))=TRUE,0,VLOOKUP($A9,'5. Construct'!$B$154:$E$154,4,FALSE)) -> 0 | EW9: =IF(ISNA(VLOOKUP($A9,'5. Construct'!$B$155:$E$155,4,FALSE))=TRUE,0,VLOOKUP($A9,'5. Construct'!$B$155:$E$155,4,FALSE)) -> 0 | EX9: =IF(ISNA(VLOOKUP($A9,'5. Construct'!$B$156:$E$156,4,FALSE))=TRUE,0,VLOOKUP($A9,'5. Construct'!$B$156:$E$156,4,FALSE)) -> 0 | EY9: =IF(ISNA(VLOOKUP($A9,'5. Construct'!$B$157:$E$157,4,FALSE))=TRUE,0,VLOOKUP($A9,'5. Construct'!$B$157:$E$157,4,FALSE)) -> 0 | EZ9: =IF(ISNA(VLOOKUP($A9,'5. Construct'!$B$158:$E$158,4,FALSE))=TRUE,0,VLOOKUP($A9,'5. Construct'!$B$158:$E$158,4,FALSE)) -> 0 | FA9: =IF(ISNA(VLOOKUP($A9,'5. Construct'!$B$159:$E$159,4,FALSE))=TRUE,0,VLOOKUP($A9,'5. Construct'!$B$159:$E$159,4,FALSE)) -> 0 | FB9: =IF(ISNA(VLOOKUP($A9,'5. Construct'!$B$160:$E$160,4,FALSE))=TRUE,0,VLOOKUP($A9,'5. Construct'!$B$160:$E$160,4,FALSE)) -> 0 | FC9: =IF(ISNA(VLOOKUP($A9,'5. Construct'!$B$161:$E$161,4,FALSE))=TRUE,0,VLOOKUP($A9,'5. Construct'!$B$161:$E$161,4,FALSE)) -> 0 | FD9: =IF(ISNA(VLOOKUP($A9,'5. Construct'!$B$162:$E$162,4,FALSE))=TRUE,0,VLOOKUP($A9,'5. Construct'!$B$162:$E$162,4,FALSE)) -> 0 | FE9: =IF(ISNA(VLOOKUP($A9,'5. Construct'!$B$163:$E$163,4,FALSE))=TRUE,0,VLOOKUP($A9,'5. Construct'!$B$163:$E$163,4,FALSE)) -> 0 | FF9: =IF(ISNA(VLOOKUP($A9,'5. Construct'!$B$164:$E$164,4,FALSE))=TRUE,0,VLOOKUP($A9,'5. Construct'!$B$164:$E$164,4,FALSE)) -> 0 | FG9: =IF(ISNA(VLOOKUP($A9,'5. Construct'!$B$165:$D$165,4,FALSE))=TRUE,0,VLOOKUP($A9,'5. Construct'!$B$165:$D$165,4,FALSE)) -> 0 | FH9: =IF(ISNA(VLOOKUP($A9,'5. Construct'!$B$166:$E$166,4,FALSE))=TRUE,0,VLOOKUP($A9,'5. Construct'!$B$166:$E$166,4,FALSE)) -> 0 | FI9: =IF(ISNA(VLOOKUP($A9,'5. Construct'!$B$167:$E$167,4,FALSE))=TRUE,0,VLOOKUP($A9,'5. Construct'!$B$167:$E$167,4,FALSE)) -> 0 | FJ9: =IF(ISNA(VLOOKUP($A9,'5. Construct'!$B$168:$E$168,4,FALSE))=TRUE,0,VLOOKUP($A9,'5. Construct'!$B$168:$E$168,4,FALSE)) -> 0 | FK9: =IF(ISNA(VLOOKUP($A9,'5. Construct'!$B$169:$E$169,4,FALSE))=TRUE,0,VLOOKUP($A9,'5. Construct'!$B$169:$E$169,4,FALSE)) -> 0 | FL9: =IF(ISNA(VLOOKUP($A9,'5. Construct'!$B$170:$E$170,4,FALSE))=TRUE,0,VLOOKUP($A9,'5. Construct'!$B$170:$E$170,4,FALSE)) -> 0 | FM9: =IF(ISNA(VLOOKUP($A9,'5. Construct'!$B$171:$E$171,4,FALSE))=TRUE,0,VLOOKUP($A9,'5. Construct'!$B$171:$E$171,4,FALSE)) -> 0 | FN9: =IF(ISNA(VLOOKUP($A9,'5. Construct'!$B$172:$E$172,4,FALSE))=TRUE,0,VLOOKUP($A9,'5. Construct'!$B$172:$E$172,4,FALSE)) -> 0 | FO9: =IF(ISNA(VLOOKUP($A9,'5. Construct'!$B$173:$E$173,4,FALSE))=TRUE,0,VLOOKUP($A9,'5. Construct'!$B$173:$E$173,4,FALSE)) -> 0 | FP9: =IF(ISNA(VLOOKUP($A9,'5. Construct'!$B$174:$E$174,4,FALSE))=TRUE,0,VLOOKUP($A9,'5. Construct'!$B$174:$E$174,4,FALSE)) -> 0 | FQ9: =IF(ISNA(VLOOKUP($A9,'5. Construct'!$B$175:$E$175,4,FALSE))=TRUE,0,VLOOKUP($A9,'5. Construct'!$B$175:$E$175,4,FALSE)) -> 0 | FR9: =IF(ISNA(VLOOKUP($A9,'5. Construct'!$B$176:$E$176,4,FALSE))=TRUE,0,VLOOKUP($A9,'5. Construct'!$B$176:$E$176,4,FALSE)) -> 0 | FS9: =IF(ISNA(VLOOKUP($A9,'5. Construct'!$B$177:$E$177,4,FALSE))=TRUE,0,VLOOKUP($A9,'5. Construct'!$B$177:$E$177,4,FALSE)) -> 0 | FT9: =IF(ISNA(VLOOKUP($A9,'5. Construct'!$B$178:$E$178,4,FALSE))=TRUE,0,VLOOKUP($A9,'5. Construct'!$B$178:$E$178,4,FALSE)) -> 0 | FU9: =IF(ISNA(VLOOKUP($A9,'5. Construct'!$B$179:$E$179,4,FALSE))=TRUE,0,VLOOKUP($A9,'5. Construct'!$B$179:$E$179,4,FALSE)) -> 0 | FV9: =IF(ISNA(VLOOKUP($A9,'5. Construct'!$B$180:$E$180,4,FALSE))=TRUE,0,VLOOKUP($A9,'5. Construct'!$B$180:$E$180,4,FALSE)) -> 0 | FW9: =IF(ISNA(VLOOKUP($A9,'5. Construct'!$B$181:$E$181,4,FALSE))=TRUE,0,VLOOKUP($A9,'5. Construct'!$B$181:$E$181,4,FALSE)) -> 0 | FX9: =IF(ISNA(VLOOKUP($A9,'5. Construct'!$B$182:$E$182,4,FALSE))=TRUE,0,VLOOKUP($A9,'5. Construct'!$B$182:$E$182,4,FALSE)) -> 0 | FY9: =IF(ISNA(VLOOKUP($A9,'5. Construct'!$B$183:$E$183,4,FALSE))=TRUE,0,VLOOKUP($A9,'5. Construct'!$B$183:$E$183,4,FALSE)) -> 0 | FZ9: =IF(ISNA(VLOOKUP($A9,'5. Construct'!$B$184:$E$184,4,FALSE))=TRUE,0,VLOOKUP($A9,'5. Construct'!$B$184:$E$184,4,FALSE)) -> 0 | GA9: =IF(ISNA(VLOOKUP($A9,'5. Construct'!$B$185:$E$185,4,FALSE))=TRUE,0,VLOOKUP($A9,'5. Construct'!$B$185:$E$185,4,FALSE)) -> 0 | GB9: =IF(ISNA(VLOOKUP($A9,'5. Construct'!$B$186:$E$186,4,FALSE))=TRUE,0,VLOOKUP($A9,'5. Construct'!$B$186:$E$186,4,FALSE)) -> 0 | GC9: =IF(ISNA(VLOOKUP($A9,'5. Construct'!$B$187:$E$187,4,FALSE))=TRUE,0,VLOOKUP($A9,'5. Construct'!$B$187:$E$187,4,FALSE)) -> 0 | GD9: =IF(ISNA(VLOOKUP($A9,'5. Construct'!$B$188:$E$188,4,FALSE))=TRUE,0,VLOOKUP($A9,'5. Construct'!$B$188:$E$188,4,FALSE)) -> 0 | GE9: =IF(ISNA(VLOOKUP($A9,'5. Construct'!$B$189:$E$189,4,FALSE))=TRUE,0,VLOOKUP($A9,'5. Construct'!$B$189:$E$189,4,FALSE)) -> 0 | GF9: =IF(ISNA(VLOOKUP($A9,'5. Construct'!$B$190:$E$190,4,FALSE))=TRUE,0,VLOOKUP($A9,'5. Construct'!$B$190:$E$190,4,FALSE)) -> 0 | GG9: =IF(ISNA(VLOOKUP($A9,'5. Construct'!$B$191:$E$191,4,FALSE))=TRUE,0,VLOOKUP($A9,'5. Construct'!$B$191:$E$191,4,FALSE)) -> 0 | GH9: =IF(ISNA(VLOOKUP($A9,'5. Construct'!$B$192:$D$192,4,FALSE))=TRUE,0,VLOOKUP($A9,'5. Construct'!$B$192:$D$192,4,FALSE)) -> 0 | GI9: =IF(ISNA(VLOOKUP($A9,'5. Construct'!$B$193:$E$193,4,FALSE))=TRUE,0,VLOOKUP($A9,'5. Construct'!$B$193:$E$193,4,FALSE)) -> 0 | GJ9: =IF(ISNA(VLOOKUP($A9,'5. Construct'!$B$194:$E$194,4,FALSE))=TRUE,0,VLOOKUP($A9,'5. Construct'!$B$194:$E$194,4,FALSE)) -> 0 | GK9: =IF(ISNA(VLOOKUP($A9,'5. Construct'!$B$195:$E$195,4,FALSE))=TRUE,0,VLOOKUP($A9,'5. Construct'!$B$195:$E$195,4,FALSE)) -> 0 | GL9: =IF(ISNA(VLOOKUP($A9,'5. Construct'!$B$196:$E$196,4,FALSE))=TRUE,0,VLOOKUP($A9,'5. Construct'!$B$196:$E$196,4,FALSE)) -> 0 | GM9: =IF(ISNA(VLOOKUP($A9,'5. Construct'!$B$197:$E$197,4,FALSE))=TRUE,0,VLOOKUP($A9,'5. Construct'!$B$197:$E$197,4,FALSE)) -> 0 | GN9: =IF(ISNA(VLOOKUP($A9,'5. Construct'!$B$198:$E$198,4,FALSE))=TRUE,0,VLOOKUP($A9,'5. Construct'!$B$198:$E$198,4,FALSE)) -> 0 | GO9: =IF(ISNA(VLOOKUP($A9,'5. Construct'!$B$199:$E$199,4,FALSE))=TRUE,0,VLOOKUP($A9,'5. Construct'!$B$199:$E$199,4,FALSE)) -> 0 | GP9: =IF(ISNA(VLOOKUP($A9,'5. Construct'!$B$200:$E$200,4,FALSE))=TRUE,0,VLOOKUP($A9,'5. Construct'!$B$200:$E$200,4,FALSE)) -> 0 | GQ9: =IF(ISNA(VLOOKUP($A9,'5. Construct'!$B$201:$E$201,4,FALSE))=TRUE,0,VLOOKUP($A9,'5. Construct'!$B$201:$E$201,4,FALSE)) -> 0 | GR9: =IF(ISNA(VLOOKUP($A9,'5. Construct'!$B$202:$E$202,4,FALSE))=TRUE,0,VLOOKUP($A9,'5. Construct'!$B$202:$E$202,4,FALSE)) -> 0 | GS9: =IF(ISNA(VLOOKUP($A9,'5. Construct'!$B$203:$E$203,4,FALSE))=TRUE,0,VLOOKUP($A9,'5. Construct'!$B$203:$E$203,4,FALSE)) -> 0 | GT9: =IF(ISNA(VLOOKUP($A9,'5. Construct'!$B$204:$E$204,4,FALSE))=TRUE,0,VLOOKUP($A9,'5. Construct'!$B$204:$E$204,4,FALSE)) -> 0 | GU9: =IF(ISNA(VLOOKUP($A9,'5. Construct'!$B$205:$E$205,4,FALSE))=TRUE,0,VLOOKUP($A9,'5. Construct'!$B$205:$E$205,4,FALSE)) -> 0 | GV9: =IF(ISNA(VLOOKUP($A9,'5. Construct'!$B$206:$E$206,4,FALSE))=TRUE,0,VLOOKUP($A9,'5. Construct'!$B$206:$E$206,4,FALSE)) -> 0 | GW9: =IF(ISNA(VLOOKUP($A9,'5. Construct'!$B$207:$E$207,4,FALSE))=TRUE,0,VLOOKUP($A9,'5. Construct'!$B$207:$E$207,4,FALSE)) -> 0 | GX9: =IF(ISNA(VLOOKUP($A9,'5. Construct'!$B$208:$E$208,4,FALSE))=TRUE,0,VLOOKUP($A9,'5. Construct'!$B$208:$E$208,4,FALSE)) -> 0 | GY9: =IF(ISNA(VLOOKUP($A9,'5. Construct'!$B$209:$E$209,4,FALSE))=TRUE,0,VLOOKUP($A9,'5. Construct'!$B$209:$E$209,4,FALSE)) -> 0 | GZ9: =IF(ISNA(VLOOKUP($A9,'5. Construct'!$B$210:$E$210,4,FALSE))=TRUE,0,VLOOKUP($A9,'5. Construct'!$B$210:$E$210,4,FALSE)) -> 0 | HA9: =IF(ISNA(VLOOKUP($A9,'5. Construct'!$B$211:$E$211,4,FALSE))=TRUE,0,VLOOKUP($A9,'5. Construct'!$B$211:$E$211,4,FALSE)) -> 0 | HB9: =IF(ISNA(VLOOKUP($A9,'5. Construct'!$B$212:$E$212,4,FALSE))=TRUE,0,VLOOKUP($A9,'5. Construct'!$B$212:$E$212,4,FALSE)) -> 0 | HC9: =IF(ISNA(VLOOKUP($A9,'5. Construct'!$B$213:$E$213,4,FALSE))=TRUE,0,VLOOKUP($A9,'5. Construct'!$B$213:$E$213,4,FALSE)) -> 0 | HD9: =IF(ISNA(VLOOKUP($A9,'5. Construct'!$B$214:$E$214,4,FALSE))=TRUE,0,VLOOKUP($A9,'5. Construct'!$B$214:$E$214,4,FALSE)) -> 0 | HE9: =IF(ISNA(VLOOKUP($A9,'5. Construct'!$B$215:$E$215,4,FALSE))=TRUE,0,VLOOKUP($A9,'5. Construct'!$B$215:$E$215,4,FALSE)) -> 0 | HF9: =IF(ISNA(VLOOKUP($A9,'5. Construct'!$B$216:$E$216,4,FALSE))=TRUE,0,VLOOKUP($A9,'5. Construct'!$B$216:$E$216,4,FALSE)) -> 0 | HG9: =IF(ISNA(VLOOKUP($A9,'5. Construct'!$B$217:$E$217,4,FALSE))=TRUE,0,VLOOKUP($A9,'5. Construct'!$B$217:$E$217,4,FALSE)) -> 0 | HH9: =IF(ISNA(VLOOKUP($A9,'5. Construct'!$B$218:$E$218,4,FALSE))=TRUE,0,VLOOKUP($A9,'5. Construct'!$B$218:$E$218,4,FALSE)) -> 0 | HI9: =IF(ISNA(VLOOKUP($A9,'5. Construct'!$B$219:$E$219,4,FALSE))=TRUE,0,VLOOKUP($A9,'5. Construct'!$B$219:$E$219,4,FALSE)) -> 0 | HJ9: =IF(ISNA(VLOOKUP($A9,'5. Construct'!$B$220:$E$220,4,FALSE))=TRUE,0,VLOOKUP($A9,'5. Construct'!$B$220:$E$220,4,FALSE)) -> 0 | HK9: =IF(ISNA(VLOOKUP($A9,'5. Construct'!$B$221:$E$221,4,FALSE))=TRUE,0,VLOOKUP($A9,'5. Construct'!$B$221:$E$221,4,FALSE)) -> 0 | HL9: =IF(ISNA(VLOOKUP($A9,'5. Construct'!$B$222:$E$222,4,FALSE))=TRUE,0,VLOOKUP($A9,'5. Construct'!$B$222:$E$222,4,FALSE)) -> 0 | HM9: =IF(ISNA(VLOOKUP($A9,'5. Construct'!$B$223:$E$223,4,FALSE))=TRUE,0,VLOOKUP($A9,'5. Construct'!$B$223:$E$223,4,FALSE)) -> 0 | HN9: =IF(ISNA(VLOOKUP($A9,'5. Construct'!$B$224:$E$224,4,FALSE))=TRUE,0,VLOOKUP($A9,'5. Construct'!$B$224:$E$224,4,FALSE)) -> 0 | HO9: =IF(ISNA(VLOOKUP($A9,'5. Construct'!$B$225:$E$225,4,FALSE))=TRUE,0,VLOOKUP($A9,'5. Construct'!$B$225:$E$225,4,FALSE)) -> 0 | HP9: =IF(ISNA(VLOOKUP($A9,'5. Construct'!$B$226:$E$226,4,FALSE))=TRUE,0,VLOOKUP($A9,'5. Construct'!$B$226:$E$226,4,FALSE)) -> 0 | HQ9: =IF(ISNA(VLOOKUP($A9,'5. Construct'!$B$227:$E$227,4,FALSE))=TRUE,0,VLOOKUP($A9,'5. Construct'!$B$227:$E$227,4,FALSE)) -> 0 | HR9: =IF(ISNA(VLOOKUP($A9,'5. Construct'!$B$228:$E$228,4,FALSE))=TRUE,0,VLOOKUP($A9,'5. Construct'!$B$228:$E$228,4,FALSE)) -> 0 | HS9: =IF(ISNA(VLOOKUP($A9,'5. Construct'!$B$229:$E$229,4,FALSE))=TRUE,0,VLOOKUP($A9,'5. Construct'!$B$229:$E$229,4,FALSE)) -> 0 | HT9: =IF(ISNA(VLOOKUP($A9,'5. Construct'!$B$230:$E$230,4,FALSE))=TRUE,0,VLOOKUP($A9,'5. Construct'!$B$230:$E$230,4,FALSE)) -> 0 | HU9: =IF(ISNA(VLOOKUP($A9,'5. Construct'!$B$231:$E$231,4,FALSE))=TRUE,0,VLOOKUP($A9,'5. Construct'!$B$231:$E$231,4,FALSE)) -> 0 | HV9: =IF(ISNA(VLOOKUP($A9,'5. Construct'!$B$232:$E$232,4,FALSE))=TRUE,0,VLOOKUP($A9,'5. Construct'!$B$232:$E$232,4,FALSE)) -> 0 | HW9: =IF(ISNA(VLOOKUP($A9,'5. Construct'!$B$233:$E$233,4,FALSE))=TRUE,0,VLOOKUP($A9,'5. Construct'!$B$233:$E$233,4,FALSE)) -> 0 | HX9: =IF(ISNA(VLOOKUP($A9,'5. Construct'!$B$234:$E$234,4,FALSE))=TRUE,0,VLOOKUP($A9,'5. Construct'!$B$234:$E$234,4,FALSE)) -> 0 | HY9: =IF(ISNA(VLOOKUP($A9,'5. Construct'!$B$235:$E$235,4,FALSE))=TRUE,0,VLOOKUP($A9,'5. Construct'!$B$235:$E$235,4,FALSE)) -> 0 | HZ9: =IF(ISNA(VLOOKUP($A9,'5. Construct'!$B$236:$E$236,4,FALSE))=TRUE,0,VLOOKUP($A9,'5. Construct'!$B$236:$E$236,4,FALSE)) -> 0 | IA9: =IF(ISNA(VLOOKUP($A9,'5. Construct'!$B$237:$E$237,4,FALSE))=TRUE,0,VLOOKUP($A9,'5. Construct'!$B$237:$E$237,4,FALSE)) -> 0 | IB9: =IF(ISNA(VLOOKUP($A9,'5. Construct'!$B$238:$E$238,4,FALSE))=TRUE,0,VLOOKUP($A9,'5. Construct'!$B$238:$E$238,4,FALSE)) -> 0 | IC9: =IF(ISNA(VLOOKUP($A9,'5. Construct'!$B$239:$E$239,4,FALSE))=TRUE,0,VLOOKUP($A9,'5. Construct'!$B$239:$E$239,4,FALSE)) -> 0 | ID9: =IF(ISNA(VLOOKUP($A9,'5. Construct'!$B$240:$E$240,4,FALSE))=TRUE,0,VLOOKUP($A9,'5. Construct'!$B$240:$E$240,4,FALSE)) -> 0 | IE9: =IF(ISNA(VLOOKUP($A9,'5. Construct'!$B$241:$E$241,4,FALSE))=TRUE,0,VLOOKUP($A9,'5. Construct'!$B$241:$E$241,4,FALSE)) -> 0 | IF9: =IF(ISNA(VLOOKUP($A9,'5. Construct'!$B$242:$E$242,4,FALSE))=TRUE,0,VLOOKUP($A9,'5. Construct'!$B$242:$E$242,4,FALSE)) -> 0 | IG9: =IF(ISNA(VLOOKUP($A9,'5. Construct'!$B$243:$E$243,4,FALSE))=TRUE,0,VLOOKUP($A9,'5. Construct'!$B$243:$E$243,4,FALSE)) -> 0 | IH9: =IF(ISNA(VLOOKUP($A9,'5. Construct'!$B$244:$E$244,4,FALSE))=TRUE,0,VLOOKUP($A9,'5. Construct'!$B$244:$E$244,4,FALSE)) -> 0 | II9: =IF(ISNA(VLOOKUP($A9,'5. Construct'!$B$245:$E$245,4,FALSE))=TRUE,0,VLOOKUP($A9,'5. Construct'!$B$245:$E$245,4,FALSE)) -> 0 | IJ9: =IF(ISNA(VLOOKUP($A9,'5. Construct'!$B$246:$E$246,4,FALSE))=TRUE,0,VLOOKUP($A9,'5. Construct'!$B$246:$E$246,4,FALSE)) -> 0 | IK9: =IF(ISNA(VLOOKUP($A9,'5. Construct'!$B$247:$E$247,4,FALSE))=TRUE,0,VLOOKUP($A9,'5. Construct'!$B$247:$E$247,4,FALSE)) -> 0 | IL9: =IF(ISNA(VLOOKUP($A9,'5. Construct'!$B$248:$E$248,4,FALSE))=TRUE,0,VLOOKUP($A9,'5. Construct'!$B$248:$E$248,4,FALSE)) -> 0 | IM9: =IF(ISNA(VLOOKUP($A9,'5. Construct'!$B$249:$E$249,4,FALSE))=TRUE,0,VLOOKUP($A9,'5. Construct'!$B$249:$E$249,4,FALSE)) -> 0 | IN9: =IF(ISNA(VLOOKUP($A9,'5. Construct'!$B$250:$E$250,4,FALSE))=TRUE,0,VLOOKUP($A9,'5. Construct'!$B$250:$E$250,4,FALSE)) -> 0 | IO9: =IF(ISNA(VLOOKUP($A9,'5. Construct'!$B$251:$E$251,4,FALSE))=TRUE,0,VLOOKUP($A9,'5. Construct'!$B$251:$E$251,4,FALSE)) -> 0 | IP9: =IF(ISNA(VLOOKUP($A9,'5. Construct'!$B$252:$E$252,4,FALSE))=TRUE,0,VLOOKUP($A9,'5. Construct'!$B$252:$E$252,4,FALSE)) -> 0 | IQ9: =IF(ISNA(VLOOKUP($A9,'5. Construct'!$B$253:$E$253,4,FALSE))=TRUE,0,VLOOKUP($A9,'5. Construct'!$B$253:$E$253,4,FALSE)) -> 0 | IR9: =IF(ISNA(VLOOKUP($A9,'5. Construct'!$B$254:$E$254,4,FALSE))=TRUE,0,VLOOKUP($A9,'5. Construct'!$B$254:$E$254,4,FALSE)) -> 0 | IS9: =IF(ISNA(VLOOKUP($A9,'5. Construct'!$B$255:$E$255,4,FALSE))=TRUE,0,VLOOKUP($A9,'5. Construct'!$B$255:$E$255,4,FALSE)) -> 0 | IT9: =IF(ISNA(VLOOKUP($A9,'5. Construct'!$B$256:$E$256,4,FALSE))=TRUE,0,VLOOKUP($A9,'5. Construct'!$B$256:$E$256,4,FALSE)) -> 0 | IU9: =IF(ISNA(VLOOKUP($A9,'5. Construct'!$B$257:$E$257,4,FALSE))=TRUE,0,VLOOKUP($A9,'5. Construct'!$B$257:$E$257,4,FALSE)) -> 0 | IV9: =IF(ISNA(VLOOKUP($A9,'5. Construct'!$B$258:$E$258,4,FALSE))=TRUE,0,VLOOKUP($A9,'5. Construct'!$B$258:$E$258,4,FALSE)) -> 0 | IW9: =IF(ISNA(VLOOKUP($A9,'5. Construct'!$B$259:$E$259,4,FALSE))=TRUE,0,VLOOKUP($A9,'5. Construct'!$B$259:$E$259,4,FALSE)) -> 0 | IX9: =IF(ISNA(VLOOKUP($A9,'5. Construct'!$B$260:$E$260,4,FALSE))=TRUE,0,VLOOKUP($A9,'5. Construct'!$B$260:$E$260,4,FALSE)) -> 0 | IY9: =IF(ISNA(VLOOKUP($A9,'5. Construct'!$B$261:$E$261,4,FALSE))=TRUE,0,VLOOKUP($A9,'5. Construct'!$B$261:$E$261,4,FALSE)) -> 0 | IZ9: =IF(ISNA(VLOOKUP($A9,'5. Construct'!$B$262:$E$262,4,FALSE))=TRUE,0,VLOOKUP($A9,'5. Construct'!$B$262:$E$262,4,FALSE)) -> 0 | JA9: =IF(ISNA(VLOOKUP($A9,'5. Construct'!$B$263:$E$263,4,FALSE))=TRUE,0,VLOOKUP($A9,'5. Construct'!$B$263:$E$263,4,FALSE)) -> 0 | JB9: =IF(ISNA(VLOOKUP($A9,'5. Construct'!$B$264:$E$264,4,FALSE))=TRUE,0,VLOOKUP($A9,'5. Construct'!$B$264:$E$264,4,FALSE)) -> 0 | JC9: =IF(ISNA(VLOOKUP($A9,'5. Construct'!$B$265:$E$265,4,FALSE))=TRUE,0,VLOOKUP($A9,'5. Construct'!$B$265:$E$265,4,FALSE)) -> 0 | JD9: =IF(ISNA(VLOOKUP($A9,'5. Construct'!$B$266:$E$266,4,FALSE))=TRUE,0,VLOOKUP($A9,'5. Construct'!$B$266:$E$266,4,FALSE)) -> 0 | JE9: =IF(ISNA(VLOOKUP($A9,'5. Construct'!$B$267:$E$267,4,FALSE))=TRUE,0,VLOOKUP($A9,'5. Construct'!$B$267:$E$267,4,FALSE)) -> 0 | JF9: =IF(ISNA(VLOOKUP($A9,'5. Construct'!$B$268:$E$268,4,FALSE))=TRUE,0,VLOOKUP($A9,'5. Construct'!$B$268:$E$268,4,FALSE)) -> 0 | JG9: =IF(ISNA(VLOOKUP($A9,'5. Construct'!$B$269:$E$269,4,FALSE))=TRUE,0,VLOOKUP($A9,'5. Construct'!$B$269:$E$269,4,FALSE)) -> 0 | JH9: =IF(ISNA(VLOOKUP($A9,'5. Construct'!$B$270:$E$270,4,FALSE))=TRUE,0,VLOOKUP($A9,'5. Construct'!$B$270:$E$270,4,FALSE)) -> 0 | JI9: =IF(ISNA(VLOOKUP($A9,'5. Construct'!$B$271:$E$271,4,FALSE))=TRUE,0,VLOOKUP($A9,'5. Construct'!$B$271:$E$271,4,FALSE)) -> 0 | JJ9: =IF(ISNA(VLOOKUP($A9,'5. Construct'!$B$272:$E$272,4,FALSE))=TRUE,0,VLOOKUP($A9,'5. Construct'!$B$272:$E$272,4,FALSE)) -> 0 | JK9: =IF(ISNA(VLOOKUP($A9,'5. Construct'!$B$273:$E$273,4,FALSE))=TRUE,0,VLOOKUP($A9,'5. Construct'!$B$273:$E$273,4,FALSE)) -> 0 | JL9: =IF(ISNA(VLOOKUP($A9,'5. Construct'!$B$274:$E$274,4,FALSE))=TRUE,0,VLOOKUP($A9,'5. Construct'!$B$274:$E$274,4,FALSE)) -> 0 | JM9: =IF(ISNA(VLOOKUP($A9,'5. Construct'!$B$275:$E$275,4,FALSE))=TRUE,0,VLOOKUP($A9,'5. Construct'!$B$275:$E$275,4,FALSE)) -> 0 | JN9: =IF(ISNA(VLOOKUP($A9,'5. Construct'!$B$276:$E$276,4,FALSE))=TRUE,0,VLOOKUP($A9,'5. Construct'!$B$276:$E$276,4,FALSE)) -> 0 | JO9: =IF(ISNA(VLOOKUP($A9,'5. Construct'!$B$277:$E$277,4,FALSE))=TRUE,0,VLOOKUP($A9,'5. Construct'!$B$277:$E$277,4,FALSE)) -> 0 | JP9: =IF(ISNA(VLOOKUP($A9,'5. Construct'!$B$278:$E$278,4,FALSE))=TRUE,0,VLOOKUP($A9,'5. Construct'!$B$278:$E$278,4,FALSE)) -> 0 | JQ9: =IF(ISNA(VLOOKUP($A9,'5. Construct'!$B$279:$E$279,4,FALSE))=TRUE,0,VLOOKUP($A9,'5. Construct'!$B$279:$E$279,4,FALSE)) -> 0 | JR9: =IF(ISNA(VLOOKUP($A9,'5. Construct'!$B$280:$E$280,4,FALSE))=TRUE,0,VLOOKUP($A9,'5. Construct'!$B$280:$E$280,4,FALSE)) -> 0 | JS9: =IF(ISNA(VLOOKUP($A9,'5. Construct'!$B$281:$E$281,4,FALSE))=TRUE,0,VLOOKUP($A9,'5. Construct'!$B$281:$E$281,4,FALSE)) -> 0 | JT9: =IF(ISNA(VLOOKUP($A9,'5. Construct'!$B$282:$E$282,4,FALSE))=TRUE,0,VLOOKUP($A9,'5. Construct'!$B$282:$E$282,4,FALSE)) -> 0 | JU9: =IF(ISNA(VLOOKUP($A9,'5. Construct'!$B$283:$E$283,4,FALSE))=TRUE,0,VLOOKUP($A9,'5. Construct'!$B$283:$E$283,4,FALSE)) -> 0 | JV9: =IF(ISNA(VLOOKUP($A9,'5. Construct'!$B$284:$E$284,4,FALSE))=TRUE,0,VLOOKUP($A9,'5. Construct'!$B$284:$E$284,4,FALSE)) -> 0 | JW9: =IF(ISNA(VLOOKUP($A9,'5. Construct'!$B$285:$E$285,4,FALSE))=TRUE,0,VLOOKUP($A9,'5. Construct'!$B$285:$E$285,4,FALSE)) -> 0 | JX9: =IF(ISNA(VLOOKUP($A9,'5. Construct'!$B$286:$E$286,4,FALSE))=TRUE,0,VLOOKUP($A9,'5. Construct'!$B$286:$E$286,4,FALSE)) -> 0 | JY9: =IF(ISNA(VLOOKUP($A9,'5. Construct'!$B$287:$E$287,4,FALSE))=TRUE,0,VLOOKUP($A9,'5. Construct'!$B$287:$E$287,4,FALSE)) -> 0 | JZ9: =IF(ISNA(VLOOKUP($A9,'5. Construct'!$B$288:$E$288,4,FALSE))=TRUE,0,VLOOKUP($A9,'5. Construct'!$B$288:$E$288,4,FALSE)) -> 0 | KA9: =IF(ISNA(VLOOKUP($A9,'5. Construct'!$B$289:$E$289,4,FALSE))=TRUE,0,VLOOKUP($A9,'5. Construct'!$B$289:$E$289,4,FALSE)) -> 0 | KB9: =IF(ISNA(VLOOKUP($A9,'5. Construct'!$B$290:$E$290,4,FALSE))=TRUE,0,VLOOKUP($A9,'5. Construct'!$B$290:$E$290,4,FALSE)) -> 0 | KC9: 0 | KD9: 0 | KE9: 0 | KF9: 0 | KG9: 0 | KH9: 0 | KI9: ='7. Material'!J7 -> 0 | KJ9: 0
A10: ='11. Mtrl em'!A8 -> Concrete lightweight | B10: ='11. Mtrl em'!B8 -> 510 | C10: ='11. Mtrl em'!C8 -> 0.19 | D10: 0 | E10: =IF(ISNA(VLOOKUP($A10,'5. Construct'!$B$7:$E$7,4,FALSE))=TRUE,0,VLOOKUP($A10,'5. Construct'!$B$7:$E$7,4,FALSE)) -> 0 | F10: =IF(ISNA(VLOOKUP($A10,'5. Construct'!$B$8:$E$8,4,FALSE))=TRUE,0,VLOOKUP($A10,'5. Construct'!$B$8:$E$8,4,FALSE)) -> 0 | G10: =IF(ISNA(VLOOKUP($A10,'5. Construct'!$B$9:$E$9,4,FALSE))=TRUE,0,VLOOKUP($A10,'5. Construct'!$B$9:$E$9,4,FALSE)) -> 0 | H10: =IF(ISNA(VLOOKUP($A10,'5. Construct'!$B$10:$E$10,4,FALSE))=TRUE,0,VLOOKUP($A10,'5. Construct'!$B$10:$E$10,4,FALSE)) -> 0 | I10: =IF(ISNA(VLOOKUP($A10,'5. Construct'!$B$11:$E$11,4,FALSE))=TRUE,0,VLOOKUP($A10,'5. Construct'!$B$11:$E$11,4,FALSE)) -> 0 | J10: =IF(ISNA(VLOOKUP($A10,'5. Construct'!$B$12:$E$12,4,FALSE))=TRUE,0,VLOOKUP($A10,'5. Construct'!$B$12:$E$12,4,FALSE)) -> 0 | K10: =IF(ISNA(VLOOKUP($A10,'5. Construct'!$B$13:$E$13,4,FALSE))=TRUE,0,VLOOKUP($A10,'5. Construct'!$B$13:$E$13,4,FALSE)) -> 0 | L10: =IF(ISNA(VLOOKUP($A10,'5. Construct'!$B$14:$E$14,4,FALSE))=TRUE,0,VLOOKUP($A10,'5. Construct'!$B$14:$E$14,4,FALSE)) -> 0 | M10: =IF(ISNA(VLOOKUP($A10,'5. Construct'!$B$15:$E$15,4,FALSE))=TRUE,0,VLOOKUP($A10,'5. Construct'!$B$15:$E$15,4,FALSE)) -> 0 | N10: =IF(ISNA(VLOOKUP($A10,'5. Construct'!$B$16:$E$16,4,FALSE))=TRUE,0,VLOOKUP($A10,'5. Construct'!$B$16:$E$16,4,FALSE)) -> 0 | O10: =IF(ISNA(VLOOKUP($A10,'5. Construct'!$B$17:$E$17,4,FALSE))=TRUE,0,VLOOKUP($A10,'5. Construct'!$B$17:$E$17,4,FALSE)) -> 0 | P10: =IF(ISNA(VLOOKUP($A10,'5. Construct'!$B$18:$E$18,4,FALSE))=TRUE,0,VLOOKUP($A10,'5. Construct'!$B$18:$E$18,4,FALSE)) -> 0 | Q10: =IF(ISNA(VLOOKUP($A10,'5. Construct'!$B$19:$E$19,4,FALSE))=TRUE,0,VLOOKUP($A10,'5. Construct'!$B$19:$E$19,4,FALSE)) -> 0 | R10: =IF(ISNA(VLOOKUP($A10,'5. Construct'!$B$20:$E$20,4,FALSE))=TRUE,0,VLOOKUP($A10,'5. Construct'!$B$20:$E$20,4,FALSE)) -> 0 | S10: =IF(ISNA(VLOOKUP($A10,'5. Construct'!$B$21:$E$21,4,FALSE))=TRUE,0,VLOOKUP($A10,'5. Construct'!$B$21:$E$21,4,FALSE)) -> 0 | T10: =IF(ISNA(VLOOKUP($A10,'5. Construct'!$B$22:$E$22,4,FALSE))=TRUE,0,VLOOKUP($A10,'5. Construct'!$B$22:$E$22,4,FALSE)) -> 0 | U10: =IF(ISNA(VLOOKUP($A10,'5. Construct'!$B$23:$E$23,4,FALSE))=TRUE,0,VLOOKUP($A10,'5. Construct'!$B$23:$E$23,4,FALSE)) -> 0 | V10: =IF(ISNA(VLOOKUP($A10,'5. Construct'!$B$24:$E$24,4,FALSE))=TRUE,0,VLOOKUP($A10,'5. Construct'!$B$24:$E$24,4,FALSE)) -> 0 | W10: =IF(ISNA(VLOOKUP($A10,'5. Construct'!$B$25:$E$25,4,FALSE))=TRUE,0,VLOOKUP($A10,'5. Construct'!$B$25:$E$25,4,FALSE)) -> 0 | X10: =IF(ISNA(VLOOKUP($A10,'5. Construct'!$B$26:$E$26,4,FALSE))=TRUE,0,VLOOKUP($A10,'5. Construct'!$B$26:$E$26,4,FALSE)) -> 0 | Y10: =IF(ISNA(VLOOKUP($A10,'5. Construct'!$B$27:$E$27,4,FALSE))=TRUE,0,VLOOKUP($A10,'5. Construct'!$B$27:$E$27,4,FALSE)) -> 0 | Z10: =IF(ISNA(VLOOKUP($A10,'5. Construct'!$B$28:$E$28,4,FALSE))=TRUE,0,VLOOKUP($A10,'5. Construct'!$B$28:$E$28,4,FALSE)) -> 0 | AA10: =IF(ISNA(VLOOKUP($A10,'5. Construct'!$B$29:$E$29,4,FALSE))=TRUE,0,VLOOKUP($A10,'5. Construct'!$B$29:$E$29,4,FALSE)) -> 0 | AB10: =IF(ISNA(VLOOKUP($A10,'5. Construct'!$B$30:$E$30,4,FALSE))=TRUE,0,VLOOKUP($A10,'5. Construct'!$B$30:$E$30,4,FALSE)) -> 0 | AC10: =IF(ISNA(VLOOKUP($A10,'5. Construct'!$B$31:$E$31,4,FALSE))=TRUE,0,VLOOKUP($A10,'5. Construct'!$B$31:$E$31,4,FALSE)) -> 0 | AD10: =IF(ISNA(VLOOKUP($A10,'5. Construct'!$B$32:$E$32,4,FALSE))=TRUE,0,VLOOKUP($A10,'5. Construct'!$B$32:$E$32,4,FALSE)) -> 0 | AE10: =IF(ISNA(VLOOKUP($A10,'5. Construct'!$B$33:$E$33,4,FALSE))=TRUE,0,VLOOKUP($A10,'5. Construct'!$B$33:$E$33,4,FALSE)) -> 0 | AF10: =IF(ISNA(VLOOKUP($A10,'5. Construct'!$B$34:$E$34,4,FALSE))=TRUE,0,VLOOKUP($A10,'5. Construct'!$B$34:$E$34,4,FALSE)) -> 0 | AG10: =IF(ISNA(VLOOKUP($A10,'5. Construct'!$B$35:$E$35,4,FALSE))=TRUE,0,VLOOKUP($A10,'5. Construct'!$B$35:$E$35,4,FALSE)) -> 0 | AH10: =IF(ISNA(VLOOKUP($A10,'5. Construct'!$B$36:$E$36,4,FALSE))=TRUE,0,VLOOKUP($A10,'5. Construct'!$B$36:$E$36,4,FALSE)) -> 0 | AI10: =IF(ISNA(VLOOKUP($A10,'5. Construct'!$B$37:$E$37,4,FALSE))=TRUE,0,VLOOKUP($A10,'5. Construct'!$B$37:$E$37,4,FALSE)) -> 0 | AJ10: =IF(ISNA(VLOOKUP($A10,'5. Construct'!$B$38:$E$38,4,FALSE))=TRUE,0,VLOOKUP($A10,'5. Construct'!$B$38:$E$38,4,FALSE)) -> 0 | AK10: =IF(ISNA(VLOOKUP($A10,'5. Construct'!$B$39:$E$39,4,FALSE))=TRUE,0,VLOOKUP($A10,'5. Construct'!$B$39:$E$39,4,FALSE)) -> 0 | AL10: =IF(ISNA(VLOOKUP($A10,'5. Construct'!$B$40:$E$40,4,FALSE))=TRUE,0,VLOOKUP($A10,'5. Construct'!$B$40:$E$40,4,FALSE)) -> 0 | AM10: =IF(ISNA(VLOOKUP($A10,'5. Construct'!$B$41:$E$41,4,FALSE))=TRUE,0,VLOOKUP($A10,'5. Construct'!$B$41:$E$41,4,FALSE)) -> 0 | AN10: =IF(ISNA(VLOOKUP($A10,'5. Construct'!$B$42:$E$42,4,FALSE))=TRUE,0,VLOOKUP($A10,'5. Construct'!$B$42:$E$42,4,FALSE)) -> 0 | AO10: =IF(ISNA(VLOOKUP($A10,'5. Construct'!$B$43:$E$43,4,FALSE))=TRUE,0,VLOOKUP($A10,'5. Construct'!$B$43:$E$43,4,FALSE)) -> 0 | AP10: =IF(ISNA(VLOOKUP($A10,'5. Construct'!$B$44:$E$44,4,FALSE))=TRUE,0,VLOOKUP($A10,'5. Construct'!$B$44:$E$44,4,FALSE)) -> 0 | AQ10: =IF(ISNA(VLOOKUP($A10,'5. Construct'!$B$45:$E$45,4,FALSE))=TRUE,0,VLOOKUP($A10,'5. Construct'!$B$45:$E$45,4,FALSE)) -> 0 | AR10: =IF(ISNA(VLOOKUP($A10,'5. Construct'!$B$46:$E$46,4,FALSE))=TRUE,0,VLOOKUP($A10,'5. Construct'!$B$46:$E$46,4,FALSE)) -> 0 | AS10: =IF(ISNA(VLOOKUP($A10,'5. Construct'!$B$47:$E$47,4,FALSE))=TRUE,0,VLOOKUP($A10,'5. Construct'!$B$47:$E$47,4,FALSE)) -> 0 | AT10: =IF(ISNA(VLOOKUP($A10,'5. Construct'!$B$48:$E$48,4,FALSE))=TRUE,0,VLOOKUP($A10,'5. Construct'!$B$48:$E$48,4,FALSE)) -> 0 | AU10: =IF(ISNA(VLOOKUP($A10,'5. Construct'!$B$49:$E$49,4,FALSE))=TRUE,0,VLOOKUP($A10,'5. Construct'!$B$49:$E$49,4,FALSE)) -> 0 | AV10: =IF(ISNA(VLOOKUP($A10,'5. Construct'!$B$50:$E$50,4,FALSE))=TRUE,0,VLOOKUP($A10,'5. Construct'!$B$50:$E$50,4,FALSE)) -> 0 | AW10: =IF(ISNA(VLOOKUP($A10,'5. Construct'!$B$51:$E$51,4,FALSE))=TRUE,0,VLOOKUP($A10,'5. Construct'!$B$51:$E$51,4,FALSE)) -> 0 | AX10: =IF(ISNA(VLOOKUP($A10,'5. Construct'!$B$52:$E$52,4,FALSE))=TRUE,0,VLOOKUP($A10,'5. Construct'!$B$52:$E$52,4,FALSE)) -> 0 | AY10: =IF(ISNA(VLOOKUP($A10,'5. Construct'!$B$53:$E$53,4,FALSE))=TRUE,0,VLOOKUP($A10,'5. Construct'!$B$53:$E$53,4,FALSE)) -> 0 | AZ10: =IF(ISNA(VLOOKUP($A10,'5. Construct'!$B$54:$E$54,4,FALSE))=TRUE,0,VLOOKUP($A10,'5. Construct'!$B$54:$E$54,4,FALSE)) -> 0 | BA10: =IF(ISNA(VLOOKUP($A10,'5. Construct'!$B$55:$E$55,4,FALSE))=TRUE,0,VLOOKUP($A10,'5. Construct'!$B$55:$E$55,4,FALSE)) -> 0 | BB10: =IF(ISNA(VLOOKUP($A10,'5. Construct'!$B$56:$E$56,4,FALSE))=TRUE,0,VLOOKUP($A10,'5. Construct'!$B$56:$E$56,4,FALSE)) -> 0 | BC10: =IF(ISNA(VLOOKUP($A10,'5. Construct'!$B$57:$E$57,4,FALSE))=TRUE,0,VLOOKUP($A10,'5. Construct'!$B$57:$E$57,4,FALSE)) -> 0 | BD10: =IF(ISNA(VLOOKUP($A10,'5. Construct'!$B$58:$E$58,4,FALSE))=TRUE,0,VLOOKUP($A10,'5. Construct'!$B$58:$E$58,4,FALSE)) -> 0 | BE10: =IF(ISNA(VLOOKUP($A10,'5. Construct'!$B$59:$E$59,4,FALSE))=TRUE,0,VLOOKUP($A10,'5. Construct'!$B$59:$E$59,4,FALSE)) -> 0 | BF10: =IF(ISNA(VLOOKUP($A10,'5. Construct'!$B$60:$E$60,4,FALSE))=TRUE,0,VLOOKUP($A10,'5. Construct'!$B$60:$E$60,4,FALSE)) -> 0 | BG10: =IF(ISNA(VLOOKUP($A10,'5. Construct'!$B$61:$E$61,4,FALSE))=TRUE,0,VLOOKUP($A10,'5. Construct'!$B$61:$E$61,4,FALSE)) -> 0 | BH10: =IF(ISNA(VLOOKUP($A10,'5. Construct'!$B$62:$E$62,4,FALSE))=TRUE,0,VLOOKUP($A10,'5. Construct'!$B$62:$E$62,4,FALSE)) -> 0 | BI10: =IF(ISNA(VLOOKUP($A10,'5. Construct'!$B$63:$E$63,4,FALSE))=TRUE,0,VLOOKUP($A10,'5. Construct'!$B$63:$E$63,4,FALSE)) -> 0 | BJ10: =IF(ISNA(VLOOKUP($A10,'5. Construct'!$B$64:$E$64,4,FALSE))=TRUE,0,VLOOKUP($A10,'5. Construct'!$B$64:$E$64,4,FALSE)) -> 0 | BK10: =IF(ISNA(VLOOKUP($A10,'5. Construct'!$B$65:$E$65,4,FALSE))=TRUE,0,VLOOKUP($A10,'5. Construct'!$B$65:$E$65,4,FALSE)) -> 0 | BL10: =IF(ISNA(VLOOKUP($A10,'5. Construct'!$B$66:$E$66,4,FALSE))=TRUE,0,VLOOKUP($A10,'5. Construct'!$B$66:$E$66,4,FALSE)) -> 0 | BM10: =IF(ISNA(VLOOKUP($A10,'5. Construct'!$B$67:$E$67,4,FALSE))=TRUE,0,VLOOKUP($A10,'5. Construct'!$B$67:$E$67,4,FALSE)) -> 0 | BN10: =IF(ISNA(VLOOKUP($A10,'5. Construct'!$B$68:$E$68,4,FALSE))=TRUE,0,VLOOKUP($A10,'5. Construct'!$B$68:$E$68,4,FALSE)) -> 0 | BO10: =IF(ISNA(VLOOKUP($A10,'5. Construct'!$B$69:$E$69,4,FALSE))=TRUE,0,VLOOKUP($A10,'5. Construct'!$B$69:$E$69,4,FALSE)) -> 0 | BP10: =IF(ISNA(VLOOKUP($A10,'5. Construct'!$B$70:$E$70,4,FALSE))=TRUE,0,VLOOKUP($A10,'5. Construct'!$B$70:$E$70,4,FALSE)) -> 0 | BQ10: =IF(ISNA(VLOOKUP($A10,'5. Construct'!$B$71:$E$71,4,FALSE))=TRUE,0,VLOOKUP($A10,'5. Construct'!$B$71:$E$71,4,FALSE)) -> 0 | BR10: =IF(ISNA(VLOOKUP($A10,'5. Construct'!$B$72:$E$72,4,FALSE))=TRUE,0,VLOOKUP($A10,'5. Construct'!$B$72:$E$72,4,FALSE)) -> 0 | BS10: =IF(ISNA(VLOOKUP($A10,'5. Construct'!$B$73:$E$73,4,FALSE))=TRUE,0,VLOOKUP($A10,'5. Construct'!$B$73:$E$73,4,FALSE)) -> 0 | BT10: =IF(ISNA(VLOOKUP($A10,'5. Construct'!$B$74:$E$74,4,FALSE))=TRUE,0,VLOOKUP($A10,'5. Construct'!$B$74:$E$74,4,FALSE)) -> 0 | BU10: =IF(ISNA(VLOOKUP($A10,'5. Construct'!$B$75:$E$75,4,FALSE))=TRUE,0,VLOOKUP($A10,'5. Construct'!$B$75:$E$75,4,FALSE)) -> 0 | BV10: =IF(ISNA(VLOOKUP($A10,'5. Construct'!$B$76:$E$76,4,FALSE))=TRUE,0,VLOOKUP($A10,'5. Construct'!$B$76:$E$76,4,FALSE)) -> 0 | BW10: =IF(ISNA(VLOOKUP($A10,'5. Construct'!$B$77:$E$77,4,FALSE))=TRUE,0,VLOOKUP($A10,'5. Construct'!$B$77:$E$77,4,FALSE)) -> 0 | BX10: =IF(ISNA(VLOOKUP($A10,'5. Construct'!$B$78:$E$78,4,FALSE))=TRUE,0,VLOOKUP($A10,'5. Construct'!$B$78:$E$78,4,FALSE)) -> 0 | BY10: =IF(ISNA(VLOOKUP($A10,'5. Construct'!$B$79:$E$79,4,FALSE))=TRUE,0,VLOOKUP($A10,'5. Construct'!$B$79:$E$79,4,FALSE)) -> 0 | BZ10: =IF(ISNA(VLOOKUP($A10,'5. Construct'!$B$80:$D$80,4,FALSE))=TRUE,0,VLOOKUP($A10,'5. Construct'!$B$80:$D$80,4,FALSE)) -> 0 | CA10: =IF(ISNA(VLOOKUP($A10,'5. Construct'!$B$81:$E$81,4,FALSE))=TRUE,0,VLOOKUP($A10,'5. Construct'!$B$81:$E$81,4,FALSE)) -> 0 | CB10: =IF(ISNA(VLOOKUP($A10,'5. Construct'!$B$82:$E$82,4,FALSE))=TRUE,0,VLOOKUP($A10,'5. Construct'!$B$82:$E$82,4,FALSE)) -> 0 | CC10: =IF(ISNA(VLOOKUP($A10,'5. Construct'!$B$83:$E$83,4,FALSE))=TRUE,0,VLOOKUP($A10,'5. Construct'!$B$83:$E$83,4,FALSE)) -> 0 | CD10: =IF(ISNA(VLOOKUP($A10,'5. Construct'!$B$84:$E$84,4,FALSE))=TRUE,0,VLOOKUP($A10,'5. Construct'!$B$84:$E$84,4,FALSE)) -> 0 | CE10: =IF(ISNA(VLOOKUP($A10,'5. Construct'!$B$85:$E$85,4,FALSE))=TRUE,0,VLOOKUP($A10,'5. Construct'!$B$85:$E$85,4,FALSE)) -> 0 | CF10: =IF(ISNA(VLOOKUP($A10,'5. Construct'!$B$86:$E$86,4,FALSE))=TRUE,0,VLOOKUP($A10,'5. Construct'!$B$86:$E$86,4,FALSE)) -> 0 | CG10: =IF(ISNA(VLOOKUP($A10,'5. Construct'!$B$87:$E$87,4,FALSE))=TRUE,0,VLOOKUP($A10,'5. Construct'!$B$87:$E$87,4,FALSE)) -> 0 | CH10: =IF(ISNA(VLOOKUP($A10,'5. Construct'!$B$88:$E$88,4,FALSE))=TRUE,0,VLOOKUP($A10,'5. Construct'!$B$88:$E$88,4,FALSE)) -> 0 | CI10: =IF(ISNA(VLOOKUP($A10,'5. Construct'!$B$89:$E$89,4,FALSE))=TRUE,0,VLOOKUP($A10,'5. Construct'!$B$89:$E$89,4,FALSE)) -> 0 | CJ10: =IF(ISNA(VLOOKUP($A10,'5. Construct'!$B$90:$E$90,4,FALSE))=TRUE,0,VLOOKUP($A10,'5. Construct'!$B$90:$E$90,4,FALSE)) -> 0 | CK10: =IF(ISNA(VLOOKUP($A10,'5. Construct'!$B$91:$E$91,4,FALSE))=TRUE,0,VLOOKUP($A10,'5. Construct'!$B$91:$E$91,4,FALSE)) -> 0 | CL10: =IF(ISNA(VLOOKUP($A10,'5. Construct'!$B$92:$E$92,4,FALSE))=TRUE,0,VLOOKUP($A10,'5. Construct'!$B$92:$E$92,4,FALSE)) -> 0 | CM10: =IF(ISNA(VLOOKUP($A10,'5. Construct'!$B$93:$E$93,4,FALSE))=TRUE,0,VLOOKUP($A10,'5. Construct'!$B$93:$E$93,4,FALSE)) -> 0 | CN10: =IF(ISNA(VLOOKUP($A10,'5. Construct'!$B$94:$E$94,4,FALSE))=TRUE,0,VLOOKUP($A10,'5. Construct'!$B$94:$E$94,4,FALSE)) -> 0 | CO10: =IF(ISNA(VLOOKUP($A10,'5. Construct'!$B$95:$E$95,4,FALSE))=TRUE,0,VLOOKUP($A10,'5. Construct'!$B$95:$E$95,4,FALSE)) -> 0 | CP10: =IF(ISNA(VLOOKUP($A10,'5. Construct'!$B$96:$E$96,4,FALSE))=TRUE,0,VLOOKUP($A10,'5. Construct'!$B$96:$E$96,4,FALSE)) -> 0 | CQ10: =IF(ISNA(VLOOKUP($A10,'5. Construct'!$B$97:$E$97,4,FALSE))=TRUE,0,VLOOKUP($A10,'5. Construct'!$B$97:$E$97,4,FALSE)) -> 0 | CR10: =IF(ISNA(VLOOKUP($A10,'5. Construct'!$B$98:$E$98,4,FALSE))=TRUE,0,VLOOKUP($A10,'5. Construct'!$B$98:$E$98,4,FALSE)) -> 0 | CS10: =IF(ISNA(VLOOKUP($A10,'5. Construct'!$B$99:$C$99,4,FALSE))=TRUE,0,VLOOKUP($A10,'5. Construct'!$B$99:$C$99,4,FALSE)) -> 0 | CT10: =IF(ISNA(VLOOKUP($A10,'5. Construct'!$B$100:$E$100,4,FALSE))=TRUE,0,VLOOKUP($A10,'5. Construct'!$B$100:$E$100,4,FALSE)) -> 0 | CU10: =IF(ISNA(VLOOKUP($A10,'5. Construct'!$B$101:$E$101,4,FALSE))=TRUE,0,VLOOKUP($A10,'5. Construct'!$B$101:$E$101,4,FALSE)) -> 0 | CV10: =IF(ISNA(VLOOKUP($A10,'5. Construct'!$B$102:$E$102,4,FALSE))=TRUE,0,VLOOKUP($A10,'5. Construct'!$B$102:$E$102,4,FALSE)) -> 0 | CW10: =IF(ISNA(VLOOKUP($A10,'5. Construct'!$B$103:$E$103,4,FALSE))=TRUE,0,VLOOKUP($A10,'5. Construct'!$B$103:$E$103,4,FALSE)) -> 0 | CX10: =IF(ISNA(VLOOKUP($A10,'5. Construct'!$B$104:$E$104,4,FALSE))=TRUE,0,VLOOKUP($A10,'5. Construct'!$B$104:$E$104,4,FALSE)) -> 0 | CY10: =IF(ISNA(VLOOKUP($A10,'5. Construct'!$B$105:$E$105,4,FALSE))=TRUE,0,VLOOKUP($A10,'5. Construct'!$B$105:$E$105,4,FALSE)) -> 0 | CZ10: =IF(ISNA(VLOOKUP($A10,'5. Construct'!$B$106:$E$106,4,FALSE))=TRUE,0,VLOOKUP($A10,'5. Construct'!$B$106:$E$106,4,FALSE)) -> 0 | DA10: =IF(ISNA(VLOOKUP($A10,'5. Construct'!$B$107:$E$107,4,FALSE))=TRUE,0,VLOOKUP($A10,'5. Construct'!$B$107:$E$107,4,FALSE)) -> 0 | DB10: =IF(ISNA(VLOOKUP($A10,'5. Construct'!$B$108:$E$108,4,FALSE))=TRUE,0,VLOOKUP($A10,'5. Construct'!$B$108:$E$108,4,FALSE)) -> 0 | DC10: =IF(ISNA(VLOOKUP($A10,'5. Construct'!$B$109:$E$109,4,FALSE))=TRUE,0,VLOOKUP($A10,'5. Construct'!$B$109:$E$109,4,FALSE)) -> 0 | DD10: =IF(ISNA(VLOOKUP($A10,'5. Construct'!$B$110:$E$110,4,FALSE))=TRUE,0,VLOOKUP($A10,'5. Construct'!$B$110:$E$110,4,FALSE)) -> 0 | DE10: =IF(ISNA(VLOOKUP($A10,'5. Construct'!$B$111:$E$111,4,FALSE))=TRUE,0,VLOOKUP($A10,'5. Construct'!$B$111:$E$111,4,FALSE)) -> 0 | DF10: =IF(ISNA(VLOOKUP($A10,'5. Construct'!$B$112:$E$112,4,FALSE))=TRUE,0,VLOOKUP($A10,'5. Construct'!$B$112:$E$112,4,FALSE)) -> 0 | DG10: =IF(ISNA(VLOOKUP($A10,'5. Construct'!$B$113:$E$113,4,FALSE))=TRUE,0,VLOOKUP($A10,'5. Construct'!$B$113:$E$113,4,FALSE)) -> 0 | DH10: =IF(ISNA(VLOOKUP($A10,'5. Construct'!$B$114:$E$114,4,FALSE))=TRUE,0,VLOOKUP($A10,'5. Construct'!$B$114:$E$114,4,FALSE)) -> 0 | DI10: =IF(ISNA(VLOOKUP($A10,'5. Construct'!$B$115:$E$115,4,FALSE))=TRUE,0,VLOOKUP($A10,'5. Construct'!$B$115:$E$115,4,FALSE)) -> 0 | DJ10: =IF(ISNA(VLOOKUP($A10,'5. Construct'!$B$116:$E$116,4,FALSE))=TRUE,0,VLOOKUP($A10,'5. Construct'!$B$116:$E$116,4,FALSE)) -> 0 | DK10: =IF(ISNA(VLOOKUP($A10,'5. Construct'!$B$117:$E$117,4,FALSE))=TRUE,0,VLOOKUP($A10,'5. Construct'!$B$117:$E$117,4,FALSE)) -> 0 | DL10: =IF(ISNA(VLOOKUP($A10,'5. Construct'!$B$118:$D$118,4,FALSE))=TRUE,0,VLOOKUP($A10,'5. Construct'!$B$118:$D$118,4,FALSE)) -> 0 | DM10: =IF(ISNA(VLOOKUP($A10,'5. Construct'!$B$119:$E$119,4,FALSE))=TRUE,0,VLOOKUP($A10,'5. Construct'!$B$119:$E$119,4,FALSE)) -> 0 | DN10: =IF(ISNA(VLOOKUP($A10,'5. Construct'!$B$120:$E$120,4,FALSE))=TRUE,0,VLOOKUP($A10,'5. Construct'!$B$120:$E$120,4,FALSE)) -> 0 | DO10: =IF(ISNA(VLOOKUP($A10,'5. Construct'!$B$121:$E$121,4,FALSE))=TRUE,0,VLOOKUP($A10,'5. Construct'!$B$121:$E$121,4,FALSE)) -> 0 | DP10: =IF(ISNA(VLOOKUP($A10,'5. Construct'!$B$122:$E$122,4,FALSE))=TRUE,0,VLOOKUP($A10,'5. Construct'!$B$122:$E$122,4,FALSE)) -> 0 | DQ10: =IF(ISNA(VLOOKUP($A10,'5. Construct'!$B$123:$E$123,4,FALSE))=TRUE,0,VLOOKUP($A10,'5. Construct'!$B$123:$E$123,4,FALSE)) -> 0 | DR10: =IF(ISNA(VLOOKUP($A10,'5. Construct'!$B$124:$E$124,4,FALSE))=TRUE,0,VLOOKUP($A10,'5. Construct'!$B$124:$E$124,4,FALSE)) -> 0 | DS10: =IF(ISNA(VLOOKUP($A10,'5. Construct'!$B$125:$E$125,4,FALSE))=TRUE,0,VLOOKUP($A10,'5. Construct'!$B$125:$E$125,4,FALSE)) -> 0 | DT10: =IF(ISNA(VLOOKUP($A10,'5. Construct'!$B$126:$E$126,4,FALSE))=TRUE,0,VLOOKUP($A10,'5. Construct'!$B$126:$E$126,4,FALSE)) -> 0 | DU10: =IF(ISNA(VLOOKUP($A10,'5. Construct'!$B$127:$E$127,4,FALSE))=TRUE,0,VLOOKUP($A10,'5. Construct'!$B$127:$E$127,4,FALSE)) -> 0 | DV10: =IF(ISNA(VLOOKUP($A10,'5. Construct'!$B$128:$E$128,4,FALSE))=TRUE,0,VLOOKUP($A10,'5. Construct'!$B$128:$E$128,4,FALSE)) -> 0 | DW10: =IF(ISNA(VLOOKUP($A10,'5. Construct'!$B$129:$E$129,4,FALSE))=TRUE,0,VLOOKUP($A10,'5. Construct'!$B$129:$E$129,4,FALSE)) -> 0 | DX10: =IF(ISNA(VLOOKUP($A10,'5. Construct'!$B$130:$E$130,4,FALSE))=TRUE,0,VLOOKUP($A10,'5. Construct'!$B$130:$E$130,4,FALSE)) -> 0 | DY10: =IF(ISNA(VLOOKUP($A10,'5. Construct'!$B$131:$E$131,4,FALSE))=TRUE,0,VLOOKUP($A10,'5. Construct'!$B$131:$E$131,4,FALSE)) -> 0 | DZ10: =IF(ISNA(VLOOKUP($A10,'5. Construct'!$B$132:$E$132,4,FALSE))=TRUE,0,VLOOKUP($A10,'5. Construct'!$B$132:$E$132,4,FALSE)) -> 0 | EA10: =IF(ISNA(VLOOKUP($A10,'5. Construct'!$B$133:$E$133,4,FALSE))=TRUE,0,VLOOKUP($A10,'5. Construct'!$B$133:$E$133,4,FALSE)) -> 0 | EB10: =IF(ISNA(VLOOKUP($A10,'5. Construct'!$B$134:$E$134,4,FALSE))=TRUE,0,VLOOKUP($A10,'5. Construct'!$B$134:$E$134,4,FALSE)) -> 0 | EC10: =IF(ISNA(VLOOKUP($A10,'5. Construct'!$B$135:$E$135,4,FALSE))=TRUE,0,VLOOKUP($A10,'5. Construct'!$B$135:$E$135,4,FALSE)) -> 0 | ED10: =IF(ISNA(VLOOKUP($A10,'5. Construct'!$B$136:$E$136,4,FALSE))=TRUE,0,VLOOKUP($A10,'5. Construct'!$B$136:$E$136,4,FALSE)) -> 0 | EE10: =IF(ISNA(VLOOKUP($A10,'5. Construct'!$B$137:$E$137,4,FALSE))=TRUE,0,VLOOKUP($A10,'5. Construct'!$B$137:$E$137,4,FALSE)) -> 0 | EF10: =IF(ISNA(VLOOKUP($A10,'5. Construct'!$B$138:$C$138,4,FALSE))=TRUE,0,VLOOKUP($A10,'5. Construct'!$B$138:$C$138,4,FALSE)) -> 0 | EG10: =IF(ISNA(VLOOKUP($A10,'5. Construct'!$B$139:$E$139,4,FALSE))=TRUE,0,VLOOKUP($A10,'5. Construct'!$B$139:$E$139,4,FALSE)) -> 0 | EH10: =IF(ISNA(VLOOKUP($A10,'5. Construct'!$B$140:$E$140,4,FALSE))=TRUE,0,VLOOKUP($A10,'5. Construct'!$B$140:$E$140,4,FALSE)) -> 0 | EI10: =IF(ISNA(VLOOKUP($A10,'5. Construct'!$B$141:$E$141,4,FALSE))=TRUE,0,VLOOKUP($A10,'5. Construct'!$B$141:$E$141,4,FALSE)) -> 0 | EJ10: =IF(ISNA(VLOOKUP($A10,'5. Construct'!$B$142:$E$142,4,FALSE))=TRUE,0,VLOOKUP($A10,'5. Construct'!$B$142:$E$142,4,FALSE)) -> 0 | EK10: =IF(ISNA(VLOOKUP($A10,'5. Construct'!$B$143:$E$143,4,FALSE))=TRUE,0,VLOOKUP($A10,'5. Construct'!$B$143:$E$143,4,FALSE)) -> 0 | EL10: =IF(ISNA(VLOOKUP($A10,'5. Construct'!$B$144:$E$144,4,FALSE))=TRUE,0,VLOOKUP($A10,'5. Construct'!$B$144:$E$144,4,FALSE)) -> 0 | EM10: =IF(ISNA(VLOOKUP($A10,'5. Construct'!$B$145:$E$145,4,FALSE))=TRUE,0,VLOOKUP($A10,'5. Construct'!$B$145:$E$145,4,FALSE)) -> 0 | EN10: =IF(ISNA(VLOOKUP($A10,'5. Construct'!$B$145:$E$145,4,FALSE))=TRUE,0,VLOOKUP($A10,'5. Construct'!$B$145:$E$145,4,FALSE)) -> 0 | EO10: =IF(ISNA(VLOOKUP($A10,'5. Construct'!$B$147:$E$147,4,FALSE))=TRUE,0,VLOOKUP($A10,'5. Construct'!$B$147:$E$147,4,FALSE)) -> 0 | EP10: =IF(ISNA(VLOOKUP($A10,'5. Construct'!$B$148:$E$148,4,FALSE))=TRUE,0,VLOOKUP($A10,'5. Construct'!$B$148:$E$148,4,FALSE)) -> 0 | EQ10: =IF(ISNA(VLOOKUP($A10,'5. Construct'!$B$149:$E$149,4,FALSE))=TRUE,0,VLOOKUP($A10,'5. Construct'!$B$149:$E$149,4,FALSE)) -> 0 | ER10: =IF(ISNA(VLOOKUP($A10,'5. Construct'!$B$150:$E$150,4,FALSE))=TRUE,0,VLOOKUP($A10,'5. Construct'!$B$150:$E$150,4,FALSE)) -> 0 | ES10: =IF(ISNA(VLOOKUP($A10,'5. Construct'!$B$151:$D$151,4,FALSE))=TRUE,0,VLOOKUP($A10,'5. Construct'!$B$151:$D$151,4,FALSE)) -> 0 | ET10: =IF(ISNA(VLOOKUP($A10,'5. Construct'!$B$152:$E$152,4,FALSE))=TRUE,0,VLOOKUP($A10,'5. Construct'!$B$152:$E$152,4,FALSE)) -> 0 | EU10: =IF(ISNA(VLOOKUP($A10,'5. Construct'!$B$153:$E$153,4,FALSE))=TRUE,0,VLOOKUP($A10,'5. Construct'!$B$153:$E$153,4,FALSE)) -> 0 | EV10: =IF(ISNA(VLOOKUP($A10,'5. Construct'!$B$154:$E$154,4,FALSE))=TRUE,0,VLOOKUP($A10,'5. Construct'!$B$154:$E$154,4,FALSE)) -> 0 | EW10: =IF(ISNA(VLOOKUP($A10,'5. Construct'!$B$155:$E$155,4,FALSE))=TRUE,0,VLOOKUP($A10,'5. Construct'!$B$155:$E$155,4,FALSE)) -> 0 | EX10: =IF(ISNA(VLOOKUP($A10,'5. Construct'!$B$156:$E$156,4,FALSE))=TRUE,0,VLOOKUP($A10,'5. Construct'!$B$156:$E$156,4,FALSE)) -> 0 | EY10: =IF(ISNA(VLOOKUP($A10,'5. Construct'!$B$157:$E$157,4,FALSE))=TRUE,0,VLOOKUP($A10,'5. Construct'!$B$157:$E$157,4,FALSE)) -> 0 | EZ10: =IF(ISNA(VLOOKUP($A10,'5. Construct'!$B$158:$E$158,4,FALSE))=TRUE,0,VLOOKUP($A10,'5. Construct'!$B$158:$E$158,4,FALSE)) -> 0 | FA10: =IF(ISNA(VLOOKUP($A10,'5. Construct'!$B$159:$E$159,4,FALSE))=TRUE,0,VLOOKUP($A10,'5. Construct'!$B$159:$E$159,4,FALSE)) -> 0 | FB10: =IF(ISNA(VLOOKUP($A10,'5. Construct'!$B$160:$E$160,4,FALSE))=TRUE,0,VLOOKUP($A10,'5. Construct'!$B$160:$E$160,4,FALSE)) -> 0 | FC10: =IF(ISNA(VLOOKUP($A10,'5. Construct'!$B$161:$E$161,4,FALSE))=TRUE,0,VLOOKUP($A10,'5. Construct'!$B$161:$E$161,4,FALSE)) -> 0 | FD10: =IF(ISNA(VLOOKUP($A10,'5. Construct'!$B$162:$E$162,4,FALSE))=TRUE,0,VLOOKUP($A10,'5. Construct'!$B$162:$E$162,4,FALSE)) -> 0 | FE10: =IF(ISNA(VLOOKUP($A10,'5. Construct'!$B$163:$E$163,4,FALSE))=TRUE,0,VLOOKUP($A10,'5. Construct'!$B$163:$E$163,4,FALSE)) -> 0 | FF10: =IF(ISNA(VLOOKUP($A10,'5. Construct'!$B$164:$E$164,4,FALSE))=TRUE,0,VLOOKUP($A10,'5. Construct'!$B$164:$E$164,4,FALSE)) -> 0 | FG10: =IF(ISNA(VLOOKUP($A10,'5. Construct'!$B$165:$D$165,4,FALSE))=TRUE,0,VLOOKUP($A10,'5. Construct'!$B$165:$D$165,4,FALSE)) -> 0 | FH10: =IF(ISNA(VLOOKUP($A10,'5. Construct'!$B$166:$E$166,4,FALSE))=TRUE,0,VLOOKUP($A10,'5. Construct'!$B$166:$E$166,4,FALSE)) -> 0 | FI10: =IF(ISNA(VLOOKUP($A10,'5. Construct'!$B$167:$E$167,4,FALSE))=TRUE,0,VLOOKUP($A10,'5. Construct'!$B$167:$E$167,4,FALSE)) -> 0 | FJ10: =IF(ISNA(VLOOKUP($A10,'5. Construct'!$B$168:$E$168,4,FALSE))=TRUE,0,VLOOKUP($A10,'5. Construct'!$B$168:$E$168,4,FALSE)) -> 0 | FK10: =IF(ISNA(VLOOKUP($A10,'5. Construct'!$B$169:$E$169,4,FALSE))=TRUE,0,VLOOKUP($A10,'5. Construct'!$B$169:$E$169,4,FALSE)) -> 0 | FL10: =IF(ISNA(VLOOKUP($A10,'5. Construct'!$B$170:$E$170,4,FALSE))=TRUE,0,VLOOKUP($A10,'5. Construct'!$B$170:$E$170,4,FALSE)) -> 0 | FM10: =IF(ISNA(VLOOKUP($A10,'5. Construct'!$B$171:$E$171,4,FALSE))=TRUE,0,VLOOKUP($A10,'5. Construct'!$B$171:$E$171,4,FALSE)) -> 0 | FN10: =IF(ISNA(VLOOKUP($A10,'5. Construct'!$B$172:$E$172,4,FALSE))=TRUE,0,VLOOKUP($A10,'5. Construct'!$B$172:$E$172,4,FALSE)) -> 0 | FO10: =IF(ISNA(VLOOKUP($A10,'5. Construct'!$B$173:$E$173,4,FALSE))=TRUE,0,VLOOKUP($A10,'5. Construct'!$B$173:$E$173,4,FALSE)) -> 0 | FP10: =IF(ISNA(VLOOKUP($A10,'5. Construct'!$B$174:$E$174,4,FALSE))=TRUE,0,VLOOKUP($A10,'5. Construct'!$B$174:$E$174,4,FALSE)) -> 0 | FQ10: =IF(ISNA(VLOOKUP($A10,'5. Construct'!$B$175:$E$175,4,FALSE))=TRUE,0,VLOOKUP($A10,'5. Construct'!$B$175:$E$175,4,FALSE)) -> 0 | FR10: =IF(ISNA(VLOOKUP($A10,'5. Construct'!$B$176:$E$176,4,FALSE))=TRUE,0,VLOOKUP($A10,'5. Construct'!$B$176:$E$176,4,FALSE)) -> 0 | FS10: =IF(ISNA(VLOOKUP($A10,'5. Construct'!$B$177:$E$177,4,FALSE))=TRUE,0,VLOOKUP($A10,'5. Construct'!$B$177:$E$177,4,FALSE)) -> 0 | FT10: =IF(ISNA(VLOOKUP($A10,'5. Construct'!$B$178:$E$178,4,FALSE))=TRUE,0,VLOOKUP($A10,'5. Construct'!$B$178:$E$178,4,FALSE)) -> 0 | FU10: =IF(ISNA(VLOOKUP($A10,'5. Construct'!$B$179:$E$179,4,FALSE))=TRUE,0,VLOOKUP($A10,'5. Construct'!$B$179:$E$179,4,FALSE)) -> 0 | FV10: =IF(ISNA(VLOOKUP($A10,'5. Construct'!$B$180:$E$180,4,FALSE))=TRUE,0,VLOOKUP($A10,'5. Construct'!$B$180:$E$180,4,FALSE)) -> 0 | FW10: =IF(ISNA(VLOOKUP($A10,'5. Construct'!$B$181:$E$181,4,FALSE))=TRUE,0,VLOOKUP($A10,'5. Construct'!$B$181:$E$181,4,FALSE)) -> 0 | FX10: =IF(ISNA(VLOOKUP($A10,'5. Construct'!$B$182:$E$182,4,FALSE))=TRUE,0,VLOOKUP($A10,'5. Construct'!$B$182:$E$182,4,FALSE)) -> 0 | FY10: =IF(ISNA(VLOOKUP($A10,'5. Construct'!$B$183:$E$183,4,FALSE))=TRUE,0,VLOOKUP($A10,'5. Construct'!$B$183:$E$183,4,FALSE)) -> 0 | FZ10: =IF(ISNA(VLOOKUP($A10,'5. Construct'!$B$184:$E$184,4,FALSE))=TRUE,0,VLOOKUP($A10,'5. Construct'!$B$184:$E$184,4,FALSE)) -> 0 | GA10: =IF(ISNA(VLOOKUP($A10,'5. Construct'!$B$185:$E$185,4,FALSE))=TRUE,0,VLOOKUP($A10,'5. Construct'!$B$185:$E$185,4,FALSE)) -> 0 | GB10: =IF(ISNA(VLOOKUP($A10,'5. Construct'!$B$186:$E$186,4,FALSE))=TRUE,0,VLOOKUP($A10,'5. Construct'!$B$186:$E$186,4,FALSE)) -> 0 | GC10: =IF(ISNA(VLOOKUP($A10,'5. Construct'!$B$187:$E$187,4,FALSE))=TRUE,0,VLOOKUP($A10,'5. Construct'!$B$187:$E$187,4,FALSE)) -> 0 | GD10: =IF(ISNA(VLOOKUP($A10,'5. Construct'!$B$188:$E$188,4,FALSE))=TRUE,0,VLOOKUP($A10,'5. Construct'!$B$188:$E$188,4,FALSE)) -> 0 | GE10: =IF(ISNA(VLOOKUP($A10,'5. Construct'!$B$189:$E$189,4,FALSE))=TRUE,0,VLOOKUP($A10,'5. Construct'!$B$189:$E$189,4,FALSE)) -> 0 | GF10: =IF(ISNA(VLOOKUP($A10,'5. Construct'!$B$190:$E$190,4,FALSE))=TRUE,0,VLOOKUP($A10,'5. Construct'!$B$190:$E$190,4,FALSE)) -> 0 | GG10: =IF(ISNA(VLOOKUP($A10,'5. Construct'!$B$191:$E$191,4,FALSE))=TRUE,0,VLOOKUP($A10,'5. Construct'!$B$191:$E$191,4,FALSE)) -> 0 | GH10: =IF(ISNA(VLOOKUP($A10,'5. Construct'!$B$192:$D$192,4,FALSE))=TRUE,0,VLOOKUP($A10,'5. Construct'!$B$192:$D$192,4,FALSE)) -> 0 | GI10: =IF(ISNA(VLOOKUP($A10,'5. Construct'!$B$193:$E$193,4,FALSE))=TRUE,0,VLOOKUP($A10,'5. Construct'!$B$193:$E$193,4,FALSE)) -> 0 | GJ10: =IF(ISNA(VLOOKUP($A10,'5. Construct'!$B$194:$E$194,4,FALSE))=TRUE,0,VLOOKUP($A10,'5. Construct'!$B$194:$E$194,4,FALSE)) -> 0 | GK10: =IF(ISNA(VLOOKUP($A10,'5. Construct'!$B$195:$E$195,4,FALSE))=TRUE,0,VLOOKUP($A10,'5. Construct'!$B$195:$E$195,4,FALSE)) -> 0 | GL10: =IF(ISNA(VLOOKUP($A10,'5. Construct'!$B$196:$E$196,4,FALSE))=TRUE,0,VLOOKUP($A10,'5. Construct'!$B$196:$E$196,4,FALSE)) -> 0 | GM10: =IF(ISNA(VLOOKUP($A10,'5. Construct'!$B$197:$E$197,4,FALSE))=TRUE,0,VLOOKUP($A10,'5. Construct'!$B$197:$E$197,4,FALSE)) -> 0 | GN10: =IF(ISNA(VLOOKUP($A10,'5. Construct'!$B$198:$E$198,4,FALSE))=TRUE,0,VLOOKUP($A10,'5. Construct'!$B$198:$E$198,4,FALSE)) -> 0 | GO10: =IF(ISNA(VLOOKUP($A10,'5. Construct'!$B$199:$E$199,4,FALSE))=TRUE,0,VLOOKUP($A10,'5. Construct'!$B$199:$E$199,4,FALSE)) -> 0 | GP10: =IF(ISNA(VLOOKUP($A10,'5. Construct'!$B$200:$E$200,4,FALSE))=TRUE,0,VLOOKUP($A10,'5. Construct'!$B$200:$E$200,4,FALSE)) -> 0 | GQ10: =IF(ISNA(VLOOKUP($A10,'5. Construct'!$B$201:$E$201,4,FALSE))=TRUE,0,VLOOKUP($A10,'5. Construct'!$B$201:$E$201,4,FALSE)) -> 0 | GR10: =IF(ISNA(VLOOKUP($A10,'5. Construct'!$B$202:$E$202,4,FALSE))=TRUE,0,VLOOKUP($A10,'5. Construct'!$B$202:$E$202,4,FALSE)) -> 0 | GS10: =IF(ISNA(VLOOKUP($A10,'5. Construct'!$B$203:$E$203,4,FALSE))=TRUE,0,VLOOKUP($A10,'5. Construct'!$B$203:$E$203,4,FALSE)) -> 0 | GT10: =IF(ISNA(VLOOKUP($A10,'5. Construct'!$B$204:$E$204,4,FALSE))=TRUE,0,VLOOKUP($A10,'5. Construct'!$B$204:$E$204,4,FALSE)) -> 0 | GU10: =IF(ISNA(VLOOKUP($A10,'5. Construct'!$B$205:$E$205,4,FALSE))=TRUE,0,VLOOKUP($A10,'5. Construct'!$B$205:$E$205,4,FALSE)) -> 0 | GV10: =IF(ISNA(VLOOKUP($A10,'5. Construct'!$B$206:$E$206,4,FALSE))=TRUE,0,VLOOKUP($A10,'5. Construct'!$B$206:$E$206,4,FALSE)) -> 0 | GW10: =IF(ISNA(VLOOKUP($A10,'5. Construct'!$B$207:$E$207,4,FALSE))=TRUE,0,VLOOKUP($A10,'5. Construct'!$B$207:$E$207,4,FALSE)) -> 0 | GX10: =IF(ISNA(VLOOKUP($A10,'5. Construct'!$B$208:$E$208,4,FALSE))=TRUE,0,VLOOKUP($A10,'5. Construct'!$B$208:$E$208,4,FALSE)) -> 0 | GY10: =IF(ISNA(VLOOKUP($A10,'5. Construct'!$B$209:$E$209,4,FALSE))=TRUE,0,VLOOKUP($A10,'5. Construct'!$B$209:$E$209,4,FALSE)) -> 0 | GZ10: =IF(ISNA(VLOOKUP($A10,'5. Construct'!$B$210:$E$210,4,FALSE))=TRUE,0,VLOOKUP($A10,'5. Construct'!$B$210:$E$210,4,FALSE)) -> 0 | HA10: =IF(ISNA(VLOOKUP($A10,'5. Construct'!$B$211:$E$211,4,FALSE))=TRUE,0,VLOOKUP($A10,'5. Construct'!$B$211:$E$211,4,FALSE)) -> 0 | HB10: =IF(ISNA(VLOOKUP($A10,'5. Construct'!$B$212:$E$212,4,FALSE))=TRUE,0,VLOOKUP($A10,'5. Construct'!$B$212:$E$212,4,FALSE)) -> 0 | HC10: =IF(ISNA(VLOOKUP($A10,'5. Construct'!$B$213:$E$213,4,FALSE))=TRUE,0,VLOOKUP($A10,'5. Construct'!$B$213:$E$213,4,FALSE)) -> 0 | HD10: =IF(ISNA(VLOOKUP($A10,'5. Construct'!$B$214:$E$214,4,FALSE))=TRUE,0,VLOOKUP($A10,'5. Construct'!$B$214:$E$214,4,FALSE)) -> 0 | HE10: =IF(ISNA(VLOOKUP($A10,'5. Construct'!$B$215:$E$215,4,FALSE))=TRUE,0,VLOOKUP($A10,'5. Construct'!$B$215:$E$215,4,FALSE)) -> 0 | HF10: =IF(ISNA(VLOOKUP($A10,'5. Construct'!$B$216:$E$216,4,FALSE))=TRUE,0,VLOOKUP($A10,'5. Construct'!$B$216:$E$216,4,FALSE)) -> 0 | HG10: =IF(ISNA(VLOOKUP($A10,'5. Construct'!$B$217:$E$217,4,FALSE))=TRUE,0,VLOOKUP($A10,'5. Construct'!$B$217:$E$217,4,FALSE)) -> 0 | HH10: =IF(ISNA(VLOOKUP($A10,'5. Construct'!$B$218:$E$218,4,FALSE))=TRUE,0,VLOOKUP($A10,'5. Construct'!$B$218:$E$218,4,FALSE)) -> 0 | HI10: =IF(ISNA(VLOOKUP($A10,'5. Construct'!$B$219:$E$219,4,FALSE))=TRUE,0,VLOOKUP($A10,'5. Construct'!$B$219:$E$219,4,FALSE)) -> 0 | HJ10: =IF(ISNA(VLOOKUP($A10,'5. Construct'!$B$220:$E$220,4,FALSE))=TRUE,0,VLOOKUP($A10,'5. Construct'!$B$220:$E$220,4,FALSE)) -> 0 | HK10: =IF(ISNA(VLOOKUP($A10,'5. Construct'!$B$221:$E$221,4,FALSE))=TRUE,0,VLOOKUP($A10,'5. Construct'!$B$221:$E$221,4,FALSE)) -> 0 | HL10: =IF(ISNA(VLOOKUP($A10,'5. Construct'!$B$222:$E$222,4,FALSE))=TRUE,0,VLOOKUP($A10,'5. Construct'!$B$222:$E$222,4,FALSE)) -> 0 | HM10: =IF(ISNA(VLOOKUP($A10,'5. Construct'!$B$223:$E$223,4,FALSE))=TRUE,0,VLOOKUP($A10,'5. Construct'!$B$223:$E$223,4,FALSE)) -> 0 | HN10: =IF(ISNA(VLOOKUP($A10,'5. Construct'!$B$224:$E$224,4,FALSE))=TRUE,0,VLOOKUP($A10,'5. Construct'!$B$224:$E$224,4,FALSE)) -> 0 | HO10: =IF(ISNA(VLOOKUP($A10,'5. Construct'!$B$225:$E$225,4,FALSE))=TRUE,0,VLOOKUP($A10,'5. Construct'!$B$225:$E$225,4,FALSE)) -> 0 | HP10: =IF(ISNA(VLOOKUP($A10,'5. Construct'!$B$226:$E$226,4,FALSE))=TRUE,0,VLOOKUP($A10,'5. Construct'!$B$226:$E$226,4,FALSE)) -> 0 | HQ10: =IF(ISNA(VLOOKUP($A10,'5. Construct'!$B$227:$E$227,4,FALSE))=TRUE,0,VLOOKUP($A10,'5. Construct'!$B$227:$E$227,4,FALSE)) -> 0 | HR10: =IF(ISNA(VLOOKUP($A10,'5. Construct'!$B$228:$E$228,4,FALSE))=TRUE,0,VLOOKUP($A10,'5. Construct'!$B$228:$E$228,4,FALSE)) -> 0 | HS10: =IF(ISNA(VLOOKUP($A10,'5. Construct'!$B$229:$E$229,4,FALSE))=TRUE,0,VLOOKUP($A10,'5. Construct'!$B$229:$E$229,4,FALSE)) -> 0 | HT10: =IF(ISNA(VLOOKUP($A10,'5. Construct'!$B$230:$E$230,4,FALSE))=TRUE,0,VLOOKUP($A10,'5. Construct'!$B$230:$E$230,4,FALSE)) -> 0 | HU10: =IF(ISNA(VLOOKUP($A10,'5. Construct'!$B$231:$E$231,4,FALSE))=TRUE,0,VLOOKUP($A10,'5. Construct'!$B$231:$E$231,4,FALSE)) -> 0 | HV10: =IF(ISNA(VLOOKUP($A10,'5. Construct'!$B$232:$E$232,4,FALSE))=TRUE,0,VLOOKUP($A10,'5. Construct'!$B$232:$E$232,4,FALSE)) -> 0 | HW10: =IF(ISNA(VLOOKUP($A10,'5. Construct'!$B$233:$E$233,4,FALSE))=TRUE,0,VLOOKUP($A10,'5. Construct'!$B$233:$E$233,4,FALSE)) -> 0 | HX10: =IF(ISNA(VLOOKUP($A10,'5. Construct'!$B$234:$E$234,4,FALSE))=TRUE,0,VLOOKUP($A10,'5. Construct'!$B$234:$E$234,4,FALSE)) -> 0 | HY10: =IF(ISNA(VLOOKUP($A10,'5. Construct'!$B$235:$E$235,4,FALSE))=TRUE,0,VLOOKUP($A10,'5. Construct'!$B$235:$E$235,4,FALSE)) -> 0 | HZ10: =IF(ISNA(VLOOKUP($A10,'5. Construct'!$B$236:$E$236,4,FALSE))=TRUE,0,VLOOKUP($A10,'5. Construct'!$B$236:$E$236,4,FALSE)) -> 0 | IA10: =IF(ISNA(VLOOKUP($A10,'5. Construct'!$B$237:$E$237,4,FALSE))=TRUE,0,VLOOKUP($A10,'5. Construct'!$B$237:$E$237,4,FALSE)) -> 0 | IB10: =IF(ISNA(VLOOKUP($A10,'5. Construct'!$B$238:$E$238,4,FALSE))=TRUE,0,VLOOKUP($A10,'5. Construct'!$B$238:$E$238,4,FALSE)) -> 0 | IC10: =IF(ISNA(VLOOKUP($A10,'5. Construct'!$B$239:$E$239,4,FALSE))=TRUE,0,VLOOKUP($A10,'5. Construct'!$B$239:$E$239,4,FALSE)) -> 0 | ID10: =IF(ISNA(VLOOKUP($A10,'5. Construct'!$B$240:$E$240,4,FALSE))=TRUE,0,VLOOKUP($A10,'5. Construct'!$B$240:$E$240,4,FALSE)) -> 0 | IE10: =IF(ISNA(VLOOKUP($A10,'5. Construct'!$B$241:$E$241,4,FALSE))=TRUE,0,VLOOKUP($A10,'5. Construct'!$B$241:$E$241,4,FALSE)) -> 0 | IF10: =IF(ISNA(VLOOKUP($A10,'5. Construct'!$B$242:$E$242,4,FALSE))=TRUE,0,VLOOKUP($A10,'5. Construct'!$B$242:$E$242,4,FALSE)) -> 0 | IG10: =IF(ISNA(VLOOKUP($A10,'5. Construct'!$B$243:$E$243,4,FALSE))=TRUE,0,VLOOKUP($A10,'5. Construct'!$B$243:$E$243,4,FALSE)) -> 0 | IH10: =IF(ISNA(VLOOKUP($A10,'5. Construct'!$B$244:$E$244,4,FALSE))=TRUE,0,VLOOKUP($A10,'5. Construct'!$B$244:$E$244,4,FALSE)) -> 0 | II10: =IF(ISNA(VLOOKUP($A10,'5. Construct'!$B$245:$E$245,4,FALSE))=TRUE,0,VLOOKUP($A10,'5. Construct'!$B$245:$E$245,4,FALSE)) -> 0 | IJ10: =IF(ISNA(VLOOKUP($A10,'5. Construct'!$B$246:$E$246,4,FALSE))=TRUE,0,VLOOKUP($A10,'5. Construct'!$B$246:$E$246,4,FALSE)) -> 0 | IK10: =IF(ISNA(VLOOKUP($A10,'5. Construct'!$B$247:$E$247,4,FALSE))=TRUE,0,VLOOKUP($A10,'5. Construct'!$B$247:$E$247,4,FALSE)) -> 0 | IL10: =IF(ISNA(VLOOKUP($A10,'5. Construct'!$B$248:$E$248,4,FALSE))=TRUE,0,VLOOKUP($A10,'5. Construct'!$B$248:$E$248,4,FALSE)) -> 0 | IM10: =IF(ISNA(VLOOKUP($A10,'5. Construct'!$B$249:$E$249,4,FALSE))=TRUE,0,VLOOKUP($A10,'5. Construct'!$B$249:$E$249,4,FALSE)) -> 0 | IN10: =IF(ISNA(VLOOKUP($A10,'5. Construct'!$B$250:$E$250,4,FALSE))=TRUE,0,VLOOKUP($A10,'5. Construct'!$B$250:$E$250,4,FALSE)) -> 0 | IO10: =IF(ISNA(VLOOKUP($A10,'5. Construct'!$B$251:$E$251,4,FALSE))=TRUE,0,VLOOKUP($A10,'5. Construct'!$B$251:$E$251,4,FALSE)) -> 0 | IP10: =IF(ISNA(VLOOKUP($A10,'5. Construct'!$B$252:$E$252,4,FALSE))=TRUE,0,VLOOKUP($A10,'5. Construct'!$B$252:$E$252,4,FALSE)) -> 0 | IQ10: =IF(ISNA(VLOOKUP($A10,'5. Construct'!$B$253:$E$253,4,FALSE))=TRUE,0,VLOOKUP($A10,'5. Construct'!$B$253:$E$253,4,FALSE)) -> 0 | IR10: =IF(ISNA(VLOOKUP($A10,'5. Construct'!$B$254:$E$254,4,FALSE))=TRUE,0,VLOOKUP($A10,'5. Construct'!$B$254:$E$254,4,FALSE)) -> 0 | IS10: =IF(ISNA(VLOOKUP($A10,'5. Construct'!$B$255:$E$255,4,FALSE))=TRUE,0,VLOOKUP($A10,'5. Construct'!$B$255:$E$255,4,FALSE)) -> 0 | IT10: =IF(ISNA(VLOOKUP($A10,'5. Construct'!$B$256:$E$256,4,FALSE))=TRUE,0,VLOOKUP($A10,'5. Construct'!$B$256:$E$256,4,FALSE)) -> 0 | IU10: =IF(ISNA(VLOOKUP($A10,'5. Construct'!$B$257:$E$257,4,FALSE))=TRUE,0,VLOOKUP($A10,'5. Construct'!$B$257:$E$257,4,FALSE)) -> 0 | IV10: =IF(ISNA(VLOOKUP($A10,'5. Construct'!$B$258:$E$258,4,FALSE))=TRUE,0,VLOOKUP($A10,'5. Construct'!$B$258:$E$258,4,FALSE)) -> 0 | IW10: =IF(ISNA(VLOOKUP($A10,'5. Construct'!$B$259:$E$259,4,FALSE))=TRUE,0,VLOOKUP($A10,'5. Construct'!$B$259:$E$259,4,FALSE)) -> 0 | IX10: =IF(ISNA(VLOOKUP($A10,'5. Construct'!$B$260:$E$260,4,FALSE))=TRUE,0,VLOOKUP($A10,'5. Construct'!$B$260:$E$260,4,FALSE)) -> 0 | IY10: =IF(ISNA(VLOOKUP($A10,'5. Construct'!$B$261:$E$261,4,FALSE))=TRUE,0,VLOOKUP($A10,'5. Construct'!$B$261:$E$261,4,FALSE)) -> 0 | IZ10: =IF(ISNA(VLOOKUP($A10,'5. Construct'!$B$262:$E$262,4,FALSE))=TRUE,0,VLOOKUP($A10,'5. Construct'!$B$262:$E$262,4,FALSE)) -> 0 | JA10: =IF(ISNA(VLOOKUP($A10,'5. Construct'!$B$263:$E$263,4,FALSE))=TRUE,0,VLOOKUP($A10,'5. Construct'!$B$263:$E$263,4,FALSE)) -> 0 | JB10: =IF(ISNA(VLOOKUP($A10,'5. Construct'!$B$264:$E$264,4,FALSE))=TRUE,0,VLOOKUP($A10,'5. Construct'!$B$264:$E$264,4,FALSE)) -> 0 | JC10: =IF(ISNA(VLOOKUP($A10,'5. Construct'!$B$265:$E$265,4,FALSE))=TRUE,0,VLOOKUP($A10,'5. Construct'!$B$265:$E$265,4,FALSE)) -> 0 | JD10: =IF(ISNA(VLOOKUP($A10,'5. Construct'!$B$266:$E$266,4,FALSE))=TRUE,0,VLOOKUP($A10,'5. Construct'!$B$266:$E$266,4,FALSE)) -> 0 | JE10: =IF(ISNA(VLOOKUP($A10,'5. Construct'!$B$267:$E$267,4,FALSE))=TRUE,0,VLOOKUP($A10,'5. Construct'!$B$267:$E$267,4,FALSE)) -> 0 | JF10: =IF(ISNA(VLOOKUP($A10,'5. Construct'!$B$268:$E$268,4,FALSE))=TRUE,0,VLOOKUP($A10,'5. Construct'!$B$268:$E$268,4,FALSE)) -> 0 | JG10: =IF(ISNA(VLOOKUP($A10,'5. Construct'!$B$269:$E$269,4,FALSE))=TRUE,0,VLOOKUP($A10,'5. Construct'!$B$269:$E$269,4,FALSE)) -> 0 | JH10: =IF(ISNA(VLOOKUP($A10,'5. Construct'!$B$270:$E$270,4,FALSE))=TRUE,0,VLOOKUP($A10,'5. Construct'!$B$270:$E$270,4,FALSE)) -> 0 | JI10: =IF(ISNA(VLOOKUP($A10,'5. Construct'!$B$271:$E$271,4,FALSE))=TRUE,0,VLOOKUP($A10,'5. Construct'!$B$271:$E$271,4,FALSE)) -> 0 | JJ10: =IF(ISNA(VLOOKUP($A10,'5. Construct'!$B$272:$E$272,4,FALSE))=TRUE,0,VLOOKUP($A10,'5. Construct'!$B$272:$E$272,4,FALSE)) -> 0 | JK10: =IF(ISNA(VLOOKUP($A10,'5. Construct'!$B$273:$E$273,4,FALSE))=TRUE,0,VLOOKUP($A10,'5. Construct'!$B$273:$E$273,4,FALSE)) -> 0 | JL10: =IF(ISNA(VLOOKUP($A10,'5. Construct'!$B$274:$E$274,4,FALSE))=TRUE,0,VLOOKUP($A10,'5. Construct'!$B$274:$E$274,4,FALSE)) -> 0 | JM10: =IF(ISNA(VLOOKUP($A10,'5. Construct'!$B$275:$E$275,4,FALSE))=TRUE,0,VLOOKUP($A10,'5. Construct'!$B$275:$E$275,4,FALSE)) -> 0 | JN10: =IF(ISNA(VLOOKUP($A10,'5. Construct'!$B$276:$E$276,4,FALSE))=TRUE,0,VLOOKUP($A10,'5. Construct'!$B$276:$E$276,4,FALSE)) -> 0 | JO10: =IF(ISNA(VLOOKUP($A10,'5. Construct'!$B$277:$E$277,4,FALSE))=TRUE,0,VLOOKUP($A10,'5. Construct'!$B$277:$E$277,4,FALSE)) -> 0 | JP10: =IF(ISNA(VLOOKUP($A10,'5. Construct'!$B$278:$E$278,4,FALSE))=TRUE,0,VLOOKUP($A10,'5. Construct'!$B$278:$E$278,4,FALSE)) -> 0 | JQ10: =IF(ISNA(VLOOKUP($A10,'5. Construct'!$B$279:$E$279,4,FALSE))=TRUE,0,VLOOKUP($A10,'5. Construct'!$B$279:$E$279,4,FALSE)) -> 0 | JR10: =IF(ISNA(VLOOKUP($A10,'5. Construct'!$B$280:$E$280,4,FALSE))=TRUE,0,VLOOKUP($A10,'5. Construct'!$B$280:$E$280,4,FALSE)) -> 0 | JS10: =IF(ISNA(VLOOKUP($A10,'5. Construct'!$B$281:$E$281,4,FALSE))=TRUE,0,VLOOKUP($A10,'5. Construct'!$B$281:$E$281,4,FALSE)) -> 0 | JT10: =IF(ISNA(VLOOKUP($A10,'5. Construct'!$B$282:$E$282,4,FALSE))=TRUE,0,VLOOKUP($A10,'5. Construct'!$B$282:$E$282,4,FALSE)) -> 0 | JU10: =IF(ISNA(VLOOKUP($A10,'5. Construct'!$B$283:$E$283,4,FALSE))=TRUE,0,VLOOKUP($A10,'5. Construct'!$B$283:$E$283,4,FALSE)) -> 0 | JV10: =IF(ISNA(VLOOKUP($A10,'5. Construct'!$B$284:$E$284,4,FALSE))=TRUE,0,VLOOKUP($A10,'5. Construct'!$B$284:$E$284,4,FALSE)) -> 0 | JW10: =IF(ISNA(VLOOKUP($A10,'5. Construct'!$B$285:$E$285,4,FALSE))=TRUE,0,VLOOKUP($A10,'5. Construct'!$B$285:$E$285,4,FALSE)) -> 0 | JX10: =IF(ISNA(VLOOKUP($A10,'5. Construct'!$B$286:$E$286,4,FALSE))=TRUE,0,VLOOKUP($A10,'5. Construct'!$B$286:$E$286,4,FALSE)) -> 0 | JY10: =IF(ISNA(VLOOKUP($A10,'5. Construct'!$B$287:$E$287,4,FALSE))=TRUE,0,VLOOKUP($A10,'5. Construct'!$B$287:$E$287,4,FALSE)) -> 0 | JZ10: =IF(ISNA(VLOOKUP($A10,'5. Construct'!$B$288:$E$288,4,FALSE))=TRUE,0,VLOOKUP($A10,'5. Construct'!$B$288:$E$288,4,FALSE)) -> 0 | KA10: =IF(ISNA(VLOOKUP($A10,'5. Construct'!$B$289:$E$289,4,FALSE))=TRUE,0,VLOOKUP($A10,'5. Construct'!$B$289:$E$289,4,FALSE)) -> 0 | KB10: =IF(ISNA(VLOOKUP($A10,'5. Construct'!$B$290:$E$290,4,FALSE))=TRUE,0,VLOOKUP($A10,'5. Construct'!$B$290:$E$290,4,FALSE)) -> 0 | KC10: 0 | KD10: 0 | KE10: 0 | KF10: 0 | KG10: 0 | KH10: 0 | KI10: ='7. Material'!J8 -> 0.005 | KJ10: 0
